Workbook

Sheet Cover Sheet
C2: Model Details
C4: Model Name: | D4: TasNetworks (Public Lighting Model)
C6: Date: | D6: 2018-04-20
B20: Model Description/Scope
B22: Model Description
B24: This is a street lighting pricing model which works out the pricing for indiviual contract and public lights and estimates the total revenue build up for street lighting in $Real 2019-20.
B29: Scope/Disclaimer

Sheet Model Structure (hidden)
B9: Model Overview
B11: Legend
B20: Model Structure

Sheet Model Information
B2: Process information
B3: Public lighting includes many parts that have different life cycles which also vary depending on the light type. The main parts in a light are as follow:
B5: o Light Bracket - most lights have a bracket which allows the luminaire to be attached to a power pole, this is capital expenditure. There are some lights that are on private piles that do not require brackets, these poles and built in brackets are not the responsibility of TasNetworks. Brackets are assumed to have a life cycle of 40 years
B9: o Luminaire - The luminaire is the light fitting that the lamp is within and is a capital expenditure. Luminaires are assumed to have a life cycle of 20 years
B12: o Lamp - Within the luminaire is a lamp that requires replacement depending on the light type. Normal lights have a life cycle of 4.5 years on average therefore the replacement program is every 4 years as opex expenditure. LED lights are the exception as they last 20 years and are replaced when the luminaire requires replacing.
B16: o PE Cell - Public lights are switched on and off using PE Cells which in the last 30 years have replaced overhead switch wires as a new technology. They are replaced either with the lamp on after 10 year as opex.
B19: o Installation Cost - The TasNetworks POW has inbuilt unit prices for both opex and capex installation costs of public lights. These prices have been used for luminaire /Bracket capex installation excluding the material proportion plus actual materials from the warehouse prices. The same method has been used for Opex maintenance (Lamp & PE Cell replacement), using the POW unit rate net of materials plus actual materials for the individual light type. The 2 unit rates are determined using the Major/minor allocation of the light.
B25: Public lighting prices have previously used the annuity method rather than a RAB method. The annuity method is more accurate and produces more cost reflective prices compared to the RAB method which has some unreliable data. The opening RAB data was estimated by the business therefore its accuracy is unknown, because of this the PTRM output is used as a indicator test for the Annuity method.
B32: Assumptions
B33: Brackets
B34: A sample base for brackets has been sourced from the thread leader which aligns the light type with bracket type and cost. This sample base of 10,000 out of a total of 40,000+ lights is assumed to represent the whole fleet of brackets.
B37: Of the 40,000+ public lights there are a number of private poles for the public light that do not require a bracket. The public lighting asset management plan has the total number of brackets in the fleet (not down to type assigned to light type for costing). Therefore the cost of the brackets is weighted so that only the total number of brackets are recovered.
B41: Lamps
B42: Lamps have a assumed life cycle of 4.5 years therefore they are replaced within the POW after 4 years. LEDs do not require a lamp replacement within the 20 year life cycle of the luminaire.
B45: PE Cells
B46: There are two types of PE Cells and it is assumed that major lights have the more expensive cell installed while the minor lights have the smaller and cheaper PE Cell.
B49: PE Cells have a assumed 10 year life therefore to align with the 4 year lamp replacement program they are replaced after 8 years however with LED's they are replaced after 10 years.
B52: Installation and maintenance cost
B53: The POW assumption about what lights are major and minor for work to be completed is based on lights less than or greater than 100 watts. This results in a higher cost associated with the major lights due to higher costs performing maintenance and installation.
B56: It is assumed that the cost of performing a Lamp replacement is the same doing the PE Cell at the same time or only PE cell.
B59: It is assumed that the cost of performing a luminaire installation/replacement is the same doing the Brackett at the same time
B62: Other assumptions
B63: It is assumed that contract prices for materials are to remain consistent with current prices.
B66: Where a warehouse price is not available due to the light type is obsolete the previous determination prices have been indexed.
B69: Indirect capex that is not included in the unit price build up is included in the annuity calculation and assumed to have a 40 year life given it is work on the street lights that have the same life.
B72: Private contract lights are owned by client and TasNetworks just performs maintenance on the light. Capital replacements are the responsibility of the owner.
B75: New Technology - minor lighting is assumed the same as our current latest technology (LED 14W), Major lighting for LED technology has not been trialled, the equivalent LED technology to our 150W and 250W sodium vapour is a 160W LED, maintenance cycles are unknown so have assumed to be the same as the current 250W sodium vapour.

Sheet TN Changes
A2: Item | B2: Sheet \ Location | C2: Comment
A4: 1 | B4: Revenue Nominal RAB | C4: Deleted Sheet (not relevant to Annuity Calculation)
A6: 2 | B6: Capex Weighting A14:Z80 | C6: Deleted hidden rows (not relevant to annuity calculation)
A8: 3 | B8: Opex Weighting A13:Z78 | C8: Deleted hidden rows (not relevant to annuity calculation)
A10: 4 | B10: Capex Weighting O:X | C10: Deleted columns (duplicate information)
A12: 5 | B12: Opex Weighting P:Z | C12: Deleted columns (duplicate information)
A14: 6 | B14: Mater Data A43:T46 | C14: Deleted rows (not relevant to annuity calculation)
A16: 7 | B16: CAPEX Annuity Calcs E:N | C16: Formula Changes
B18: Bracket UNIT Price column E | C18: From '=VLOOKUP($B9,Inputs!$C$68:$AN$129,MATCH($B10,Inputs!$C$68:$AN$68,0),FALSE)*'Master Data'!$K$46
C19: To '=VLOOKUP($B9,Inputs!$C$68:$AN$129,MATCH($B10,Inputs!$C$68:$AN$68,0),FALSE)
B21: Bracket UNIT Price column F:N | C21: From '=E10*(1+'Master Data'!L$45)
C22: To '=E10
B24: Luminaire UNIT price column E | C24: From '=VLOOKUP($B9,Inputs!$C$68:$AN$129,MATCH($B12,Inputs!$C$68:$AN$68,0),FALSE)*'Master Data'!$K$43
C25: To '=VLOOKUP($B9,Inputs!$C$68:$AN$129,MATCH($B12,Inputs!$C$68:$AN$68,0),FALSE)
B27: Luminaire UNIT price column F:N | C27: From '=E12*(1+'Master Data'!L$43)
C28: To '=E12
B30: CAPEX Instalation costs column E | C30: From '=(VLOOKUP($B9,Inputs!$C$68:$AN$129,MATCH($B13,Inputs!$C$68:$AN$68,0),FALSE)+(VLOOKUP($B9,Inputs!$C$68:$AN$129,MATCH($A13,Inputs!$C$68:$AN$68,0),FALSE)*('Master Data'!K$42)))*'Master Data'!$K$43
C31: To '=VLOOKUP($B9,Inputs!$C$68:$AN$129,MATCH($B13,Inputs!$C$68:$AN$68,0),FALSE)+(VLOOKUP($B9,Inputs!$C$68:$AN$129,MATCH($A13,Inputs!$C$68:$AN$68,0),FALSE)*('Master Data'!K$42))
B33: CAPEX Instalation costs column F:N | C33: From '=(VLOOKUP($B9,Inputs!$C$68:$AN$129,MATCH($B13,Inputs!$C$68:$AN$68,0),FALSE)+(VLOOKUP($B9,Inputs!$C$68:$AN$129,MATCH($A13,Inputs!$C$68:$AN$68,0),FALSE)*('Master Data'!L$42)))*(1+'Master Data'!L$43)
C34: To '=VLOOKUP($B9,Inputs!$C$68:$AN$129,MATCH($B13,Inputs!$C$68:$AN$68,0),FALSE)+(VLOOKUP($B9,Inputs!$C$68:$AN$129,MATCH($A13,Inputs!$C$68:$AN$68,0),FALSE)*('Master Data'!L$42))
A36: 8 | B36: Capex Weighting A29:M29, A33:M33 | C36: Reallocate RLOLI and RLWBP from Indirect to direct Capital expenditure
B38: Capex - New Streetlight installation - RLOLI
B39: Capex - Replace condemned wide based steel poles - RLWBP
A41: 9 | B41: Building Block C52 | C41: Change opening regulated asset base amount from $1,660,347 to $550,413.22 to reflect the change from RLOLI and RLWBP being reallocated to direct capital expenditure
A43: 10 | B43: Volumes D5: H79 | C43: Update volumes
A45: 11 | B45: Corporate overheads H:I | C45: add overhead adjustment
B46: E4:E13 | C46: Adjust formula for overhead adjustment
B47: D18:D27 | C47: Adjust formula for overhead adjustment
A49: 12 | B49: Capex Weighting
B50: B14:M17 | C50: Capex adjustment due to volume changes
B51: D22: M23, D31:M32 | C51: Formula changes due to capex changes
A53: 13 | B53: Add tab 'Adjustment "A" | C53: Additional tab to bring prices back to Proposed price path
A56: 14 | B56: Smoothed Prices with Price Path
B57: D12: M70 | C57: adjust formula for Adjustment
C58: From '=IF($C12="NA","",'Smoothed Prices'!D12+$D$6)
C59: To '=IF($C12="NA","",'Smoothed Prices'!D12+'Adjustment "A"'!O12)
B60: D75: M133 | C60: adjust formula for Adjustment
C61: From '=IF($C75="NA","",'Smoothed Prices'!D75+$D$7)
C62: To '=IF($C75="NA","",'Smoothed Prices'!D75+'Adjustment "A"'!O75)
A64: 15 | B64: Bracket Data | C64: Removed information
B65: B5:AZ24539
B66: BC5:CF24539
A69: 16 | B69: Warehousing Pricing | C69: Removed information
B70: C9:M70
B71: C85:C95
B72: F85:M95
A77: August 2018 changes
A78: 1 | B78: Master Data | C78: Update WACC
B79: B45 - Nominal Vanilla WACC | C79: Changed from 5.89% to 5.89% - as per PTRM [TN- Post Tax Revenue Model (PTRM) Distribution - Standard Control.xlsm]WACC
B80: B46 - Pre-tax Real WACC Rate | C80: Changed from 3.66% to 3.95% - as per PTRM [TN- Post Tax Revenue Model (PTRM) Distribution - Standard Control.xlsm]WACC

Sheet AER Changes
A2: Item | B2: Sheet \ Location | C2: Comment
A4: 1 | B4: Various | C4: Removed all data and code beyond 2023/24
A6: =A4+1 -> 2 | B6: Sheet "Adjustment "A" | C6: Removed
A8: =A6+1 -> 3 | B8: Sheet "Smoothed Prices with Price Path" | C8: Removed
A10: =A8+1 -> 4 | B10: Smoothed Prices'!C11:I133 | C10: Presentation & Formulae changes
B11: Smoothed Prices'!P138:U153
A13: =A10+1 -> 5 | B13: Smoothed Prices'!Q149:R149 | C13: AER Price Path - finalised - AER Pre-tax Real WACC Rate has been finalised - refer Item 16 below
A15: =A13+1 -> 6 | B15: Unsmoothed Prices'!D10:D68 | C15: Approved prices for 2018-19
B16: Unsmoothed Prices'!D73:D131
A18: =A15+1 -> 7 | B18: Unsmoothed Prices'!Q137:U137 | C18: Incorrect formulae
A20: =A18+1 -> 8 | B20: Inputs!AD68 | C20: Incorrect label
A22: =A20+1 -> 9 | B22: Inputs!AD69:AD127 | C22: Incorrect formulae
A24: =A22+1 -> 10 | B24: Inputs!Z102:Z104 | C24: Incorrect formulae
B25: Inputs!Z106:Z108
A27: =A24+1 -> 11 | B27: CAPEX Annuity calcs'!A13:A356 | C27: Label changed to be consistent with "Inputs" sheet - refer Item 1 above
A29: =A27+1 -> 12 | B29: Building Block'!C9:G9 | C29: Replaced incorrect hard coded data with formulae
A31: =A29+1 -> 13 | B31: Master Data'!I35 | C31: Forecast CPI replaced with actual CPI for 2017-18
A32: =A31+1 -> 14 | B32: Master Data'!K40:O40 | C32: AER Real Labour Escalator
A33: =A32+1 -> 15 | B33: Master Data'!B44 | C33: AER Forecast CPI
A34: 16 | B34: Master Data'!A45 | C34: AER Nominal Vanilla WACC
A35: 17 | B35: Master Data'!A46 | C35: AER Pre-tax Real WACC Rate - updated : SCS PTRM run 22 / 8 /2018

Sheet Smoothed Prices
B1: $2018-19 base data
Q3: THIS TAKES 18/19 SMOOTHED PRICES ADDS CPI | AM3: THIS TAKES 18/19 SMOOTHED PRICES and multiplys by no.days in year/100 to convert $s into cents | AX3: THIS TAKES nominal and multiplys by no days in year/100
B4: Private Contract Lights
D8: Approved | E8: Unsmoothed | F8: X Factor (years 2-5) | J8: X Factor | P8: Days | Q8: ='Master Data'!K28 -> 366 | R8: ='Master Data'!L28 -> 365 | S8: ='Master Data'!M28 -> 365 | T8: ='Master Data'!N28 -> 365 | U8: ='Master Data'!O28 -> 366
D9: Prices | E9: Prices | F9: =R149 -> 0.03088926099 | G9: =S149 -> 0.03088926099 | H9: 0.03088926099 | I9: 0.03088926099 | P9: CPI | Q9: ='Master Data'!K39 -> 1.024499511 | R9: ='Master Data'!L39 -> 1.049599249 | S9: ='Master Data'!M39 -> 1.075313918 | T9: ='Master Data'!N39 -> 1.101658584 | U9: ='Master Data'!O39 -> 1.128648681 | AM9: =HLOOKUP(AM11,'Master Data'!$B$25:$P$28,4,FALSE) -> 366 | AN9: =HLOOKUP(AN11,'Master Data'!$B$25:$P$28,4,FALSE) -> 365 | AO9: =HLOOKUP(AO11,'Master Data'!$B$25:$P$28,4,FALSE) -> 365 | AP9: =HLOOKUP(AP11,'Master Data'!$B$25:$P$28,4,FALSE) -> 365 | AQ9: =HLOOKUP(AQ11,'Master Data'!$B$25:$P$28,4,FALSE) -> 366 | AX9: =HLOOKUP(AX11,'Master Data'!$B$25:$P$28,4,FALSE) -> 366 | AY9: =HLOOKUP(AY11,'Master Data'!$B$25:$P$28,4,FALSE) -> 365 | AZ9: =HLOOKUP(AZ11,'Master Data'!$B$25:$P$28,4,FALSE) -> 365 | BA9: =HLOOKUP(BA11,'Master Data'!$B$25:$P$28,4,FALSE) -> 365 | BB9: =HLOOKUP(BB11,'Master Data'!$B$25:$P$28,4,FALSE) -> 366
B10: Private Contract Lights | F10: Price (cents) per Light per day Real 2018/19 Smoothed | J10: Price (cents) per Light per day Real 2018/19 Smoothed | Q10: Price (cents) per Light per day Nominal Smoothed | AB10: Volumes | AM10: Smooth Real 2018/19 Cost Dollars Per Year | AX10: Smooth Nominal Cost Dollars Per Year | BJ10: Revenue Real Real Dollars Per Year | BV10: Revenue Nominal Dollars Per Year | CA10: Revenue Nominal Dollars Per Year
C11: Offered / No Longer Offered / NA | D11: ='Master Data'!J$34 -> 2018-19 | E11: ='Master Data'!K$34 -> 2019-20 | F11: ='Master Data'!L$34 -> 2020-21 | G11: ='Master Data'!M$34 -> 2021-22 | H11: ='Master Data'!N$34 -> 2022-23 | I11: ='Master Data'!O$34 -> 2023-24 | J11: ='Master Data'!P$34 -> 2024-25 | K11: ='Master Data'!Q$34 -> 2025-26 | L11: ='Master Data'!R$34 -> 2026-27 | M11: ='Master Data'!S$34 -> 2027-28 | N11: ='Master Data'!T$34 -> 2028-29 | Q11: ='Master Data'!K$34 -> 2019-20 | R11: ='Master Data'!L$34 -> 2020-21 | S11: ='Master Data'!M$34 -> 2021-22 | T11: ='Master Data'!N$34 -> 2022-23 | U11: ='Master Data'!O$34 -> 2023-24 | V11: ='Master Data'!P$34 -> 2024-25 | W11: ='Master Data'!Q$34 -> 2025-26 | X11: ='Master Data'!R$34 -> 2026-27 | Y11: ='Master Data'!S$34 -> 2027-28 | Z11: ='Master Data'!T$34 -> 2028-29 | AB11: ='Master Data'!K$34 -> 2019-20 | AC11: ='Master Data'!L$34 -> 2020-21 | AD11: ='Master Data'!M$34 -> 2021-22 | AE11: ='Master Data'!N$34 -> 2022-23 | AF11: ='Master Data'!O$34 -> 2023-24 | AG11: ='Master Data'!P$34 -> 2024-25 | AH11: ='Master Data'!Q$34 -> 2025-26 | AI11: ='Master Data'!R$34 -> 2026-27 | AJ11: ='Master Data'!S$34 -> 2027-28 | AK11: ='Master Data'!T$34 -> 2028-29 | AM11: ='Master Data'!K$34 -> 2019-20 | AN11: ='Master Data'!L$34 -> 2020-21 | AO11: ='Master Data'!M$34 -> 2021-22 | AP11: ='Master Data'!N$34 -> 2022-23 | AQ11: ='Master Data'!O$34 -> 2023-24 | AR11: ='Master Data'!P$34 -> 2024-25 | AS11: ='Master Data'!Q$34 -> 2025-26 | AT11: ='Master Data'!R$34 -> 2026-27 | AU11: ='Master Data'!S$34 -> 2027-28 | AV11: ='Master Data'!T$34 -> 2028-29 | AX11: ='Master Data'!K$34 -> 2019-20 | AY11: ='Master Data'!L$34 -> 2020-21 | AZ11: ='Master Data'!M$34 -> 2021-22 | BA11: ='Master Data'!N$34 -> 2022-23 | BB11: ='Master Data'!O$34 -> 2023-24 | BC11: ='Master Data'!P$34 -> 2024-25 | BD11: ='Master Data'!Q$34 -> 2025-26 | BE11: ='Master Data'!R$34 -> 2026-27 | BF11: ='Master Data'!S$34 -> 2027-28 | BG11: ='Master Data'!T$34 -> 2028-29 | BJ11: ='Master Data'!K$34 -> 2019-20 | BK11: ='Master Data'!L$34 -> 2020-21 | BL11: ='Master Data'!M$34 -> 2021-22 | BM11: ='Master Data'!N$34 -> 2022-23 | BN11: ='Master Data'!O$34 -> 2023-24 | BO11: ='Master Data'!P$34 -> 2024-25 | BP11: ='Master Data'!Q$34 -> 2025-26 | BQ11: ='Master Data'!R$34 -> 2026-27 | BR11: ='Master Data'!S$34 -> 2027-28 | BS11: ='Master Data'!T$34 -> 2028-29 | BV11: ='Master Data'!K$34 -> 2019-20 | BW11: ='Master Data'!L$34 -> 2020-21 | BX11: ='Master Data'!M$34 -> 2021-22 | BY11: ='Master Data'!N$34 -> 2022-23 | BZ11: ='Master Data'!O$34 -> 2023-24 | CA11: ='Master Data'!P$34 -> 2024-25 | CB11: ='Master Data'!Q$34 -> 2025-26 | CC11: ='Master Data'!R$34 -> 2026-27 | CD11: ='Master Data'!S$34 -> 2027-28 | CE11: ='Master Data'!T$34 -> 2028-29
B12: =Inputs!$C69 -> 32W Compact Fluorescent | C12: Old light no volumes | D12: =IF($C12="NA","",'Unsmoothed Prices'!D10) -> 18.221 | E12: =IF($C12="NA","",'Unsmoothed Prices'!E10) -> 19.1459267 | F12: =IF($C12="NA","",E12*(1-F$9)) -> 18.55452317 | G12: 17.98138766 | H12: 17.42595589 | I12: 16.88768099 | Q12: =IF($C12="NA","",E12*Q$9) -> 19.61499255 | R12: 19.47481359 | S12: 19.33563642 | T12: 19.19745388 | U12: 19.06025887 | AB12: =IFERROR(VLOOKUP($B12,Volumes!$B$4:$H$33,MATCH(AB$11,Volumes!$B$4:$H$4,0),FALSE),0) -> 0 | AC12: =IFERROR(VLOOKUP($B12,Volumes!$B$4:$H$33,MATCH(AC$11,Volumes!$B$4:$H$4,0),FALSE),0) -> 0 | AD12: =IFERROR(VLOOKUP($B12,Volumes!$B$4:$H$33,MATCH(AD$11,Volumes!$B$4:$H$4,0),FALSE),0) -> 0 | AE12: =IFERROR(VLOOKUP($B12,Volumes!$B$4:$H$33,MATCH(AE$11,Volumes!$B$4:$H$4,0),FALSE),0) -> 0 | AF12: =IFERROR(VLOOKUP($B12,Volumes!$B$4:$H$33,MATCH(AF$11,Volumes!$B$4:$H$4,0),FALSE),0) -> 0 | AM12: =IF($C12="NA","",(E12*AM$9)/100) -> 70.07409172 | AN12: 67.72400958 | AO12: 65.63206497 | AP12: 63.60473899 | AQ12: 61.80891241 | AX12: =IF($C12="NA","",(Q12*AX$9)/100) -> 71.79087273 | AY12: 71.08306959 | AZ12: 70.57507292 | BA12: 70.07070666 | BB12: 69.76054745 | BJ12: =IFERROR(AM12*AB12,0) -> 0 | BK12: 0 | BL12: 0 | BM12: 0 | BN12: 0 | BV12: =IFERROR(AX12*AB12,0) -> 0 | BW12: 0 | BX12: 0 | BY12: 0 | BZ12: 0 | CA12: 0 | CB12: 0 | CC12: 0 | CD12: 0 | CE12: 0
B13: =Inputs!$C70 -> 42W Compact Fluorescent | C13: Old light no volumes | D13: =IF($C13="NA","",'Unsmoothed Prices'!D11) -> 18.222 | E13: =IF($C13="NA","",'Unsmoothed Prices'!E11) -> 19.1459267 | F13: =IF($C13="NA","",E13*(1-F$9)) -> 18.55452317 | G13: 17.98138766 | H13: 17.42595589 | I13: 16.88768099 | Q13: 19.61499255 | R13: 19.47481359 | S13: 19.33563642 | T13: 19.19745388 | U13: 19.06025887 | AB13: =IFERROR(VLOOKUP($B13,Volumes!$B$4:$H$33,MATCH(AB$11,Volumes!$B$4:$H$4,0),FALSE),0) -> 28 | AC13: =IFERROR(VLOOKUP($B13,Volumes!$B$4:$H$33,MATCH(AC$11,Volumes!$B$4:$H$4,0),FALSE),0) -> 28 | AD13: =IFERROR(VLOOKUP($B13,Volumes!$B$4:$H$33,MATCH(AD$11,Volumes!$B$4:$H$4,0),FALSE),0) -> 28 | AE13: =IFERROR(VLOOKUP($B13,Volumes!$B$4:$H$33,MATCH(AE$11,Volumes!$B$4:$H$4,0),FALSE),0) -> 28 | AF13: =IFERROR(VLOOKUP($B13,Volumes!$B$4:$H$33,MATCH(AF$11,Volumes!$B$4:$H$4,0),FALSE),0) -> 28 | AM13: 70.07409172 | AN13: 67.72400958 | AO13: 65.63206497 | AP13: 63.60473899 | AQ13: 61.80891241 | AX13: 71.79087273 | AY13: 71.08306959 | AZ13: 70.57507292 | BA13: 70.07070666 | BB13: 69.76054745 | BJ13: 1962.074568 | BK13: 1896.272268 | BL13: 1837.697819 | BM13: 1780.932692 | BN13: 1730.649548 | BV13: 2010.144436 | BW13: 1990.325949 | BX13: 1976.102042 | BY13: 1961.979786 | BZ13: 1953.295329 | CA13: 0 | CB13: 0 | CC13: 0 | CD13: 0 | CE13: 0
B14: =Inputs!$C71 -> 42W Compact Fluorescent - Bottom Pole Entry | C14: Old light no volumes | D14: =IF($C14="NA","",'Unsmoothed Prices'!D12) -> 18.222 | E14: =IF($C14="NA","",'Unsmoothed Prices'!E12) -> 19.1459267 | F14: 18.55452317 | G14: 17.98138766 | H14: 17.42595589 | I14: 16.88768099 | Q14: 19.61499255 | R14: 19.47481359 | S14: 19.33563642 | T14: 19.19745388 | U14: 19.06025887 | AB14: =IFERROR(VLOOKUP($B14,Volumes!$B$4:$H$33,MATCH(AB$11,Volumes!$B$4:$H$4,0),FALSE),0) -> 0 | AC14: =IFERROR(VLOOKUP($B14,Volumes!$B$4:$H$33,MATCH(AC$11,Volumes!$B$4:$H$4,0),FALSE),0) -> 0 | AD14: =IFERROR(VLOOKUP($B14,Volumes!$B$4:$H$33,MATCH(AD$11,Volumes!$B$4:$H$4,0),FALSE),0) -> 0 | AE14: =IFERROR(VLOOKUP($B14,Volumes!$B$4:$H$33,MATCH(AE$11,Volumes!$B$4:$H$4,0),FALSE),0) -> 0 | AF14: =IFERROR(VLOOKUP($B14,Volumes!$B$4:$H$33,MATCH(AF$11,Volumes!$B$4:$H$4,0),FALSE),0) -> 0 | AM14: 70.07409172 | AN14: 67.72400958 | AO14: 65.63206497 | AP14: 63.60473899 | AQ14: 61.80891241 | AX14: 71.79087273 | AY14: 71.08306959 | AZ14: 70.57507292 | BA14: 70.07070666 | BB14: 69.76054745 | BJ14: 0 | BK14: 0 | BL14: 0 | BM14: 0 | BN14: 0 | BV14: 0 | BW14: 0 | BX14: 0 | BY14: 0 | BZ14: 0 | CA14: 0 | CB14: 0 | CC14: 0 | CD14: 0 | CE14: 0
B15: =Inputs!$C72 -> 2x24W Compact Fluorescent | C15: Old light no volumes | D15: =IF($C15="NA","",'Unsmoothed Prices'!D13) -> 18.545 | E15: =IF($C15="NA","",'Unsmoothed Prices'!E13) -> 19.45914395 | F15: 18.85806538 | G15: 18.27555367 | H15: 17.71103533 | I15: 17.16395453 | Q15: 19.93588347 | R15: 19.79341126 | S15: 19.65195722 | T15: 19.51151409 | U15: 19.37207464 | AB15: =IFERROR(VLOOKUP($B15,Volumes!$B$4:$H$33,MATCH(AB$11,Volumes!$B$4:$H$4,0),FALSE),0) -> 0 | AC15: =IFERROR(VLOOKUP($B15,Volumes!$B$4:$H$33,MATCH(AC$11,Volumes!$B$4:$H$4,0),FALSE),0) -> 0 | AD15: =IFERROR(VLOOKUP($B15,Volumes!$B$4:$H$33,MATCH(AD$11,Volumes!$B$4:$H$4,0),FALSE),0) -> 0 | AE15: =IFERROR(VLOOKUP($B15,Volumes!$B$4:$H$33,MATCH(AE$11,Volumes!$B$4:$H$4,0),FALSE),0) -> 0 | AF15: =IFERROR(VLOOKUP($B15,Volumes!$B$4:$H$33,MATCH(AF$11,Volumes!$B$4:$H$4,0),FALSE),0) -> 0 | AM15: 71.22046687 | AN15: 68.83193863 | AO15: 66.70577091 | AP15: 64.64527894 | AQ15: 62.82007359 | AX15: 72.96533351 | AY15: 72.24595109 | AZ15: 71.72964386 | BA15: 71.21702643 | BB15: 70.90179318 | BJ15: 0 | BK15: 0 | BL15: 0 | BM15: 0 | BN15: 0 | BV15: 0 | BW15: 0 | BX15: 0 | BY15: 0 | BZ15: 0 | CA15: 0 | CB15: 0 | CC15: 0 | CD15: 0 | CE15: 0
B16: =Inputs!$C73 -> 1x20W Fluorescent | C16: Obsolete, no new Connections | D16: =IF($C16="NA","",'Unsmoothed Prices'!D14) -> 18.189 | E16: =IF($C16="NA","",'Unsmoothed Prices'!E14) -> 19.11982526 | F16: 18.52922799 | G16: 17.95687383 | H16: 17.40219927 | I16: 16.86465819 | Q16: 19.58825164 | R16: 19.44826378 | S16: 19.30927635 | T16: 19.17128219 | U16: 19.03427422 | AB16: =IFERROR(VLOOKUP($B16,Volumes!$B$4:$H$33,MATCH(AB$11,Volumes!$B$4:$H$4,0),FALSE),0) -> 0 | AC16: =IFERROR(VLOOKUP($B16,Volumes!$B$4:$H$33,MATCH(AC$11,Volumes!$B$4:$H$4,0),FALSE),0) -> 0 | AD16: =IFERROR(VLOOKUP($B16,Volumes!$B$4:$H$33,MATCH(AD$11,Volumes!$B$4:$H$4,0),FALSE),0) -> 0 | AE16: =IFERROR(VLOOKUP($B16,Volumes!$B$4:$H$33,MATCH(AE$11,Volumes!$B$4:$H$4,0),FALSE),0) -> 0 | AF16: =IFERROR(VLOOKUP($B16,Volumes!$B$4:$H$33,MATCH(AF$11,Volumes!$B$4:$H$4,0),FALSE),0) -> 0 | AM16: 69.97856045 | AN16: 67.63168216 | AO16: 65.54258948 | AP16: 63.51802732 | AQ16: 61.72464898 | AX16: 71.693001 | AY16: 70.9861628 | AZ16: 70.47885868 | BA16: 69.97518001 | BB16: 69.66544364 | BJ16: 0 | BK16: 0 | BL16: 0 | BM16: 0 | BN16: 0 | BV16: 0 | BW16: 0 | BX16: 0 | BY16: 0 | BZ16: 0 | CA16: 0 | CB16: 0 | CC16: 0 | CD16: 0 | CE16: 0
B17: =Inputs!$C74 -> 1x40W Fluorescent | C17: Obsolete, no new Connections | D17: =IF($C17="NA","",'Unsmoothed Prices'!D15) -> 18.208 | E17: =IF($C17="NA","",'Unsmoothed Prices'!E15) -> 19.1386183 | F17: 18.54744052 | G17: 17.97452379 | H17: 17.41930403 | I17: 16.8812346 | Q17: 19.60750509 | R17: 19.46737964 | S17: 19.3282556 | T17: 19.19012581 | U17: 19.05298316 | AB17: =IFERROR(VLOOKUP($B17,Volumes!$B$4:$H$33,MATCH(AB$11,Volumes!$B$4:$H$4,0),FALSE),0) -> 0 | AC17: =IFERROR(VLOOKUP($B17,Volumes!$B$4:$H$33,MATCH(AC$11,Volumes!$B$4:$H$4,0),FALSE),0) -> 0 | AD17: =IFERROR(VLOOKUP($B17,Volumes!$B$4:$H$33,MATCH(AD$11,Volumes!$B$4:$H$4,0),FALSE),0) -> 0 | AE17: =IFERROR(VLOOKUP($B17,Volumes!$B$4:$H$33,MATCH(AE$11,Volumes!$B$4:$H$4,0),FALSE),0) -> 0 | AF17: =IFERROR(VLOOKUP($B17,Volumes!$B$4:$H$33,MATCH(AF$11,Volumes!$B$4:$H$4,0),FALSE),0) -> 0 | AM17: 70.04734296 | AN17: 67.6981579 | AO17: 65.60701183 | AP17: 63.58045972 | AQ17: 61.78531865 | AX17: 71.76346865 | AY17: 71.05593569 | AZ17: 70.54813293 | BA17: 70.0439592 | BB17: 69.73391838 | BJ17: 0 | BK17: 0 | BL17: 0 | BM17: 0 | BN17: 0 | BV17: 0 | BW17: 0 | BX17: 0 | BY17: 0 | BZ17: 0 | CA17: 0 | CB17: 0 | CC17: 0 | CD17: 0 | CE17: 0
B18: =Inputs!$C75 -> 2x20W Fluorescent | C18: Obsolete, no new Connections | D18: =IF($C18="NA","",'Unsmoothed Prices'!D16) -> 18.48 | E18: =IF($C18="NA","",'Unsmoothed Prices'!E16) -> 19.40798513 | F18: 18.80848682 | G18: 18.22750656 | H18: 17.66447235 | I18: 17.11882985 | Q18: 19.88347129 | R18: 19.74137364 | S18: 19.60029149 | T18: 19.46021759 | U18: 19.32114473 | AB18: =IFERROR(VLOOKUP($B18,Volumes!$B$4:$H$33,MATCH(AB$11,Volumes!$B$4:$H$4,0),FALSE),0) -> 0 | AC18: =IFERROR(VLOOKUP($B18,Volumes!$B$4:$H$33,MATCH(AC$11,Volumes!$B$4:$H$4,0),FALSE),0) -> 0 | AD18: =IFERROR(VLOOKUP($B18,Volumes!$B$4:$H$33,MATCH(AD$11,Volumes!$B$4:$H$4,0),FALSE),0) -> 0 | AE18: =IFERROR(VLOOKUP($B18,Volumes!$B$4:$H$33,MATCH(AE$11,Volumes!$B$4:$H$4,0),FALSE),0) -> 0 | AF18: =IFERROR(VLOOKUP($B18,Volumes!$B$4:$H$33,MATCH(AF$11,Volumes!$B$4:$H$4,0),FALSE),0) -> 0 | AM18: 71.03322559 | AN18: 68.65097688 | AO18: 66.53039894 | AP18: 64.47532408 | AQ18: 62.65491727 | AX18: 72.77350492 | AY18: 72.05601378 | AZ18: 71.54106394 | BA18: 71.0297942 | BB18: 70.71538971 | BJ18: 0 | BK18: 0 | BL18: 0 | BM18: 0 | BN18: 0 | BV18: 0 | BW18: 0 | BX18: 0 | BY18: 0 | BZ18: 0 | CA18: 0 | CB18: 0 | CC18: 0 | CD18: 0 | CE18: 0
B19: =Inputs!$C76 -> 2x24W Fluorescent | C19: Old light no volumes | D19: =IF($C19="NA","",'Unsmoothed Prices'!D17) -> 18.322 | E19: =IF($C19="NA","",'Unsmoothed Prices'!E17) -> 19.24197999 | F19: 18.64760945 | G19: 18.07159857 | H19: 17.51338025 | I19: 16.97240488 | Q19: 19.7133991 | R19: 19.57251687 | S19: 19.43264146 | T19: 19.29376568 | U19: 19.15588237 | AB19: =IFERROR(VLOOKUP($B19,Volumes!$B$4:$H$33,MATCH(AB$11,Volumes!$B$4:$H$4,0),FALSE),0) -> 0 | AC19: =IFERROR(VLOOKUP($B19,Volumes!$B$4:$H$33,MATCH(AC$11,Volumes!$B$4:$H$4,0),FALSE),0) -> 0 | AD19: =IFERROR(VLOOKUP($B19,Volumes!$B$4:$H$33,MATCH(AD$11,Volumes!$B$4:$H$4,0),FALSE),0) -> 0 | AE19: =IFERROR(VLOOKUP($B19,Volumes!$B$4:$H$33,MATCH(AE$11,Volumes!$B$4:$H$4,0),FALSE),0) -> 0 | AF19: =IFERROR(VLOOKUP($B19,Volumes!$B$4:$H$33,MATCH(AF$11,Volumes!$B$4:$H$4,0),FALSE),0) -> 0 | AM19: 70.42564676 | AN19: 68.06377449 | AO19: 65.96133479 | AP19: 63.92383791 | AQ19: 62.11900184 | AX19: 72.1510407 | AY19: 71.43968659 | AZ19: 70.92914134 | BA19: 70.42224472 | BB19: 70.11052947 | BJ19: 0 | BK19: 0 | BL19: 0 | BM19: 0 | BN19: 0 | BV19: 0 | BW19: 0 | BX19: 0 | BY19: 0 | BZ19: 0 | CA19: 0 | CB19: 0 | CC19: 0 | CD19: 0 | CE19: 0
B20: =Inputs!$C77 -> T5 Fluorescent 2 x 24W | C20: Old light no volumes | D20: =IF($C20="NA","",'Unsmoothed Prices'!D18) -> 18.48 | E20: =IF($C20="NA","",'Unsmoothed Prices'!E18) -> 19.40798513 | F20: 18.80848682 | G20: 18.22750656 | H20: 17.66447235 | I20: 17.11882985 | Q20: 19.88347129 | R20: 19.74137364 | S20: 19.60029149 | T20: 19.46021759 | U20: 19.32114473 | AB20: =IFERROR(VLOOKUP($B20,Volumes!$B$4:$H$33,MATCH(AB$11,Volumes!$B$4:$H$4,0),FALSE),0) -> 0 | AC20: =IFERROR(VLOOKUP($B20,Volumes!$B$4:$H$33,MATCH(AC$11,Volumes!$B$4:$H$4,0),FALSE),0) -> 0 | AD20: =IFERROR(VLOOKUP($B20,Volumes!$B$4:$H$33,MATCH(AD$11,Volumes!$B$4:$H$4,0),FALSE),0) -> 0 | AE20: =IFERROR(VLOOKUP($B20,Volumes!$B$4:$H$33,MATCH(AE$11,Volumes!$B$4:$H$4,0),FALSE),0) -> 0 | AF20: =IFERROR(VLOOKUP($B20,Volumes!$B$4:$H$33,MATCH(AF$11,Volumes!$B$4:$H$4,0),FALSE),0) -> 0 | AM20: 71.03322559 | AN20: 68.65097688 | AO20: 66.53039894 | AP20: 64.47532408 | AQ20: 62.65491727 | AX20: 72.77350492 | AY20: 72.05601378 | AZ20: 71.54106394 | BA20: 71.0297942 | BB20: 70.71538971 | BJ20: 0 | BK20: 0 | BL20: 0 | BM20: 0 | BN20: 0 | BV20: 0 | BW20: 0 | BX20: 0 | BY20: 0 | BZ20: 0 | CA20: 0 | CB20: 0 | CC20: 0 | CD20: 0 | CE20: 0
B21: =Inputs!$C78 -> 20 Fluorescent 1X20FL | C21: Old light no volumes | D21: =IF($C21="NA","",'Unsmoothed Prices'!D19) -> 18.189 | E21: =IF($C21="NA","",'Unsmoothed Prices'!E19) -> 19.11982526 | F21: 18.52922799 | G21: 17.95687383 | H21: 17.40219927 | I21: 16.86465819 | Q21: 19.58825164 | R21: 19.44826378 | S21: 19.30927635 | T21: 19.17128219 | U21: 19.03427422 | AB21: =IFERROR(VLOOKUP($B21,Volumes!$B$4:$H$33,MATCH(AB$11,Volumes!$B$4:$H$4,0),FALSE),0) -> 0 | AC21: =IFERROR(VLOOKUP($B21,Volumes!$B$4:$H$33,MATCH(AC$11,Volumes!$B$4:$H$4,0),FALSE),0) -> 0 | AD21: =IFERROR(VLOOKUP($B21,Volumes!$B$4:$H$33,MATCH(AD$11,Volumes!$B$4:$H$4,0),FALSE),0) -> 0 | AE21: =IFERROR(VLOOKUP($B21,Volumes!$B$4:$H$33,MATCH(AE$11,Volumes!$B$4:$H$4,0),FALSE),0) -> 0 | AF21: =IFERROR(VLOOKUP($B21,Volumes!$B$4:$H$33,MATCH(AF$11,Volumes!$B$4:$H$4,0),FALSE),0) -> 0 | AM21: 69.97856045 | AN21: 67.63168216 | AO21: 65.54258948 | AP21: 63.51802732 | AQ21: 61.72464898 | AX21: 71.693001 | AY21: 70.9861628 | AZ21: 70.47885868 | BA21: 69.97518001 | BB21: 69.66544364 | BJ21: 0 | BK21: 0 | BL21: 0 | BM21: 0 | BN21: 0 | BV21: 0 | BW21: 0 | BX21: 0 | BY21: 0 | BZ21: 0 | CA21: 0 | CB21: 0 | CC21: 0 | CD21: 0 | CE21: 0
B22: =Inputs!$C79 -> 2x40W Fluorescent | C22: Obsolete, no new Connections | D22: =IF($C22="NA","",'Unsmoothed Prices'!D20) -> 18.518 | E22: =IF($C22="NA","",'Unsmoothed Prices'!E20) -> 19.44557121 | F22: 18.84491188 | G22: 18.26280648 | H22: 17.69868188 | I22: 17.15198268 | Q22: 19.9219782 | R22: 19.77960536 | S22: 19.63824999 | T22: 19.49790482 | U22: 19.35856262 | AB22: =IFERROR(VLOOKUP($B22,Volumes!$B$4:$H$33,MATCH(AB$11,Volumes!$B$4:$H$4,0),FALSE),0) -> 0 | AC22: =IFERROR(VLOOKUP($B22,Volumes!$B$4:$H$33,MATCH(AC$11,Volumes!$B$4:$H$4,0),FALSE),0) -> 0 | AD22: =IFERROR(VLOOKUP($B22,Volumes!$B$4:$H$33,MATCH(AD$11,Volumes!$B$4:$H$4,0),FALSE),0) -> 0 | AE22: =IFERROR(VLOOKUP($B22,Volumes!$B$4:$H$33,MATCH(AE$11,Volumes!$B$4:$H$4,0),FALSE),0) -> 0 | AF22: =IFERROR(VLOOKUP($B22,Volumes!$B$4:$H$33,MATCH(AF$11,Volumes!$B$4:$H$4,0),FALSE),0) -> 0 | AM22: 71.17079061 | AN22: 68.78392837 | AO22: 66.65924365 | AP22: 64.60018888 | AQ22: 62.77625661 | AX22: 72.91444021 | AY22: 72.19555956 | AZ22: 71.67961245 | BA22: 71.16735258 | BB22: 70.8523392 | BJ22: 0 | BK22: 0 | BL22: 0 | BM22: 0 | BN22: 0 | BV22: 0 | BW22: 0 | BX22: 0 | BY22: 0 | BZ22: 0 | CA22: 0 | CB22: 0 | CC22: 0 | CD22: 0 | CE22: 0
B23: =Inputs!$C80 -> 3x40W Fluorescent | C23: Obsolete, no new Connections | D23: =IF($C23="NA","",'Unsmoothed Prices'!D21) -> 22.414 | E23: =IF($C23="NA","",'Unsmoothed Prices'!E21) -> 23.14884321 | F23: 22.43379255 | G23: 21.74082928 | H23: 21.06927113 | I23: 20.41845691 | Q23: 23.71597856 | R23: 23.54649181 | S23: 23.37821631 | T23: 23.21114339 | U23: 23.04526445 | AB23: =IFERROR(VLOOKUP($B23,Volumes!$B$4:$H$33,MATCH(AB$11,Volumes!$B$4:$H$4,0),FALSE),0) -> 0 | AC23: =IFERROR(VLOOKUP($B23,Volumes!$B$4:$H$33,MATCH(AC$11,Volumes!$B$4:$H$4,0),FALSE),0) -> 0 | AD23: =IFERROR(VLOOKUP($B23,Volumes!$B$4:$H$33,MATCH(AD$11,Volumes!$B$4:$H$4,0),FALSE),0) -> 0 | AE23: =IFERROR(VLOOKUP($B23,Volumes!$B$4:$H$33,MATCH(AE$11,Volumes!$B$4:$H$4,0),FALSE),0) -> 0 | AF23: =IFERROR(VLOOKUP($B23,Volumes!$B$4:$H$33,MATCH(AF$11,Volumes!$B$4:$H$4,0),FALSE),0) -> 0 | AM23: 84.72476614 | AN23: 81.88334281 | AO23: 79.35402686 | AP23: 76.90283961 | AQ23: 74.7315523 | AX23: 86.80048153 | AY23: 85.94469512 | AZ23: 85.33048952 | BA23: 84.72067336 | BB23: 84.34566791 | BJ23: 0 | BK23: 0 | BL23: 0 | BM23: 0 | BN23: 0 | BV23: 0 | BW23: 0 | BX23: 0 | BY23: 0 | BZ23: 0 | CA23: 0 | CB23: 0 | CC23: 0 | CD23: 0 | CE23: 0
B24: =Inputs!$C81 -> 4x20 Fluorescent | C24: Old light no volumes | D24: =IF($C24="NA","",'Unsmoothed Prices'!D22) -> 19.062 | E24: =IF($C24="NA","",'Unsmoothed Prices'!E22) -> 19.98430488 | F24: 19.36700447 | G24: 18.76877202 | H24: 18.18901852 | I24: 17.62717318 | Q24: 20.47391059 | R24: 20.32759335 | S24: 20.18232177 | T24: 20.03808838 | U24: 19.89488575 | AB24: =IFERROR(VLOOKUP($B24,Volumes!$B$4:$H$33,MATCH(AB$11,Volumes!$B$4:$H$4,0),FALSE),0) -> 0 | AC24: =IFERROR(VLOOKUP($B24,Volumes!$B$4:$H$33,MATCH(AC$11,Volumes!$B$4:$H$4,0),FALSE),0) -> 0 | AD24: =IFERROR(VLOOKUP($B24,Volumes!$B$4:$H$33,MATCH(AD$11,Volumes!$B$4:$H$4,0),FALSE),0) -> 0 | AE24: =IFERROR(VLOOKUP($B24,Volumes!$B$4:$H$33,MATCH(AE$11,Volumes!$B$4:$H$4,0),FALSE),0) -> 0 | AF24: =IFERROR(VLOOKUP($B24,Volumes!$B$4:$H$33,MATCH(AF$11,Volumes!$B$4:$H$4,0),FALSE),0) -> 0 | AM24: 73.14255587 | AN24: 70.68956633 | AO24: 68.50601786 | AP24: 66.3899176 | AQ24: 64.51545384 | AX24: 74.93451276 | AY24: 74.19571573 | AZ24: 73.66547447 | BA24: 73.13902258 | BB24: 72.81528186 | BJ24: 0 | BK24: 0 | BL24: 0 | BM24: 0 | BN24: 0 | BV24: 0 | BW24: 0 | BX24: 0 | BY24: 0 | BZ24: 0 | CA24: 0 | CB24: 0 | CC24: 0 | CD24: 0 | CE24: 0
B25: =Inputs!$C82 -> 4x40W Fluorescent | C25: Obsolete, no new Connections | D25: =IF($C25="NA","",'Unsmoothed Prices'!D23) -> 22.722 | E25: =IF($C25="NA","",'Unsmoothed Prices'!E23) -> 23.45475206 | F25: 22.7302521 | G25: 22.02813141 | H25: 21.34769871 | I25: 20.68828408 | Q25: 24.02938203 | R25: 23.85765554 | S25: 23.68715629 | T25: 23.51787553 | U25: 23.34980453 | AB25: =IFERROR(VLOOKUP($B25,Volumes!$B$4:$H$33,MATCH(AB$11,Volumes!$B$4:$H$4,0),FALSE),0) -> 0 | AC25: =IFERROR(VLOOKUP($B25,Volumes!$B$4:$H$33,MATCH(AC$11,Volumes!$B$4:$H$4,0),FALSE),0) -> 0 | AD25: =IFERROR(VLOOKUP($B25,Volumes!$B$4:$H$33,MATCH(AD$11,Volumes!$B$4:$H$4,0),FALSE),0) -> 0 | AE25: =IFERROR(VLOOKUP($B25,Volumes!$B$4:$H$33,MATCH(AE$11,Volumes!$B$4:$H$4,0),FALSE),0) -> 0 | AF25: =IFERROR(VLOOKUP($B25,Volumes!$B$4:$H$33,MATCH(AF$11,Volumes!$B$4:$H$4,0),FALSE),0) -> 0 | AM25: 85.84439254 | AN25: 82.96542018 | AO25: 80.40267966 | AP25: 77.9191003 | AQ25: 75.71911972 | AX25: 87.94753822 | AY25: 87.08044271 | AZ25: 86.45812047 | BA25: 85.84024567 | BB25: 85.46028457 | BJ25: 0 | BK25: 0 | BL25: 0 | BM25: 0 | BN25: 0 | BV25: 0 | BW25: 0 | BX25: 0 | BY25: 0 | BZ25: 0 | CA25: 0 | CB25: 0 | CC25: 0 | CD25: 0 | CE25: 0
B26: =Inputs!$C83 -> 100W Sodium Vapour | C26: Old light no volumes | D26: =IF($C26="NA","",'Unsmoothed Prices'!D24) -> 22.559 | E26: =IF($C26="NA","",'Unsmoothed Prices'!E24) -> 23.27099794 | F26: 22.55217401 | G26: 21.85555402 | H26: 21.18045211 | I26: 20.5262036 | Q26: 23.84112602 | R26: 23.6707449 | S26: 23.50158142 | T26: 23.33362687 | U26: 23.16687261 | AB26: =IFERROR(VLOOKUP($B26,Volumes!$B$4:$H$33,MATCH(AB$11,Volumes!$B$4:$H$4,0),FALSE),0) -> 5 | AC26: =IFERROR(VLOOKUP($B26,Volumes!$B$4:$H$33,MATCH(AC$11,Volumes!$B$4:$H$4,0),FALSE),0) -> 5 | AD26: =IFERROR(VLOOKUP($B26,Volumes!$B$4:$H$33,MATCH(AD$11,Volumes!$B$4:$H$4,0),FALSE),0) -> 5 | AE26: =IFERROR(VLOOKUP($B26,Volumes!$B$4:$H$33,MATCH(AE$11,Volumes!$B$4:$H$4,0),FALSE),0) -> 5 | AF26: =IFERROR(VLOOKUP($B26,Volumes!$B$4:$H$33,MATCH(AF$11,Volumes!$B$4:$H$4,0),FALSE),0) -> 5 | AM26: 85.17185245 | AN26: 82.31543513 | AO26: 79.77277217 | AP26: 77.30865019 | AQ26: 75.12590516 | AX26: 87.25852123 | AY26: 86.3982189 | AZ26: 85.78077219 | BA26: 85.16773807 | BB26: 84.79075374 | BJ26: 425.8592623 | BK26: 411.5771757 | BL26: 398.8638609 | BM26: 386.543251 | BN26: 375.6295258 | BV26: 436.2926062 | BW26: 431.9910945 | BX26: 428.9038609 | BY26: 425.8386903 | BZ26: 423.9537687 | CA26: 0 | CB26: 0 | CC26: 0 | CD26: 0 | CE26: 0
B27: =Inputs!$C84 -> 0 | C27: NA | D27: =IF($C27="NA","",'Unsmoothed Prices'!D25) ->  | E27: =IF($C27="NA","",'Unsmoothed Prices'!E25) ->  | AB27: =IFERROR(VLOOKUP($B27,Volumes!$B$4:$H$33,MATCH(AB$11,Volumes!$B$4:$H$4,0),FALSE),0) -> 0 | AC27: =IFERROR(VLOOKUP($B27,Volumes!$B$4:$H$33,MATCH(AC$11,Volumes!$B$4:$H$4,0),FALSE),0) -> 0 | AD27: =IFERROR(VLOOKUP($B27,Volumes!$B$4:$H$33,MATCH(AD$11,Volumes!$B$4:$H$4,0),FALSE),0) -> 0 | AE27: =IFERROR(VLOOKUP($B27,Volumes!$B$4:$H$33,MATCH(AE$11,Volumes!$B$4:$H$4,0),FALSE),0) -> 0 | AF27: =IFERROR(VLOOKUP($B27,Volumes!$B$4:$H$33,MATCH(AF$11,Volumes!$B$4:$H$4,0),FALSE),0) -> 0 | BJ27: 0 | BK27: 0 | BL27: 0 | BM27: 0 | BN27: 0 | BV27: 0 | BW27: 0 | BX27: 0 | BY27: 0 | BZ27: 0 | CA27: 0 | CB27: 0 | CC27: 0 | CD27: 0 | CE27: 0
B28: =Inputs!$C85 -> 150W Sodium Vapour | C28: Offered | D28: =IF($C28="NA","",'Unsmoothed Prices'!D26) -> 22.555 | E28: =IF($C28="NA","",'Unsmoothed Prices'!E26) -> 23.26682171 | F28: 22.54812678 | G28: 21.85163181 | H28: 21.17665105 | I28: 20.52251995 | Q28: 23.83684747 | R28: 23.66649694 | S28: 23.49736381 | T28: 23.3294394 | U28: 23.16271506 | AB28: =IFERROR(VLOOKUP($B28,Volumes!$B$4:$H$33,MATCH(AB$11,Volumes!$B$4:$H$4,0),FALSE),0) -> 163 | AC28: =IFERROR(VLOOKUP($B28,Volumes!$B$4:$H$33,MATCH(AC$11,Volumes!$B$4:$H$4,0),FALSE),0) -> 163 | AD28: =IFERROR(VLOOKUP($B28,Volumes!$B$4:$H$33,MATCH(AD$11,Volumes!$B$4:$H$4,0),FALSE),0) -> 163 | AE28: =IFERROR(VLOOKUP($B28,Volumes!$B$4:$H$33,MATCH(AE$11,Volumes!$B$4:$H$4,0),FALSE),0) -> 163 | AF28: =IFERROR(VLOOKUP($B28,Volumes!$B$4:$H$33,MATCH(AF$11,Volumes!$B$4:$H$4,0),FALSE),0) -> 163 | AM28: 85.15656745 | AN28: 82.30066275 | AO28: 79.7584561 | AP28: 77.29477633 | AQ28: 75.11242301 | AX28: 87.24286175 | AY28: 86.38271381 | AZ28: 85.76537791 | BA28: 85.15245381 | BB28: 84.77553713 | BJ28: 13880.52049 | BK28: 13415.00803 | BL28: 13000.62834 | BM28: 12599.04854 | BN28: 12243.32495 | BV28: 14220.58647 | BW28: 14080.38235 | BX28: 13979.7566 | BY28: 13879.84997 | BZ28: 13818.41255 | CA28: 0 | CB28: 0 | CC28: 0 | CD28: 0 | CE28: 0
B29: =Inputs!$C86 -> 0 | C29: NA | D29: =IF($C29="NA","",'Unsmoothed Prices'!D27) ->  | E29: =IF($C29="NA","",'Unsmoothed Prices'!E27) ->  | AB29: =IFERROR(VLOOKUP($B29,Volumes!$B$4:$H$33,MATCH(AB$11,Volumes!$B$4:$H$4,0),FALSE),0) -> 0 | AC29: =IFERROR(VLOOKUP($B29,Volumes!$B$4:$H$33,MATCH(AC$11,Volumes!$B$4:$H$4,0),FALSE),0) -> 0 | AD29: =IFERROR(VLOOKUP($B29,Volumes!$B$4:$H$33,MATCH(AD$11,Volumes!$B$4:$H$4,0),FALSE),0) -> 0 | AE29: =IFERROR(VLOOKUP($B29,Volumes!$B$4:$H$33,MATCH(AE$11,Volumes!$B$4:$H$4,0),FALSE),0) -> 0 | AF29: =IFERROR(VLOOKUP($B29,Volumes!$B$4:$H$33,MATCH(AF$11,Volumes!$B$4:$H$4,0),FALSE),0) -> 0 | BJ29: =IFERROR(AM29*AB29,0) -> 0 | BK29: 0 | BL29: 0 | BM29: 0 | BN29: 0 | BV29: 0 | BW29: 0 | BX29: 0 | BY29: 0 | BZ29: 0 | CA29: 0 | CB29: 0 | CC29: 0 | CD29: 0 | CE29: 0
B30: =Inputs!$C87 -> 0 | C30: NA | D30: =IF($C30="NA","",'Unsmoothed Prices'!D28) ->  | E30: =IF($C30="NA","",'Unsmoothed Prices'!E28) ->  | AB30: =IFERROR(VLOOKUP($B30,Volumes!$B$4:$H$33,MATCH(AB$11,Volumes!$B$4:$H$4,0),FALSE),0) -> 0 | AC30: =IFERROR(VLOOKUP($B30,Volumes!$B$4:$H$33,MATCH(AC$11,Volumes!$B$4:$H$4,0),FALSE),0) -> 0 | AD30: =IFERROR(VLOOKUP($B30,Volumes!$B$4:$H$33,MATCH(AD$11,Volumes!$B$4:$H$4,0),FALSE),0) -> 0 | AE30: =IFERROR(VLOOKUP($B30,Volumes!$B$4:$H$33,MATCH(AE$11,Volumes!$B$4:$H$4,0),FALSE),0) -> 0 | AF30: =IFERROR(VLOOKUP($B30,Volumes!$B$4:$H$33,MATCH(AF$11,Volumes!$B$4:$H$4,0),FALSE),0) -> 0 | BJ30: 0 | BK30: 0 | BL30: 0 | BM30: 0 | BN30: 0 | BV30: 0 | BW30: 0 | BX30: 0 | BY30: 0 | BZ30: 0 | CA30: 0 | CB30: 0 | CC30: 0 | CD30: 0 | CE30: 0
B31: =Inputs!$C88 -> 0 | C31: NA | D31: =IF($C31="NA","",'Unsmoothed Prices'!D29) ->  | E31: =IF($C31="NA","",'Unsmoothed Prices'!E29) ->  | AB31: =IFERROR(VLOOKUP($B31,Volumes!$B$4:$H$33,MATCH(AB$11,Volumes!$B$4:$H$4,0),FALSE),0) -> 0 | AC31: =IFERROR(VLOOKUP($B31,Volumes!$B$4:$H$33,MATCH(AC$11,Volumes!$B$4:$H$4,0),FALSE),0) -> 0 | AD31: =IFERROR(VLOOKUP($B31,Volumes!$B$4:$H$33,MATCH(AD$11,Volumes!$B$4:$H$4,0),FALSE),0) -> 0 | AE31: =IFERROR(VLOOKUP($B31,Volumes!$B$4:$H$33,MATCH(AE$11,Volumes!$B$4:$H$4,0),FALSE),0) -> 0 | AF31: =IFERROR(VLOOKUP($B31,Volumes!$B$4:$H$33,MATCH(AF$11,Volumes!$B$4:$H$4,0),FALSE),0) -> 0 | BJ31: 0 | BK31: 0 | BL31: 0 | BM31: 0 | BN31: 0 | BV31: 0 | BW31: 0 | BX31: 0 | BY31: 0 | BZ31: 0 | CA31: 0 | CB31: 0 | CC31: 0 | CD31: 0 | CE31: 0
B32: =Inputs!$C89 -> 250W Sodium Vapour | C32: Offered | D32: =IF($C32="NA","",'Unsmoothed Prices'!D30) -> 22.688 | E32: =IF($C32="NA","",'Unsmoothed Prices'!E30) -> 23.39628484 | F32: 22.67359089 | G32: 21.97322042 | H32: 21.29448388 | I32: 20.63671301 | Q32: 23.96948239 | R32: 23.79818397 | S32: 23.62810974 | T32: 23.45925095 | U32: 23.29159892 | AB32: =IFERROR(VLOOKUP($B32,Volumes!$B$4:$H$33,MATCH(AB$11,Volumes!$B$4:$H$4,0),FALSE),0) -> 165 | AC32: =IFERROR(VLOOKUP($B32,Volumes!$B$4:$H$33,MATCH(AC$11,Volumes!$B$4:$H$4,0),FALSE),0) -> 165 | AD32: =IFERROR(VLOOKUP($B32,Volumes!$B$4:$H$33,MATCH(AD$11,Volumes!$B$4:$H$4,0),FALSE),0) -> 165 | AE32: =IFERROR(VLOOKUP($B32,Volumes!$B$4:$H$33,MATCH(AE$11,Volumes!$B$4:$H$4,0),FALSE),0) -> 165 | AF32: =IFERROR(VLOOKUP($B32,Volumes!$B$4:$H$33,MATCH(AF$11,Volumes!$B$4:$H$4,0),FALSE),0) -> 165 | AM32: 85.63040251 | AN32: 82.75860675 | AO32: 80.20225455 | AP32: 77.72486618 | AQ32: 75.53036963 | AX32: 87.72830554 | AY32: 86.8633715 | AZ32: 86.24260056 | BA32: 85.62626598 | BB32: 85.24725203 | BJ32: 14129.01641 | BK32: 13655.17011 | BL32: 13233.372 | BM32: 12824.60292 | BN32: 12462.51099 | BV32: 14475.17041 | BW32: 14332.4563 | BX32: 14230.02909 | BY32: 14128.33389 | BZ32: 14065.79659 | CA32: 0 | CB32: 0 | CC32: 0 | CD32: 0 | CE32: 0
B33: =Inputs!$C90 -> 0 | C33: NA | D33: =IF($C33="NA","",'Unsmoothed Prices'!D31) ->  | E33: =IF($C33="NA","",'Unsmoothed Prices'!E31) ->  | AB33: =IFERROR(VLOOKUP($B33,Volumes!$B$4:$H$33,MATCH(AB$11,Volumes!$B$4:$H$4,0),FALSE),0) -> 0 | AC33: =IFERROR(VLOOKUP($B33,Volumes!$B$4:$H$33,MATCH(AC$11,Volumes!$B$4:$H$4,0),FALSE),0) -> 0 | AD33: =IFERROR(VLOOKUP($B33,Volumes!$B$4:$H$33,MATCH(AD$11,Volumes!$B$4:$H$4,0),FALSE),0) -> 0 | AE33: =IFERROR(VLOOKUP($B33,Volumes!$B$4:$H$33,MATCH(AE$11,Volumes!$B$4:$H$4,0),FALSE),0) -> 0 | AF33: =IFERROR(VLOOKUP($B33,Volumes!$B$4:$H$33,MATCH(AF$11,Volumes!$B$4:$H$4,0),FALSE),0) -> 0 | BJ33: 0 | BK33: 0 | BL33: 0 | BM33: 0 | BN33: 0 | BV33: 0 | BW33: 0 | BX33: 0 | BY33: 0 | BZ33: 0 | CA33: 0 | CB33: 0 | CC33: 0 | CD33: 0 | CE33: 0
B34: =Inputs!$C91 -> 0 | C34: NA | D34: =IF($C34="NA","",'Unsmoothed Prices'!D32) ->  | E34: =IF($C34="NA","",'Unsmoothed Prices'!E32) ->  | AB34: =IFERROR(VLOOKUP($B34,Volumes!$B$4:$H$33,MATCH(AB$11,Volumes!$B$4:$H$4,0),FALSE),0) -> 0 | AC34: =IFERROR(VLOOKUP($B34,Volumes!$B$4:$H$33,MATCH(AC$11,Volumes!$B$4:$H$4,0),FALSE),0) -> 0 | AD34: =IFERROR(VLOOKUP($B34,Volumes!$B$4:$H$33,MATCH(AD$11,Volumes!$B$4:$H$4,0),FALSE),0) -> 0 | AE34: =IFERROR(VLOOKUP($B34,Volumes!$B$4:$H$33,MATCH(AE$11,Volumes!$B$4:$H$4,0),FALSE),0) -> 0 | AF34: =IFERROR(VLOOKUP($B34,Volumes!$B$4:$H$33,MATCH(AF$11,Volumes!$B$4:$H$4,0),FALSE),0) -> 0 | BJ34: 0 | BK34: 0 | BL34: 0 | BM34: 0 | BN34: 0 | BV34: 0 | BW34: 0 | BX34: 0 | BY34: 0 | BZ34: 0 | CA34: 0 | CB34: 0 | CC34: 0 | CD34: 0 | CE34: 0
B35: =Inputs!$C92 -> 0 | C35: NA | D35: =IF($C35="NA","",'Unsmoothed Prices'!D33) ->  | E35: =IF($C35="NA","",'Unsmoothed Prices'!E33) ->  | AB35: =IFERROR(VLOOKUP($B35,Volumes!$B$4:$H$33,MATCH(AB$11,Volumes!$B$4:$H$4,0),FALSE),0) -> 0 | AC35: =IFERROR(VLOOKUP($B35,Volumes!$B$4:$H$33,MATCH(AC$11,Volumes!$B$4:$H$4,0),FALSE),0) -> 0 | AD35: =IFERROR(VLOOKUP($B35,Volumes!$B$4:$H$33,MATCH(AD$11,Volumes!$B$4:$H$4,0),FALSE),0) -> 0 | AE35: =IFERROR(VLOOKUP($B35,Volumes!$B$4:$H$33,MATCH(AE$11,Volumes!$B$4:$H$4,0),FALSE),0) -> 0 | AF35: =IFERROR(VLOOKUP($B35,Volumes!$B$4:$H$33,MATCH(AF$11,Volumes!$B$4:$H$4,0),FALSE),0) -> 0 | BJ35: 0 | BK35: 0 | BL35: 0 | BM35: 0 | BN35: 0 | BV35: 0 | BW35: 0 | BX35: 0 | BY35: 0 | BZ35: 0 | CA35: 0 | CB35: 0 | CC35: 0 | CD35: 0 | CE35: 0
B36: =Inputs!$C93 -> 250W Sodium Vapour - Flood Light | C36: Old light no volumes | D36: =IF($C36="NA","",'Unsmoothed Prices'!D34) -> 22.688 | E36: =IF($C36="NA","",'Unsmoothed Prices'!E34) -> 23.39628484 | F36: 22.67359089 | G36: 21.97322042 | H36: 21.29448388 | I36: 20.63671301 | Q36: 23.96948239 | R36: 23.79818397 | S36: 23.62810974 | T36: 23.45925095 | U36: 23.29159892 | AB36: =IFERROR(VLOOKUP($B36,Volumes!$B$4:$H$33,MATCH(AB$11,Volumes!$B$4:$H$4,0),FALSE),0) -> 0 | AC36: =IFERROR(VLOOKUP($B36,Volumes!$B$4:$H$33,MATCH(AC$11,Volumes!$B$4:$H$4,0),FALSE),0) -> 0 | AD36: =IFERROR(VLOOKUP($B36,Volumes!$B$4:$H$33,MATCH(AD$11,Volumes!$B$4:$H$4,0),FALSE),0) -> 0 | AE36: =IFERROR(VLOOKUP($B36,Volumes!$B$4:$H$33,MATCH(AE$11,Volumes!$B$4:$H$4,0),FALSE),0) -> 0 | AF36: =IFERROR(VLOOKUP($B36,Volumes!$B$4:$H$33,MATCH(AF$11,Volumes!$B$4:$H$4,0),FALSE),0) -> 0 | AM36: 85.63040251 | AN36: 82.75860675 | AO36: 80.20225455 | AP36: 77.72486618 | AQ36: 75.53036963 | AX36: 87.72830554 | AY36: 86.8633715 | AZ36: 86.24260056 | BA36: 85.62626598 | BB36: 85.24725203 | BJ36: 0 | BK36: 0 | BL36: 0 | BM36: 0 | BN36: 0 | BV36: 0 | BW36: 0 | BX36: 0 | BY36: 0 | BZ36: 0 | CA36: 0 | CB36: 0 | CC36: 0 | CD36: 0 | CE36: 0
B37: =Inputs!$C94 -> 400W Sodium Vapour | C37: Offered | D37: =IF($C37="NA","",'Unsmoothed Prices'!D35) -> 22.734 | E37: =IF($C37="NA","",'Unsmoothed Prices'!E35) -> 23.44013526 | F37: 22.7160868 | G37: 22.01440367 | H37: 21.33439501 | I37: 20.67539131 | Q37: 24.01440712 | R37: 23.84278765 | S37: 23.67239466 | T37: 23.50321938 | U37: 23.33525312 | AB37: =IFERROR(VLOOKUP($B37,Volumes!$B$4:$H$33,MATCH(AB$11,Volumes!$B$4:$H$4,0),FALSE),0) -> 104 | AC37: =IFERROR(VLOOKUP($B37,Volumes!$B$4:$H$33,MATCH(AC$11,Volumes!$B$4:$H$4,0),FALSE),0) -> 104 | AD37: =IFERROR(VLOOKUP($B37,Volumes!$B$4:$H$33,MATCH(AD$11,Volumes!$B$4:$H$4,0),FALSE),0) -> 104 | AE37: =IFERROR(VLOOKUP($B37,Volumes!$B$4:$H$33,MATCH(AE$11,Volumes!$B$4:$H$4,0),FALSE),0) -> 104 | AF37: =IFERROR(VLOOKUP($B37,Volumes!$B$4:$H$33,MATCH(AF$11,Volumes!$B$4:$H$4,0),FALSE),0) -> 104 | AM37: 85.79089503 | AN37: 82.91371682 | AO37: 80.35257338 | AP37: 77.87054177 | AQ37: 75.6719322 | AX37: 87.89273005 | AY37: 87.02617491 | AZ37: 86.40424049 | BA37: 85.78675075 | BB37: 85.40702644 | BJ37: 8922.253084 | BK37: 8623.026549 | BL37: 8356.667632 | BM37: 8098.536344 | BN37: 7869.880948 | BV37: 9140.843925 | BW37: 9050.72219 | BX37: 8986.041011 | BY37: 8921.822078 | BZ37: 8882.330749 | CA37: =IFERROR(BC37*AG37,0) -> 0 | CB37: 0 | CC37: 0 | CD37: 0 | CE37: 0
B38: =Inputs!$C95 -> 0 | C38: NA | D38: =IF($C38="NA","",'Unsmoothed Prices'!D36) ->  | E38: =IF($C38="NA","",'Unsmoothed Prices'!E36) ->  | Q38: =IF($C38="NA","",E38*Q$9) ->  | AB38: =IFERROR(VLOOKUP($B38,Volumes!$B$4:$H$33,MATCH(AB$11,Volumes!$B$4:$H$4,0),FALSE),0) -> 0 | AC38: =IFERROR(VLOOKUP($B38,Volumes!$B$4:$H$33,MATCH(AC$11,Volumes!$B$4:$H$4,0),FALSE),0) -> 0 | AD38: =IFERROR(VLOOKUP($B38,Volumes!$B$4:$H$33,MATCH(AD$11,Volumes!$B$4:$H$4,0),FALSE),0) -> 0 | AE38: =IFERROR(VLOOKUP($B38,Volumes!$B$4:$H$33,MATCH(AE$11,Volumes!$B$4:$H$4,0),FALSE),0) -> 0 | AF38: =IFERROR(VLOOKUP($B38,Volumes!$B$4:$H$33,MATCH(AF$11,Volumes!$B$4:$H$4,0),FALSE),0) -> 0 | AM38: =IF($C38="NA","",(E38*AM$9)/100) ->  | AX38: =IF($C38="NA","",(Q38*AX$9)/100) ->  | BJ38: 0 | BK38: 0 | BL38: 0 | BM38: 0 | BN38: 0 | BV38: =IFERROR(AX38*AB38,0) -> 0 | BW38: 0 | BX38: 0 | BY38: 0 | BZ38: 0 | CA38: 0 | CB38: 0 | CC38: 0 | CD38: 0 | CE38: 0
B39: =Inputs!$C96 -> 400W Sodium Vapour - Flood Light | C39: Old light no volumes | D39: =IF($C39="NA","",'Unsmoothed Prices'!D37) -> 22.734 | E39: =IF($C39="NA","",'Unsmoothed Prices'!E37) -> 23.44013526 | F39: 22.7160868 | G39: 22.01440367 | H39: 21.33439501 | I39: 20.67539131 | Q39: 24.01440712 | R39: 23.84278765 | S39: 23.67239466 | T39: 23.50321938 | U39: 23.33525312 | AB39: =IFERROR(VLOOKUP($B39,Volumes!$B$4:$H$33,MATCH(AB$11,Volumes!$B$4:$H$4,0),FALSE),0) -> 0 | AC39: =IFERROR(VLOOKUP($B39,Volumes!$B$4:$H$33,MATCH(AC$11,Volumes!$B$4:$H$4,0),FALSE),0) -> 0 | AD39: =IFERROR(VLOOKUP($B39,Volumes!$B$4:$H$33,MATCH(AD$11,Volumes!$B$4:$H$4,0),FALSE),0) -> 0 | AE39: =IFERROR(VLOOKUP($B39,Volumes!$B$4:$H$33,MATCH(AE$11,Volumes!$B$4:$H$4,0),FALSE),0) -> 0 | AF39: =IFERROR(VLOOKUP($B39,Volumes!$B$4:$H$33,MATCH(AF$11,Volumes!$B$4:$H$4,0),FALSE),0) -> 0 | AM39: 85.79089503 | AN39: 82.91371682 | AO39: 80.35257338 | AP39: 77.87054177 | AQ39: 75.6719322 | AX39: 87.89273005 | AY39: 87.02617491 | AZ39: 86.40424049 | BA39: 85.78675075 | BB39: 85.40702644 | BJ39: 0 | BK39: 0 | BL39: 0 | BM39: 0 | BN39: 0 | BV39: 0 | BW39: 0 | BX39: 0 | BY39: 0 | BZ39: 0 | CA39: 0 | CB39: 0 | CC39: 0 | CD39: 0 | CE39: 0
B40: =Inputs!$C97 -> 70W Sodium Vapour | C40: Offered | D40: =IF($C40="NA","",'Unsmoothed Prices'!D38) -> 18.434 | E40: =IF($C40="NA","",'Unsmoothed Prices'!E38) -> 19.35160603 | F40: 18.75384922 | G40: 18.17455668 | H40: 17.61315805 | I40: 17.06910062 | Q40: 19.82571092 | R40: 19.68402606 | S40: 19.54335375 | T40: 19.40368675 | U40: 19.26501789 | AB40: =IFERROR(VLOOKUP($B40,Volumes!$B$4:$H$33,MATCH(AB$11,Volumes!$B$4:$H$4,0),FALSE),0) -> 73 | AC40: =IFERROR(VLOOKUP($B40,Volumes!$B$4:$H$33,MATCH(AC$11,Volumes!$B$4:$H$4,0),FALSE),0) -> 73 | AD40: =IFERROR(VLOOKUP($B40,Volumes!$B$4:$H$33,MATCH(AD$11,Volumes!$B$4:$H$4,0),FALSE),0) -> 73 | AE40: =IFERROR(VLOOKUP($B40,Volumes!$B$4:$H$33,MATCH(AE$11,Volumes!$B$4:$H$4,0),FALSE),0) -> 73 | AF40: =IFERROR(VLOOKUP($B40,Volumes!$B$4:$H$33,MATCH(AF$11,Volumes!$B$4:$H$4,0),FALSE),0) -> 73 | AM40: 70.82687807 | AN40: 68.45154965 | AO40: 66.33713187 | AP40: 64.28802689 | AQ40: 62.47290826 | AX40: 72.56210198 | AY40: 71.84669511 | AZ40: 71.33324117 | BA40: 70.82345664 | BB40: 70.50996548 | BJ40: 5170.362099 | BK40: 4996.963125 | BL40: 4842.610627 | BM40: 4693.025963 | BN40: 4560.522303 | BV40: 5297.033444 | BW40: 5244.808743 | BX40: 5207.326606 | BY40: 5170.112335 | BZ40: 5147.22748 | CA40: 0 | CB40: 0 | CC40: 0 | CD40: 0 | CE40: 0
B41: =Inputs!$C98 -> 0 | C41: NA | D41: =IF($C41="NA","",'Unsmoothed Prices'!D39) ->  | E41: =IF($C41="NA","",'Unsmoothed Prices'!E39) ->  | AB41: =IFERROR(VLOOKUP($B41,Volumes!$B$4:$H$33,MATCH(AB$11,Volumes!$B$4:$H$4,0),FALSE),0) -> 0 | AC41: =IFERROR(VLOOKUP($B41,Volumes!$B$4:$H$33,MATCH(AC$11,Volumes!$B$4:$H$4,0),FALSE),0) -> 0 | AD41: =IFERROR(VLOOKUP($B41,Volumes!$B$4:$H$33,MATCH(AD$11,Volumes!$B$4:$H$4,0),FALSE),0) -> 0 | AE41: =IFERROR(VLOOKUP($B41,Volumes!$B$4:$H$33,MATCH(AE$11,Volumes!$B$4:$H$4,0),FALSE),0) -> 0 | AF41: =IFERROR(VLOOKUP($B41,Volumes!$B$4:$H$33,MATCH(AF$11,Volumes!$B$4:$H$4,0),FALSE),0) -> 0 | BJ41: 0 | BK41: 0 | BL41: 0 | BM41: 0 | BN41: 0 | BV41: 0 | BW41: 0 | BX41: 0 | BY41: 0 | BZ41: 0 | CA41: 0 | CB41: 0 | CC41: 0 | CD41: 0 | CE41: 0
B42: =Inputs!$C99 -> 100W Incandescent | C42: Obsolete, no new Connections | D42: =IF($C42="NA","",'Unsmoothed Prices'!D40) -> 21.61 | E42: =IF($C42="NA","",'Unsmoothed Prices'!E40) -> 22.35118327 | F42: 21.66077173 | G42: 20.9916865 | H42: 20.34326882 | I42: 19.71488028 | Q42: 22.89877634 | R42: 22.73512975 | S42: 22.57265266 | T42: 22.41133671 | U42: 22.25117362 | AB42: =IFERROR(VLOOKUP($B42,Volumes!$B$4:$H$33,MATCH(AB$11,Volumes!$B$4:$H$4,0),FALSE),0) -> 0 | AC42: =IFERROR(VLOOKUP($B42,Volumes!$B$4:$H$33,MATCH(AC$11,Volumes!$B$4:$H$4,0),FALSE),0) -> 0 | AD42: =IFERROR(VLOOKUP($B42,Volumes!$B$4:$H$33,MATCH(AD$11,Volumes!$B$4:$H$4,0),FALSE),0) -> 0 | AE42: =IFERROR(VLOOKUP($B42,Volumes!$B$4:$H$33,MATCH(AE$11,Volumes!$B$4:$H$4,0),FALSE),0) -> 0 | AF42: =IFERROR(VLOOKUP($B42,Volumes!$B$4:$H$33,MATCH(AF$11,Volumes!$B$4:$H$4,0),FALSE),0) -> 0 | AM42: 81.80533076 | AN42: 79.06181683 | AO42: 76.61965574 | AP42: 74.25293119 | AQ42: 72.15646183 | AX42: 83.8095214 | AY42: 82.98322357 | AZ42: 82.3901822 | BA42: 81.801379 | BB42: 81.43929544 | BJ42: 0 | BK42: 0 | BL42: 0 | BM42: 0 | BN42: 0 | BV42: 0 | BW42: 0 | BX42: 0 | BY42: 0 | BZ42: 0 | CA42: 0 | CB42: 0 | CC42: 0 | CD42: 0 | CE42: 0
B43: =Inputs!$C100 -> 60W Incandescent | C43: Obsolete, no new Connections | D43: =IF($C43="NA","",'Unsmoothed Prices'!D41) -> 18.023 | E43: =IF($C43="NA","",'Unsmoothed Prices'!E41) -> 18.95486417 | F43: 18.36936243 | G43: 17.8019464 | H43: 17.25205743 | I43: 16.71915412 | Q43: 19.41924909 | R43: 19.28046901 | S43: 19.14268073 | T43: 19.00587715 | U43: 18.87005124 | AB43: =IFERROR(VLOOKUP($B43,Volumes!$B$4:$H$33,MATCH(AB$11,Volumes!$B$4:$H$4,0),FALSE),0) -> 0 | AC43: =IFERROR(VLOOKUP($B43,Volumes!$B$4:$H$33,MATCH(AC$11,Volumes!$B$4:$H$4,0),FALSE),0) -> 0 | AD43: =IFERROR(VLOOKUP($B43,Volumes!$B$4:$H$33,MATCH(AD$11,Volumes!$B$4:$H$4,0),FALSE),0) -> 0 | AE43: =IFERROR(VLOOKUP($B43,Volumes!$B$4:$H$33,MATCH(AE$11,Volumes!$B$4:$H$4,0),FALSE),0) -> 0 | AF43: =IFERROR(VLOOKUP($B43,Volumes!$B$4:$H$33,MATCH(AF$11,Volumes!$B$4:$H$4,0),FALSE),0) -> 0 | AM43: 69.37480288 | AN43: 67.04817286 | AO43: 64.97710435 | AP43: 62.97000961 | AQ43: 61.19210409 | AX43: 71.07445165 | AY43: 70.37371188 | AZ43: 69.87078465 | BA43: 69.3714516 | BB43: 69.06438755 | BJ43: 0 | BK43: 0 | BL43: 0 | BM43: 0 | BN43: 0 | BV43: 0 | BW43: 0 | BX43: 0 | BY43: 0 | BZ43: 0 | CA43: 0 | CB43: 0 | CC43: 0 | CD43: 0 | CE43: 0
B44: =Inputs!$C101 -> 18W LED | C44: Offered | D44: =IF($C44="NA","",'Unsmoothed Prices'!D42) -> 12.349 | E44: =IF($C44="NA","",'Unsmoothed Prices'!E42) -> 13.58736449 | F44: 13.16766084 | G44: 12.76092153 | H44: 12.3667461 | I44: 11.98474645 | Q44: 13.92024828 | R44: 13.82076693 | S44: 13.72199653 | T44: 13.62393199 | U44: 13.52656827 | AB44: =IFERROR(VLOOKUP($B44,Volumes!$B$4:$H$33,MATCH(AB$11,Volumes!$B$4:$H$4,0),FALSE),0) -> 4980 | AC44: =IFERROR(VLOOKUP($B44,Volumes!$B$4:$H$33,MATCH(AC$11,Volumes!$B$4:$H$4,0),FALSE),0) -> 4980 | AD44: =IFERROR(VLOOKUP($B44,Volumes!$B$4:$H$33,MATCH(AD$11,Volumes!$B$4:$H$4,0),FALSE),0) -> 4980 | AE44: =IFERROR(VLOOKUP($B44,Volumes!$B$4:$H$33,MATCH(AE$11,Volumes!$B$4:$H$4,0),FALSE),0) -> 4980 | AF44: =IFERROR(VLOOKUP($B44,Volumes!$B$4:$H$33,MATCH(AF$11,Volumes!$B$4:$H$4,0),FALSE),0) -> 4980 | AM44: 49.72975404 | AN44: 48.06196208 | AO44: 46.57736359 | AP44: 45.13862325 | AQ44: 43.864172 | AX44: 50.94810872 | AY44: 50.44579931 | AZ44: 50.08528733 | BA44: 49.72735175 | BB44: 49.50723986 | BJ44: 247654.1751 | BK44: 239348.5712 | BL44: 231955.2707 | BM44: 224790.3438 | BN44: 218443.5766 | BV44: 253721.5814 | BW44: 251220.0805 | BX44: 249424.7309 | BY44: 247642.2117 | BZ44: 246546.0545 | CA44: 0 | CB44: 0 | CC44: 0 | CD44: 0 | CE44: 0
B45: =Inputs!$C102 -> 18W LED Decorative - Bottom Pole Entry | C45: Not Offered | D45: =IF($C45="NA","",'Unsmoothed Prices'!D43) -> 12.349 | E45: =IF($C45="NA","",'Unsmoothed Prices'!E43) -> 13.58736449 | F45: 13.16766084 | G45: 12.76092153 | H45: 12.3667461 | I45: 11.98474645 | Q45: 13.92024828 | R45: 13.82076693 | S45: 13.72199653 | T45: 13.62393199 | U45: 13.52656827 | AB45: =IFERROR(VLOOKUP($B45,Volumes!$B$4:$H$33,MATCH(AB$11,Volumes!$B$4:$H$4,0),FALSE),0) -> 0 | AC45: =IFERROR(VLOOKUP($B45,Volumes!$B$4:$H$33,MATCH(AC$11,Volumes!$B$4:$H$4,0),FALSE),0) -> 0 | AD45: =IFERROR(VLOOKUP($B45,Volumes!$B$4:$H$33,MATCH(AD$11,Volumes!$B$4:$H$4,0),FALSE),0) -> 0 | AE45: =IFERROR(VLOOKUP($B45,Volumes!$B$4:$H$33,MATCH(AE$11,Volumes!$B$4:$H$4,0),FALSE),0) -> 0 | AF45: =IFERROR(VLOOKUP($B45,Volumes!$B$4:$H$33,MATCH(AF$11,Volumes!$B$4:$H$4,0),FALSE),0) -> 0 | AM45: 49.72975404 | AN45: 48.06196208 | AO45: 46.57736359 | AP45: 45.13862325 | AQ45: 43.864172 | AX45: 50.94810872 | AY45: 50.44579931 | AZ45: 50.08528733 | BA45: 49.72735175 | BB45: 49.50723986 | BJ45: 0 | BK45: 0 | BL45: 0 | BM45: 0 | BN45: 0 | BV45: 0 | BW45: 0 | BX45: 0 | BY45: 0 | BZ45: 0 | CA45: 0 | CB45: 0 | CC45: 0 | CD45: 0 | CE45: 0
B46: =Inputs!$C103 -> 18W LED Decorative - Side Entry | C46: Not Offered | D46: =IF($C46="NA","",'Unsmoothed Prices'!D44) -> 12.349 | E46: =IF($C46="NA","",'Unsmoothed Prices'!E44) -> 13.58736449 | F46: 13.16766084 | G46: 12.76092153 | H46: 12.3667461 | I46: 11.98474645 | Q46: 13.92024828 | R46: 13.82076693 | S46: 13.72199653 | T46: 13.62393199 | U46: 13.52656827 | AB46: =IFERROR(VLOOKUP($B46,Volumes!$B$4:$H$33,MATCH(AB$11,Volumes!$B$4:$H$4,0),FALSE),0) -> 0 | AC46: =IFERROR(VLOOKUP($B46,Volumes!$B$4:$H$33,MATCH(AC$11,Volumes!$B$4:$H$4,0),FALSE),0) -> 0 | AD46: =IFERROR(VLOOKUP($B46,Volumes!$B$4:$H$33,MATCH(AD$11,Volumes!$B$4:$H$4,0),FALSE),0) -> 0 | AE46: =IFERROR(VLOOKUP($B46,Volumes!$B$4:$H$33,MATCH(AE$11,Volumes!$B$4:$H$4,0),FALSE),0) -> 0 | AF46: =IFERROR(VLOOKUP($B46,Volumes!$B$4:$H$33,MATCH(AF$11,Volumes!$B$4:$H$4,0),FALSE),0) -> 0 | AM46: 49.72975404 | AN46: 48.06196208 | AO46: 46.57736359 | AP46: 45.13862325 | AQ46: 43.864172 | AX46: 50.94810872 | AY46: 50.44579931 | AZ46: 50.08528733 | BA46: 49.72735175 | BB46: 49.50723986 | BJ46: 0 | BK46: 0 | BL46: 0 | BM46: 0 | BN46: 0 | BV46: 0 | BW46: 0 | BX46: 0 | BY46: 0 | BZ46: 0 | CA46: 0 | CB46: 0 | CC46: 0 | CD46: 0 | CE46: 0
B47: =Inputs!$C104 -> 18W LED Decorative - Top Entry | C47: Not Offered | D47: =IF($C47="NA","",'Unsmoothed Prices'!D45) -> 12.349 | E47: =IF($C47="NA","",'Unsmoothed Prices'!E45) -> 13.58736449 | F47: 13.16766084 | G47: 12.76092153 | H47: 12.3667461 | I47: 11.98474645 | Q47: 13.92024828 | R47: 13.82076693 | S47: 13.72199653 | T47: 13.62393199 | U47: 13.52656827 | AB47: =IFERROR(VLOOKUP($B47,Volumes!$B$4:$H$33,MATCH(AB$11,Volumes!$B$4:$H$4,0),FALSE),0) -> 0 | AC47: =IFERROR(VLOOKUP($B47,Volumes!$B$4:$H$33,MATCH(AC$11,Volumes!$B$4:$H$4,0),FALSE),0) -> 0 | AD47: =IFERROR(VLOOKUP($B47,Volumes!$B$4:$H$33,MATCH(AD$11,Volumes!$B$4:$H$4,0),FALSE),0) -> 0 | AE47: =IFERROR(VLOOKUP($B47,Volumes!$B$4:$H$33,MATCH(AE$11,Volumes!$B$4:$H$4,0),FALSE),0) -> 0 | AF47: =IFERROR(VLOOKUP($B47,Volumes!$B$4:$H$33,MATCH(AF$11,Volumes!$B$4:$H$4,0),FALSE),0) -> 0 | AM47: 49.72975404 | AN47: 48.06196208 | AO47: 46.57736359 | AP47: 45.13862325 | AQ47: 43.864172 | AX47: 50.94810872 | AY47: 50.44579931 | AZ47: 50.08528733 | BA47: 49.72735175 | BB47: 49.50723986 | BJ47: 0 | BK47: 0 | BL47: 0 | BM47: 0 | BN47: 0 | BV47: 0 | BW47: 0 | BX47: 0 | BY47: 0 | BZ47: 0 | CA47: 0 | CB47: 0 | CC47: 0 | CD47: 0 | CE47: 0
B48: =Inputs!$C105 -> 25W LED | C48: Offered | D48: =IF($C48="NA","",'Unsmoothed Prices'!D46) -> 12.349 | E48: =IF($C48="NA","",'Unsmoothed Prices'!E46) -> 13.58736449 | F48: 13.16766084 | G48: 12.76092153 | H48: 12.3667461 | I48: 11.98474645 | Q48: 13.92024828 | R48: 13.82076693 | S48: 13.72199653 | T48: 13.62393199 | U48: 13.52656827 | AB48: =IFERROR(VLOOKUP($B48,Volumes!$B$4:$H$33,MATCH(AB$11,Volumes!$B$4:$H$4,0),FALSE),0) -> 29 | AC48: =IFERROR(VLOOKUP($B48,Volumes!$B$4:$H$33,MATCH(AC$11,Volumes!$B$4:$H$4,0),FALSE),0) -> 29 | AD48: =IFERROR(VLOOKUP($B48,Volumes!$B$4:$H$33,MATCH(AD$11,Volumes!$B$4:$H$4,0),FALSE),0) -> 29 | AE48: =IFERROR(VLOOKUP($B48,Volumes!$B$4:$H$33,MATCH(AE$11,Volumes!$B$4:$H$4,0),FALSE),0) -> 29 | AF48: =IFERROR(VLOOKUP($B48,Volumes!$B$4:$H$33,MATCH(AF$11,Volumes!$B$4:$H$4,0),FALSE),0) -> 29 | AM48: 49.72975404 | AN48: 48.06196208 | AO48: 46.57736359 | AP48: 45.13862325 | AQ48: 43.864172 | AX48: 50.94810872 | AY48: 50.44579931 | AZ48: 50.08528733 | BA48: 49.72735175 | BB48: 49.50723986 | BJ48: 1442.162867 | BK48: 1393.7969 | BL48: 1350.743544 | BM48: 1309.020074 | BN48: 1272.060988 | BV48: 1477.495153 | BW48: 1462.92818 | BX48: 1452.473332 | BY48: 1442.093201 | BZ48: 1435.709956 | CA48: 0 | CB48: 0 | CC48: 0 | CD48: 0 | CE48: 0
B49: =Inputs!$C106 -> 25W LED Decorative - Bottom Pole Entry | C49: Not Offered | D49: =IF($C49="NA","",'Unsmoothed Prices'!D47) -> 12.349 | E49: =IF($C49="NA","",'Unsmoothed Prices'!E47) -> 13.58736449 | F49: 13.16766084 | G49: 12.76092153 | H49: 12.3667461 | I49: 11.98474645 | Q49: 13.92024828 | R49: 13.82076693 | S49: 13.72199653 | T49: 13.62393199 | U49: 13.52656827 | AB49: =IFERROR(VLOOKUP($B49,Volumes!$B$4:$H$33,MATCH(AB$11,Volumes!$B$4:$H$4,0),FALSE),0) -> 0 | AC49: =IFERROR(VLOOKUP($B49,Volumes!$B$4:$H$33,MATCH(AC$11,Volumes!$B$4:$H$4,0),FALSE),0) -> 0 | AD49: =IFERROR(VLOOKUP($B49,Volumes!$B$4:$H$33,MATCH(AD$11,Volumes!$B$4:$H$4,0),FALSE),0) -> 0 | AE49: =IFERROR(VLOOKUP($B49,Volumes!$B$4:$H$33,MATCH(AE$11,Volumes!$B$4:$H$4,0),FALSE),0) -> 0 | AF49: =IFERROR(VLOOKUP($B49,Volumes!$B$4:$H$33,MATCH(AF$11,Volumes!$B$4:$H$4,0),FALSE),0) -> 0 | AM49: 49.72975404 | AN49: 48.06196208 | AO49: 46.57736359 | AP49: 45.13862325 | AQ49: 43.864172 | AX49: 50.94810872 | AY49: 50.44579931 | AZ49: 50.08528733 | BA49: 49.72735175 | BB49: 49.50723986 | BJ49: 0 | BK49: 0 | BL49: 0 | BM49: 0 | BN49: 0 | BV49: 0 | BW49: 0 | BX49: 0 | BY49: 0 | BZ49: 0 | CA49: 0 | CB49: 0 | CC49: 0 | CD49: 0 | CE49: 0
B50: =Inputs!$C107 -> 25W LED Decorative - Side Entry | C50: Not Offered | D50: =IF($C50="NA","",'Unsmoothed Prices'!D48) -> 12.349 | E50: =IF($C50="NA","",'Unsmoothed Prices'!E48) -> 13.58736449 | F50: 13.16766084 | G50: 12.76092153 | H50: 12.3667461 | I50: 11.98474645 | Q50: 13.92024828 | R50: 13.82076693 | S50: 13.72199653 | T50: 13.62393199 | U50: 13.52656827 | AB50: =IFERROR(VLOOKUP($B50,Volumes!$B$4:$H$33,MATCH(AB$11,Volumes!$B$4:$H$4,0),FALSE),0) -> 0 | AC50: =IFERROR(VLOOKUP($B50,Volumes!$B$4:$H$33,MATCH(AC$11,Volumes!$B$4:$H$4,0),FALSE),0) -> 0 | AD50: =IFERROR(VLOOKUP($B50,Volumes!$B$4:$H$33,MATCH(AD$11,Volumes!$B$4:$H$4,0),FALSE),0) -> 0 | AE50: =IFERROR(VLOOKUP($B50,Volumes!$B$4:$H$33,MATCH(AE$11,Volumes!$B$4:$H$4,0),FALSE),0) -> 0 | AF50: =IFERROR(VLOOKUP($B50,Volumes!$B$4:$H$33,MATCH(AF$11,Volumes!$B$4:$H$4,0),FALSE),0) -> 0 | AM50: 49.72975404 | AN50: 48.06196208 | AO50: 46.57736359 | AP50: 45.13862325 | AQ50: 43.864172 | AX50: 50.94810872 | AY50: 50.44579931 | AZ50: 50.08528733 | BA50: 49.72735175 | BB50: 49.50723986 | BJ50: 0 | BK50: 0 | BL50: 0 | BM50: 0 | BN50: 0 | BV50: 0 | BW50: 0 | BX50: 0 | BY50: 0 | BZ50: 0 | CA50: 0 | CB50: 0 | CC50: 0 | CD50: 0 | CE50: 0
B51: =Inputs!$C108 -> 25W LED Decorative - Top Entry | C51: Not Offered | D51: =IF($C51="NA","",'Unsmoothed Prices'!D49) -> 12.349 | E51: =IF($C51="NA","",'Unsmoothed Prices'!E49) -> 13.58736449 | F51: 13.16766084 | G51: 12.76092153 | H51: 12.3667461 | I51: 11.98474645 | Q51: 13.92024828 | R51: 13.82076693 | S51: 13.72199653 | T51: 13.62393199 | U51: 13.52656827 | AB51: =IFERROR(VLOOKUP($B51,Volumes!$B$4:$H$33,MATCH(AB$11,Volumes!$B$4:$H$4,0),FALSE),0) -> 0 | AC51: =IFERROR(VLOOKUP($B51,Volumes!$B$4:$H$33,MATCH(AC$11,Volumes!$B$4:$H$4,0),FALSE),0) -> 0 | AD51: =IFERROR(VLOOKUP($B51,Volumes!$B$4:$H$33,MATCH(AD$11,Volumes!$B$4:$H$4,0),FALSE),0) -> 0 | AE51: =IFERROR(VLOOKUP($B51,Volumes!$B$4:$H$33,MATCH(AE$11,Volumes!$B$4:$H$4,0),FALSE),0) -> 0 | AF51: =IFERROR(VLOOKUP($B51,Volumes!$B$4:$H$33,MATCH(AF$11,Volumes!$B$4:$H$4,0),FALSE),0) -> 0 | AM51: 49.72975404 | AN51: 48.06196208 | AO51: 46.57736359 | AP51: 45.13862325 | AQ51: 43.864172 | AX51: 50.94810872 | AY51: 50.44579931 | AZ51: 50.08528733 | BA51: 49.72735175 | BB51: 49.50723986 | BJ51: 0 | BK51: 0 | BL51: 0 | BM51: 0 | BN51: 0 | BV51: 0 | BW51: 0 | BX51: 0 | BY51: 0 | BZ51: 0 | CA51: 0 | CB51: 0 | CC51: 0 | CD51: 0 | CE51: 0
B52: =Inputs!$C109 -> 30W LED | C52: Offered | D52: =IF($C52="NA","",'Unsmoothed Prices'!D50) -> 12.349 | E52: =IF($C52="NA","",'Unsmoothed Prices'!E50) -> 13.58736449 | F52: 13.16766084 | G52: 12.76092153 | H52: 12.3667461 | I52: 11.98474645 | Q52: 13.92024828 | R52: 13.82076693 | S52: 13.72199653 | T52: 13.62393199 | U52: 13.52656827 | AB52: =IFERROR(VLOOKUP($B52,Volumes!$B$4:$H$33,MATCH(AB$11,Volumes!$B$4:$H$4,0),FALSE),0) -> 32 | AC52: =IFERROR(VLOOKUP($B52,Volumes!$B$4:$H$33,MATCH(AC$11,Volumes!$B$4:$H$4,0),FALSE),0) -> 32 | AD52: =IFERROR(VLOOKUP($B52,Volumes!$B$4:$H$33,MATCH(AD$11,Volumes!$B$4:$H$4,0),FALSE),0) -> 32 | AE52: =IFERROR(VLOOKUP($B52,Volumes!$B$4:$H$33,MATCH(AE$11,Volumes!$B$4:$H$4,0),FALSE),0) -> 32 | AF52: =IFERROR(VLOOKUP($B52,Volumes!$B$4:$H$33,MATCH(AF$11,Volumes!$B$4:$H$4,0),FALSE),0) -> 32 | AM52: 49.72975404 | AN52: 48.06196208 | AO52: 46.57736359 | AP52: 45.13862325 | AQ52: 43.864172 | AX52: 50.94810872 | AY52: 50.44579931 | AZ52: 50.08528733 | BA52: 49.72735175 | BB52: 49.50723986 | BJ52: 1591.352129 | BK52: 1537.982787 | BL52: 1490.475635 | BM52: 1444.435944 | BN52: 1403.653504 | BV52: 1630.339479 | BW52: 1614.265578 | BX52: 1602.729194 | BY52: 1591.275256 | BZ52: 1584.231675 | CA52: 0 | CB52: 0 | CC52: 0 | CD52: 0 | CE52: 0
B53: =Inputs!$C110 -> 88 LED Light | C53: Not Offered | D53: =IF($C53="NA","",'Unsmoothed Prices'!D51) -> 12.349 | E53: =IF($C53="NA","",'Unsmoothed Prices'!E51) -> 13.58736449 | F53: 13.16766084 | G53: 12.76092153 | H53: 12.3667461 | I53: 11.98474645 | Q53: 13.92024828 | R53: 13.82076693 | S53: 13.72199653 | T53: 13.62393199 | U53: 13.52656827 | AB53: =IFERROR(VLOOKUP($B53,Volumes!$B$4:$H$33,MATCH(AB$11,Volumes!$B$4:$H$4,0),FALSE),0) -> 0 | AC53: =IFERROR(VLOOKUP($B53,Volumes!$B$4:$H$33,MATCH(AC$11,Volumes!$B$4:$H$4,0),FALSE),0) -> 0 | AD53: =IFERROR(VLOOKUP($B53,Volumes!$B$4:$H$33,MATCH(AD$11,Volumes!$B$4:$H$4,0),FALSE),0) -> 0 | AE53: =IFERROR(VLOOKUP($B53,Volumes!$B$4:$H$33,MATCH(AE$11,Volumes!$B$4:$H$4,0),FALSE),0) -> 0 | AF53: =IFERROR(VLOOKUP($B53,Volumes!$B$4:$H$33,MATCH(AF$11,Volumes!$B$4:$H$4,0),FALSE),0) -> 0 | AM53: 49.72975404 | AN53: 48.06196208 | AO53: 46.57736359 | AP53: 45.13862325 | AQ53: 43.864172 | AX53: 50.94810872 | AY53: 50.44579931 | AZ53: 50.08528733 | BA53: 49.72735175 | BB53: 49.50723986 | BJ53: 0 | BK53: 0 | BL53: 0 | BM53: 0 | BN53: 0 | BV53: 0 | BW53: 0 | BX53: 0 | BY53: 0 | BZ53: 0 | CA53: 0 | CB53: 0 | CC53: 0 | CD53: 0 | CE53: 0
B54: =Inputs!$C111 -> 100W Metal Halide | C54: Offered | D54: =IF($C54="NA","",'Unsmoothed Prices'!D52) -> 22.556 | E54: =IF($C54="NA","",'Unsmoothed Prices'!E52) -> 23.26786577 | F54: 22.54913859 | G54: 21.85261236 | H54: 21.17760131 | I54: 20.52344086 | Q54: 23.83791711 | R54: 23.66755893 | S54: 23.49841821 | T54: 23.33048627 | U54: 23.16375445 | AB54: =IFERROR(VLOOKUP($B54,Volumes!$B$4:$H$33,MATCH(AB$11,Volumes!$B$4:$H$4,0),FALSE),0) -> 5 | AC54: =IFERROR(VLOOKUP($B54,Volumes!$B$4:$H$33,MATCH(AC$11,Volumes!$B$4:$H$4,0),FALSE),0) -> 5 | AD54: =IFERROR(VLOOKUP($B54,Volumes!$B$4:$H$33,MATCH(AD$11,Volumes!$B$4:$H$4,0),FALSE),0) -> 5 | AE54: =IFERROR(VLOOKUP($B54,Volumes!$B$4:$H$33,MATCH(AE$11,Volumes!$B$4:$H$4,0),FALSE),0) -> 5 | AF54: =IFERROR(VLOOKUP($B54,Volumes!$B$4:$H$33,MATCH(AF$11,Volumes!$B$4:$H$4,0),FALSE),0) -> 5 | AM54: 85.1603887 | AN54: 82.30435584 | AO54: 79.76203512 | AP54: 77.2982448 | AQ54: 75.11579355 | AX54: 87.24677662 | AY54: 86.38659008 | AZ54: 85.76922648 | BA54: 85.15627487 | BB54: 84.77934128 | BJ54: 425.8019435 | BK54: 411.5217792 | BL54: 398.8101756 | BM54: 386.491224 | BN54: 375.5789677 | BV54: 436.2338831 | BW54: 431.9329504 | BX54: 428.8461324 | BY54: 425.7813744 | BZ54: 423.8967064
B55: =Inputs!$C112 -> 150W Metal Halide | C55: Offered | D55: =IF($C55="NA","",'Unsmoothed Prices'!D53) -> 22.703 | E55: =IF($C55="NA","",'Unsmoothed Prices'!E53) -> 23.41090164 | F55: 22.68775619 | G55: 21.98694817 | H55: 21.30778759 | I55: 20.64960578 | Q55: 23.9844573 | R55: 23.81305186 | S55: 23.64287138 | T55: 23.4739071 | U55: 23.30615032 | AB55: =IFERROR(VLOOKUP($B55,Volumes!$B$4:$H$33,MATCH(AB$11,Volumes!$B$4:$H$4,0),FALSE),0) -> 27 | AC55: =IFERROR(VLOOKUP($B55,Volumes!$B$4:$H$33,MATCH(AC$11,Volumes!$B$4:$H$4,0),FALSE),0) -> 27 | AD55: =IFERROR(VLOOKUP($B55,Volumes!$B$4:$H$33,MATCH(AD$11,Volumes!$B$4:$H$4,0),FALSE),0) -> 27 | AE55: =IFERROR(VLOOKUP($B55,Volumes!$B$4:$H$33,MATCH(AE$11,Volumes!$B$4:$H$4,0),FALSE),0) -> 27 | AF55: =IFERROR(VLOOKUP($B55,Volumes!$B$4:$H$33,MATCH(AF$11,Volumes!$B$4:$H$4,0),FALSE),0) -> 27 | AM55: 85.68390002 | AN55: 82.81031011 | AO55: 80.25236083 | AP55: 77.77342471 | AQ55: 75.57755715 | AX55: 87.78311371 | AY55: 86.9176393 | AZ55: 86.29648054 | BA55: 85.6797609 | BB55: 85.30051017 | BJ55: =IFERROR(AM55*AB55,0) -> 2313.465301 | BK55: 2235.878373 | BL55: 2166.813742 | BM55: 2099.882467 | BN55: 2040.594043 | BV55: 2370.14407 | BW55: 2346.776261 | BX55: 2330.004975 | BY55: 2313.353544 | BZ55: 2303.113775
B56: =Inputs!$C113 -> 250W Metal Halide | C56: Offered | D56: =IF($C56="NA","",'Unsmoothed Prices'!D54) -> 22.703 | E56: =IF($C56="NA","",'Unsmoothed Prices'!E54) -> 23.41090164 | F56: 22.68775619 | G56: 21.98694817 | H56: 21.30778759 | I56: 20.64960578 | Q56: 23.9844573 | R56: 23.81305186 | S56: 23.64287138 | T56: 23.4739071 | U56: 23.30615032 | AB56: =IFERROR(VLOOKUP($B56,Volumes!$B$4:$H$33,MATCH(AB$11,Volumes!$B$4:$H$4,0),FALSE),0) -> 40 | AC56: =IFERROR(VLOOKUP($B56,Volumes!$B$4:$H$33,MATCH(AC$11,Volumes!$B$4:$H$4,0),FALSE),0) -> 40 | AD56: =IFERROR(VLOOKUP($B56,Volumes!$B$4:$H$33,MATCH(AD$11,Volumes!$B$4:$H$4,0),FALSE),0) -> 40 | AE56: =IFERROR(VLOOKUP($B56,Volumes!$B$4:$H$33,MATCH(AE$11,Volumes!$B$4:$H$4,0),FALSE),0) -> 40 | AF56: =IFERROR(VLOOKUP($B56,Volumes!$B$4:$H$33,MATCH(AF$11,Volumes!$B$4:$H$4,0),FALSE),0) -> 40 | AM56: 85.68390002 | AN56: 82.81031011 | AO56: 80.25236083 | AP56: 77.77342471 | AQ56: 75.57755715 | AX56: 87.78311371 | AY56: 86.9176393 | AZ56: 86.29648054 | BA56: 85.6797609 | BB56: 85.30051017 | BJ56: 3427.356001 | BK56: 3312.412404 | BL56: 3210.094433 | BM56: 3110.936988 | BN56: 3023.102286 | BV56: 3511.324549 | BW56: 3476.705572 | BX56: 3451.859222 | BY56: 3427.190436 | BZ56: 3412.020407
B57: =Inputs!$C114 -> 400W Metal Halide | C57: Offered | D57: =IF($C57="NA","",'Unsmoothed Prices'!D55) -> 23.408 | E57: =IF($C57="NA","",'Unsmoothed Prices'!E55) -> 24.09475932 | F57: 23.35049001 | G57: 22.62921063 | H57: 21.93021103 | I57: 21.25280302 | Q57: 24.68506915 | R57: 24.50865678 | S57: 24.33350514 | T57: 24.15960523 | U57: 23.98694809 | AB57: =IFERROR(VLOOKUP($B57,Volumes!$B$4:$H$33,MATCH(AB$11,Volumes!$B$4:$H$4,0),FALSE),0) -> 9 | AC57: =IFERROR(VLOOKUP($B57,Volumes!$B$4:$H$33,MATCH(AC$11,Volumes!$B$4:$H$4,0),FALSE),0) -> 9 | AD57: =IFERROR(VLOOKUP($B57,Volumes!$B$4:$H$33,MATCH(AD$11,Volumes!$B$4:$H$4,0),FALSE),0) -> 9 | AE57: =IFERROR(VLOOKUP($B57,Volumes!$B$4:$H$33,MATCH(AE$11,Volumes!$B$4:$H$4,0),FALSE),0) -> 9 | AF57: =IFERROR(VLOOKUP($B57,Volumes!$B$4:$H$33,MATCH(AF$11,Volumes!$B$4:$H$4,0),FALSE),0) -> 9 | AM57: 88.1868191 | AN57: 85.22928853 | AO57: 82.59661879 | AP57: 80.04527028 | AQ57: 77.78525906 | AX57: 90.34735309 | AY57: 89.45659723 | AZ57: 88.81729376 | BA57: 88.18255907 | BB57: 87.79223002 | BJ57: 793.6813719 | BK57: 767.0635968 | BL57: 743.3695691 | BM57: 720.4074325 | BN57: 700.0673316 | BV57: 813.1261778 | BW57: 805.1093751 | BX57: 799.3556438 | BY57: 793.6430317 | BZ57: 790.1300701
B58: =Inputs!$C115 -> 70W Metal Halide | C58: Old light no volumes | D58: =IF($C58="NA","",'Unsmoothed Prices'!D56) -> 18.95 | E58: =IF($C58="NA","",'Unsmoothed Prices'!E56) -> 19.85275364 | F58: 19.23951675 | G58: 18.64522229 | H58: 18.06928516 | I58: 17.51113829 | Q58: 20.3391364 | R58: 20.19378233 | S58: 20.04946703 | T58: 19.90618309 | U58: 19.76392313 | AB58: =IFERROR(VLOOKUP($B58,Volumes!$B$4:$H$33,MATCH(AB$11,Volumes!$B$4:$H$4,0),FALSE),0) -> 0 | AC58: =IFERROR(VLOOKUP($B58,Volumes!$B$4:$H$33,MATCH(AC$11,Volumes!$B$4:$H$4,0),FALSE),0) -> 0 | AD58: =IFERROR(VLOOKUP($B58,Volumes!$B$4:$H$33,MATCH(AD$11,Volumes!$B$4:$H$4,0),FALSE),0) -> 0 | AE58: =IFERROR(VLOOKUP($B58,Volumes!$B$4:$H$33,MATCH(AE$11,Volumes!$B$4:$H$4,0),FALSE),0) -> 0 | AF58: =IFERROR(VLOOKUP($B58,Volumes!$B$4:$H$33,MATCH(AF$11,Volumes!$B$4:$H$4,0),FALSE),0) -> 0 | AM58: 72.66107831 | AN58: 70.22423613 | AO58: 68.05506137 | AP58: 65.95289082 | AQ58: 64.09076614 | AX58: 74.44123923 | AY58: 73.7073055 | AZ58: 73.18055467 | BA58: 72.65756828 | BB58: 72.33595865 | BJ58: 0 | BK58: 0 | BL58: 0 | BM58: 0 | BN58: 0 | BV58: 0 | BW58: 0 | BX58: 0 | BY58: 0 | BZ58: 0
B59: =Inputs!$C116 -> 250W Metal Halide - Flood Light | C59: Old light no volumes | D59: =IF($C59="NA","",'Unsmoothed Prices'!D57) -> 22.703 | E59: =IF($C59="NA","",'Unsmoothed Prices'!E57) -> 23.41090164 | F59: 22.68775619 | G59: 21.98694817 | H59: 21.30778759 | I59: 20.64960578 | Q59: 23.9844573 | R59: 23.81305186 | S59: 23.64287138 | T59: 23.4739071 | U59: 23.30615032 | AB59: =IFERROR(VLOOKUP($B59,Volumes!$B$4:$H$33,MATCH(AB$11,Volumes!$B$4:$H$4,0),FALSE),0) -> 0 | AC59: =IFERROR(VLOOKUP($B59,Volumes!$B$4:$H$33,MATCH(AC$11,Volumes!$B$4:$H$4,0),FALSE),0) -> 0 | AD59: =IFERROR(VLOOKUP($B59,Volumes!$B$4:$H$33,MATCH(AD$11,Volumes!$B$4:$H$4,0),FALSE),0) -> 0 | AE59: =IFERROR(VLOOKUP($B59,Volumes!$B$4:$H$33,MATCH(AE$11,Volumes!$B$4:$H$4,0),FALSE),0) -> 0 | AF59: =IFERROR(VLOOKUP($B59,Volumes!$B$4:$H$33,MATCH(AF$11,Volumes!$B$4:$H$4,0),FALSE),0) -> 0 | AM59: 85.68390002 | AN59: 82.81031011 | AO59: 80.25236083 | AP59: 77.77342471 | AQ59: 75.57755715 | AX59: 87.78311371 | AY59: 86.9176393 | AZ59: 86.29648054 | BA59: 85.6797609 | BB59: 85.30051017 | BJ59: 0 | BK59: 0 | BL59: 0 | BM59: 0 | BN59: 0 | BV59: 0 | BW59: 0 | BX59: 0 | BY59: 0 | BZ59: 0
B60: =Inputs!$C117 -> 400W Metal Halide - Flood Light | C60: Old light no volumes | D60: =IF($C60="NA","",'Unsmoothed Prices'!D58) -> 23.408 | E60: =IF($C60="NA","",'Unsmoothed Prices'!E58) -> 24.09475932 | F60: 23.35049001 | G60: 22.62921063 | H60: 21.93021103 | I60: 21.25280302 | Q60: 24.68506915 | R60: 24.50865678 | S60: 24.33350514 | T60: 24.15960523 | U60: 23.98694809 | AB60: =IFERROR(VLOOKUP($B60,Volumes!$B$4:$H$33,MATCH(AB$11,Volumes!$B$4:$H$4,0),FALSE),0) -> 0 | AC60: =IFERROR(VLOOKUP($B60,Volumes!$B$4:$H$33,MATCH(AC$11,Volumes!$B$4:$H$4,0),FALSE),0) -> 0 | AD60: =IFERROR(VLOOKUP($B60,Volumes!$B$4:$H$33,MATCH(AD$11,Volumes!$B$4:$H$4,0),FALSE),0) -> 0 | AE60: =IFERROR(VLOOKUP($B60,Volumes!$B$4:$H$33,MATCH(AE$11,Volumes!$B$4:$H$4,0),FALSE),0) -> 0 | AF60: =IFERROR(VLOOKUP($B60,Volumes!$B$4:$H$33,MATCH(AF$11,Volumes!$B$4:$H$4,0),FALSE),0) -> 0 | AM60: 88.1868191 | AN60: 85.22928853 | AO60: 82.59661879 | AP60: 80.04527028 | AQ60: 77.78525906 | AX60: 90.34735309 | AY60: 89.45659723 | AZ60: 88.81729376 | BA60: 88.18255907 | BB60: 87.79223002 | BJ60: 0 | BK60: 0 | BL60: 0 | BM60: 0 | BN60: 0 | BV60: 0 | BW60: 0 | BX60: 0 | BY60: 0 | BZ60: 0
B61: =Inputs!$C118 -> 125W Mercury Vapour | C61: Obsolete, no new Connections | D61: =IF($C61="NA","",'Unsmoothed Prices'!D59) -> 21.646 | E61: =IF($C61="NA","",'Unsmoothed Prices'!E59) -> 22.38459311 | F61: 21.69314957 | G61: 21.02306421 | H61: 20.37367729 | I61: 19.74434946 | Q61: 22.9330047 | R61: 22.7691135 | S61: 22.60639354 | T61: 22.44483647 | U61: 22.28443397 | AB61: =IFERROR(VLOOKUP($B61,Volumes!$B$4:$H$33,MATCH(AB$11,Volumes!$B$4:$H$4,0),FALSE),0) -> 314 | AC61: =IFERROR(VLOOKUP($B61,Volumes!$B$4:$H$33,MATCH(AC$11,Volumes!$B$4:$H$4,0),FALSE),0) -> 307 | AD61: =IFERROR(VLOOKUP($B61,Volumes!$B$4:$H$33,MATCH(AD$11,Volumes!$B$4:$H$4,0),FALSE),0) -> 301 | AE61: =IFERROR(VLOOKUP($B61,Volumes!$B$4:$H$33,MATCH(AE$11,Volumes!$B$4:$H$4,0),FALSE),0) -> 295 | AF61: =IFERROR(VLOOKUP($B61,Volumes!$B$4:$H$33,MATCH(AF$11,Volumes!$B$4:$H$4,0),FALSE),0) -> 289 | AM61: 81.92761078 | AN61: 79.17999593 | AO61: 76.73418437 | AP61: 74.36392212 | AQ61: 72.26431902 | AX61: 83.93479722 | AY61: 83.10726427 | AZ61: 82.51333643 | BA61: 81.92365311 | BB61: 81.56102832 | BJ61: 25725.26978 | BK61: 24308.25875 | BL61: 23096.9895 | BM61: 21937.35703 | BN61: 20884.3882 | BV61: 26355.52633 | BW61: 25513.93013 | BX61: 24836.51427 | BY61: 24167.47767 | BZ61: 23571.13718
B62: =Inputs!$C119 -> 250W Mercury Vapour | C62: Obsolete, no new Connections | D62: =IF($C62="NA","",'Unsmoothed Prices'!D60) -> 21.646 | E62: =IF($C62="NA","",'Unsmoothed Prices'!E60) -> 22.38459311 | F62: 21.69314957 | G62: 21.02306421 | H62: 20.37367729 | I62: 19.74434946 | Q62: 22.9330047 | R62: 22.7691135 | S62: 22.60639354 | T62: 22.44483647 | U62: 22.28443397 | AB62: =IFERROR(VLOOKUP($B62,Volumes!$B$4:$H$33,MATCH(AB$11,Volumes!$B$4:$H$4,0),FALSE),0) -> 27 | AC62: =IFERROR(VLOOKUP($B62,Volumes!$B$4:$H$33,MATCH(AC$11,Volumes!$B$4:$H$4,0),FALSE),0) -> 27 | AD62: =IFERROR(VLOOKUP($B62,Volumes!$B$4:$H$33,MATCH(AD$11,Volumes!$B$4:$H$4,0),FALSE),0) -> 26 | AE62: =IFERROR(VLOOKUP($B62,Volumes!$B$4:$H$33,MATCH(AE$11,Volumes!$B$4:$H$4,0),FALSE),0) -> 26 | AF62: =IFERROR(VLOOKUP($B62,Volumes!$B$4:$H$33,MATCH(AF$11,Volumes!$B$4:$H$4,0),FALSE),0) -> 25 | AM62: 81.92761078 | AN62: 79.17999593 | AO62: 76.73418437 | AP62: 74.36392212 | AQ62: 72.26431902 | AX62: 83.93479722 | AY62: 83.10726427 | AZ62: 82.51333643 | BA62: 81.92365311 | BB62: 81.56102832 | BJ62: 2212.045491 | BK62: 2137.85989 | BL62: 1995.088794 | BM62: 1933.461975 | BN62: 1806.607975 | BV62: 2266.239525 | BW62: 2243.896135 | BX62: 2145.346747 | BY62: 2130.014981 | BZ62: 2039.025708
B63: =Inputs!$C120 -> 0 | C63: NA | D63: =IF($C63="NA","",'Unsmoothed Prices'!D61) ->  | E63: =IF($C63="NA","",'Unsmoothed Prices'!E61) ->  | F63: =IF($C63="NA","",E63*(1-F$9)) ->  | AB63: =IFERROR(VLOOKUP($B63,Volumes!$B$4:$H$33,MATCH(AB$11,Volumes!$B$4:$H$4,0),FALSE),0) -> 0 | AC63: =IFERROR(VLOOKUP($B63,Volumes!$B$4:$H$33,MATCH(AC$11,Volumes!$B$4:$H$4,0),FALSE),0) -> 0 | AD63: =IFERROR(VLOOKUP($B63,Volumes!$B$4:$H$33,MATCH(AD$11,Volumes!$B$4:$H$4,0),FALSE),0) -> 0 | AE63: =IFERROR(VLOOKUP($B63,Volumes!$B$4:$H$33,MATCH(AE$11,Volumes!$B$4:$H$4,0),FALSE),0) -> 0 | AF63: =IFERROR(VLOOKUP($B63,Volumes!$B$4:$H$33,MATCH(AF$11,Volumes!$B$4:$H$4,0),FALSE),0) -> 0 | BJ63: 0 | BK63: 0 | BL63: 0 | BM63: 0 | BN63: 0 | BV63: 0 | BW63: 0 | BX63: 0 | BY63: 0 | BZ63: 0
B64: =Inputs!$C121 -> 400W Mercury Vapour | C64: Obsolete, no new Connections | D64: =IF($C64="NA","",'Unsmoothed Prices'!D62) -> 21.799 | E64: =IF($C64="NA","",'Unsmoothed Prices'!E62) -> 22.53389333 | F64: =IF($C64="NA","",E64*(1-F$9)) -> 21.83783802 | G64: 21.16328334 | H64: 20.50956516 | I64: 19.87603985 | Q64: 23.08596271 | R64: 22.92097839 | S64: 22.75717313 | T64: 22.5945385 | U64: 22.43306615 | AB64: =IFERROR(VLOOKUP($B64,Volumes!$B$4:$H$33,MATCH(AB$11,Volumes!$B$4:$H$4,0),FALSE),0) -> 21 | AC64: =IFERROR(VLOOKUP($B64,Volumes!$B$4:$H$33,MATCH(AC$11,Volumes!$B$4:$H$4,0),FALSE),0) -> 20 | AD64: =IFERROR(VLOOKUP($B64,Volumes!$B$4:$H$33,MATCH(AD$11,Volumes!$B$4:$H$4,0),FALSE),0) -> 20 | AE64: =IFERROR(VLOOKUP($B64,Volumes!$B$4:$H$33,MATCH(AE$11,Volumes!$B$4:$H$4,0),FALSE),0) -> 20 | AF64: =IFERROR(VLOOKUP($B64,Volumes!$B$4:$H$33,MATCH(AF$11,Volumes!$B$4:$H$4,0),FALSE),0) -> 19 | AM64: 82.4740496 | AN64: 79.70810878 | AO64: 77.2459842 | AP64: 74.85991283 | AQ64: 72.74630585 | AX64: 84.49462352 | AY64: 83.66157111 | AZ64: 83.06368191 | BA64: 82.47006554 | BB64: 82.10502212 | BJ64: 1731.955042 | BK64: 1594.162176 | BL64: 1544.919684 | BM64: 1497.198257 | BN64: 1382.179811 | BV64: 1774.387094 | BW64: 1673.231422 | BX64: 1661.273638 | BY64: 1649.401311 | BZ64: 1559.99542
B65: =Inputs!$C122 -> 50W Mercury Vapour | C65: Obsolete, no new Connections | D65: =IF($C65="NA","",'Unsmoothed Prices'!D63) -> 18.088 | E65: =IF($C65="NA","",'Unsmoothed Prices'!E63) -> 19.01541951 | F65: =IF($C65="NA","",E65*(1-F$9)) -> 18.42804725 | G65: 17.85881849 | H65: 17.30717279 | I65: 16.77256701 | Q65: 19.481288 | R65: 19.34206456 | S65: 19.20383608 | T65: 19.06659546 | U65: 18.93033563 | AB65: =IFERROR(VLOOKUP($B65,Volumes!$B$4:$H$33,MATCH(AB$11,Volumes!$B$4:$H$4,0),FALSE),0) -> 141 | AC65: =IFERROR(VLOOKUP($B65,Volumes!$B$4:$H$33,MATCH(AC$11,Volumes!$B$4:$H$4,0),FALSE),0) -> 130 | AD65: =IFERROR(VLOOKUP($B65,Volumes!$B$4:$H$33,MATCH(AD$11,Volumes!$B$4:$H$4,0),FALSE),0) -> 127 | AE65: =IFERROR(VLOOKUP($B65,Volumes!$B$4:$H$33,MATCH(AE$11,Volumes!$B$4:$H$4,0),FALSE),0) -> 115 | AF65: =IFERROR(VLOOKUP($B65,Volumes!$B$4:$H$33,MATCH(AF$11,Volumes!$B$4:$H$4,0),FALSE),0) -> 108 | AM65: 69.5964354 | AN65: 67.26237247 | AO65: 65.1846875 | AP65: 63.17118067 | AQ65: 61.38759526 | AX65: 71.30151407 | AY65: 70.59853564 | AZ65: 70.0940017 | BA65: 69.59307342 | BB65: 69.28502839 | BJ65: 9813.097392 | BK65: 8744.108422 | BL65: 8278.455312 | BM65: 7264.685777 | BN65: 6629.860288 | BV65: 10053.51348 | BW65: 9177.809633 | BX65: 8901.938216 | BY65: 8003.203443 | BZ65: 7482.783067
B66: =Inputs!$C123 -> 80W Mercury Vapour Art decorative | C66: Old light no volumes | D66: =IF($C66="NA","",'Unsmoothed Prices'!D64) -> 18.056 | E66: =IF($C66="NA","",'Unsmoothed Prices'!E64) -> 18.98514184 | F66: =IF($C66="NA","",E66*(1-F$9)) -> 18.39870484 | G66: 17.83038244 | H66: 17.27961511 | I66: 16.74586057 | Q66: 19.45026854 | R66: 19.31126678 | S66: 19.1732584 | T66: 19.0362363 | U66: 18.90019344 | AB66: =IFERROR(VLOOKUP($B66,Volumes!$B$4:$H$33,MATCH(AB$11,Volumes!$B$4:$H$4,0),FALSE),0) -> 0 | AC66: =IFERROR(VLOOKUP($B66,Volumes!$B$4:$H$33,MATCH(AC$11,Volumes!$B$4:$H$4,0),FALSE),0) -> 0 | AD66: =IFERROR(VLOOKUP($B66,Volumes!$B$4:$H$33,MATCH(AD$11,Volumes!$B$4:$H$4,0),FALSE),0) -> 0 | AE66: =IFERROR(VLOOKUP($B66,Volumes!$B$4:$H$33,MATCH(AE$11,Volumes!$B$4:$H$4,0),FALSE),0) -> 0 | AF66: =IFERROR(VLOOKUP($B66,Volumes!$B$4:$H$33,MATCH(AF$11,Volumes!$B$4:$H$4,0),FALSE),0) -> 0 | AM66: 69.48561914 | AN66: 67.15527267 | AO66: 65.08089592 | AP66: 63.07059514 | AQ66: 61.28984967 | AX66: 71.18798286 | AY66: 70.48612376 | AZ66: 69.98239317 | BA66: 69.48226251 | BB66: 69.17470797 | BJ66: 0 | BK66: 0 | BL66: 0 | BM66: 0 | BN66: 0 | BV66: 0 | BW66: 0 | BX66: 0 | BY66: 0 | BZ66: 0
B67: =Inputs!$C124 -> 80W Mercury Vapour | C67: Obsolete, no new Connections | D67: =IF($C67="NA","",'Unsmoothed Prices'!D65) -> 18.056 | E67: =IF($C67="NA","",'Unsmoothed Prices'!E65) -> 18.98514184 | F67: =IF($C67="NA","",E67*(1-F$9)) -> 18.39870484 | G67: 17.83038244 | H67: 17.27961511 | I67: 16.74586057 | Q67: 19.45026854 | R67: 19.31126678 | S67: 19.1732584 | T67: 19.0362363 | U67: 18.90019344 | AB67: =IFERROR(VLOOKUP($B67,Volumes!$B$4:$H$33,MATCH(AB$11,Volumes!$B$4:$H$4,0),FALSE),0) -> 280 | AC67: =IFERROR(VLOOKUP($B67,Volumes!$B$4:$H$33,MATCH(AC$11,Volumes!$B$4:$H$4,0),FALSE),0) -> 260 | AD67: =IFERROR(VLOOKUP($B67,Volumes!$B$4:$H$33,MATCH(AD$11,Volumes!$B$4:$H$4,0),FALSE),0) -> 240 | AE67: =IFERROR(VLOOKUP($B67,Volumes!$B$4:$H$33,MATCH(AE$11,Volumes!$B$4:$H$4,0),FALSE),0) -> 230 | AF67: =IFERROR(VLOOKUP($B67,Volumes!$B$4:$H$33,MATCH(AF$11,Volumes!$B$4:$H$4,0),FALSE),0) -> 220 | AM67: 69.48561914 | AN67: 67.15527267 | AO67: 65.08089592 | AP67: 63.07059514 | AQ67: 61.28984967 | AX67: 71.18798286 | AY67: 70.48612376 | AZ67: 69.98239317 | BA67: 69.48226251 | BB67: 69.17470797 | BJ67: 19455.97336 | BK67: 17460.37089 | BL67: 15619.41502 | BM67: 14506.23688 | BN67: 13483.76693 | BV67: 19932.6352 | BW67: 18326.39218 | BX67: 16795.77436 | BY67: 15980.92038 | BZ67: 15218.43575
B68: =Inputs!$C125 -> 14W LED | C68: Offered | D68: =IF($C68="NA","",'Unsmoothed Prices'!D66) ->  | E68: =IF($C68="NA","",'Unsmoothed Prices'!E66) -> 13.74606123 | F68: =IF($C68="NA","",E68*(1-F$9)) -> 13.32145556 | G68: 12.90996564 | H68: 12.51118635 | I68: 12.12472505 | Q68: 14.08283302 | R68: 13.98218975 | S68: 13.88226574 | T68: 13.78305583 | U68: 13.68455493 | AB68: =IFERROR(VLOOKUP($B68,Volumes!$B$4:$H$33,MATCH(AB$11,Volumes!$B$4:$H$4,0),FALSE),0) -> 13129 | AC68: =IFERROR(VLOOKUP($B68,Volumes!$B$4:$H$33,MATCH(AC$11,Volumes!$B$4:$H$4,0),FALSE),0) -> 14029 | AD68: =IFERROR(VLOOKUP($B68,Volumes!$B$4:$H$33,MATCH(AD$11,Volumes!$B$4:$H$4,0),FALSE),0) -> 14059 | AE68: =IFERROR(VLOOKUP($B68,Volumes!$B$4:$H$33,MATCH(AE$11,Volumes!$B$4:$H$4,0),FALSE),0) -> 14089 | AF68: =IFERROR(VLOOKUP($B68,Volumes!$B$4:$H$33,MATCH(AF$11,Volumes!$B$4:$H$4,0),FALSE),0) -> 14129 | AM68: 50.31058412 | AN68: 48.6233128 | AO68: 47.1213746 | AP68: 45.66583016 | AQ68: 44.37649367 | AX68: 51.54316885 | AY68: 51.0349926 | AZ68: 50.67026994 | BA68: 50.30815377 | BB68: 50.08547103 | BJ68: 660527.6589 | BK68: 682136.4553 | BL68: 662479.4055 | BM68: 643385.8811 | BN68: 626995.479 | BV68: 676710.2638 | BW68: 715969.9112 | BX68: 712373.325 | BY68: 708791.5785 | BZ68: 707657.6202
B69: =Inputs!$C126 -> New technology - Minor | C69: Offered | D69: =IF($C69="NA","",'Unsmoothed Prices'!D67) ->  | E69: =IF($C69="NA","",'Unsmoothed Prices'!E67) -> 13.74606123 | F69: =IF($C69="NA","",E69*(1-F$9)) -> 13.32145556 | G69: 12.90996564 | H69: 12.51118635 | I69: 12.12472505 | Q69: 14.08283302 | R69: 13.98218975 | S69: 13.88226574 | T69: 13.78305583 | U69: 13.68455493 | AB69: =IFERROR(VLOOKUP($B69,Volumes!$B$4:$H$33,MATCH(AB$11,Volumes!$B$4:$H$4,0),FALSE),0) -> 0 | AC69: =IFERROR(VLOOKUP($B69,Volumes!$B$4:$H$33,MATCH(AC$11,Volumes!$B$4:$H$4,0),FALSE),0) -> 0 | AD69: =IFERROR(VLOOKUP($B69,Volumes!$B$4:$H$33,MATCH(AD$11,Volumes!$B$4:$H$4,0),FALSE),0) -> 0 | AE69: =IFERROR(VLOOKUP($B69,Volumes!$B$4:$H$33,MATCH(AE$11,Volumes!$B$4:$H$4,0),FALSE),0) -> 0 | AF69: =IFERROR(VLOOKUP($B69,Volumes!$B$4:$H$33,MATCH(AF$11,Volumes!$B$4:$H$4,0),FALSE),0) -> 0 | AM69: 50.31058412 | AN69: 48.6233128 | AO69: 47.1213746 | AP69: 45.66583016 | AQ69: 44.37649367 | AX69: 51.54316885 | AY69: 51.0349926 | AZ69: 50.67026994 | BA69: 50.30815377 | BB69: 50.08547103 | BJ69: 0 | BK69: 0 | BL69: 0 | BM69: 0 | BN69: 0 | BV69: 0 | BW69: 0 | BX69: 0 | BY69: 0 | BZ69: 0
B70: =Inputs!$C127 -> New technology - Major | C70: Offered | D70: =IF($C70="NA","",'Unsmoothed Prices'!D68) ->  | E70: =IF($C70="NA","",'Unsmoothed Prices'!E68) -> 14.51553162 | F70: =IF($C70="NA","",E70*(1-F$9)) -> 14.06715758 | G70: 13.63263348 | H70: 13.2115315 | I70: 12.80343706 | Q70: =IF($C70="NA","",E70*Q$9) -> 14.87115506 | R70: 14.76487803 | S70: 14.65936051 | T70: 14.55459708 | U70: 14.45058234 | AB70: =IFERROR(VLOOKUP($B70,Volumes!$B$4:$H$33,MATCH(AB$11,Volumes!$B$4:$H$4,0),FALSE),0) -> 0 | AC70: =IFERROR(VLOOKUP($B70,Volumes!$B$4:$H$33,MATCH(AC$11,Volumes!$B$4:$H$4,0),FALSE),0) -> 0 | AD70: =IFERROR(VLOOKUP($B70,Volumes!$B$4:$H$33,MATCH(AD$11,Volumes!$B$4:$H$4,0),FALSE),0) -> 0 | AE70: =IFERROR(VLOOKUP($B70,Volumes!$B$4:$H$33,MATCH(AE$11,Volumes!$B$4:$H$4,0),FALSE),0) -> 0 | AF70: =IFERROR(VLOOKUP($B70,Volumes!$B$4:$H$33,MATCH(AF$11,Volumes!$B$4:$H$4,0),FALSE),0) -> 0 | AM70: =IF($C70="NA","",(E70*AM$9)/100) -> 53.12684574 | AN70: 51.34512516 | AO70: 49.75911219 | AP70: 48.22208998 | AQ70: 46.86057963 | AX70: =IF($C70="NA","",(Q70*AX$9)/100) -> 54.42842751 | AY70: 53.89180481 | AZ70: 53.50666588 | BA70: 53.12427935 | BB70: 52.88913138 | BJ70: 0 | BK70: 0 | BL70: 0 | BM70: 0 | BN70: 0 | BV70: =IFERROR(AX70*AB70,0) -> 0 | BW70: 0 | BX70: 0 | BY70: 0 | BZ70: 0
AB71: =SUM(AB12:AB70) -> 19572 | AC71: =SUM(AC12:AC70) -> 20433 | AD71: =SUM(AD12:AD70) -> 20433 | AE71: =SUM(AE12:AE70) -> 20435 | AF71: =SUM(AF12:AF70) -> 20450 | BJ71: =SUM(BJ12:BJ70) -> 1021604.081 | BK71: 1028386.46 | BL71: 995999.6919 | BM71: 964769.0287 | BN71: 937683.4342 | BV71: =SUM(BV12:BV70) -> 1046632.882 | BW71: 1079393.656 | BX71: 1071012.331 | BY71: 1062846.082 | BZ71: 1058315.171
AB72: =Volumes!D34=AB71 -> TRUE | AC72: =Volumes!E34=AC71 -> TRUE | AD72: =Volumes!F34=AD71 -> TRUE | AE72: =Volumes!G34=AE71 -> TRUE | AF72: =Volumes!H34=AF71 -> TRUE
B73: Public Road Lights
C74: Offered / No Longer Offered / NA | D74: ='Master Data'!J$34 -> 2018-19 | E74: ='Master Data'!K$34 -> 2019-20 | F74: ='Master Data'!L$34 -> 2020-21 | G74: ='Master Data'!M$34 -> 2021-22 | H74: ='Master Data'!N$34 -> 2022-23 | I74: ='Master Data'!O$34 -> 2023-24 | J74: ='Master Data'!P$34 -> 2024-25 | K74: ='Master Data'!Q$34 -> 2025-26 | L74: ='Master Data'!R$34 -> 2026-27 | M74: ='Master Data'!S$34 -> 2027-28 | N74: ='Master Data'!T$34 -> 2028-29 | Q74: =Q11 -> 2019-20 | R74: 2020-21 | S74: 2021-22 | T74: 2022-23 | U74: 2023-24 | V74: 2024-25 | W74: 2025-26 | X74: 2026-27 | Y74: 2027-28 | Z74: 2028-29 | AB74: =AB11 -> 2019-20 | AC74: =AC11 -> 2020-21 | AD74: =AD11 -> 2021-22 | AE74: =AE11 -> 2022-23 | AF74: =AF11 -> 2023-24 | AG74: =AG11 -> 2024-25 | AH74: 2025-26 | AI74: 2026-27 | AJ74: 2027-28 | AK74: 2028-29 | AM74: ='Master Data'!K$34 -> 2019-20 | AN74: ='Master Data'!L$34 -> 2020-21 | AO74: ='Master Data'!M$34 -> 2021-22 | AP74: ='Master Data'!N$34 -> 2022-23 | AQ74: ='Master Data'!O$34 -> 2023-24 | AR74: ='Master Data'!P$34 -> 2024-25 | AS74: ='Master Data'!Q$34 -> 2025-26 | AT74: ='Master Data'!R$34 -> 2026-27 | AU74: ='Master Data'!S$34 -> 2027-28 | AV74: ='Master Data'!T$34 -> 2028-29 | AX74: ='Master Data'!K$34 -> 2019-20 | AY74: ='Master Data'!L$34 -> 2020-21 | AZ74: ='Master Data'!M$34 -> 2021-22 | BA74: ='Master Data'!N$34 -> 2022-23 | BB74: ='Master Data'!O$34 -> 2023-24 | BC74: ='Master Data'!P$34 -> 2024-25 | BD74: ='Master Data'!Q$34 -> 2025-26 | BE74: ='Master Data'!R$34 -> 2026-27 | BF74: ='Master Data'!S$34 -> 2027-28 | BG74: ='Master Data'!T$34 -> 2028-29 | BJ74: ='Master Data'!K$34 -> 2019-20 | BK74: ='Master Data'!L$34 -> 2020-21 | BL74: ='Master Data'!M$34 -> 2021-22 | BM74: ='Master Data'!N$34 -> 2022-23 | BN74: ='Master Data'!O$34 -> 2023-24 | BO74: ='Master Data'!P$34 -> 2024-25 | BP74: ='Master Data'!Q$34 -> 2025-26 | BQ74: ='Master Data'!R$34 -> 2026-27 | BR74: ='Master Data'!S$34 -> 2027-28 | BS74: ='Master Data'!T$34 -> 2028-29 | BV74: ='Master Data'!K$34 -> 2019-20 | BW74: ='Master Data'!L$34 -> 2020-21 | BX74: ='Master Data'!M$34 -> 2021-22 | BY74: ='Master Data'!N$34 -> 2022-23 | BZ74: ='Master Data'!O$34 -> 2023-24 | CA74: ='Master Data'!P$34 -> 2024-25 | CB74: ='Master Data'!Q$34 -> 2025-26 | CC74: ='Master Data'!R$34 -> 2026-27 | CD74: ='Master Data'!S$34 -> 2027-28 | CE74: ='Master Data'!T$34 -> 2028-29
B75: =Inputs!$C69 -> 32W Compact Fluorescent | C75: No Longer Offered | D75: =IF($C75="NA","",'Unsmoothed Prices'!D73) -> 36.021 | E75: =IF($C75="NA","",'Unsmoothed Prices'!E73) -> 39.28057586 | F75: =IF($C75="NA","",E75*(1-F$9)) -> 38.0672279 | G75: 36.89135937 | H75: 35.75181254 | I75: 34.64746547 | Q75: =IF($C75="NA","",E75*Q$9) -> 40.24293078 | R75: 39.95533382 | S75: 39.66979218 | T75: 39.38629116 | U75: 39.10481619 | AB75: =IFERROR(VLOOKUP($B75,Volumes!$B$39:$H$81,MATCH(AB$11,Volumes!$B$4:$H$4,0),FALSE),0) -> 0 | AC75: =IFERROR(VLOOKUP($B75,Volumes!$B$39:$H$81,MATCH(AC$11,Volumes!$B$4:$H$4,0),FALSE),0) -> 0 | AD75: =IFERROR(VLOOKUP($B75,Volumes!$B$39:$H$81,MATCH(AD$11,Volumes!$B$4:$H$4,0),FALSE),0) -> 0 | AE75: =IFERROR(VLOOKUP($B75,Volumes!$B$39:$H$81,MATCH(AE$11,Volumes!$B$4:$H$4,0),FALSE),0) -> 0 | AF75: =IFERROR(VLOOKUP($B75,Volumes!$B$39:$H$81,MATCH(AF$11,Volumes!$B$4:$H$4,0),FALSE),0) -> 0 | AM75: =IF($C75="NA","",(E75*AM$9)/100) -> 143.7669077 | AN75: 138.9453818 | AO75: 134.6534617 | AP75: 130.4941158 | AQ75: 126.8097236 | AX75: =IF($C75="NA","",(Q75*AX$9)/100) -> 147.2891267 | AY75: 145.8369684 | AZ75: 144.7947414 | BA75: 143.7599627 | BB75: 143.1236273 | BJ75: =IFERROR(AM75*AB75,0) -> 0 | BK75: 0 | BL75: 0 | BM75: 0 | BN75: 0 | BV75: =IFERROR(AX75*AB75,0) -> 0 | BW75: 0 | BX75: 0 | BY75: 0 | BZ75: 0
B76: =Inputs!$C70 -> 42W Compact Fluorescent | C76: Offered | D76: =IF($C76="NA","",'Unsmoothed Prices'!D74) -> 36.047 | E76: =IF($C76="NA","",'Unsmoothed Prices'!E74) -> 39.30354513 | F76: =IF($C76="NA","",E76*(1-F$9)) -> 38.08948767 | G76: 36.91293154 | H76: 35.77271836 | I76: 34.66772553 | Q76: 40.26646278 | R76: 39.97869765 | S76: 39.69298903 | T76: 39.40932224 | U76: 39.12768268 | AB76: =IFERROR(VLOOKUP($B76,Volumes!$B$39:$H$81,MATCH(AB$11,Volumes!$B$4:$H$4,0),FALSE),0) -> 3513 | AC76: =IFERROR(VLOOKUP($B76,Volumes!$B$39:$H$81,MATCH(AC$11,Volumes!$B$4:$H$4,0),FALSE),0) -> 3470 | AD76: =IFERROR(VLOOKUP($B76,Volumes!$B$39:$H$81,MATCH(AD$11,Volumes!$B$4:$H$4,0),FALSE),0) -> 3270 | AE76: =IFERROR(VLOOKUP($B76,Volumes!$B$39:$H$81,MATCH(AE$11,Volumes!$B$4:$H$4,0),FALSE),0) -> 3110 | AF76: =IFERROR(VLOOKUP($B76,Volumes!$B$39:$H$81,MATCH(AF$11,Volumes!$B$4:$H$4,0),FALSE),0) -> 2890 | AM76: 143.8509752 | AN76: 139.02663 | AO76: 134.7322001 | AP76: 130.570422 | AQ76: 126.8838754 | AX76: 147.3752538 | AY76: 145.9222464 | AZ76: 144.87941 | BA76: 143.8440262 | BB76: 143.2073186 | BJ76: 505348.4758 | BK76: 482422.406 | BL76: 440574.2944 | BM76: 406074.0125 | BN76: 366694.4 | BV76: 517729.2666 | BW76: 506350.1951 | BX76: 473755.6706 | BY76: 447354.9214 | BZ76: 413869.1508
B77: =Inputs!$C71 -> 42W Compact Fluorescent - Bottom Pole Entry | C77: No Longer Offered | D77: =IF($C77="NA","",'Unsmoothed Prices'!D75) -> 36.047 | E77: =IF($C77="NA","",'Unsmoothed Prices'!E75) -> 39.30354513 | F77: 38.08948767 | G77: 36.91293154 | H77: 35.77271836 | I77: 34.66772553 | Q77: 40.26646278 | R77: 39.97869765 | S77: 39.69298903 | T77: 39.40932224 | U77: 39.12768268 | AB77: =IFERROR(VLOOKUP($B77,Volumes!$B$39:$H$81,MATCH(AB$11,Volumes!$B$4:$H$4,0),FALSE),0) -> 204 | AC77: =IFERROR(VLOOKUP($B77,Volumes!$B$39:$H$81,MATCH(AC$11,Volumes!$B$4:$H$4,0),FALSE),0) -> 204 | AD77: =IFERROR(VLOOKUP($B77,Volumes!$B$39:$H$81,MATCH(AD$11,Volumes!$B$4:$H$4,0),FALSE),0) -> 204 | AE77: =IFERROR(VLOOKUP($B77,Volumes!$B$39:$H$81,MATCH(AE$11,Volumes!$B$4:$H$4,0),FALSE),0) -> 204 | AF77: =IFERROR(VLOOKUP($B77,Volumes!$B$39:$H$81,MATCH(AF$11,Volumes!$B$4:$H$4,0),FALSE),0) -> 204 | AM77: 143.8509752 | AN77: 139.02663 | AO77: 134.7322001 | AP77: 130.570422 | AQ77: 126.8838754 | AX77: 147.3752538 | AY77: 145.9222464 | AZ77: 144.87941 | BA77: 143.8440262 | BB77: 143.2073186 | BJ77: 29345.59894 | BK77: 28361.43252 | BL77: 27485.36882 | BM77: 26636.36609 | BN77: 25884.31059 | BV77: 30064.55177 | BW77: 29768.13827 | BX77: 29555.39964 | BY77: 29344.18134 | BZ77: 29214.293
B78: =Inputs!$C72 -> 2x24W Compact Fluorescent | C78: Old light no volumes | D78: =IF($C78="NA","",'Unsmoothed Prices'!D76) -> 36.369 | E78: =IF($C78="NA","",'Unsmoothed Prices'!E76) -> 39.9038782 | F78: 38.67127689 | G78: 37.47674973 | H78: 36.31912062 | I78: 35.19724983 | Q78: 40.88150372 | R78: 40.58934318 | S78: 40.29927058 | T78: 40.01127098 | U78: 39.72532958 | AB78: =IFERROR(VLOOKUP($B78,Volumes!$B$39:$H$81,MATCH(AB$11,Volumes!$B$4:$H$4,0),FALSE),0) -> 0 | AC78: =IFERROR(VLOOKUP($B78,Volumes!$B$39:$H$81,MATCH(AC$11,Volumes!$B$4:$H$4,0),FALSE),0) -> 0 | AD78: =IFERROR(VLOOKUP($B78,Volumes!$B$39:$H$81,MATCH(AD$11,Volumes!$B$4:$H$4,0),FALSE),0) -> 0 | AE78: =IFERROR(VLOOKUP($B78,Volumes!$B$39:$H$81,MATCH(AE$11,Volumes!$B$4:$H$4,0),FALSE),0) -> 0 | AF78: =IFERROR(VLOOKUP($B78,Volumes!$B$39:$H$81,MATCH(AF$11,Volumes!$B$4:$H$4,0),FALSE),0) -> 0 | AM78: 146.0481942 | AN78: 141.1501607 | AO78: 136.7901365 | AP78: 132.5647903 | AQ78: 128.8219344 | AX78: 149.6263036 | AY78: 148.1511026 | AZ78: 147.0923376 | BA78: 146.0411391 | BB78: 145.3947063 | BJ78: 0 | BK78: 0 | BL78: 0 | BM78: 0 | BN78: 0 | BV78: 0 | BW78: 0 | BX78: 0 | BY78: 0 | BZ78: 0
B79: =Inputs!$C73 -> 1x20W Fluorescent | C79: Old light no volumes | D79: =IF($C79="NA","",'Unsmoothed Prices'!D77) -> 37.742 | E79: =IF($C79="NA","",'Unsmoothed Prices'!E77) -> 41.34050134 | F79: 40.0635238 | G79: 38.82599116 | H79: 37.62668499 | I79: 36.46442449 | Q79: 42.35332343 | R79: 42.0506445 | S79: 41.75012867 | T79: 41.45176049 | U79: 41.1555246 | AB79: =IFERROR(VLOOKUP($B79,Volumes!$B$39:$H$81,MATCH(AB$11,Volumes!$B$4:$H$4,0),FALSE),0) -> 0 | AC79: =IFERROR(VLOOKUP($B79,Volumes!$B$39:$H$81,MATCH(AC$11,Volumes!$B$4:$H$4,0),FALSE),0) -> 0 | AD79: =IFERROR(VLOOKUP($B79,Volumes!$B$39:$H$81,MATCH(AD$11,Volumes!$B$4:$H$4,0),FALSE),0) -> 0 | AE79: =IFERROR(VLOOKUP($B79,Volumes!$B$39:$H$81,MATCH(AE$11,Volumes!$B$4:$H$4,0),FALSE),0) -> 0 | AF79: =IFERROR(VLOOKUP($B79,Volumes!$B$39:$H$81,MATCH(AF$11,Volumes!$B$4:$H$4,0),FALSE),0) -> 0 | AM79: 151.3062349 | AN79: 146.2318619 | AO79: 141.7148677 | AP79: 137.3374002 | AQ79: 133.4597936 | AX79: 155.0131637 | AY79: 153.4848524 | AZ79: 152.3879696 | BA79: 151.2989258 | BB79: 150.62922 | BJ79: 0 | BK79: 0 | BL79: 0 | BM79: 0 | BN79: 0 | BV79: 0 | BW79: 0 | BX79: 0 | BY79: 0 | BZ79: 0
B80: =Inputs!$C74 -> 1x40W Fluorescent | C80: Old light no volumes | D80: =IF($C80="NA","",'Unsmoothed Prices'!D78) -> 36.579 | E80: =IF($C80="NA","",'Unsmoothed Prices'!E78) -> 40.26407804 | F80: 39.02035043 | G80: 37.81504064 | H80: 36.64696198 | I80: 35.51496441 | Q80: 41.25052828 | R80: 40.9557305 | S80: 40.6630395 | T80: 40.37244023 | U80: 40.08391772 | AB80: =IFERROR(VLOOKUP($B80,Volumes!$B$39:$H$81,MATCH(AB$11,Volumes!$B$4:$H$4,0),FALSE),0) -> 0 | AC80: =IFERROR(VLOOKUP($B80,Volumes!$B$39:$H$81,MATCH(AC$11,Volumes!$B$4:$H$4,0),FALSE),0) -> 0 | AD80: =IFERROR(VLOOKUP($B80,Volumes!$B$39:$H$81,MATCH(AD$11,Volumes!$B$4:$H$4,0),FALSE),0) -> 0 | AE80: =IFERROR(VLOOKUP($B80,Volumes!$B$39:$H$81,MATCH(AE$11,Volumes!$B$4:$H$4,0),FALSE),0) -> 0 | AF80: =IFERROR(VLOOKUP($B80,Volumes!$B$39:$H$81,MATCH(AF$11,Volumes!$B$4:$H$4,0),FALSE),0) -> 0 | AM80: 147.3665256 | AN80: 142.4242791 | AO80: 138.0248983 | AP80: 133.7614112 | AQ80: 129.9847697 | AX80: 150.9769335 | AY80: 149.4884163 | AZ80: 148.4200942 | BA80: 147.3594068 | BB80: 146.7071389 | BJ80: 0 | BK80: 0 | BL80: 0 | BM80: 0 | BN80: 0 | BV80: 0 | BW80: 0 | BX80: 0 | BY80: 0 | BZ80: 0
B81: =Inputs!$C75 -> 2x20W Fluorescent | C81: Old light no volumes | D81: =IF($C81="NA","",'Unsmoothed Prices'!D79) -> 38.031 | E81: =IF($C81="NA","",'Unsmoothed Prices'!E79) -> 41.62761716 | F81: 40.34177083 | G81: 39.09564334 | H81: 37.88800781 | I81: 36.71767525 | Q81: 42.64747344 | R81: 42.34269236 | S81: 42.04008941 | T81: 41.73964901 | U81: 41.44135572 | AB81: =IFERROR(VLOOKUP($B81,Volumes!$B$39:$H$81,MATCH(AB$11,Volumes!$B$4:$H$4,0),FALSE),0) -> 0 | AC81: =IFERROR(VLOOKUP($B81,Volumes!$B$39:$H$81,MATCH(AC$11,Volumes!$B$4:$H$4,0),FALSE),0) -> 0 | AD81: =IFERROR(VLOOKUP($B81,Volumes!$B$39:$H$81,MATCH(AD$11,Volumes!$B$4:$H$4,0),FALSE),0) -> 0 | AE81: =IFERROR(VLOOKUP($B81,Volumes!$B$39:$H$81,MATCH(AE$11,Volumes!$B$4:$H$4,0),FALSE),0) -> 0 | AF81: =IFERROR(VLOOKUP($B81,Volumes!$B$39:$H$81,MATCH(AF$11,Volumes!$B$4:$H$4,0),FALSE),0) -> 0 | AM81: 152.3570788 | AN81: 147.2474635 | AO81: 142.6990982 | AP81: 138.2912285 | AQ81: 134.3866914 | AX81: 156.0897528 | AY81: 154.5508271 | AZ81: 153.4463263 | BA81: 152.3497189 | BB81: 151.6753619 | BJ81: 0 | BK81: 0 | BL81: 0 | BM81: 0 | BN81: 0 | BV81: 0 | BW81: 0 | BX81: 0 | BY81: 0 | BZ81: 0
B82: =Inputs!$C76 -> 2x24W Fluorescent | C82: Old light no volumes | D82: =IF($C82="NA","",'Unsmoothed Prices'!D80) -> 37.982 | E82: =IF($C82="NA","",'Unsmoothed Prices'!E80) -> 41.56288559 | F82: 40.27903877 | G82: 39.03484903 | H82: 37.82909139 | I82: 36.66057871 | Q82: 42.58115598 | R82: 42.27684884 | S82: 41.97471644 | T82: 41.67474324 | U82: 41.3769138 | AB82: =IFERROR(VLOOKUP($B82,Volumes!$B$39:$H$81,MATCH(AB$11,Volumes!$B$4:$H$4,0),FALSE),0) -> 0 | AC82: =IFERROR(VLOOKUP($B82,Volumes!$B$39:$H$81,MATCH(AC$11,Volumes!$B$4:$H$4,0),FALSE),0) -> 0 | AD82: =IFERROR(VLOOKUP($B82,Volumes!$B$39:$H$81,MATCH(AD$11,Volumes!$B$4:$H$4,0),FALSE),0) -> 0 | AE82: =IFERROR(VLOOKUP($B82,Volumes!$B$39:$H$81,MATCH(AE$11,Volumes!$B$4:$H$4,0),FALSE),0) -> 0 | AF82: =IFERROR(VLOOKUP($B82,Volumes!$B$39:$H$81,MATCH(AF$11,Volumes!$B$4:$H$4,0),FALSE),0) -> 0 | AM82: 152.1201613 | AN82: 147.0184915 | AO82: 142.477199 | AP82: 138.0761836 | AQ82: 134.1777181 | AX82: 155.8470309 | AY82: 154.3104983 | AZ82: 153.207715 | BA82: 152.1128128 | BB82: 151.4395045 | BJ82: 0 | BK82: 0 | BL82: 0 | BM82: 0 | BN82: 0 | BV82: 0 | BW82: 0 | BX82: 0 | BY82: 0 | BZ82: 0
B83: =Inputs!$C77 -> T5 Fluorescent 2 x 24W | C83: Obsolete, no new Connections | D83: =IF($C83="NA","",'Unsmoothed Prices'!D81) -> 38.032 | E83: =IF($C83="NA","",'Unsmoothed Prices'!E81) -> 41.62761716 | F83: 40.34177083 | G83: 39.09564334 | H83: 37.88800781 | I83: 36.71767525 | Q83: 42.64747344 | R83: 42.34269236 | S83: 42.04008941 | T83: 41.73964901 | U83: 41.44135572 | AB83: =IFERROR(VLOOKUP($B83,Volumes!$B$39:$H$81,MATCH(AB$11,Volumes!$B$4:$H$4,0),FALSE),0) -> 83 | AC83: =IFERROR(VLOOKUP($B83,Volumes!$B$39:$H$81,MATCH(AC$11,Volumes!$B$4:$H$4,0),FALSE),0) -> 83 | AD83: =IFERROR(VLOOKUP($B83,Volumes!$B$39:$H$81,MATCH(AD$11,Volumes!$B$4:$H$4,0),FALSE),0) -> 83 | AE83: =IFERROR(VLOOKUP($B83,Volumes!$B$39:$H$81,MATCH(AE$11,Volumes!$B$4:$H$4,0),FALSE),0) -> 83 | AF83: =IFERROR(VLOOKUP($B83,Volumes!$B$39:$H$81,MATCH(AF$11,Volumes!$B$4:$H$4,0),FALSE),0) -> 83 | AM83: 152.3570788 | AN83: 147.2474635 | AO83: 142.6990982 | AP83: 138.2912285 | AQ83: 134.3866914 | AX83: 156.0897528 | AY83: 154.5508271 | AZ83: 153.4463263 | BA83: 152.3497189 | BB83: 151.6753619 | BJ83: 12645.63754 | BK83: 12221.53947 | BL83: 11844.02515 | BM83: 11478.17197 | BN83: 11154.09539 | BV83: 12955.44948 | BW83: 12827.71865 | BX83: 12736.04509 | BY83: 12645.02667 | BZ83: 12589.05504
B84: =Inputs!$C78 -> 20 Fluorescent 1X20FL | C84: Old light no volumes | D84: =IF($C84="NA","",'Unsmoothed Prices'!D82) -> 37.742 | E84: =IF($C84="NA","",'Unsmoothed Prices'!E82) -> 41.34050134 | F84: 40.0635238 | G84: 38.82599116 | H84: 37.62668499 | I84: 36.46442449 | Q84: 42.35332343 | R84: 42.0506445 | S84: 41.75012867 | T84: 41.45176049 | U84: 41.1555246 | AB84: =IFERROR(VLOOKUP($B84,Volumes!$B$39:$H$81,MATCH(AB$11,Volumes!$B$4:$H$4,0),FALSE),0) -> 0 | AC84: =IFERROR(VLOOKUP($B84,Volumes!$B$39:$H$81,MATCH(AC$11,Volumes!$B$4:$H$4,0),FALSE),0) -> 0 | AD84: =IFERROR(VLOOKUP($B84,Volumes!$B$39:$H$81,MATCH(AD$11,Volumes!$B$4:$H$4,0),FALSE),0) -> 0 | AE84: =IFERROR(VLOOKUP($B84,Volumes!$B$39:$H$81,MATCH(AE$11,Volumes!$B$4:$H$4,0),FALSE),0) -> 0 | AF84: =IFERROR(VLOOKUP($B84,Volumes!$B$39:$H$81,MATCH(AF$11,Volumes!$B$4:$H$4,0),FALSE),0) -> 0 | AM84: 151.3062349 | AN84: 146.2318619 | AO84: 141.7148677 | AP84: 137.3374002 | AQ84: 133.4597936 | AX84: 155.0131637 | AY84: 153.4848524 | AZ84: 152.3879696 | BA84: 151.2989258 | BB84: 150.62922 | BJ84: 0 | BK84: 0 | BL84: 0 | BM84: 0 | BN84: 0 | BV84: 0 | BW84: 0 | BX84: 0 | BY84: 0 | BZ84: 0
B85: =Inputs!$C79 -> 2x40W Fluorescent | C85: Old light no volumes | D85: =IF($C85="NA","",'Unsmoothed Prices'!D83) -> 36.888 | E85: =IF($C85="NA","",'Unsmoothed Prices'!E83) -> 40.57103095 | F85: 39.31782179 | G85: 38.10332333 | H85: 36.92633983 | I85: 35.78571248 | Q85: 41.56500139 | R85: 41.26795622 | S85: 40.97303389 | T85: 40.68021923 | U85: 40.38949718 | AB85: =IFERROR(VLOOKUP($B85,Volumes!$B$39:$H$81,MATCH(AB$11,Volumes!$B$4:$H$4,0),FALSE),0) -> 0 | AC85: =IFERROR(VLOOKUP($B85,Volumes!$B$39:$H$81,MATCH(AC$11,Volumes!$B$4:$H$4,0),FALSE),0) -> 0 | AD85: =IFERROR(VLOOKUP($B85,Volumes!$B$39:$H$81,MATCH(AD$11,Volumes!$B$4:$H$4,0),FALSE),0) -> 0 | AE85: =IFERROR(VLOOKUP($B85,Volumes!$B$39:$H$81,MATCH(AE$11,Volumes!$B$4:$H$4,0),FALSE),0) -> 0 | AF85: =IFERROR(VLOOKUP($B85,Volumes!$B$39:$H$81,MATCH(AF$11,Volumes!$B$4:$H$4,0),FALSE),0) -> 0 | AM85: 148.4899733 | AN85: 143.5100495 | AO85: 139.0771302 | AP85: 134.7811404 | AQ85: 130.9757077 | AX85: 152.1279051 | AY85: 150.6280402 | AZ85: 149.5515737 | BA85: 148.4828002 | BB85: 147.8255597 | BJ85: 0 | BK85: 0 | BL85: 0 | BM85: 0 | BN85: 0 | BV85: 0 | BW85: 0 | BX85: 0 | BY85: 0 | BZ85: 0
B86: =Inputs!$C80 -> 3x40W Fluorescent | C86: Old light no volumes | D86: =IF($C86="NA","",'Unsmoothed Prices'!D84) -> 46.387 | E86: =IF($C86="NA","",'Unsmoothed Prices'!E84) -> 47.34069987 | F86: 45.87838064 | G86: 44.46123137 | H86: 43.08785679 | I86: 41.75690473 | Q86: 48.50052389 | R86: 48.15391387 | S86: 47.8097809 | T86: 47.46810728 | U86: 47.12887544 | AB86: =IFERROR(VLOOKUP($B86,Volumes!$B$39:$H$81,MATCH(AB$11,Volumes!$B$4:$H$4,0),FALSE),0) -> 0 | AC86: =IFERROR(VLOOKUP($B86,Volumes!$B$39:$H$81,MATCH(AC$11,Volumes!$B$4:$H$4,0),FALSE),0) -> 0 | AD86: =IFERROR(VLOOKUP($B86,Volumes!$B$39:$H$81,MATCH(AD$11,Volumes!$B$4:$H$4,0),FALSE),0) -> 0 | AE86: =IFERROR(VLOOKUP($B86,Volumes!$B$39:$H$81,MATCH(AE$11,Volumes!$B$4:$H$4,0),FALSE),0) -> 0 | AF86: =IFERROR(VLOOKUP($B86,Volumes!$B$39:$H$81,MATCH(AF$11,Volumes!$B$4:$H$4,0),FALSE),0) -> 0 | AM86: 173.2669615 | AN86: 167.4560893 | AO86: 162.2834945 | AP86: 157.2706773 | AQ86: 152.8302713 | AX86: 177.5119175 | AY86: 175.7617856 | AZ86: 174.5057003 | BA86: 173.2585916 | BB86: 172.4916841 | BJ86: 0 | BK86: 0 | BL86: 0 | BM86: 0 | BN86: 0 | BV86: 0 | BW86: 0 | BX86: 0 | BY86: 0 | BZ86: 0
B87: =Inputs!$C81 -> 4x20 Fluorescent | C87: Old light no volumes | D87: =IF($C87="NA","",'Unsmoothed Prices'!D85) -> 38.612 | E87: =IF($C87="NA","",'Unsmoothed Prices'!E85) -> 42.2039369 | F87: 40.90028848 | G87: 39.6369088 | H87: 38.41255398 | I87: 37.22601857 | Q87: 43.23791274 | R87: 42.92891208 | S87: 42.62211969 | T87: 42.3175198 | U87: 42.01509675 | AB87: =IFERROR(VLOOKUP($B87,Volumes!$B$39:$H$81,MATCH(AB$11,Volumes!$B$4:$H$4,0),FALSE),0) -> 0 | AC87: =IFERROR(VLOOKUP($B87,Volumes!$B$39:$H$81,MATCH(AC$11,Volumes!$B$4:$H$4,0),FALSE),0) -> 0 | AD87: =IFERROR(VLOOKUP($B87,Volumes!$B$39:$H$81,MATCH(AD$11,Volumes!$B$4:$H$4,0),FALSE),0) -> 0 | AE87: =IFERROR(VLOOKUP($B87,Volumes!$B$39:$H$81,MATCH(AE$11,Volumes!$B$4:$H$4,0),FALSE),0) -> 0 | AF87: =IFERROR(VLOOKUP($B87,Volumes!$B$39:$H$81,MATCH(AF$11,Volumes!$B$4:$H$4,0),FALSE),0) -> 0 | AM87: 154.4664091 | AN87: 149.286053 | AO87: 144.6747171 | AP87: 140.205822 | AQ87: 136.247228 | AX87: 158.2507606 | AY87: 156.6905291 | AZ87: 155.5707369 | BA87: 154.4589473 | BB87: 153.7752541 | BJ87: 0 | BK87: 0 | BL87: 0 | BM87: 0 | BN87: 0 | BV87: 0 | BW87: 0 | BX87: 0 | BY87: 0 | BZ87: 0
B88: =Inputs!$C82 -> 4x40W Fluorescent | C88: Old light no volumes | D88: =IF($C88="NA","",'Unsmoothed Prices'!D86) -> 47.878 | E88: =IF($C88="NA","",'Unsmoothed Prices'!E86) -> 48.74182506 | F88: 47.2362261 | G88: 45.77713399 | H88: 44.36311215 | I88: 42.9927684 | Q88: 49.93597596 | R88: 49.57910744 | S88: 49.2247893 | T88: 48.87300329 | U88: 48.52373133 | AB88: =IFERROR(VLOOKUP($B88,Volumes!$B$39:$H$81,MATCH(AB$11,Volumes!$B$4:$H$4,0),FALSE),0) -> 0 | AC88: =IFERROR(VLOOKUP($B88,Volumes!$B$39:$H$81,MATCH(AC$11,Volumes!$B$4:$H$4,0),FALSE),0) -> 0 | AD88: =IFERROR(VLOOKUP($B88,Volumes!$B$39:$H$81,MATCH(AD$11,Volumes!$B$4:$H$4,0),FALSE),0) -> 0 | AE88: =IFERROR(VLOOKUP($B88,Volumes!$B$39:$H$81,MATCH(AE$11,Volumes!$B$4:$H$4,0),FALSE),0) -> 0 | AF88: =IFERROR(VLOOKUP($B88,Volumes!$B$39:$H$81,MATCH(AF$11,Volumes!$B$4:$H$4,0),FALSE),0) -> 0 | AM88: 178.3950797 | AN88: 172.4122253 | AO88: 167.0865391 | AP88: 161.9253593 | AQ88: 157.3535323 | AX88: 182.765672 | AY88: 180.9637422 | AZ88: 179.6704809 | BA88: 178.386462 | BB88: 177.5968567 | BJ88: 0 | BK88: 0 | BL88: 0 | BM88: 0 | BN88: 0 | BV88: 0 | BW88: 0 | BX88: 0 | BY88: 0 | BZ88: 0
B89: =Inputs!$C83 -> 100W Sodium Vapour | C89: Offered | D89: =IF($C89="NA","",'Unsmoothed Prices'!D87) -> 45.521 | E89: =IF($C89="NA","",'Unsmoothed Prices'!E87) -> 46.42819361 | F89: 44.99406102 | G89: 43.60422772 | H89: 42.25732535 | I89: 40.9520278 | Q89: 47.56566167 | R89: 47.22573265 | S89: 46.88823295 | T89: 46.55314519 | U89: 46.22045215 | AB89: =IFERROR(VLOOKUP($B89,Volumes!$B$39:$H$81,MATCH(AB$11,Volumes!$B$4:$H$4,0),FALSE),0) -> 444 | AC89: =IFERROR(VLOOKUP($B89,Volumes!$B$39:$H$81,MATCH(AC$11,Volumes!$B$4:$H$4,0),FALSE),0) -> 466 | AD89: =IFERROR(VLOOKUP($B89,Volumes!$B$39:$H$81,MATCH(AD$11,Volumes!$B$4:$H$4,0),FALSE),0) -> 490 | AE89: =IFERROR(VLOOKUP($B89,Volumes!$B$39:$H$81,MATCH(AE$11,Volumes!$B$4:$H$4,0),FALSE),0) -> 514 | AF89: =IFERROR(VLOOKUP($B89,Volumes!$B$39:$H$81,MATCH(AF$11,Volumes!$B$4:$H$4,0),FALSE),0) -> 540 | AM89: 169.9271886 | AN89: 164.2283227 | AO89: 159.1554312 | AP89: 154.2392375 | AQ89: 149.8844218 | AX89: 174.0903217 | AY89: 172.3739242 | AZ89: 171.1420503 | BA89: 169.91898 | BB89: 169.1668549 | BJ89: 75447.67174 | BK89: 76530.39838 | BL89: 77986.16128 | BM89: 79278.9681 | BN89: 80937.58775 | BV89: 77296.10284 | BW89: 80326.24867 | BX89: 83859.60463 | BY89: 87338.3557 | BZ89: 91350.10163
B90: =Inputs!$C84 -> 0 | C90: NA | D90: =IF($C90="NA","",'Unsmoothed Prices'!D88) ->  | E90: =IF($C90="NA","",'Unsmoothed Prices'!E88) ->  | AB90: =IFERROR(VLOOKUP($B90,Volumes!$B$39:$H$81,MATCH(AB$11,Volumes!$B$4:$H$4,0),FALSE),0) -> 0 | AC90: =IFERROR(VLOOKUP($B90,Volumes!$B$39:$H$81,MATCH(AC$11,Volumes!$B$4:$H$4,0),FALSE),0) -> 0 | AD90: =IFERROR(VLOOKUP($B90,Volumes!$B$39:$H$81,MATCH(AD$11,Volumes!$B$4:$H$4,0),FALSE),0) -> 0 | AE90: =IFERROR(VLOOKUP($B90,Volumes!$B$39:$H$81,MATCH(AE$11,Volumes!$B$4:$H$4,0),FALSE),0) -> 0 | AF90: =IFERROR(VLOOKUP($B90,Volumes!$B$39:$H$81,MATCH(AF$11,Volumes!$B$4:$H$4,0),FALSE),0) -> 0 | BJ90: 0 | BK90: 0 | BL90: 0 | BM90: 0 | BN90: 0 | BV90: 0 | BW90: 0 | BX90: 0 | BY90: 0 | BZ90: 0
B91: =Inputs!$C85 -> 150W Sodium Vapour | C91: Offered | D91: =IF($C91="NA","",'Unsmoothed Prices'!D89) -> 47.881 | E91: =IF($C91="NA","",'Unsmoothed Prices'!E89) -> 48.81073285 | F91: 47.30300539 | G91: 45.84185051 | H91: 44.42582962 | I91: 43.05354858 | Q91: 50.00657196 | R91: 49.64919893 | S91: 49.29437987 | T91: 48.94209654 | U91: 48.5923308 | AB91: =IFERROR(VLOOKUP($B91,Volumes!$B$39:$H$81,MATCH(AB$11,Volumes!$B$4:$H$4,0),FALSE),0) -> 5322 | AC91: =IFERROR(VLOOKUP($B91,Volumes!$B$39:$H$81,MATCH(AC$11,Volumes!$B$4:$H$4,0),FALSE),0) -> 5588 | AD91: =IFERROR(VLOOKUP($B91,Volumes!$B$39:$H$81,MATCH(AD$11,Volumes!$B$4:$H$4,0),FALSE),0) -> 5762 | AE91: =IFERROR(VLOOKUP($B91,Volumes!$B$39:$H$81,MATCH(AE$11,Volumes!$B$4:$H$4,0),FALSE),0) -> 6008 | AF91: =IFERROR(VLOOKUP($B91,Volumes!$B$39:$H$81,MATCH(AF$11,Volumes!$B$4:$H$4,0),FALSE),0) -> 6328 | AM91: 178.6472822 | AN91: 172.6559697 | AO91: 167.3227544 | AP91: 162.1542781 | AQ91: 157.5759878 | AX91: 183.0240534 | AY91: 181.2195761 | AZ91: 179.9244865 | BA91: 178.6386524 | BB91: 177.8479307 | BJ91: 950760.8361 | BK91: 964801.5585 | BL91: 964113.7106 | BM91: 974222.903 | BN91: 997140.8508 | BV91: 974054.0121 | BW91: 1012654.991 | BX91: 1036724.891 | BY91: 1073261.023 | BZ91: 1125421.706
B92: =Inputs!$C86 -> 0 | C92: NA | D92: =IF($C92="NA","",'Unsmoothed Prices'!D90) ->  | E92: =IF($C92="NA","",'Unsmoothed Prices'!E90) ->  | AB92: =IFERROR(VLOOKUP($B92,Volumes!$B$39:$H$81,MATCH(AB$11,Volumes!$B$4:$H$4,0),FALSE),0) -> 0 | AC92: =IFERROR(VLOOKUP($B92,Volumes!$B$39:$H$81,MATCH(AC$11,Volumes!$B$4:$H$4,0),FALSE),0) -> 0 | AD92: =IFERROR(VLOOKUP($B92,Volumes!$B$39:$H$81,MATCH(AD$11,Volumes!$B$4:$H$4,0),FALSE),0) -> 0 | AE92: =IFERROR(VLOOKUP($B92,Volumes!$B$39:$H$81,MATCH(AE$11,Volumes!$B$4:$H$4,0),FALSE),0) -> 0 | AF92: =IFERROR(VLOOKUP($B92,Volumes!$B$39:$H$81,MATCH(AF$11,Volumes!$B$4:$H$4,0),FALSE),0) -> 0 | BJ92: 0 | BK92: 0 | BL92: 0 | BM92: 0 | BN92: 0 | BV92: 0 | BW92: 0 | BX92: 0 | BY92: 0 | BZ92: 0
B93: =Inputs!$C87 -> 0 | C93: NA | D93: =IF($C93="NA","",'Unsmoothed Prices'!D91) ->  | E93: =IF($C93="NA","",'Unsmoothed Prices'!E91) ->  | AB93: =IFERROR(VLOOKUP($B93,Volumes!$B$39:$H$81,MATCH(AB$11,Volumes!$B$4:$H$4,0),FALSE),0) -> 0 | AC93: =IFERROR(VLOOKUP($B93,Volumes!$B$39:$H$81,MATCH(AC$11,Volumes!$B$4:$H$4,0),FALSE),0) -> 0 | AD93: =IFERROR(VLOOKUP($B93,Volumes!$B$39:$H$81,MATCH(AD$11,Volumes!$B$4:$H$4,0),FALSE),0) -> 0 | AE93: =IFERROR(VLOOKUP($B93,Volumes!$B$39:$H$81,MATCH(AE$11,Volumes!$B$4:$H$4,0),FALSE),0) -> 0 | AF93: =IFERROR(VLOOKUP($B93,Volumes!$B$39:$H$81,MATCH(AF$11,Volumes!$B$4:$H$4,0),FALSE),0) -> 0 | BJ93: 0 | BK93: 0 | BL93: 0 | BM93: 0 | BN93: 0 | BV93: 0 | BW93: 0 | BX93: 0 | BY93: 0 | BZ93: 0
B94: =Inputs!$C88 -> 0 | C94: NA | D94: =IF($C94="NA","",'Unsmoothed Prices'!D92) ->  | E94: =IF($C94="NA","",'Unsmoothed Prices'!E92) ->  | AB94: =IFERROR(VLOOKUP($B94,Volumes!$B$39:$H$81,MATCH(AB$11,Volumes!$B$4:$H$4,0),FALSE),0) -> 0 | AC94: =IFERROR(VLOOKUP($B94,Volumes!$B$39:$H$81,MATCH(AC$11,Volumes!$B$4:$H$4,0),FALSE),0) -> 0 | AD94: =IFERROR(VLOOKUP($B94,Volumes!$B$39:$H$81,MATCH(AD$11,Volumes!$B$4:$H$4,0),FALSE),0) -> 0 | AE94: =IFERROR(VLOOKUP($B94,Volumes!$B$39:$H$81,MATCH(AE$11,Volumes!$B$4:$H$4,0),FALSE),0) -> 0 | AF94: =IFERROR(VLOOKUP($B94,Volumes!$B$39:$H$81,MATCH(AF$11,Volumes!$B$4:$H$4,0),FALSE),0) -> 0 | BJ94: 0 | BK94: 0 | BL94: 0 | BM94: 0 | BN94: 0 | BV94: 0 | BW94: 0 | BX94: 0 | BY94: 0 | BZ94: 0
B95: =Inputs!$C89 -> 250W Sodium Vapour | C95: Offered | D95: =IF($C95="NA","",'Unsmoothed Prices'!D93) -> 49.024 | E95: =IF($C95="NA","",'Unsmoothed Prices'!E93) -> 50.01975146 | F95: 48.4746783 | G95: 46.97733131 | H95: 45.52623626 | I95: 44.11996447 | Q95: 51.24521093 | R95: 50.87898594 | S95: 50.51537818 | T95: 50.15436896 | U95: 49.79593969 | AB95: =IFERROR(VLOOKUP($B95,Volumes!$B$39:$H$81,MATCH(AB$11,Volumes!$B$4:$H$4,0),FALSE),0) -> 6615 | AC95: =IFERROR(VLOOKUP($B95,Volumes!$B$39:$H$81,MATCH(AC$11,Volumes!$B$4:$H$4,0),FALSE),0) -> 6946 | AD95: =IFERROR(VLOOKUP($B95,Volumes!$B$39:$H$81,MATCH(AD$11,Volumes!$B$4:$H$4,0),FALSE),0) -> 7293 | AE95: =IFERROR(VLOOKUP($B95,Volumes!$B$39:$H$81,MATCH(AE$11,Volumes!$B$4:$H$4,0),FALSE),0) -> 7654 | AF95: =IFERROR(VLOOKUP($B95,Volumes!$B$39:$H$81,MATCH(AF$11,Volumes!$B$4:$H$4,0),FALSE),0) -> 8040 | AM95: 183.0722903 | AN95: 176.9325758 | AO95: 171.4672593 | AP95: 166.1707624 | AQ95: 161.47907 | AX95: 187.557472 | AY95: 185.7082987 | AZ95: 184.3811304 | BA95: 183.0634467 | BB95: 182.2531393 | BJ95: 1211023.201 | BK95: 1228973.671 | BL95: 1250510.722 | BM95: 1271871.015 | BN95: 1298291.722 | BV95: 1240692.677 | BW95: 1289929.843 | BX95: 1344691.584 | BY95: 1401167.621 | BZ95: 1465315.24
B96: =Inputs!$C90 -> 0 | C96: NA | D96: =IF($C96="NA","",'Unsmoothed Prices'!D94) ->  | E96: =IF($C96="NA","",'Unsmoothed Prices'!E94) ->  | AB96: =IFERROR(VLOOKUP($B96,Volumes!$B$39:$H$81,MATCH(AB$11,Volumes!$B$4:$H$4,0),FALSE),0) -> 0 | AC96: =IFERROR(VLOOKUP($B96,Volumes!$B$39:$H$81,MATCH(AC$11,Volumes!$B$4:$H$4,0),FALSE),0) -> 0 | AD96: =IFERROR(VLOOKUP($B96,Volumes!$B$39:$H$81,MATCH(AD$11,Volumes!$B$4:$H$4,0),FALSE),0) -> 0 | AE96: =IFERROR(VLOOKUP($B96,Volumes!$B$39:$H$81,MATCH(AE$11,Volumes!$B$4:$H$4,0),FALSE),0) -> 0 | AF96: =IFERROR(VLOOKUP($B96,Volumes!$B$39:$H$81,MATCH(AF$11,Volumes!$B$4:$H$4,0),FALSE),0) -> 0 | BJ96: 0 | BK96: 0 | BL96: 0 | BM96: 0 | BN96: 0 | BV96: 0 | BW96: 0 | BX96: 0 | BY96: 0 | BZ96: 0
B97: =Inputs!$C91 -> 0 | C97: NA | D97: =IF($C97="NA","",'Unsmoothed Prices'!D95) ->  | E97: =IF($C97="NA","",'Unsmoothed Prices'!E95) ->  | AB97: =IFERROR(VLOOKUP($B97,Volumes!$B$39:$H$81,MATCH(AB$11,Volumes!$B$4:$H$4,0),FALSE),0) -> 0 | AC97: =IFERROR(VLOOKUP($B97,Volumes!$B$39:$H$81,MATCH(AC$11,Volumes!$B$4:$H$4,0),FALSE),0) -> 0 | AD97: =IFERROR(VLOOKUP($B97,Volumes!$B$39:$H$81,MATCH(AD$11,Volumes!$B$4:$H$4,0),FALSE),0) -> 0 | AE97: =IFERROR(VLOOKUP($B97,Volumes!$B$39:$H$81,MATCH(AE$11,Volumes!$B$4:$H$4,0),FALSE),0) -> 0 | AF97: =IFERROR(VLOOKUP($B97,Volumes!$B$39:$H$81,MATCH(AF$11,Volumes!$B$4:$H$4,0),FALSE),0) -> 0 | BJ97: 0 | BK97: 0 | BL97: 0 | BM97: 0 | BN97: 0 | BV97: 0 | BW97: 0 | BX97: 0 | BY97: 0 | BZ97: 0
B98: =Inputs!$C92 -> 0 | C98: NA | D98: =IF($C98="NA","",'Unsmoothed Prices'!D96) ->  | E98: =IF($C98="NA","",'Unsmoothed Prices'!E96) ->  | AB98: =IFERROR(VLOOKUP($B98,Volumes!$B$39:$H$81,MATCH(AB$11,Volumes!$B$4:$H$4,0),FALSE),0) -> 0 | AC98: =IFERROR(VLOOKUP($B98,Volumes!$B$39:$H$81,MATCH(AC$11,Volumes!$B$4:$H$4,0),FALSE),0) -> 0 | AD98: =IFERROR(VLOOKUP($B98,Volumes!$B$39:$H$81,MATCH(AD$11,Volumes!$B$4:$H$4,0),FALSE),0) -> 0 | AE98: =IFERROR(VLOOKUP($B98,Volumes!$B$39:$H$81,MATCH(AE$11,Volumes!$B$4:$H$4,0),FALSE),0) -> 0 | AF98: =IFERROR(VLOOKUP($B98,Volumes!$B$39:$H$81,MATCH(AF$11,Volumes!$B$4:$H$4,0),FALSE),0) -> 0 | BJ98: 0 | BK98: 0 | BL98: 0 | BM98: 0 | BN98: 0 | BV98: 0 | BW98: 0 | BX98: 0 | BY98: 0 | BZ98: 0
B99: =Inputs!$C93 -> 250W Sodium Vapour - Flood Light | C99: Offered | D99: =IF($C99="NA","",'Unsmoothed Prices'!D97) -> 53.133 | E99: =IF($C99="NA","",'Unsmoothed Prices'!E97) -> 53.74703678 | F99: 52.08683054 | G99: 50.47790683 | H99: 48.9186816 | I99: 47.40761967 | Q99: 55.06381293 | R99: 54.67029821 | S99: 54.27959576 | T99: 53.89168548 | U99: 53.5065474 | AB99: =IFERROR(VLOOKUP($B99,Volumes!$B$39:$H$81,MATCH(AB$11,Volumes!$B$4:$H$4,0),FALSE),0) -> 36 | AC99: =IFERROR(VLOOKUP($B99,Volumes!$B$39:$H$81,MATCH(AC$11,Volumes!$B$4:$H$4,0),FALSE),0) -> 38 | AD99: =IFERROR(VLOOKUP($B99,Volumes!$B$39:$H$81,MATCH(AD$11,Volumes!$B$4:$H$4,0),FALSE),0) -> 40 | AE99: =IFERROR(VLOOKUP($B99,Volumes!$B$39:$H$81,MATCH(AE$11,Volumes!$B$4:$H$4,0),FALSE),0) -> 42 | AF99: =IFERROR(VLOOKUP($B99,Volumes!$B$39:$H$81,MATCH(AF$11,Volumes!$B$4:$H$4,0),FALSE),0) -> 44 | AM99: 196.7141546 | AN99: 190.1169315 | AO99: 184.2443599 | AP99: 178.5531878 | AQ99: 173.511888 | AX99: 201.5335553 | AY99: 199.5465885 | AZ99: 198.1205245 | BA99: 196.704652 | BB99: 195.8339635 | BJ99: 7081.709567 | BK99: 7224.443395 | BL99: 7369.774398 | BM99: 7499.233889 | BN99: 7634.523072 | BV99: 7255.207991 | BW99: 7582.770362 | BX99: 7924.820981 | BY99: 8261.595383 | BZ99: 8616.694393
B100: =Inputs!$C94 -> 400W Sodium Vapour | C100: Offered | D100: =IF($C100="NA","",'Unsmoothed Prices'!D98) -> 49.888 | E100: =IF($C100="NA","",'Unsmoothed Prices'!E98) -> 50.60024743 | F100: 49.03724319 | G100: 47.52251898 | H100: 46.05458349 | I100: 44.63199144 | Q100: 51.83992878 | R100: 51.46945362 | S100: 51.10162607 | T100: 50.73642721 | U100: 50.37383826 | AB100: =IFERROR(VLOOKUP($B100,Volumes!$B$39:$H$81,MATCH(AB$11,Volumes!$B$4:$H$4,0),FALSE),0) -> 674 | AC100: =IFERROR(VLOOKUP($B100,Volumes!$B$39:$H$81,MATCH(AC$11,Volumes!$B$4:$H$4,0),FALSE),0) -> 708 | AD100: =IFERROR(VLOOKUP($B100,Volumes!$B$39:$H$81,MATCH(AD$11,Volumes!$B$4:$H$4,0),FALSE),0) -> 733 | AE100: =IFERROR(VLOOKUP($B100,Volumes!$B$39:$H$81,MATCH(AE$11,Volumes!$B$4:$H$4,0),FALSE),0) -> 764 | AF100: =IFERROR(VLOOKUP($B100,Volumes!$B$39:$H$81,MATCH(AF$11,Volumes!$B$4:$H$4,0),FALSE),0) -> 806 | AM100: 185.1969056 | AN100: 178.9859376 | AO100: 173.4571943 | AP100: 168.0992297 | AQ100: 163.3530887 | AX100: 189.7341393 | AY100: 187.8635057 | AZ100: 186.5209352 | BA100: 185.1879593 | BB100: 184.368248 | BJ100: 124822.7144 | BK100: 126722.0438 | BL100: 127144.1234 | BM100: 128427.8115 | BN100: 131662.5895 | BV100: 127880.8099 | BW100: 133007.362 | BX100: 136719.8455 | BY100: 141483.6009 | BZ100: 148600.8079
B101: =Inputs!$C95 -> 0 | C101: NA | D101: =IF($C101="NA","",'Unsmoothed Prices'!D99) ->  | E101: =IF($C101="NA","",'Unsmoothed Prices'!E99) ->  | Q101: =IF($C101="NA","",E101*Q$9) ->  | AB101: =IFERROR(VLOOKUP($B101,Volumes!$B$39:$H$81,MATCH(AB$11,Volumes!$B$4:$H$4,0),FALSE),0) -> 0 | AC101: =IFERROR(VLOOKUP($B101,Volumes!$B$39:$H$81,MATCH(AC$11,Volumes!$B$4:$H$4,0),FALSE),0) -> 0 | AD101: =IFERROR(VLOOKUP($B101,Volumes!$B$39:$H$81,MATCH(AD$11,Volumes!$B$4:$H$4,0),FALSE),0) -> 0 | AE101: =IFERROR(VLOOKUP($B101,Volumes!$B$39:$H$81,MATCH(AE$11,Volumes!$B$4:$H$4,0),FALSE),0) -> 0 | AF101: =IFERROR(VLOOKUP($B101,Volumes!$B$39:$H$81,MATCH(AF$11,Volumes!$B$4:$H$4,0),FALSE),0) -> 0 | AM101: =IF($C101="NA","",(E101*AM$9)/100) ->  | AX101: =IF($C101="NA","",(Q101*AX$9)/100) ->  | BJ101: =IFERROR(AM101*AB101,0) -> 0 | BK101: 0 | BL101: 0 | BM101: 0 | BN101: 0 | BV101: =IFERROR(AX101*AB101,0) -> 0 | BW101: 0 | BX101: 0 | BY101: 0 | BZ101: 0
B102: =Inputs!$C96 -> 400W Sodium Vapour - Flood Light | C102: Offered | D102: =IF($C102="NA","",'Unsmoothed Prices'!D100) -> 52.599 | E102: =IF($C102="NA","",'Unsmoothed Prices'!E100) -> 53.05795882 | F102: 51.41903769 | G102: 49.83074161 | H102: 48.29150683 | I102: 46.79981787 | Q102: 54.35785289 | R102: 53.96938334 | S102: 53.58368999 | T102: 53.20075301 | U102: 52.82055269 | AB102: =IFERROR(VLOOKUP($B102,Volumes!$B$39:$H$81,MATCH(AB$11,Volumes!$B$4:$H$4,0),FALSE),0) -> 36 | AC102: =IFERROR(VLOOKUP($B102,Volumes!$B$39:$H$81,MATCH(AC$11,Volumes!$B$4:$H$4,0),FALSE),0) -> 38 | AD102: =IFERROR(VLOOKUP($B102,Volumes!$B$39:$H$81,MATCH(AD$11,Volumes!$B$4:$H$4,0),FALSE),0) -> 40 | AE102: =IFERROR(VLOOKUP($B102,Volumes!$B$39:$H$81,MATCH(AE$11,Volumes!$B$4:$H$4,0),FALSE),0) -> 42 | AF102: =IFERROR(VLOOKUP($B102,Volumes!$B$39:$H$81,MATCH(AF$11,Volumes!$B$4:$H$4,0),FALSE),0) -> 44 | AM102: 194.1921293 | AN102: 187.6794876 | AO102: 181.8822069 | AP102: 176.2639999 | AQ102: 171.2873334 | AX102: 198.9497416 | AY102: 196.9882492 | AZ102: 195.5804685 | BA102: 194.1827485 | BB102: 193.3232229 | BJ102: 6990.916655 | BK102: 7131.820527 | BL102: 7275.288275 | BM102: 7403.087997 | BN102: 7536.64267 | BV102: 7162.190697 | BW102: 7485.553469 | BX102: 7823.218739 | BY102: 8155.675436 | BZ102: 8506.221806
B103: =Inputs!$C97 -> 70W Sodium Vapour | C103: Offered | D103: =IF($C103="NA","",'Unsmoothed Prices'!D101) -> 35.882 | E103: =IF($C103="NA","",'Unsmoothed Prices'!E101) -> 39.51235663 | F103: 38.29184914 | G103: 37.10904221 | H103: 35.96277132 | I103: 34.85190789 | Q103: 40.48039007 | R103: 40.1910961 | S103: 39.90386957 | T103: 39.61869572 | U103: 39.33555986 | AB103: =IFERROR(VLOOKUP($B103,Volumes!$B$39:$H$81,MATCH(AB$11,Volumes!$B$4:$H$4,0),FALSE),0) -> 236 | AC103: =IFERROR(VLOOKUP($B103,Volumes!$B$39:$H$81,MATCH(AC$11,Volumes!$B$4:$H$4,0),FALSE),0) -> 248 | AD103: =IFERROR(VLOOKUP($B103,Volumes!$B$39:$H$81,MATCH(AD$11,Volumes!$B$4:$H$4,0),FALSE),0) -> 260 | AE103: =IFERROR(VLOOKUP($B103,Volumes!$B$39:$H$81,MATCH(AE$11,Volumes!$B$4:$H$4,0),FALSE),0) -> 272 | AF103: =IFERROR(VLOOKUP($B103,Volumes!$B$39:$H$81,MATCH(AF$11,Volumes!$B$4:$H$4,0),FALSE),0) -> 286 | AM103: 144.6152253 | AN103: 139.7652493 | AO103: 135.4480041 | AP103: 131.2641153 | AQ103: 127.5579829 | AX103: 148.1582276 | AY103: 146.6975008 | AZ103: 145.6491239 | BA103: 144.6082394 | BB103: 143.9681491 | BJ103: 34129.19316 | BK103: 34661.78184 | BL103: 35216.48106 | BM103: 35703.83937 | BN103: 36481.58311 | BV103: 34965.34172 | BW103: 36380.98019 | BX103: 37868.77222 | BY103: 39333.44111 | BZ103: 41174.89064
B104: =Inputs!$C98 -> 0 | C104: NA | D104: =IF($C104="NA","",'Unsmoothed Prices'!D102) ->  | E104: =IF($C104="NA","",'Unsmoothed Prices'!E102) ->  | AB104: =IFERROR(VLOOKUP($B104,Volumes!$B$39:$H$81,MATCH(AB$11,Volumes!$B$4:$H$4,0),FALSE),0) -> 0 | AC104: =IFERROR(VLOOKUP($B104,Volumes!$B$39:$H$81,MATCH(AC$11,Volumes!$B$4:$H$4,0),FALSE),0) -> 0 | AD104: =IFERROR(VLOOKUP($B104,Volumes!$B$39:$H$81,MATCH(AD$11,Volumes!$B$4:$H$4,0),FALSE),0) -> 0 | AE104: =IFERROR(VLOOKUP($B104,Volumes!$B$39:$H$81,MATCH(AE$11,Volumes!$B$4:$H$4,0),FALSE),0) -> 0 | AF104: =IFERROR(VLOOKUP($B104,Volumes!$B$39:$H$81,MATCH(AF$11,Volumes!$B$4:$H$4,0),FALSE),0) -> 0 | BJ104: 0 | BK104: 0 | BL104: 0 | BM104: 0 | BN104: 0 | BV104: 0 | BW104: 0 | BX104: 0 | BY104: 0 | BZ104: 0
B105: =Inputs!$C99 -> 100W Incandescent | C105: Old light no volumes | D105: =IF($C105="NA","",'Unsmoothed Prices'!D103) -> 41.975 | E105: =IF($C105="NA","",'Unsmoothed Prices'!E103) -> 43.08407739 | F105: 41.75324208 | G105: 40.46351529 | H105: 39.2136272 | I105: 38.00234724 | Q105: 44.13961624 | R105: 43.82417153 | S105: 43.51098115 | T105: 43.200029 | U105: 42.89129907 | AB105: =IFERROR(VLOOKUP($B105,Volumes!$B$39:$H$81,MATCH(AB$11,Volumes!$B$4:$H$4,0),FALSE),0) -> 0 | AC105: =IFERROR(VLOOKUP($B105,Volumes!$B$39:$H$81,MATCH(AC$11,Volumes!$B$4:$H$4,0),FALSE),0) -> 0 | AD105: =IFERROR(VLOOKUP($B105,Volumes!$B$39:$H$81,MATCH(AD$11,Volumes!$B$4:$H$4,0),FALSE),0) -> 0 | AE105: =IFERROR(VLOOKUP($B105,Volumes!$B$39:$H$81,MATCH(AE$11,Volumes!$B$4:$H$4,0),FALSE),0) -> 0 | AF105: =IFERROR(VLOOKUP($B105,Volumes!$B$39:$H$81,MATCH(AF$11,Volumes!$B$4:$H$4,0),FALSE),0) -> 0 | AM105: 157.6877232 | AN105: 152.3993336 | AO105: 147.6918308 | AP105: 143.1297393 | AQ105: 139.0885909 | AX105: 161.5509954 | AY105: 159.9582261 | AZ105: 158.8150812 | BA105: 157.6801058 | BB105: 156.9821546 | BJ105: 0 | BK105: 0 | BL105: 0 | BM105: 0 | BN105: 0 | BV105: 0 | BW105: 0 | BX105: 0 | BY105: 0 | BZ105: 0
B106: =Inputs!$C100 -> 60W Incandescent | C106: Old light no volumes | D106: =IF($C106="NA","",'Unsmoothed Prices'!D104) -> 32.786 | E106: =IF($C106="NA","",'Unsmoothed Prices'!E104) -> 36.62031732 | F106: 35.48914278 | G106: 34.39290938 | H106: 33.33053783 | I106: 32.30098215 | Q106: 37.5174972 | R106: 37.24937761 | S106: 36.98317414 | T106: 36.71887309 | U106: 36.45646089 | AB106: =IFERROR(VLOOKUP($B106,Volumes!$B$39:$H$81,MATCH(AB$11,Volumes!$B$4:$H$4,0),FALSE),0) -> 0 | AC106: =IFERROR(VLOOKUP($B106,Volumes!$B$39:$H$81,MATCH(AC$11,Volumes!$B$4:$H$4,0),FALSE),0) -> 0 | AD106: =IFERROR(VLOOKUP($B106,Volumes!$B$39:$H$81,MATCH(AD$11,Volumes!$B$4:$H$4,0),FALSE),0) -> 0 | AE106: =IFERROR(VLOOKUP($B106,Volumes!$B$39:$H$81,MATCH(AE$11,Volumes!$B$4:$H$4,0),FALSE),0) -> 0 | AF106: =IFERROR(VLOOKUP($B106,Volumes!$B$39:$H$81,MATCH(AF$11,Volumes!$B$4:$H$4,0),FALSE),0) -> 0 | AM106: 134.0303614 | AN106: 129.5353711 | AO106: 125.5341193 | AP106: 121.6564631 | AQ106: 118.2215947 | AX106: 137.3140398 | AY106: 135.9602283 | AZ106: 134.9885856 | BA106: 134.0238868 | BB106: 133.4306468 | BJ106: 0 | BK106: 0 | BL106: 0 | BM106: 0 | BN106: 0 | BV106: 0 | BW106: 0 | BX106: 0 | BY106: 0 | BZ106: 0
B107: =Inputs!$C101 -> 18W LED | C107: Offered | D107: =IF($C107="NA","",'Unsmoothed Prices'!D105) -> 34.339 | E107: =IF($C107="NA","",'Unsmoothed Prices'!E105) -> 37.60173138 | F107: 36.44024169 | G107: 35.31462955 | H107: 34.22378674 | I107: 33.16663926 | Q107: 38.52295543 | R107: 38.24765031 | S107: 37.97431266 | T107: 37.70292843 | U107: 37.43348364 | AB107: =IFERROR(VLOOKUP($B107,Volumes!$B$39:$H$81,MATCH(AB$11,Volumes!$B$4:$H$4,0),FALSE),0) -> 360 | AC107: =IFERROR(VLOOKUP($B107,Volumes!$B$39:$H$81,MATCH(AC$11,Volumes!$B$4:$H$4,0),FALSE),0) -> 360 | AD107: =IFERROR(VLOOKUP($B107,Volumes!$B$39:$H$81,MATCH(AD$11,Volumes!$B$4:$H$4,0),FALSE),0) -> 360 | AE107: =IFERROR(VLOOKUP($B107,Volumes!$B$39:$H$81,MATCH(AE$11,Volumes!$B$4:$H$4,0),FALSE),0) -> 360 | AF107: =IFERROR(VLOOKUP($B107,Volumes!$B$39:$H$81,MATCH(AF$11,Volumes!$B$4:$H$4,0),FALSE),0) -> 360 | AM107: 137.6223369 | AN107: 133.0068822 | AO107: 128.8983979 | AP107: 124.9168216 | AQ107: 121.3898997 | AX107: 140.9940169 | AY107: 139.6039236 | AZ107: 138.6062412 | BA107: 137.6156888 | BB107: 137.0065501 | BJ107: 49544.04127 | BK107: 47882.47758 | BL107: 46403.42323 | BM107: 44970.05578 | BN107: 43700.36389 | BV107: 50757.84607 | BW107: 50257.4125 | BX107: 49898.24684 | BY107: 49541.64795 | BZ107: 49322.35805
B108: =Inputs!$C102 -> 18W LED Decorative - Bottom Pole Entry | C108: Offered | D108: =IF($C108="NA","",'Unsmoothed Prices'!D106) -> 48.088 | E108: =IF($C108="NA","",'Unsmoothed Prices'!E106) -> 50.72031405 | F108: 49.15360103 | G108: 47.63528262 | H108: 46.16386394 | I108: 44.7378963 | Q108: 51.96293696 | R108: 51.59158273 | S108: 51.22288238 | T108: 50.85681696 | U108: 50.49336764 | AB108: =IFERROR(VLOOKUP($B108,Volumes!$B$39:$H$81,MATCH(AB$11,Volumes!$B$4:$H$4,0),FALSE),0) -> 36 | AC108: =IFERROR(VLOOKUP($B108,Volumes!$B$39:$H$81,MATCH(AC$11,Volumes!$B$4:$H$4,0),FALSE),0) -> 38 | AD108: =IFERROR(VLOOKUP($B108,Volumes!$B$39:$H$81,MATCH(AD$11,Volumes!$B$4:$H$4,0),FALSE),0) -> 40 | AE108: =IFERROR(VLOOKUP($B108,Volumes!$B$39:$H$81,MATCH(AE$11,Volumes!$B$4:$H$4,0),FALSE),0) -> 42 | AF108: =IFERROR(VLOOKUP($B108,Volumes!$B$39:$H$81,MATCH(AF$11,Volumes!$B$4:$H$4,0),FALSE),0) -> 44 | AM108: 185.6363494 | AN108: 179.4106438 | AO108: 173.8687816 | AP108: 168.4981034 | AQ108: 163.7407005 | AX108: 190.1843493 | AY108: 188.309277 | AZ108: 186.9635207 | BA108: 185.6273819 | BB108: 184.8057255 | BJ108: 6682.908579 | BK108: 6817.604463 | BL108: 6954.751262 | BM108: 7076.920342 | BN108: 7204.59082 | BV108: 6846.636575 | BW108: 7155.752524 | BX108: 7478.540828 | BY108: 7796.35004 | BZ108: 8131.451924
B109: =Inputs!$C103 -> 18W LED Decorative - Side Entry | C109: Offered | D109: =IF($C109="NA","",'Unsmoothed Prices'!D107) -> 48.088 | E109: =IF($C109="NA","",'Unsmoothed Prices'!E107) -> 50.72031405 | F109: 49.15360103 | G109: 47.63528262 | H109: 46.16386394 | I109: 44.7378963 | Q109: 51.96293696 | R109: 51.59158273 | S109: 51.22288238 | T109: 50.85681696 | U109: 50.49336764 | AB109: =IFERROR(VLOOKUP($B109,Volumes!$B$39:$H$81,MATCH(AB$11,Volumes!$B$4:$H$4,0),FALSE),0) -> 36 | AC109: =IFERROR(VLOOKUP($B109,Volumes!$B$39:$H$81,MATCH(AC$11,Volumes!$B$4:$H$4,0),FALSE),0) -> 38 | AD109: =IFERROR(VLOOKUP($B109,Volumes!$B$39:$H$81,MATCH(AD$11,Volumes!$B$4:$H$4,0),FALSE),0) -> 40 | AE109: =IFERROR(VLOOKUP($B109,Volumes!$B$39:$H$81,MATCH(AE$11,Volumes!$B$4:$H$4,0),FALSE),0) -> 42 | AF109: =IFERROR(VLOOKUP($B109,Volumes!$B$39:$H$81,MATCH(AF$11,Volumes!$B$4:$H$4,0),FALSE),0) -> 44 | AM109: 185.6363494 | AN109: 179.4106438 | AO109: 173.8687816 | AP109: 168.4981034 | AQ109: 163.7407005 | AX109: 190.1843493 | AY109: 188.309277 | AZ109: 186.9635207 | BA109: 185.6273819 | BB109: 184.8057255 | BJ109: 6682.908579 | BK109: 6817.604463 | BL109: 6954.751262 | BM109: 7076.920342 | BN109: 7204.59082 | BV109: 6846.636575 | BW109: 7155.752524 | BX109: 7478.540828 | BY109: 7796.35004 | BZ109: 8131.451924
B110: =Inputs!$C104 -> 18W LED Decorative - Top Entry | C110: Offered | D110: =IF($C110="NA","",'Unsmoothed Prices'!D108) -> 48.088 | E110: =IF($C110="NA","",'Unsmoothed Prices'!E108) -> 50.72031405 | F110: 49.15360103 | G110: 47.63528262 | H110: 46.16386394 | I110: 44.7378963 | Q110: 51.96293696 | R110: 51.59158273 | S110: 51.22288238 | T110: 50.85681696 | U110: 50.49336764 | AB110: =IFERROR(VLOOKUP($B110,Volumes!$B$39:$H$81,MATCH(AB$11,Volumes!$B$4:$H$4,0),FALSE),0) -> 36 | AC110: =IFERROR(VLOOKUP($B110,Volumes!$B$39:$H$81,MATCH(AC$11,Volumes!$B$4:$H$4,0),FALSE),0) -> 38 | AD110: =IFERROR(VLOOKUP($B110,Volumes!$B$39:$H$81,MATCH(AD$11,Volumes!$B$4:$H$4,0),FALSE),0) -> 40 | AE110: =IFERROR(VLOOKUP($B110,Volumes!$B$39:$H$81,MATCH(AE$11,Volumes!$B$4:$H$4,0),FALSE),0) -> 42 | AF110: =IFERROR(VLOOKUP($B110,Volumes!$B$39:$H$81,MATCH(AF$11,Volumes!$B$4:$H$4,0),FALSE),0) -> 44 | AM110: 185.6363494 | AN110: 179.4106438 | AO110: 173.8687816 | AP110: 168.4981034 | AQ110: 163.7407005 | AX110: 190.1843493 | AY110: 188.309277 | AZ110: 186.9635207 | BA110: 185.6273819 | BB110: 184.8057255 | BJ110: 6682.908579 | BK110: 6817.604463 | BL110: 6954.751262 | BM110: 7076.920342 | BN110: 7204.59082 | BV110: 6846.636575 | BW110: 7155.752524 | BX110: 7478.540828 | BY110: 7796.35004 | BZ110: 8131.451924
B111: =Inputs!$C105 -> 25W LED | C111: Offered | D111: =IF($C111="NA","",'Unsmoothed Prices'!D109) -> 34.339 | E111: =IF($C111="NA","",'Unsmoothed Prices'!E109) -> 37.83246809 | F111: 36.66385111 | G111: 35.53133184 | H111: 34.43379526 | I111: 33.37016077 | Q111: 38.75934508 | R111: 38.48235059 | S111: 38.20733565 | T111: 37.93428611 | U111: 37.66318793 | AB111: =IFERROR(VLOOKUP($B111,Volumes!$B$39:$H$81,MATCH(AB$11,Volumes!$B$4:$H$4,0),FALSE),0) -> 21 | AC111: =IFERROR(VLOOKUP($B111,Volumes!$B$39:$H$81,MATCH(AC$11,Volumes!$B$4:$H$4,0),FALSE),0) -> 21 | AD111: =IFERROR(VLOOKUP($B111,Volumes!$B$39:$H$81,MATCH(AD$11,Volumes!$B$4:$H$4,0),FALSE),0) -> 21 | AE111: =IFERROR(VLOOKUP($B111,Volumes!$B$39:$H$81,MATCH(AE$11,Volumes!$B$4:$H$4,0),FALSE),0) -> 21 | AF111: =IFERROR(VLOOKUP($B111,Volumes!$B$39:$H$81,MATCH(AF$11,Volumes!$B$4:$H$4,0),FALSE),0) -> 21 | AM111: 138.4668332 | AN111: 133.8230566 | AO111: 129.6893612 | AP111: 125.6833527 | AQ111: 122.1347884 | AX111: 141.859203 | AY111: 140.4605797 | AZ111: 139.4567751 | BA111: 138.4601443 | BB111: 137.8472678 | BJ111: 2907.803497 | BK111: 2810.284188 | BL111: 2723.476586 | BM111: 2639.350407 | BN111: 2564.830557 | BV111: 2979.043263 | BW111: 2949.672173 | BX111: 2928.592278 | BY111: 2907.663031 | BZ111: 2894.792624
B112: =Inputs!$C106 -> 25W LED Decorative - Bottom Pole Entry | C112: Offered | D112: =IF($C112="NA","",'Unsmoothed Prices'!D110) -> 48.088 | E112: =IF($C112="NA","",'Unsmoothed Prices'!E110) -> 50.9500067 | F112: 49.37619865 | G112: 47.85100436 | H112: 46.3729222 | I112: 44.9404969 | Q112: 52.19825698 | R112: 51.82522102 | S112: 51.45485097 | T112: 51.08712778 | U112: 50.72203254 | AB112: =IFERROR(VLOOKUP($B112,Volumes!$B$39:$H$81,MATCH(AB$11,Volumes!$B$4:$H$4,0),FALSE),0) -> 36 | AC112: =IFERROR(VLOOKUP($B112,Volumes!$B$39:$H$81,MATCH(AC$11,Volumes!$B$4:$H$4,0),FALSE),0) -> 38 | AD112: =IFERROR(VLOOKUP($B112,Volumes!$B$39:$H$81,MATCH(AD$11,Volumes!$B$4:$H$4,0),FALSE),0) -> 40 | AE112: =IFERROR(VLOOKUP($B112,Volumes!$B$39:$H$81,MATCH(AE$11,Volumes!$B$4:$H$4,0),FALSE),0) -> 42 | AF112: =IFERROR(VLOOKUP($B112,Volumes!$B$39:$H$81,MATCH(AF$11,Volumes!$B$4:$H$4,0),FALSE),0) -> 44 | AM112: 186.4770245 | AN112: 180.2231251 | AO112: 174.6561659 | AP112: 169.261166 | AQ112: 164.4822187 | AX112: 191.0456205 | AY112: 189.1620567 | AZ112: 187.8102061 | BA112: 186.4680164 | BB112: 185.6426391 | BJ112: 6713.172883 | BK112: 6848.478752 | BL112: 6986.246637 | BM112: 7108.968973 | BN112: 7237.217621 | BV112: 6877.642339 | BW112: 7188.158155 | BX112: 7512.408242 | BY112: 7831.656689 | BZ112: 8168.27612
B113: =Inputs!$C107 -> 25W LED Decorative - Side Entry | C113: Offered | D113: =IF($C113="NA","",'Unsmoothed Prices'!D111) -> 48.088 | E113: =IF($C113="NA","",'Unsmoothed Prices'!E111) -> 50.9500067 | F113: 49.37619865 | G113: 47.85100436 | H113: 46.3729222 | I113: 44.9404969 | Q113: 52.19825698 | R113: 51.82522102 | S113: 51.45485097 | T113: 51.08712778 | U113: 50.72203254 | AB113: =IFERROR(VLOOKUP($B113,Volumes!$B$39:$H$81,MATCH(AB$11,Volumes!$B$4:$H$4,0),FALSE),0) -> 36 | AC113: =IFERROR(VLOOKUP($B113,Volumes!$B$39:$H$81,MATCH(AC$11,Volumes!$B$4:$H$4,0),FALSE),0) -> 38 | AD113: =IFERROR(VLOOKUP($B113,Volumes!$B$39:$H$81,MATCH(AD$11,Volumes!$B$4:$H$4,0),FALSE),0) -> 40 | AE113: =IFERROR(VLOOKUP($B113,Volumes!$B$39:$H$81,MATCH(AE$11,Volumes!$B$4:$H$4,0),FALSE),0) -> 42 | AF113: =IFERROR(VLOOKUP($B113,Volumes!$B$39:$H$81,MATCH(AF$11,Volumes!$B$4:$H$4,0),FALSE),0) -> 44 | AM113: 186.4770245 | AN113: 180.2231251 | AO113: 174.6561659 | AP113: 169.261166 | AQ113: 164.4822187 | AX113: 191.0456205 | AY113: 189.1620567 | AZ113: 187.8102061 | BA113: 186.4680164 | BB113: 185.6426391 | BJ113: 6713.172883 | BK113: 6848.478752 | BL113: 6986.246637 | BM113: 7108.968973 | BN113: 7237.217621 | BV113: 6877.642339 | BW113: 7188.158155 | BX113: 7512.408242 | BY113: 7831.656689 | BZ113: 8168.27612
B114: =Inputs!$C108 -> 25W LED Decorative - Top Entry | C114: Offered | D114: =IF($C114="NA","",'Unsmoothed Prices'!D112) -> 48.088 | E114: =IF($C114="NA","",'Unsmoothed Prices'!E112) -> 50.9500067 | F114: 49.37619865 | G114: 47.85100436 | H114: 46.3729222 | I114: 44.9404969 | Q114: 52.19825698 | R114: 51.82522102 | S114: 51.45485097 | T114: 51.08712778 | U114: 50.72203254 | AB114: =IFERROR(VLOOKUP($B114,Volumes!$B$39:$H$81,MATCH(AB$11,Volumes!$B$4:$H$4,0),FALSE),0) -> 36 | AC114: =IFERROR(VLOOKUP($B114,Volumes!$B$39:$H$81,MATCH(AC$11,Volumes!$B$4:$H$4,0),FALSE),0) -> 38 | AD114: =IFERROR(VLOOKUP($B114,Volumes!$B$39:$H$81,MATCH(AD$11,Volumes!$B$4:$H$4,0),FALSE),0) -> 40 | AE114: =IFERROR(VLOOKUP($B114,Volumes!$B$39:$H$81,MATCH(AE$11,Volumes!$B$4:$H$4,0),FALSE),0) -> 42 | AF114: =IFERROR(VLOOKUP($B114,Volumes!$B$39:$H$81,MATCH(AF$11,Volumes!$B$4:$H$4,0),FALSE),0) -> 44 | AM114: 186.4770245 | AN114: 180.2231251 | AO114: 174.6561659 | AP114: 169.261166 | AQ114: 164.4822187 | AX114: 191.0456205 | AY114: 189.1620567 | AZ114: 187.8102061 | BA114: 186.4680164 | BB114: 185.6426391 | BJ114: 6713.172883 | BK114: 6848.478752 | BL114: 6986.246637 | BM114: 7108.968973 | BN114: 7237.217621 | BV114: 6877.642339 | BW114: 7188.158155 | BX114: 7512.408242 | BY114: 7831.656689 | BZ114: 8168.27612
B115: =Inputs!$C109 -> 30W LED | C115: Not Offered | D115: =IF($C115="NA","",'Unsmoothed Prices'!D113) -> 34.339 | E115: =IF($C115="NA","",'Unsmoothed Prices'!E113) -> 37.83246809 | F115: 36.66385111 | G115: 35.53133184 | H115: 34.43379526 | I115: 33.37016077 | Q115: 38.75934508 | R115: 38.48235059 | S115: 38.20733565 | T115: 37.93428611 | U115: 37.66318793 | AB115: =IFERROR(VLOOKUP($B115,Volumes!$B$39:$H$81,MATCH(AB$11,Volumes!$B$4:$H$4,0),FALSE),0) -> 0 | AC115: =IFERROR(VLOOKUP($B115,Volumes!$B$39:$H$81,MATCH(AC$11,Volumes!$B$4:$H$4,0),FALSE),0) -> 0 | AD115: =IFERROR(VLOOKUP($B115,Volumes!$B$39:$H$81,MATCH(AD$11,Volumes!$B$4:$H$4,0),FALSE),0) -> 0 | AE115: =IFERROR(VLOOKUP($B115,Volumes!$B$39:$H$81,MATCH(AE$11,Volumes!$B$4:$H$4,0),FALSE),0) -> 0 | AF115: =IFERROR(VLOOKUP($B115,Volumes!$B$39:$H$81,MATCH(AF$11,Volumes!$B$4:$H$4,0),FALSE),0) -> 0 | AM115: 138.4668332 | AN115: 133.8230566 | AO115: 129.6893612 | AP115: 125.6833527 | AQ115: 122.1347884 | AX115: 141.859203 | AY115: 140.4605797 | AZ115: 139.4567751 | BA115: 138.4601443 | BB115: 137.8472678 | BJ115: 0 | BK115: 0 | BL115: 0 | BM115: 0 | BN115: 0 | BV115: 0 | BW115: 0 | BX115: 0 | BY115: 0 | BZ115: 0
B116: =Inputs!$C110 -> 88 LED Light | C116: Not Offered | D116: =IF($C116="NA","",'Unsmoothed Prices'!D114) -> 34.339 | E116: =IF($C116="NA","",'Unsmoothed Prices'!E114) -> 37.83246809 | F116: 36.66385111 | G116: 35.53133184 | H116: 34.43379526 | I116: 33.37016077 | Q116: 38.75934508 | R116: 38.48235059 | S116: 38.20733565 | T116: 37.93428611 | U116: 37.66318793 | AB116: =IFERROR(VLOOKUP($B116,Volumes!$B$39:$H$81,MATCH(AB$11,Volumes!$B$4:$H$4,0),FALSE),0) -> 0 | AC116: =IFERROR(VLOOKUP($B116,Volumes!$B$39:$H$81,MATCH(AC$11,Volumes!$B$4:$H$4,0),FALSE),0) -> 0 | AD116: =IFERROR(VLOOKUP($B116,Volumes!$B$39:$H$81,MATCH(AD$11,Volumes!$B$4:$H$4,0),FALSE),0) -> 0 | AE116: =IFERROR(VLOOKUP($B116,Volumes!$B$39:$H$81,MATCH(AE$11,Volumes!$B$4:$H$4,0),FALSE),0) -> 0 | AF116: =IFERROR(VLOOKUP($B116,Volumes!$B$39:$H$81,MATCH(AF$11,Volumes!$B$4:$H$4,0),FALSE),0) -> 0 | AM116: 138.4668332 | AN116: 133.8230566 | AO116: 129.6893612 | AP116: 125.6833527 | AQ116: 122.1347884 | AX116: 141.859203 | AY116: 140.4605797 | AZ116: 139.4567751 | BA116: 138.4601443 | BB116: 137.8472678 | BJ116: 0 | BK116: 0 | BL116: 0 | BM116: 0 | BN116: 0 | BV116: 0 | BW116: 0 | BX116: 0 | BY116: 0 | BZ116: 0
B117: =Inputs!$C111 -> 100W Metal Halide | C117: Offered | D117: =IF($C117="NA","",'Unsmoothed Prices'!D115) -> 45.676 | E117: =IF($C117="NA","",'Unsmoothed Prices'!E115) -> 46.56914137 | F117: 45.13065501 | G117: 43.73660243 | H117: 42.3856111 | I117: 41.0763509 | Q117: 47.71006259 | R117: 47.36910161 | S117: 47.03057731 | T117: 46.69447229 | U117: 46.36076925 | AB117: =IFERROR(VLOOKUP($B117,Volumes!$B$39:$H$81,MATCH(AB$11,Volumes!$B$4:$H$4,0),FALSE),0) -> 18 | AC117: =IFERROR(VLOOKUP($B117,Volumes!$B$39:$H$81,MATCH(AC$11,Volumes!$B$4:$H$4,0),FALSE),0) -> 19 | AD117: =IFERROR(VLOOKUP($B117,Volumes!$B$39:$H$81,MATCH(AD$11,Volumes!$B$4:$H$4,0),FALSE),0) -> 20 | AE117: =IFERROR(VLOOKUP($B117,Volumes!$B$39:$H$81,MATCH(AE$11,Volumes!$B$4:$H$4,0),FALSE),0) -> 21 | AF117: =IFERROR(VLOOKUP($B117,Volumes!$B$39:$H$81,MATCH(AF$11,Volumes!$B$4:$H$4,0),FALSE),0) -> 22 | AM117: 170.4430574 | AN117: 164.7268908 | AO117: 159.6385989 | AP117: 154.7074805 | AQ117: 150.3394443 | AX117: 174.6188291 | AY117: 172.8972209 | AZ117: 171.6616072 | BA117: 170.4348239 | BB117: 169.6804154 | BJ117: 3067.975034 | BK117: 3129.810925 | BL117: 3192.771977 | BM117: 3248.857091 | BN117: 3307.467774 | BV117: 3143.138923 | BW117: 3285.047196 | BX117: 3433.232144 | BY117: 3579.131301 | BZ117: 3732.96914
B118: =Inputs!$C112 -> 150W Metal Halide | C118: Offered | D118: =IF($C118="NA","",'Unsmoothed Prices'!D116) -> 48.462 | E118: =IF($C118="NA","",'Unsmoothed Prices'!E116) -> 49.34737842 | F118: 47.82307437 | G118: 46.34585494 | H118: 44.91426573 | I118: 43.52689726 | Q118: 50.55636508 | R118: 50.19506294 | S118: 49.83634285 | T118: 49.48018637 | U118: 49.12657516 | AB118: =IFERROR(VLOOKUP($B118,Volumes!$B$39:$H$81,MATCH(AB$11,Volumes!$B$4:$H$4,0),FALSE),0) -> 15 | AC118: =IFERROR(VLOOKUP($B118,Volumes!$B$39:$H$81,MATCH(AC$11,Volumes!$B$4:$H$4,0),FALSE),0) -> 15 | AD118: =IFERROR(VLOOKUP($B118,Volumes!$B$39:$H$81,MATCH(AD$11,Volumes!$B$4:$H$4,0),FALSE),0) -> 15 | AE118: =IFERROR(VLOOKUP($B118,Volumes!$B$39:$H$81,MATCH(AE$11,Volumes!$B$4:$H$4,0),FALSE),0) -> 16 | AF118: =IFERROR(VLOOKUP($B118,Volumes!$B$39:$H$81,MATCH(AF$11,Volumes!$B$4:$H$4,0),FALSE),0) -> 16 | AM118: 180.611405 | AN118: 174.5542214 | AO118: 169.1623705 | AP118: 163.9370699 | AQ118: 159.308444 | AX118: 185.0362962 | AY118: 183.2119797 | AZ118: 181.9026514 | BA118: 180.6026802 | BB118: 179.8032651 | BJ118: 2709.171075 | BK118: 2618.313322 | BL118: 2537.435558 | BM118: 2622.993119 | BN118: 2548.935103 | BV118: 2775.544443 | BW118: 2748.179696 | BX118: 2728.539771 | BY118: 2889.642884 | BZ118: 2876.852241
B119: =Inputs!$C113 -> 250W Metal Halide | C119: Offered | D119: =IF($C119="NA","",'Unsmoothed Prices'!D117) -> 49.327 | E119: =IF($C119="NA","",'Unsmoothed Prices'!E117) -> 50.29538264 | F119: 48.74179544 | G119: 47.2361974 | H119: 45.77710617 | I119: 44.36308519 | Q119: 51.52759494 | R119: 51.15935189 | S119: 50.79374049 | T119: 50.43074194 | U119: 50.07033757 | AB119: =IFERROR(VLOOKUP($B119,Volumes!$B$39:$H$81,MATCH(AB$11,Volumes!$B$4:$H$4,0),FALSE),0) -> 91 | AC119: =IFERROR(VLOOKUP($B119,Volumes!$B$39:$H$81,MATCH(AC$11,Volumes!$B$4:$H$4,0),FALSE),0) -> 93 | AD119: =IFERROR(VLOOKUP($B119,Volumes!$B$39:$H$81,MATCH(AD$11,Volumes!$B$4:$H$4,0),FALSE),0) -> 95 | AE119: =IFERROR(VLOOKUP($B119,Volumes!$B$39:$H$81,MATCH(AE$11,Volumes!$B$4:$H$4,0),FALSE),0) -> 97 | AF119: =IFERROR(VLOOKUP($B119,Volumes!$B$39:$H$81,MATCH(AF$11,Volumes!$B$4:$H$4,0),FALSE),0) -> 99 | AM119: 184.0811005 | AN119: 177.9075534 | AO119: 172.4121205 | AP119: 167.0864375 | AQ119: 162.3688918 | AX119: 188.5909975 | AY119: 186.7316344 | AZ119: 185.3971528 | BA119: 184.0722081 | BB119: 183.2574355 | BJ119: 16751.38014 | BK119: 16545.40246 | BL119: 16379.15145 | BM119: 16207.38444 | BN119: 16074.52029 | BV119: 17161.78077 | BW119: 17366.042 | BX119: 17612.72952 | BY119: 17855.00418 | BZ119: 18142.48611
B120: =Inputs!$C114 -> 400W Metal Halide | C120: Not Offered | D120: =IF($C120="NA","",'Unsmoothed Prices'!D118) -> 54.733 | E120: =IF($C120="NA","",'Unsmoothed Prices'!E118) -> 55.03749187 | F120: 53.33742442 | G120: 51.6898708 | H120: 50.09320889 | I120: 48.54586668 | Q120: 56.38588353 | R120: 55.98292062 | S120: 55.58283748 | T120: 55.18561355 | U120: 54.79122838 | AB120: =IFERROR(VLOOKUP($B120,Volumes!$B$39:$H$81,MATCH(AB$11,Volumes!$B$4:$H$4,0),FALSE),0) -> 18 | AC120: =IFERROR(VLOOKUP($B120,Volumes!$B$39:$H$81,MATCH(AC$11,Volumes!$B$4:$H$4,0),FALSE),0) -> 19 | AD120: =IFERROR(VLOOKUP($B120,Volumes!$B$39:$H$81,MATCH(AD$11,Volumes!$B$4:$H$4,0),FALSE),0) -> 20 | AE120: =IFERROR(VLOOKUP($B120,Volumes!$B$39:$H$81,MATCH(AE$11,Volumes!$B$4:$H$4,0),FALSE),0) -> 21 | AF120: =IFERROR(VLOOKUP($B120,Volumes!$B$39:$H$81,MATCH(AF$11,Volumes!$B$4:$H$4,0),FALSE),0) -> 22 | AM120: 201.4372202 | AN120: 194.6815991 | AO120: 188.6680284 | AP120: 182.8402124 | AQ120: 177.6778721 | AX120: 206.3723337 | AY120: 204.3376602 | AZ120: 202.8773568 | BA120: 201.4274895 | BB120: 200.5358959 | BJ120: 3625.869964 | BK120: 3698.950384 | BL120: 3773.360568 | BM120: 3839.644461 | BN120: 3908.913185 | BV120: 3714.702007 | BW120: 3882.415545 | BX120: 4057.547136 | BY120: 4229.977278 | BZ120: 4411.78971
B121: =Inputs!$C115 -> 70W Metal Halide | C121: Old light no volumes | D121: =IF($C121="NA","",'Unsmoothed Prices'!D119) -> 34.676 | E121: =IF($C121="NA","",'Unsmoothed Prices'!E119) -> 38.56330835 | F121: 37.37211625 | G121: 36.2177192 | H121: 35.09898062 | I121: 34.01479905 | Q121: 39.50809057 | R121: 39.22574516 | S121: 38.94541753 | T121: 38.66709328 | U121: 38.39075807 | AB121: =IFERROR(VLOOKUP($B121,Volumes!$B$39:$H$81,MATCH(AB$11,Volumes!$B$4:$H$4,0),FALSE),0) -> 0 | AC121: =IFERROR(VLOOKUP($B121,Volumes!$B$39:$H$81,MATCH(AC$11,Volumes!$B$4:$H$4,0),FALSE),0) -> 0 | AD121: =IFERROR(VLOOKUP($B121,Volumes!$B$39:$H$81,MATCH(AD$11,Volumes!$B$4:$H$4,0),FALSE),0) -> 0 | AE121: =IFERROR(VLOOKUP($B121,Volumes!$B$39:$H$81,MATCH(AE$11,Volumes!$B$4:$H$4,0),FALSE),0) -> 0 | AF121: =IFERROR(VLOOKUP($B121,Volumes!$B$39:$H$81,MATCH(AF$11,Volumes!$B$4:$H$4,0),FALSE),0) -> 0 | AM121: 141.1417086 | AN121: 136.4082243 | AO121: 132.1946751 | AP121: 128.1112793 | AQ121: 124.4941645 | AX121: 144.5996115 | AY121: 143.1739698 | AZ121: 142.150774 | BA121: 141.1348905 | BB121: 140.5101745 | BJ121: 0 | BK121: 0 | BL121: 0 | BM121: 0 | BN121: 0 | BV121: 0 | BW121: 0 | BX121: 0 | BY121: 0 | BZ121: 0
B122: =Inputs!$C116 -> 250W Metal Halide - Flood Light | C122: Obsolete, no new Connections | D122: =IF($C122="NA","",'Unsmoothed Prices'!D120) -> 54.883 | E122: =IF($C122="NA","",'Unsmoothed Prices'!E120) -> 55.33609232 | F122: 53.62680132 | G122: 51.97030906 | H122: 50.36498462 | I122: 48.80924747 | Q122: 56.69179955 | R122: 56.2866504 | S122: 55.88439665 | T122: 55.48501762 | U122: 55.08849276 | AB122: =IFERROR(VLOOKUP($B122,Volumes!$B$39:$H$81,MATCH(AB$11,Volumes!$B$4:$H$4,0),FALSE),0) -> 36 | AC122: =IFERROR(VLOOKUP($B122,Volumes!$B$39:$H$81,MATCH(AC$11,Volumes!$B$4:$H$4,0),FALSE),0) -> 38 | AD122: =IFERROR(VLOOKUP($B122,Volumes!$B$39:$H$81,MATCH(AD$11,Volumes!$B$4:$H$4,0),FALSE),0) -> 40 | AE122: =IFERROR(VLOOKUP($B122,Volumes!$B$39:$H$81,MATCH(AE$11,Volumes!$B$4:$H$4,0),FALSE),0) -> 42 | AF122: =IFERROR(VLOOKUP($B122,Volumes!$B$39:$H$81,MATCH(AF$11,Volumes!$B$4:$H$4,0),FALSE),0) -> 44 | AM122: 202.5300979 | AN122: 195.7378248 | AO122: 189.6916281 | AP122: 183.8321939 | AQ122: 178.6418457 | AX122: 207.4919863 | AY122: 205.4462739 | AZ122: 203.9780478 | BA122: 202.5203143 | BB122: 201.6238835 | BJ122: 7291.083524 | BK122: 7438.037343 | BL122: 7587.665123 | BM122: 7720.952142 | BN122: 7860.241212 | BV122: 7469.711509 | BW122: 7806.95841 | BX122: 8159.121911 | BY122: 8505.853201 | BZ122: 8871.450873
B123: =Inputs!$C117 -> 400W Metal Halide - Flood Light | C123: Obsolete, no new Connections | D123: =IF($C123="NA","",'Unsmoothed Prices'!D121) -> 54.733 | E123: =IF($C123="NA","",'Unsmoothed Prices'!E121) -> 55.03749187 | F123: 53.33742442 | G123: 51.6898708 | H123: 50.09320889 | I123: 48.54586668 | Q123: 56.38588353 | R123: 55.98292062 | S123: 55.58283748 | T123: 55.18561355 | U123: 54.79122838 | AB123: =IFERROR(VLOOKUP($B123,Volumes!$B$39:$H$81,MATCH(AB$11,Volumes!$B$4:$H$4,0),FALSE),0) -> 36 | AC123: =IFERROR(VLOOKUP($B123,Volumes!$B$39:$H$81,MATCH(AC$11,Volumes!$B$4:$H$4,0),FALSE),0) -> 38 | AD123: =IFERROR(VLOOKUP($B123,Volumes!$B$39:$H$81,MATCH(AD$11,Volumes!$B$4:$H$4,0),FALSE),0) -> 40 | AE123: =IFERROR(VLOOKUP($B123,Volumes!$B$39:$H$81,MATCH(AE$11,Volumes!$B$4:$H$4,0),FALSE),0) -> 42 | AF123: =IFERROR(VLOOKUP($B123,Volumes!$B$39:$H$81,MATCH(AF$11,Volumes!$B$4:$H$4,0),FALSE),0) -> 44 | AM123: 201.4372202 | AN123: 194.6815991 | AO123: 188.6680284 | AP123: 182.8402124 | AQ123: 177.6778721 | AX123: 206.3723337 | AY123: 204.3376602 | AZ123: 202.8773568 | BA123: 201.4274895 | BB123: 200.5358959 | BJ123: 7251.739929 | BK123: 7397.900767 | BL123: 7546.721136 | BM123: 7679.288922 | BN123: 7817.826371 | BV123: 7429.404015 | BW123: 7764.831089 | BX123: 8115.094272 | BY123: 8459.954557 | BZ123: 8823.579419
B124: =Inputs!$C118 -> 125W Mercury Vapour | C124: Obsolete, no new Connections | D124: =IF($C124="NA","",'Unsmoothed Prices'!D122) -> 45.386 | E124: =IF($C124="NA","",'Unsmoothed Prices'!E122) -> 46.57436166 | F124: 45.13571405 | G124: 43.7415052 | H124: 42.39036243 | I124: 41.08095546 | Q124: 47.71541077 | R124: 47.37441157 | S124: 47.03584933 | T124: 46.69970663 | U124: 46.36596618 | AB124: =IFERROR(VLOOKUP($B124,Volumes!$B$39:$H$81,MATCH(AB$11,Volumes!$B$4:$H$4,0),FALSE),0) -> 0 | AC124: =IFERROR(VLOOKUP($B124,Volumes!$B$39:$H$81,MATCH(AC$11,Volumes!$B$4:$H$4,0),FALSE),0) -> 0 | AD124: =IFERROR(VLOOKUP($B124,Volumes!$B$39:$H$81,MATCH(AD$11,Volumes!$B$4:$H$4,0),FALSE),0) -> 0 | AE124: =IFERROR(VLOOKUP($B124,Volumes!$B$39:$H$81,MATCH(AE$11,Volumes!$B$4:$H$4,0),FALSE),0) -> 0 | AF124: =IFERROR(VLOOKUP($B124,Volumes!$B$39:$H$81,MATCH(AF$11,Volumes!$B$4:$H$4,0),FALSE),0) -> 0 | AM124: 170.4621637 | AN124: 164.7453563 | AO124: 159.656494 | AP124: 154.7248229 | AQ124: 150.356297 | AX124: 174.6384034 | AY124: 172.9166022 | AZ124: 171.68085 | BA124: 170.4539292 | BB124: 169.6994362 | BJ124: 0 | BK124: 0 | BL124: 0 | BM124: 0 | BN124: 0 | BV124: 0 | BW124: 0 | BX124: 0 | BY124: 0 | BZ124: 0
B125: =Inputs!$C119 -> 250W Mercury Vapour | C125: Obsolete, no new Connections | D125: =IF($C125="NA","",'Unsmoothed Prices'!D123) -> 45.865 | E125: =IF($C125="NA","",'Unsmoothed Prices'!E123) -> 47.01704205 | F125: 45.56472036 | G125: 44.15725982 | H125: 42.7932747 | I125: 41.47142207 | Q125: 48.16893661 | R125: 47.82469627 | S125: 47.48291606 | T125: 47.14357839 | U125: 46.8066658 | AB125: =IFERROR(VLOOKUP($B125,Volumes!$B$39:$H$81,MATCH(AB$11,Volumes!$B$4:$H$4,0),FALSE),0) -> 386 | AC125: =IFERROR(VLOOKUP($B125,Volumes!$B$39:$H$81,MATCH(AC$11,Volumes!$B$4:$H$4,0),FALSE),0) -> 356 | AD125: =IFERROR(VLOOKUP($B125,Volumes!$B$39:$H$81,MATCH(AD$11,Volumes!$B$4:$H$4,0),FALSE),0) -> 301 | AE125: =IFERROR(VLOOKUP($B125,Volumes!$B$39:$H$81,MATCH(AE$11,Volumes!$B$4:$H$4,0),FALSE),0) -> 248 | AF125: =IFERROR(VLOOKUP($B125,Volumes!$B$39:$H$81,MATCH(AF$11,Volumes!$B$4:$H$4,0),FALSE),0) -> 231 | AM125: 172.0823739 | AN125: 166.3112293 | AO125: 161.1739984 | AP125: 156.1954527 | AQ125: 151.7854048 | AX125: 176.298308 | AY125: 174.5601414 | AZ125: 173.3126436 | BA125: 172.0740611 | BB125: 171.3123968 | BJ125: 66423.79632 | BK125: 59206.79764 | BL125: 48513.3735 | BM125: 38736.47226 | BN125: 35062.4285 | BV125: 68051.14688 | BW125: 62143.41034 | BX125: 52167.10573 | BY125: 42674.36716 | BZ125: 39573.16367
B126: =Inputs!$C120 -> 0 | C126: NA | D126: =IF($C126="NA","",'Unsmoothed Prices'!D124) ->  | E126: =IF($C126="NA","",'Unsmoothed Prices'!E124) ->  | F126: =IF($C126="NA","",E126*(1-F$9)) ->  | AB126: =IFERROR(VLOOKUP($B126,Volumes!$B$39:$H$81,MATCH(AB$11,Volumes!$B$4:$H$4,0),FALSE),0) -> 0 | AC126: =IFERROR(VLOOKUP($B126,Volumes!$B$39:$H$81,MATCH(AC$11,Volumes!$B$4:$H$4,0),FALSE),0) -> 0 | AD126: =IFERROR(VLOOKUP($B126,Volumes!$B$39:$H$81,MATCH(AD$11,Volumes!$B$4:$H$4,0),FALSE),0) -> 0 | AE126: =IFERROR(VLOOKUP($B126,Volumes!$B$39:$H$81,MATCH(AE$11,Volumes!$B$4:$H$4,0),FALSE),0) -> 0 | AF126: =IFERROR(VLOOKUP($B126,Volumes!$B$39:$H$81,MATCH(AF$11,Volumes!$B$4:$H$4,0),FALSE),0) -> 0 | BJ126: 0 | BK126: 0 | BL126: 0 | BM126: 0 | BN126: 0 | BV126: 0 | BW126: 0 | BX126: 0 | BY126: 0 | BZ126: 0
B127: =Inputs!$C121 -> 400W Mercury Vapour | C127: Obsolete, no new Connections | D127: =IF($C127="NA","",'Unsmoothed Prices'!D125) -> 48.033 | E127: =IF($C127="NA","",'Unsmoothed Prices'!E125) -> 48.56433528 | F127: =IF($C127="NA","",E127*(1-F$9)) -> 47.06421885 | G127: 45.61043991 | H127: 44.20156713 | I127: 42.83621339 | Q127: 49.75413777 | R127: 49.39856877 | S127: 49.04554084 | T127: 48.69503584 | U127: 48.34703573 | AB127: =IFERROR(VLOOKUP($B127,Volumes!$B$39:$H$81,MATCH(AB$11,Volumes!$B$4:$H$4,0),FALSE),0) -> 29 | AC127: =IFERROR(VLOOKUP($B127,Volumes!$B$39:$H$81,MATCH(AC$11,Volumes!$B$4:$H$4,0),FALSE),0) -> 27 | AD127: =IFERROR(VLOOKUP($B127,Volumes!$B$39:$H$81,MATCH(AD$11,Volumes!$B$4:$H$4,0),FALSE),0) -> 23 | AE127: =IFERROR(VLOOKUP($B127,Volumes!$B$39:$H$81,MATCH(AE$11,Volumes!$B$4:$H$4,0),FALSE),0) -> 20 | AF127: =IFERROR(VLOOKUP($B127,Volumes!$B$39:$H$81,MATCH(AF$11,Volumes!$B$4:$H$4,0),FALSE),0) -> 17 | AM127: 177.7454671 | AN127: 171.7843988 | AO127: 166.4781057 | AP127: 161.33572 | AQ127: 156.780541 | AX127: 182.1001442 | AY127: 180.304776 | AZ127: 179.0162241 | BA127: 177.7368808 | BB127: 176.9501508 | BJ127: 5154.618547 | BK127: 4638.178768 | BL127: 3828.996431 | BM127: 3226.714401 | BN127: 2665.269197 | BV127: 5280.904183 | BW127: 4868.228952 | BX127: 4117.373154 | BY127: 3554.737616 | BZ127: 3008.152563
B128: =Inputs!$C122 -> 50W Mercury Vapour | C128: Obsolete, no new Connections | D128: =IF($C128="NA","",'Unsmoothed Prices'!D126) -> 33.519 | E128: =IF($C128="NA","",'Unsmoothed Prices'!E126) -> 37.10476 | F128: =IF($C128="NA","",E128*(1-F$9)) -> 35.95862139 | G128: 34.84788615 | H128: 33.7714607 | I128: 32.72828523 | Q128: 38.0138085 | R128: 37.742142 | S128: 37.47241698 | T128: 37.20461956 | U128: 36.93873595 | AB128: =IFERROR(VLOOKUP($B128,Volumes!$B$39:$H$81,MATCH(AB$11,Volumes!$B$4:$H$4,0),FALSE),0) -> 0 | AC128: =IFERROR(VLOOKUP($B128,Volumes!$B$39:$H$81,MATCH(AC$11,Volumes!$B$4:$H$4,0),FALSE),0) -> 0 | AD128: =IFERROR(VLOOKUP($B128,Volumes!$B$39:$H$81,MATCH(AD$11,Volumes!$B$4:$H$4,0),FALSE),0) -> 0 | AE128: =IFERROR(VLOOKUP($B128,Volumes!$B$39:$H$81,MATCH(AE$11,Volumes!$B$4:$H$4,0),FALSE),0) -> 0 | AF128: =IFERROR(VLOOKUP($B128,Volumes!$B$39:$H$81,MATCH(AF$11,Volumes!$B$4:$H$4,0),FALSE),0) -> 0 | AM128: 135.8034216 | AN128: 131.2489681 | AO128: 127.1947844 | AP128: 123.2658315 | AQ128: 119.785524 | AX128: 139.1305391 | AY128: 137.7588183 | AZ128: 136.774322 | BA128: 135.7968614 | BB128: 135.1957736 | BJ128: 0 | BK128: 0 | BL128: 0 | BM128: 0 | BN128: 0 | BV128: 0 | BW128: 0 | BX128: 0 | BY128: 0 | BZ128: 0
B129: =Inputs!$C123 -> 80W Mercury Vapour Art decorative | C129: Obsolete, no new Connections | D129: =IF($C129="NA","",'Unsmoothed Prices'!D127) -> 50.566 | E129: =IF($C129="NA","",'Unsmoothed Prices'!E127) -> 53.53926934 | F129: =IF($C129="NA","",E129*(1-F$9)) -> 51.88548087 | G129: 50.28277671 | H129: 48.7295789 | I129: 47.22435822 | Q129: 54.85095528 | R129: 54.45896176 | S129: 54.06976963 | T129: 53.68335887 | U129: 53.2997096 | AB129: =IFERROR(VLOOKUP($B129,Volumes!$B$39:$H$81,MATCH(AB$11,Volumes!$B$4:$H$4,0),FALSE),0) -> 40 | AC129: =IFERROR(VLOOKUP($B129,Volumes!$B$39:$H$81,MATCH(AC$11,Volumes!$B$4:$H$4,0),FALSE),0) -> 40 | AD129: =IFERROR(VLOOKUP($B129,Volumes!$B$39:$H$81,MATCH(AD$11,Volumes!$B$4:$H$4,0),FALSE),0) -> 40 | AE129: =IFERROR(VLOOKUP($B129,Volumes!$B$39:$H$81,MATCH(AE$11,Volumes!$B$4:$H$4,0),FALSE),0) -> 40 | AF129: =IFERROR(VLOOKUP($B129,Volumes!$B$39:$H$81,MATCH(AF$11,Volumes!$B$4:$H$4,0),FALSE),0) -> 40 | AM129: 195.9537258 | AN129: 189.3820052 | AO129: 183.532135 | AP129: 177.862963 | AQ129: 172.8411511 | AX129: 200.7544963 | AY129: 198.7752104 | AZ129: 197.3546591 | BA129: 195.9442599 | BB129: 195.0769371 | BJ129: 7838.149031 | BK129: 7575.280208 | BL129: 7341.2854 | BM129: 7114.518519 | BN129: 6913.646043 | BV129: 8030.179853 | BW129: =IFERROR(AY129*AC129,0) -> 7951.008417 | BX129: 7894.186366 | BY129: 7837.770395 | BZ129: 7803.077485
B130: =Inputs!$C124 -> 80W Mercury Vapour | C130: Obsolete, no new Connections | D130: =IF($C130="NA","",'Unsmoothed Prices'!D128) -> 33.52 | E130: =IF($C130="NA","",'Unsmoothed Prices'!E128) -> 37.10162783 | F130: =IF($C130="NA","",E130*(1-F$9)) -> 35.95558597 | G130: 34.84494449 | H130: 33.7686099 | I130: 32.7255225 | Q130: 38.01059959 | R130: 37.73895603 | S130: 37.46925377 | T130: 37.20147895 | U130: 36.93561779 | AB130: =IFERROR(VLOOKUP($B130,Volumes!$B$39:$H$81,MATCH(AB$11,Volumes!$B$4:$H$4,0),FALSE),0) -> 3200 | AC130: =IFERROR(VLOOKUP($B130,Volumes!$B$39:$H$81,MATCH(AC$11,Volumes!$B$4:$H$4,0),FALSE),0) -> 0 | AD130: =IFERROR(VLOOKUP($B130,Volumes!$B$39:$H$81,MATCH(AD$11,Volumes!$B$4:$H$4,0),FALSE),0) -> 0 | AE130: =IFERROR(VLOOKUP($B130,Volumes!$B$39:$H$81,MATCH(AE$11,Volumes!$B$4:$H$4,0),FALSE),0) -> 0 | AF130: =IFERROR(VLOOKUP($B130,Volumes!$B$39:$H$81,MATCH(AF$11,Volumes!$B$4:$H$4,0),FALSE),0) -> 0 | AM130: 135.7919579 | AN130: 131.2378888 | AO130: 127.1840474 | AP130: 123.2554261 | AQ130: 119.7754123 | AX130: 139.1187945 | AY130: 137.7471895 | AZ130: 136.7627763 | BA130: 135.7853982 | BB130: 135.1843611 | BJ130: 434534.2652 | BK130: 0 | BL130: 0 | BM130: 0 | BN130: 0 | BV130: 445180.1424 | BW130: 0 | BX130: 0 | BY130: 0 | BZ130: 0
B131: =Inputs!$C125 -> 14W LED | C131: Offered | D131: =IF($C131="NA","",'Unsmoothed Prices'!D129) ->  | E131: =IF($C131="NA","",'Unsmoothed Prices'!E129) -> 35.743309 | F131: =IF($C131="NA","",E131*(1-F$9)) -> 34.6392246 | G131: 33.56924456 | H131: 32.5323154 | I131: 31.52741622 | Q131: 36.61900261 | R131: =IF($C131="NA","",F131*R$9) -> 36.35730413 | S131: 36.09747588 | T131: 35.8395045 | U131: 35.58337672 | AB131: =IFERROR(VLOOKUP($B131,Volumes!$B$39:$H$81,MATCH(AB$11,Volumes!$B$4:$H$4,0),FALSE),0) -> 10871 | AC131: =IFERROR(VLOOKUP($B131,Volumes!$B$39:$H$81,MATCH(AC$11,Volumes!$B$4:$H$4,0),FALSE),0) -> 12681 | AD131: =IFERROR(VLOOKUP($B131,Volumes!$B$39:$H$81,MATCH(AD$11,Volumes!$B$4:$H$4,0),FALSE),0) -> 12761 | AE131: =IFERROR(VLOOKUP($B131,Volumes!$B$39:$H$81,MATCH(AE$11,Volumes!$B$4:$H$4,0),FALSE),0) -> 12841 | AF131: =IFERROR(VLOOKUP($B131,Volumes!$B$39:$H$81,MATCH(AF$11,Volumes!$B$4:$H$4,0),FALSE),0) -> 12876 | AM131: 130.820511 | AN131: 126.4331698 | AO131: 122.5277426 | AP131: 118.7429512 | AQ131: 115.3903434 | AX131: 134.0255496 | AY131: =IF($C131="NA","",(R131*AY$9)/100) -> 132.7041601 | AZ131: 131.755787 | BA131: 130.8141914 | BB131: 130.2351588 | BJ131: 1422149.775 | BK131: 1603299.026 | BL131: 1563576.524 | BM131: 1524778.236 | BN131: 1485766.061 | BV131: 1456991.749 | BW131: =IFERROR(AY131*AC131,0) -> 1682821.454 | BX131: 1681335.598 | BY131: 1679785.032 | BZ131: 1676907.905
B132: =Inputs!$C126 -> New technology - Minor | C132: Offered | D132: =IF($C132="NA","",'Unsmoothed Prices'!D130) ->  | E132: =IF($C132="NA","",'Unsmoothed Prices'!E130) -> 35.743309 | F132: =IF($C132="NA","",E132*(1-F$9)) -> 34.6392246 | G132: 33.56924456 | H132: 32.5323154 | I132: 31.52741622 | Q132: 36.61900261 | R132: 36.35730413 | S132: 36.09747588 | T132: 35.8395045 | U132: 35.58337672 | AB132: =IFERROR(VLOOKUP($B132,Volumes!$B$39:$H$81,MATCH(AB$11,Volumes!$B$4:$H$4,0),FALSE),0) -> 0 | AC132: =IFERROR(VLOOKUP($B132,Volumes!$B$39:$H$81,MATCH(AC$11,Volumes!$B$4:$H$4,0),FALSE),0) -> 0 | AD132: =IFERROR(VLOOKUP($B132,Volumes!$B$39:$H$81,MATCH(AD$11,Volumes!$B$4:$H$4,0),FALSE),0) -> 0 | AE132: =IFERROR(VLOOKUP($B132,Volumes!$B$39:$H$81,MATCH(AE$11,Volumes!$B$4:$H$4,0),FALSE),0) -> 0 | AF132: =IFERROR(VLOOKUP($B132,Volumes!$B$39:$H$81,MATCH(AF$11,Volumes!$B$4:$H$4,0),FALSE),0) -> 0 | AM132: 130.820511 | AN132: 126.4331698 | AO132: 122.5277426 | AP132: 118.7429512 | AQ132: 115.3903434 | AX132: 134.0255496 | AY132: 132.7041601 | AZ132: 131.755787 | BA132: 130.8141914 | BB132: 130.2351588 | BJ132: 0 | BK132: 0 | BL132: 0 | BM132: 0 | BN132: 0 | BV132: 0 | BW132: 0 | BX132: 0 | BY132: 0 | BZ132: 0
B133: =Inputs!$C127 -> New technology - Major | C133: Offered | D133: =IF($C133="NA","",'Unsmoothed Prices'!D131) ->  | E133: =IF($C133="NA","",'Unsmoothed Prices'!E131) -> 47.71134029 | F133: =IF($C133="NA","",E133*(1-F$9)) -> 46.23757225 | G133: 44.80932781 | H133: 43.42520079 | I133: 42.08382843 | Q133: =IF($C133="NA","",E133*Q$9) -> 48.88024482 | R133: 48.53092111 | S133: 48.18409385 | T133: 47.83974519 | U133: 47.49785744 | AB133: =IFERROR(VLOOKUP($B133,Volumes!$B$39:$H$81,MATCH(AB$11,Volumes!$B$4:$H$4,0),FALSE),0) -> 0 | AC133: =IFERROR(VLOOKUP($B133,Volumes!$B$39:$H$81,MATCH(AC$11,Volumes!$B$4:$H$4,0),FALSE),0) -> 0 | AD133: =IFERROR(VLOOKUP($B133,Volumes!$B$39:$H$81,MATCH(AD$11,Volumes!$B$4:$H$4,0),FALSE),0) -> 0 | AE133: =IFERROR(VLOOKUP($B133,Volumes!$B$39:$H$81,MATCH(AE$11,Volumes!$B$4:$H$4,0),FALSE),0) -> 0 | AF133: =IFERROR(VLOOKUP($B133,Volumes!$B$39:$H$81,MATCH(AF$11,Volumes!$B$4:$H$4,0),FALSE),0) -> 0 | AM133: =IF($C133="NA","",(E133*AM$9)/100) -> 174.6235055 | AN133: 168.7671387 | AO133: 163.5540465 | AP133: 158.5019829 | AQ133: 154.0268121 | AX133: =IF($C133="NA","",(Q133*AX$9)/100) -> 178.901696 | AY133: 177.1378621 | AZ133: 175.8719425 | BA133: 174.61507 | BB133: 173.8421582 | BJ133: =IFERROR(AM133*AB133,0) -> 0 | BK133: 0 | BL133: 0 | BM133: 0 | BN133: 0 | BV133: =IFERROR(AX133*AB133,0) -> 0 | BW133: 0 | BX133: 0 | BY133: 0 | BZ133: 0
AB134: =SUM(AB75:AB131) -> 32500 | AC134: 31724 | AD134: 32151 | AE134: 32714 | AF134: 33321 | BJ134: =SUM(BJ75:BJ133) -> 5027033.867 | BK134: 4776289.805 | BL134: 4704747.128 | BM134: 4653937.545 | BN134: 4624934.234 | BV134: =SUM(BV75:BV133) -> 5150193.741 | BW134: 5013190.193 | BX134: 5059080.066 | BY134: 5127050.244 | BZ134: 5219925.921
AB135: =Volumes!D82=AB134 -> TRUE | AC135: =Volumes!E82=AC134 -> TRUE | AD135: =Volumes!F82=AD134 -> TRUE | AE135: =Volumes!G82=AE134 -> TRUE | AF135: =Volumes!H82=AF134 -> TRUE
B136: Total | AB136: =SUM(AB71,AB134) -> 52072 | AC136: 52157 | AD136: 52584 | AE136: 53149 | AF136: 53771 | BJ136: =BJ134+BJ71 -> 6048637.948 | BK136: 5804676.265 | BL136: 5700746.82 | BM136: 5618706.574 | BN136: 5562617.668 | BV136: =BV134+BV71 -> 6196826.622 | BW136: 6092583.849 | BX136: 6130092.397 | BY136: 6189896.326 | BZ136: 6278241.092
AB137: =Volumes!D86=AB136 -> TRUE | AC137: =Volumes!E86=AC136 -> TRUE | AD137: =Volumes!F86=AD136 -> TRUE | AE137: =Volumes!G86=AE136 -> TRUE | AF137: =Volumes!H86=AF136 -> TRUE
P138: Nominal Vanilla WACC | Q138: ='Master Data'!B45 -> 0.05509048696
Q140: =E11 -> 2019-20 | R140: 2020-21 | S140: 2021-22 | T140: 2022-23 | U140: 2023-24 | V140: 2024-25 | W140: 2025-26 | X140: 2026-27 | Y140: 2027-28 | Z140: 2028-29
P141: Unsmoothed Nominal Revenue | Q141: ='Unsmoothed Prices'!Q137*10^6 -> 6196826.622 | R141: ='Unsmoothed Prices'!R137*10^6 -> 6275249.745 | S141: ='Unsmoothed Prices'!S137*10^6 -> 5920120.062 | T141: ='Unsmoothed Prices'!T137*10^6 -> 6128228.57 | U141: ='Unsmoothed Prices'!U137*10^6 -> 6362501.655
P142: NPV | Q142: =NPV($Q$138,Q141:U141) -> 26361863.29
P144: Smoothed Nominal Revenue | Q144: =BV136 -> 6196826.622 | R144: =BW136 -> 6092583.849 | S144: =BX136 -> 6130092.397 | T144: 6189896.326 | U144: 6278241.092
Q145: =NPV($Q$138,Q144:U144) -> 26361863.29 | U145: =U144/U141-1 -> -0.01324330699
P146: Difference in NPVs | Q146: =Q145-Q142 -> 5.859881639e-06
R148: X_02 | S148: X_03 | T148: X_04 | U148: X_05
P149: X Factors | R149: 0.03088926099 | S149: =R149 -> 0.03088926099 | T149: =S149 -> 0.03088926099 | U149: 0.03088926099

Sheet Unsmoothed Prices
B1: $2018-19 base data
B4: Private Contract Lights
O6: Days | Q6: ='Master Data'!K28 -> 366 | R6: ='Master Data'!L28 -> 365 | S6: ='Master Data'!M28 -> 365 | T6: ='Master Data'!N28 -> 365 | U6: ='Master Data'!O28 -> 366
D7: 2 | E7: 16 | F7: =E7+1 -> 17 | G7: 18 | H7: 19 | I7: 20 | J7: =I7+1 -> 21 | K7: =J7+1 -> 22 | L7: =K7+1 -> 23 | M7: =L7+1 -> 24 | N7: 25 | AB7: Lookup | AC7: 5 | AD7: =AC7+1 -> 6 | AE7: 7 | AF7: 8 | AG7: 9 | AH7: =AG7+1 -> 10 | AI7: =AH7+1 -> 11 | AJ7: =AI7+1 -> 12 | AK7: =AJ7+1 -> 13 | AL7: =AK7+1 -> 14
C8: Price (cents) per Light per day | P8: Revenue ($m) - Real | AB8: Volumes
B9: Private Contract Lights | C9: Offered / No Longer Offered / NA | D9: ='Master Data'!J$34 -> 2018-19 | E9: ='Master Data'!K$34 -> 2019-20 | F9: ='Master Data'!L$34 -> 2020-21 | G9: ='Master Data'!M$34 -> 2021-22 | H9: ='Master Data'!N$34 -> 2022-23 | I9: ='Master Data'!O$34 -> 2023-24 | J9: ='Master Data'!P$34 -> 2024-25 | K9: ='Master Data'!Q$34 -> 2025-26 | L9: ='Master Data'!R$34 -> 2026-27 | M9: ='Master Data'!S$34 -> 2027-28 | N9: ='Master Data'!T$34 -> 2028-29 | Q9: =E9 -> 2019-20 | R9: =F9 -> 2020-21 | S9: =G9 -> 2021-22 | T9: =H9 -> 2022-23 | U9: =I9 -> 2023-24 | V9: =J9 -> 2024-25 | W9: 2025-26 | X9: 2026-27 | Y9: 2027-28 | Z9: 2028-29 | AC9: =Q9 -> 2019-20 | AD9: =R9 -> 2020-21 | AE9: =S9 -> 2021-22 | AF9: =T9 -> 2022-23 | AG9: =U9 -> 2023-24 | AH9: =V9 -> 2024-25 | AI9: 2025-26 | AJ9: 2026-27 | AK9: 2027-28 | AL9: 2028-29
B10: =Inputs!$C69 -> 32W Compact Fluorescent | C10: Not Offered | D10: 18.221 | E10: =IF($C10="NA","",OFFSET('Combined Annuity Prices CL'!$B$10,MATCH($B10,'Combined Annuity Prices CL'!$B$10:$B$3811,0)+12,E$7)*'Master Data'!$J$37) -> 19.1459267 | F10: =IF($C10="NA","",OFFSET('Combined Annuity Prices CL'!$B$10,MATCH($B10,'Combined Annuity Prices CL'!$B$10:$B$3811,0)+12,F$7)*'Master Data'!$J$37) -> 19.20543798 | G10: =IF($C10="NA","",OFFSET('Combined Annuity Prices CL'!$B$10,MATCH($B10,'Combined Annuity Prices CL'!$B$10:$B$3811,0)+12,G$7)*'Master Data'!$J$37) -> 18.89848507 | H10: =IF($C10="NA","",OFFSET('Combined Annuity Prices CL'!$B$10,MATCH($B10,'Combined Annuity Prices CL'!$B$10:$B$3811,0)+12,H$7)*'Master Data'!$J$37) -> 18.80243178 | I10: =IF($C10="NA","",OFFSET('Combined Annuity Prices CL'!$B$10,MATCH($B10,'Combined Annuity Prices CL'!$B$10:$B$3811,0)+12,I$7)*'Master Data'!$J$37) -> 18.64477909 | Q10: =IF($C10="NA","",E10*AC10*Q$6/100/10^6) -> 0 | R10: =IF($C10="NA","",F10*AD10*R$6/100/10^6) -> 0 | S10: =IF($C10="NA","",G10*AE10*S$6/100/10^6) -> 0 | T10: =IF($C10="NA","",H10*AF10*T$6/100/10^6) -> 0 | U10: =IF($C10="NA","",I10*AG10*U$6/100/10^6) -> 0 | AC10: =IFERROR(VLOOKUP($B10,Volumes!$B$4:$H$33,MATCH(AC$9,Volumes!$B$4:$H$4,0),FALSE),0) -> 0 | AD10: =IFERROR(VLOOKUP($B10,Volumes!$B$4:$H$33,MATCH(AD$9,Volumes!$B$4:$H$4,0),FALSE),0) -> 0 | AE10: =IFERROR(VLOOKUP($B10,Volumes!$B$4:$H$33,MATCH(AE$9,Volumes!$B$4:$H$4,0),FALSE),0) -> 0 | AF10: =IFERROR(VLOOKUP($B10,Volumes!$B$4:$H$33,MATCH(AF$9,Volumes!$B$4:$H$4,0),FALSE),0) -> 0 | AG10: =IFERROR(VLOOKUP($B10,Volumes!$B$4:$H$33,MATCH(AG$9,Volumes!$B$4:$H$4,0),FALSE),0) -> 0
B11: =Inputs!$C70 -> 42W Compact Fluorescent | C11: Offered | D11: 18.222 | E11: =IF($C11="NA","",OFFSET('Combined Annuity Prices CL'!$B$10,MATCH($B11,'Combined Annuity Prices CL'!$B$10:$B$3811,0)+12,E$7)*'Master Data'!$J$37) -> 19.1459267 | F11: =IF($C11="NA","",OFFSET('Combined Annuity Prices CL'!$B$10,MATCH($B11,'Combined Annuity Prices CL'!$B$10:$B$3811,0)+12,F$7)*'Master Data'!$J$37) -> 19.20543798 | G11: =IF($C11="NA","",OFFSET('Combined Annuity Prices CL'!$B$10,MATCH($B11,'Combined Annuity Prices CL'!$B$10:$B$3811,0)+12,G$7)*'Master Data'!$J$37) -> 18.89848507 | H11: =IF($C11="NA","",OFFSET('Combined Annuity Prices CL'!$B$10,MATCH($B11,'Combined Annuity Prices CL'!$B$10:$B$3811,0)+12,H$7)*'Master Data'!$J$37) -> 18.80243178 | I11: =IF($C11="NA","",OFFSET('Combined Annuity Prices CL'!$B$10,MATCH($B11,'Combined Annuity Prices CL'!$B$10:$B$3811,0)+12,I$7)*'Master Data'!$J$37) -> 18.64477909 | Q11: 0.001962074568 | R11: 0.001962795761 | S11: 0.001931425174 | T11: 0.001921608528 | U11: 0.001910716961 | AC11: =IFERROR(VLOOKUP($B11,Volumes!$B$4:$H$33,MATCH(AC$9,Volumes!$B$4:$H$4,0),FALSE),0) -> 28 | AD11: =IFERROR(VLOOKUP($B11,Volumes!$B$4:$H$33,MATCH(AD$9,Volumes!$B$4:$H$4,0),FALSE),0) -> 28 | AE11: =IFERROR(VLOOKUP($B11,Volumes!$B$4:$H$33,MATCH(AE$9,Volumes!$B$4:$H$4,0),FALSE),0) -> 28 | AF11: =IFERROR(VLOOKUP($B11,Volumes!$B$4:$H$33,MATCH(AF$9,Volumes!$B$4:$H$4,0),FALSE),0) -> 28 | AG11: =IFERROR(VLOOKUP($B11,Volumes!$B$4:$H$33,MATCH(AG$9,Volumes!$B$4:$H$4,0),FALSE),0) -> 28
B12: =Inputs!$C71 -> 42W Compact Fluorescent - Bottom Pole Entry | C12: Offered | D12: 18.222 | E12: =IF($C12="NA","",OFFSET('Combined Annuity Prices CL'!$B$10,MATCH($B12,'Combined Annuity Prices CL'!$B$10:$B$3811,0)+12,E$7)*'Master Data'!$J$37) -> 19.1459267 | F12: =IF($C12="NA","",OFFSET('Combined Annuity Prices CL'!$B$10,MATCH($B12,'Combined Annuity Prices CL'!$B$10:$B$3811,0)+12,F$7)*'Master Data'!$J$37) -> 19.20543798 | G12: =IF($C12="NA","",OFFSET('Combined Annuity Prices CL'!$B$10,MATCH($B12,'Combined Annuity Prices CL'!$B$10:$B$3811,0)+12,G$7)*'Master Data'!$J$37) -> 18.89848507 | H12: =IF($C12="NA","",OFFSET('Combined Annuity Prices CL'!$B$10,MATCH($B12,'Combined Annuity Prices CL'!$B$10:$B$3811,0)+12,H$7)*'Master Data'!$J$37) -> 18.80243178 | I12: =IF($C12="NA","",OFFSET('Combined Annuity Prices CL'!$B$10,MATCH($B12,'Combined Annuity Prices CL'!$B$10:$B$3811,0)+12,I$7)*'Master Data'!$J$37) -> 18.64477909 | Q12: 0 | R12: 0 | S12: 0 | T12: 0 | U12: 0 | AC12: =IFERROR(VLOOKUP($B12,Volumes!$B$4:$H$33,MATCH(AC$9,Volumes!$B$4:$H$4,0),FALSE),0) -> 0 | AD12: =IFERROR(VLOOKUP($B12,Volumes!$B$4:$H$33,MATCH(AD$9,Volumes!$B$4:$H$4,0),FALSE),0) -> 0 | AE12: =IFERROR(VLOOKUP($B12,Volumes!$B$4:$H$33,MATCH(AE$9,Volumes!$B$4:$H$4,0),FALSE),0) -> 0 | AF12: =IFERROR(VLOOKUP($B12,Volumes!$B$4:$H$33,MATCH(AF$9,Volumes!$B$4:$H$4,0),FALSE),0) -> 0 | AG12: =IFERROR(VLOOKUP($B12,Volumes!$B$4:$H$33,MATCH(AG$9,Volumes!$B$4:$H$4,0),FALSE),0) -> 0
B13: =Inputs!$C72 -> 2x24W Compact Fluorescent | C13: Not Offered | D13: 18.545 | E13: =IF($C13="NA","",OFFSET('Combined Annuity Prices CL'!$B$10,MATCH($B13,'Combined Annuity Prices CL'!$B$10:$B$3811,0)+12,E$7)*'Master Data'!$J$37) -> 19.45914395 | F13: =IF($C13="NA","",OFFSET('Combined Annuity Prices CL'!$B$10,MATCH($B13,'Combined Annuity Prices CL'!$B$10:$B$3811,0)+12,F$7)*'Master Data'!$J$37) -> 19.51969929 | G13: =IF($C13="NA","",OFFSET('Combined Annuity Prices CL'!$B$10,MATCH($B13,'Combined Annuity Prices CL'!$B$10:$B$3811,0)+12,G$7)*'Master Data'!$J$37) -> 19.21274638 | H13: =IF($C13="NA","",OFFSET('Combined Annuity Prices CL'!$B$10,MATCH($B13,'Combined Annuity Prices CL'!$B$10:$B$3811,0)+12,H$7)*'Master Data'!$J$37) -> 19.11564903 | I13: =IF($C13="NA","",OFFSET('Combined Annuity Prices CL'!$B$10,MATCH($B13,'Combined Annuity Prices CL'!$B$10:$B$3811,0)+12,I$7)*'Master Data'!$J$37) -> 18.95799635 | Q13: 0 | R13: 0 | S13: 0 | T13: 0 | U13: 0 | AC13: =IFERROR(VLOOKUP($B13,Volumes!$B$4:$H$33,MATCH(AC$9,Volumes!$B$4:$H$4,0),FALSE),0) -> 0 | AD13: =IFERROR(VLOOKUP($B13,Volumes!$B$4:$H$33,MATCH(AD$9,Volumes!$B$4:$H$4,0),FALSE),0) -> 0 | AE13: =IFERROR(VLOOKUP($B13,Volumes!$B$4:$H$33,MATCH(AE$9,Volumes!$B$4:$H$4,0),FALSE),0) -> 0 | AF13: =IFERROR(VLOOKUP($B13,Volumes!$B$4:$H$33,MATCH(AF$9,Volumes!$B$4:$H$4,0),FALSE),0) -> 0 | AG13: =IFERROR(VLOOKUP($B13,Volumes!$B$4:$H$33,MATCH(AG$9,Volumes!$B$4:$H$4,0),FALSE),0) -> 0
B14: =Inputs!$C73 -> 1x20W Fluorescent | C14: Obsolete, no new Connections | D14: 18.189 | E14: =IF($C14="NA","",OFFSET('Combined Annuity Prices CL'!$B$10,MATCH($B14,'Combined Annuity Prices CL'!$B$10:$B$3811,0)+12,E$7)*'Master Data'!$J$37) -> 19.11982526 | F14: =IF($C14="NA","",OFFSET('Combined Annuity Prices CL'!$B$10,MATCH($B14,'Combined Annuity Prices CL'!$B$10:$B$3811,0)+12,F$7)*'Master Data'!$J$37) -> 19.17933654 | G14: =IF($C14="NA","",OFFSET('Combined Annuity Prices CL'!$B$10,MATCH($B14,'Combined Annuity Prices CL'!$B$10:$B$3811,0)+12,G$7)*'Master Data'!$J$37) -> 18.87238363 | H14: =IF($C14="NA","",OFFSET('Combined Annuity Prices CL'!$B$10,MATCH($B14,'Combined Annuity Prices CL'!$B$10:$B$3811,0)+12,H$7)*'Master Data'!$J$37) -> 18.77633034 | I14: =IF($C14="NA","",OFFSET('Combined Annuity Prices CL'!$B$10,MATCH($B14,'Combined Annuity Prices CL'!$B$10:$B$3811,0)+12,I$7)*'Master Data'!$J$37) -> 18.61867765 | Q14: 0 | R14: 0 | S14: 0 | T14: 0 | U14: 0 | AC14: =IFERROR(VLOOKUP($B14,Volumes!$B$4:$H$33,MATCH(AC$9,Volumes!$B$4:$H$4,0),FALSE),0) -> 0 | AD14: =IFERROR(VLOOKUP($B14,Volumes!$B$4:$H$33,MATCH(AD$9,Volumes!$B$4:$H$4,0),FALSE),0) -> 0 | AE14: =IFERROR(VLOOKUP($B14,Volumes!$B$4:$H$33,MATCH(AE$9,Volumes!$B$4:$H$4,0),FALSE),0) -> 0 | AF14: =IFERROR(VLOOKUP($B14,Volumes!$B$4:$H$33,MATCH(AF$9,Volumes!$B$4:$H$4,0),FALSE),0) -> 0 | AG14: =IFERROR(VLOOKUP($B14,Volumes!$B$4:$H$33,MATCH(AG$9,Volumes!$B$4:$H$4,0),FALSE),0) -> 0
B15: =Inputs!$C74 -> 1x40W Fluorescent | C15: Obsolete, no new Connections | D15: 18.208 | E15: =IF($C15="NA","",OFFSET('Combined Annuity Prices CL'!$B$10,MATCH($B15,'Combined Annuity Prices CL'!$B$10:$B$3811,0)+12,E$7)*'Master Data'!$J$37) -> 19.1386183 | F15: =IF($C15="NA","",OFFSET('Combined Annuity Prices CL'!$B$10,MATCH($B15,'Combined Annuity Prices CL'!$B$10:$B$3811,0)+12,F$7)*'Master Data'!$J$37) -> 19.19812957 | G15: =IF($C15="NA","",OFFSET('Combined Annuity Prices CL'!$B$10,MATCH($B15,'Combined Annuity Prices CL'!$B$10:$B$3811,0)+12,G$7)*'Master Data'!$J$37) -> 18.89117667 | H15: =IF($C15="NA","",OFFSET('Combined Annuity Prices CL'!$B$10,MATCH($B15,'Combined Annuity Prices CL'!$B$10:$B$3811,0)+12,H$7)*'Master Data'!$J$37) -> 18.79512337 | I15: =IF($C15="NA","",OFFSET('Combined Annuity Prices CL'!$B$10,MATCH($B15,'Combined Annuity Prices CL'!$B$10:$B$3811,0)+12,I$7)*'Master Data'!$J$37) -> 18.63747069 | Q15: 0 | R15: 0 | S15: 0 | T15: 0 | U15: 0 | AC15: =IFERROR(VLOOKUP($B15,Volumes!$B$4:$H$33,MATCH(AC$9,Volumes!$B$4:$H$4,0),FALSE),0) -> 0 | AD15: =IFERROR(VLOOKUP($B15,Volumes!$B$4:$H$33,MATCH(AD$9,Volumes!$B$4:$H$4,0),FALSE),0) -> 0 | AE15: =IFERROR(VLOOKUP($B15,Volumes!$B$4:$H$33,MATCH(AE$9,Volumes!$B$4:$H$4,0),FALSE),0) -> 0 | AF15: =IFERROR(VLOOKUP($B15,Volumes!$B$4:$H$33,MATCH(AF$9,Volumes!$B$4:$H$4,0),FALSE),0) -> 0 | AG15: =IFERROR(VLOOKUP($B15,Volumes!$B$4:$H$33,MATCH(AG$9,Volumes!$B$4:$H$4,0),FALSE),0) -> 0
B16: =Inputs!$C75 -> 2x20W Fluorescent | C16: Obsolete, no new Connections | D16: 18.48 | E16: =IF($C16="NA","",OFFSET('Combined Annuity Prices CL'!$B$10,MATCH($B16,'Combined Annuity Prices CL'!$B$10:$B$3811,0)+12,E$7)*'Master Data'!$J$37) -> 19.40798513 | F16: =IF($C16="NA","",OFFSET('Combined Annuity Prices CL'!$B$10,MATCH($B16,'Combined Annuity Prices CL'!$B$10:$B$3811,0)+12,F$7)*'Master Data'!$J$37) -> 19.46854047 | G16: =IF($C16="NA","",OFFSET('Combined Annuity Prices CL'!$B$10,MATCH($B16,'Combined Annuity Prices CL'!$B$10:$B$3811,0)+12,G$7)*'Master Data'!$J$37) -> 19.16158756 | H16: =IF($C16="NA","",OFFSET('Combined Annuity Prices CL'!$B$10,MATCH($B16,'Combined Annuity Prices CL'!$B$10:$B$3811,0)+12,H$7)*'Master Data'!$J$37) -> 19.06553427 | I16: =IF($C16="NA","",OFFSET('Combined Annuity Prices CL'!$B$10,MATCH($B16,'Combined Annuity Prices CL'!$B$10:$B$3811,0)+12,I$7)*'Master Data'!$J$37) -> 18.90683753 | Q16: 0 | R16: 0 | S16: 0 | T16: 0 | U16: 0 | AC16: =IFERROR(VLOOKUP($B16,Volumes!$B$4:$H$33,MATCH(AC$9,Volumes!$B$4:$H$4,0),FALSE),0) -> 0 | AD16: =IFERROR(VLOOKUP($B16,Volumes!$B$4:$H$33,MATCH(AD$9,Volumes!$B$4:$H$4,0),FALSE),0) -> 0 | AE16: =IFERROR(VLOOKUP($B16,Volumes!$B$4:$H$33,MATCH(AE$9,Volumes!$B$4:$H$4,0),FALSE),0) -> 0 | AF16: =IFERROR(VLOOKUP($B16,Volumes!$B$4:$H$33,MATCH(AF$9,Volumes!$B$4:$H$4,0),FALSE),0) -> 0 | AG16: =IFERROR(VLOOKUP($B16,Volumes!$B$4:$H$33,MATCH(AG$9,Volumes!$B$4:$H$4,0),FALSE),0) -> 0
B17: =Inputs!$C76 -> 2x24W Fluorescent | C17: Obsolete, no new Connections | D17: 18.322 | E17: =IF($C17="NA","",OFFSET('Combined Annuity Prices CL'!$B$10,MATCH($B17,'Combined Annuity Prices CL'!$B$10:$B$3811,0)+12,E$7)*'Master Data'!$J$37) -> 19.24197999 | F17: =IF($C17="NA","",OFFSET('Combined Annuity Prices CL'!$B$10,MATCH($B17,'Combined Annuity Prices CL'!$B$10:$B$3811,0)+12,F$7)*'Master Data'!$J$37) -> 19.30149127 | G17: =IF($C17="NA","",OFFSET('Combined Annuity Prices CL'!$B$10,MATCH($B17,'Combined Annuity Prices CL'!$B$10:$B$3811,0)+12,G$7)*'Master Data'!$J$37) -> 18.99558242 | H17: =IF($C17="NA","",OFFSET('Combined Annuity Prices CL'!$B$10,MATCH($B17,'Combined Annuity Prices CL'!$B$10:$B$3811,0)+12,H$7)*'Master Data'!$J$37) -> 18.89848507 | I17: =IF($C17="NA","",OFFSET('Combined Annuity Prices CL'!$B$10,MATCH($B17,'Combined Annuity Prices CL'!$B$10:$B$3811,0)+12,I$7)*'Master Data'!$J$37) -> 18.74083238 | Q17: 0 | R17: 0 | S17: 0 | T17: 0 | U17: 0 | AC17: =IFERROR(VLOOKUP($B17,Volumes!$B$4:$H$33,MATCH(AC$9,Volumes!$B$4:$H$4,0),FALSE),0) -> 0 | AD17: =IFERROR(VLOOKUP($B17,Volumes!$B$4:$H$33,MATCH(AD$9,Volumes!$B$4:$H$4,0),FALSE),0) -> 0 | AE17: =IFERROR(VLOOKUP($B17,Volumes!$B$4:$H$33,MATCH(AE$9,Volumes!$B$4:$H$4,0),FALSE),0) -> 0 | AF17: =IFERROR(VLOOKUP($B17,Volumes!$B$4:$H$33,MATCH(AF$9,Volumes!$B$4:$H$4,0),FALSE),0) -> 0 | AG17: =IFERROR(VLOOKUP($B17,Volumes!$B$4:$H$33,MATCH(AG$9,Volumes!$B$4:$H$4,0),FALSE),0) -> 0
B18: =Inputs!$C77 -> T5 Fluorescent 2 x 24W | C18: Obsolete, no new Connections | D18: 18.48 | E18: =IF($C18="NA","",OFFSET('Combined Annuity Prices CL'!$B$10,MATCH($B18,'Combined Annuity Prices CL'!$B$10:$B$3811,0)+12,E$7)*'Master Data'!$J$37) -> 19.40798513 | F18: =IF($C18="NA","",OFFSET('Combined Annuity Prices CL'!$B$10,MATCH($B18,'Combined Annuity Prices CL'!$B$10:$B$3811,0)+12,F$7)*'Master Data'!$J$37) -> 19.46854047 | G18: =IF($C18="NA","",OFFSET('Combined Annuity Prices CL'!$B$10,MATCH($B18,'Combined Annuity Prices CL'!$B$10:$B$3811,0)+12,G$7)*'Master Data'!$J$37) -> 19.16158756 | H18: =IF($C18="NA","",OFFSET('Combined Annuity Prices CL'!$B$10,MATCH($B18,'Combined Annuity Prices CL'!$B$10:$B$3811,0)+12,H$7)*'Master Data'!$J$37) -> 19.06553427 | I18: =IF($C18="NA","",OFFSET('Combined Annuity Prices CL'!$B$10,MATCH($B18,'Combined Annuity Prices CL'!$B$10:$B$3811,0)+12,I$7)*'Master Data'!$J$37) -> 18.90683753 | Q18: 0 | R18: 0 | S18: 0 | T18: 0 | U18: 0 | AC18: =IFERROR(VLOOKUP($B18,Volumes!$B$4:$H$33,MATCH(AC$9,Volumes!$B$4:$H$4,0),FALSE),0) -> 0 | AD18: =IFERROR(VLOOKUP($B18,Volumes!$B$4:$H$33,MATCH(AD$9,Volumes!$B$4:$H$4,0),FALSE),0) -> 0 | AE18: =IFERROR(VLOOKUP($B18,Volumes!$B$4:$H$33,MATCH(AE$9,Volumes!$B$4:$H$4,0),FALSE),0) -> 0 | AF18: =IFERROR(VLOOKUP($B18,Volumes!$B$4:$H$33,MATCH(AF$9,Volumes!$B$4:$H$4,0),FALSE),0) -> 0 | AG18: =IFERROR(VLOOKUP($B18,Volumes!$B$4:$H$33,MATCH(AG$9,Volumes!$B$4:$H$4,0),FALSE),0) -> 0
B19: =Inputs!$C78 -> 20 Fluorescent 1X20FL | C19: Obsolete, no new Connections | D19: 18.189 | E19: =IF($C19="NA","",OFFSET('Combined Annuity Prices CL'!$B$10,MATCH($B19,'Combined Annuity Prices CL'!$B$10:$B$3811,0)+12,E$7)*'Master Data'!$J$37) -> 19.11982526 | F19: =IF($C19="NA","",OFFSET('Combined Annuity Prices CL'!$B$10,MATCH($B19,'Combined Annuity Prices CL'!$B$10:$B$3811,0)+12,F$7)*'Master Data'!$J$37) -> 19.17933654 | G19: =IF($C19="NA","",OFFSET('Combined Annuity Prices CL'!$B$10,MATCH($B19,'Combined Annuity Prices CL'!$B$10:$B$3811,0)+12,G$7)*'Master Data'!$J$37) -> 18.87238363 | H19: =IF($C19="NA","",OFFSET('Combined Annuity Prices CL'!$B$10,MATCH($B19,'Combined Annuity Prices CL'!$B$10:$B$3811,0)+12,H$7)*'Master Data'!$J$37) -> 18.77633034 | I19: =IF($C19="NA","",OFFSET('Combined Annuity Prices CL'!$B$10,MATCH($B19,'Combined Annuity Prices CL'!$B$10:$B$3811,0)+12,I$7)*'Master Data'!$J$37) -> 18.61867765 | Q19: 0 | R19: 0 | S19: 0 | T19: 0 | U19: 0 | AC19: =IFERROR(VLOOKUP($B19,Volumes!$B$4:$H$33,MATCH(AC$9,Volumes!$B$4:$H$4,0),FALSE),0) -> 0 | AD19: =IFERROR(VLOOKUP($B19,Volumes!$B$4:$H$33,MATCH(AD$9,Volumes!$B$4:$H$4,0),FALSE),0) -> 0 | AE19: =IFERROR(VLOOKUP($B19,Volumes!$B$4:$H$33,MATCH(AE$9,Volumes!$B$4:$H$4,0),FALSE),0) -> 0 | AF19: =IFERROR(VLOOKUP($B19,Volumes!$B$4:$H$33,MATCH(AF$9,Volumes!$B$4:$H$4,0),FALSE),0) -> 0 | AG19: =IFERROR(VLOOKUP($B19,Volumes!$B$4:$H$33,MATCH(AG$9,Volumes!$B$4:$H$4,0),FALSE),0) -> 0
B20: =Inputs!$C79 -> 2x40W Fluorescent | C20: Obsolete, no new Connections | D20: 18.518 | E20: =IF($C20="NA","",OFFSET('Combined Annuity Prices CL'!$B$10,MATCH($B20,'Combined Annuity Prices CL'!$B$10:$B$3811,0)+12,E$7)*'Master Data'!$J$37) -> 19.44557121 | F20: =IF($C20="NA","",OFFSET('Combined Annuity Prices CL'!$B$10,MATCH($B20,'Combined Annuity Prices CL'!$B$10:$B$3811,0)+12,F$7)*'Master Data'!$J$37) -> 19.50612654 | G20: =IF($C20="NA","",OFFSET('Combined Annuity Prices CL'!$B$10,MATCH($B20,'Combined Annuity Prices CL'!$B$10:$B$3811,0)+12,G$7)*'Master Data'!$J$37) -> 19.19917363 | H20: =IF($C20="NA","",OFFSET('Combined Annuity Prices CL'!$B$10,MATCH($B20,'Combined Annuity Prices CL'!$B$10:$B$3811,0)+12,H$7)*'Master Data'!$J$37) -> 19.10207628 | I20: =IF($C20="NA","",OFFSET('Combined Annuity Prices CL'!$B$10,MATCH($B20,'Combined Annuity Prices CL'!$B$10:$B$3811,0)+12,I$7)*'Master Data'!$J$37) -> 18.9444236 | Q20: 0 | R20: 0 | S20: 0 | T20: 0 | U20: 0 | AC20: =IFERROR(VLOOKUP($B20,Volumes!$B$4:$H$33,MATCH(AC$9,Volumes!$B$4:$H$4,0),FALSE),0) -> 0 | AD20: =IFERROR(VLOOKUP($B20,Volumes!$B$4:$H$33,MATCH(AD$9,Volumes!$B$4:$H$4,0),FALSE),0) -> 0 | AE20: =IFERROR(VLOOKUP($B20,Volumes!$B$4:$H$33,MATCH(AE$9,Volumes!$B$4:$H$4,0),FALSE),0) -> 0 | AF20: =IFERROR(VLOOKUP($B20,Volumes!$B$4:$H$33,MATCH(AF$9,Volumes!$B$4:$H$4,0),FALSE),0) -> 0 | AG20: =IFERROR(VLOOKUP($B20,Volumes!$B$4:$H$33,MATCH(AG$9,Volumes!$B$4:$H$4,0),FALSE),0) -> 0
B21: =Inputs!$C80 -> 3x40W Fluorescent | C21: Obsolete, no new Connections | D21: 22.414 | E21: =IF($C21="NA","",OFFSET('Combined Annuity Prices CL'!$B$10,MATCH($B21,'Combined Annuity Prices CL'!$B$10:$B$3811,0)+12,E$7)*'Master Data'!$J$37) -> 23.14884321 | F21: =IF($C21="NA","",OFFSET('Combined Annuity Prices CL'!$B$10,MATCH($B21,'Combined Annuity Prices CL'!$B$10:$B$3811,0)+12,F$7)*'Master Data'!$J$37) -> 23.21879506 | G21: =IF($C21="NA","",OFFSET('Combined Annuity Prices CL'!$B$10,MATCH($B21,'Combined Annuity Prices CL'!$B$10:$B$3811,0)+12,G$7)*'Master Data'!$J$37) -> 22.91288621 | H21: =IF($C21="NA","",OFFSET('Combined Annuity Prices CL'!$B$10,MATCH($B21,'Combined Annuity Prices CL'!$B$10:$B$3811,0)+12,H$7)*'Master Data'!$J$37) -> 22.81787698 | I21: =IF($C21="NA","",OFFSET('Combined Annuity Prices CL'!$B$10,MATCH($B21,'Combined Annuity Prices CL'!$B$10:$B$3811,0)+12,I$7)*'Master Data'!$J$37) -> 22.64978372 | Q21: 0 | R21: 0 | S21: 0 | T21: 0 | U21: 0 | AC21: =IFERROR(VLOOKUP($B21,Volumes!$B$4:$H$33,MATCH(AC$9,Volumes!$B$4:$H$4,0),FALSE),0) -> 0 | AD21: =IFERROR(VLOOKUP($B21,Volumes!$B$4:$H$33,MATCH(AD$9,Volumes!$B$4:$H$4,0),FALSE),0) -> 0 | AE21: =IFERROR(VLOOKUP($B21,Volumes!$B$4:$H$33,MATCH(AE$9,Volumes!$B$4:$H$4,0),FALSE),0) -> 0 | AF21: =IFERROR(VLOOKUP($B21,Volumes!$B$4:$H$33,MATCH(AF$9,Volumes!$B$4:$H$4,0),FALSE),0) -> 0 | AG21: =IFERROR(VLOOKUP($B21,Volumes!$B$4:$H$33,MATCH(AG$9,Volumes!$B$4:$H$4,0),FALSE),0) -> 0
B22: =Inputs!$C81 -> 4x20 Fluorescent | C22: Obsolete, no new Connections | D22: 19.062 | E22: =IF($C22="NA","",OFFSET('Combined Annuity Prices CL'!$B$10,MATCH($B22,'Combined Annuity Prices CL'!$B$10:$B$3811,0)+12,E$7)*'Master Data'!$J$37) -> 19.98430488 | F22: =IF($C22="NA","",OFFSET('Combined Annuity Prices CL'!$B$10,MATCH($B22,'Combined Annuity Prices CL'!$B$10:$B$3811,0)+12,F$7)*'Master Data'!$J$37) -> 20.04590428 | G22: =IF($C22="NA","",OFFSET('Combined Annuity Prices CL'!$B$10,MATCH($B22,'Combined Annuity Prices CL'!$B$10:$B$3811,0)+12,G$7)*'Master Data'!$J$37) -> 19.73895137 | H22: =IF($C22="NA","",OFFSET('Combined Annuity Prices CL'!$B$10,MATCH($B22,'Combined Annuity Prices CL'!$B$10:$B$3811,0)+12,H$7)*'Master Data'!$J$37) -> 19.64289808 | I22: =IF($C22="NA","",OFFSET('Combined Annuity Prices CL'!$B$10,MATCH($B22,'Combined Annuity Prices CL'!$B$10:$B$3811,0)+12,I$7)*'Master Data'!$J$37) -> 19.48315728 | Q22: 0 | R22: 0 | S22: 0 | T22: 0 | U22: 0 | AC22: =IFERROR(VLOOKUP($B22,Volumes!$B$4:$H$33,MATCH(AC$9,Volumes!$B$4:$H$4,0),FALSE),0) -> 0 | AD22: =IFERROR(VLOOKUP($B22,Volumes!$B$4:$H$33,MATCH(AD$9,Volumes!$B$4:$H$4,0),FALSE),0) -> 0 | AE22: =IFERROR(VLOOKUP($B22,Volumes!$B$4:$H$33,MATCH(AE$9,Volumes!$B$4:$H$4,0),FALSE),0) -> 0 | AF22: =IFERROR(VLOOKUP($B22,Volumes!$B$4:$H$33,MATCH(AF$9,Volumes!$B$4:$H$4,0),FALSE),0) -> 0 | AG22: =IFERROR(VLOOKUP($B22,Volumes!$B$4:$H$33,MATCH(AG$9,Volumes!$B$4:$H$4,0),FALSE),0) -> 0
B23: =Inputs!$C82 -> 4x40W Fluorescent | C23: Obsolete, no new Connections | D23: 22.722 | E23: =IF($C23="NA","",OFFSET('Combined Annuity Prices CL'!$B$10,MATCH($B23,'Combined Annuity Prices CL'!$B$10:$B$3811,0)+12,E$7)*'Master Data'!$J$37) -> 23.45475206 | F23: =IF($C23="NA","",OFFSET('Combined Annuity Prices CL'!$B$10,MATCH($B23,'Combined Annuity Prices CL'!$B$10:$B$3811,0)+12,F$7)*'Master Data'!$J$37) -> 23.52679203 | G23: =IF($C23="NA","",OFFSET('Combined Annuity Prices CL'!$B$10,MATCH($B23,'Combined Annuity Prices CL'!$B$10:$B$3811,0)+12,G$7)*'Master Data'!$J$37) -> 23.22088318 | H23: =IF($C23="NA","",OFFSET('Combined Annuity Prices CL'!$B$10,MATCH($B23,'Combined Annuity Prices CL'!$B$10:$B$3811,0)+12,H$7)*'Master Data'!$J$37) -> 23.12482989 | I23: =IF($C23="NA","",OFFSET('Combined Annuity Prices CL'!$B$10,MATCH($B23,'Combined Annuity Prices CL'!$B$10:$B$3811,0)+12,I$7)*'Master Data'!$J$37) -> 22.95673663 | Q23: 0 | R23: 0 | S23: 0 | T23: 0 | U23: 0 | AC23: =IFERROR(VLOOKUP($B23,Volumes!$B$4:$H$33,MATCH(AC$9,Volumes!$B$4:$H$4,0),FALSE),0) -> 0 | AD23: =IFERROR(VLOOKUP($B23,Volumes!$B$4:$H$33,MATCH(AD$9,Volumes!$B$4:$H$4,0),FALSE),0) -> 0 | AE23: =IFERROR(VLOOKUP($B23,Volumes!$B$4:$H$33,MATCH(AE$9,Volumes!$B$4:$H$4,0),FALSE),0) -> 0 | AF23: =IFERROR(VLOOKUP($B23,Volumes!$B$4:$H$33,MATCH(AF$9,Volumes!$B$4:$H$4,0),FALSE),0) -> 0 | AG23: =IFERROR(VLOOKUP($B23,Volumes!$B$4:$H$33,MATCH(AG$9,Volumes!$B$4:$H$4,0),FALSE),0) -> 0
B24: =Inputs!$C83 -> 100W Sodium Vapour | C24: Offered | D24: 22.559 | E24: =IF($C24="NA","",OFFSET('Combined Annuity Prices CL'!$B$10,MATCH($B24,'Combined Annuity Prices CL'!$B$10:$B$3811,0)+12,E$7)*'Master Data'!$J$37) -> 23.27099794 | F24: =IF($C24="NA","",OFFSET('Combined Annuity Prices CL'!$B$10,MATCH($B24,'Combined Annuity Prices CL'!$B$10:$B$3811,0)+12,F$7)*'Master Data'!$J$37) -> 23.34199385 | G24: =IF($C24="NA","",OFFSET('Combined Annuity Prices CL'!$B$10,MATCH($B24,'Combined Annuity Prices CL'!$B$10:$B$3811,0)+12,G$7)*'Master Data'!$J$37) -> 23.036085 | H24: =IF($C24="NA","",OFFSET('Combined Annuity Prices CL'!$B$10,MATCH($B24,'Combined Annuity Prices CL'!$B$10:$B$3811,0)+12,H$7)*'Master Data'!$J$37) -> 22.94003171 | I24: =IF($C24="NA","",OFFSET('Combined Annuity Prices CL'!$B$10,MATCH($B24,'Combined Annuity Prices CL'!$B$10:$B$3811,0)+12,I$7)*'Master Data'!$J$37) -> 22.7729825 | Q24: 0.0004258592623 | R24: 0.0004259913877 | S24: 0.0004204085512 | T24: 0.0004186555786 | U24: 0.0004167455798 | AC24: =IFERROR(VLOOKUP($B24,Volumes!$B$4:$H$33,MATCH(AC$9,Volumes!$B$4:$H$4,0),FALSE),0) -> 5 | AD24: =IFERROR(VLOOKUP($B24,Volumes!$B$4:$H$33,MATCH(AD$9,Volumes!$B$4:$H$4,0),FALSE),0) -> 5 | AE24: =IFERROR(VLOOKUP($B24,Volumes!$B$4:$H$33,MATCH(AE$9,Volumes!$B$4:$H$4,0),FALSE),0) -> 5 | AF24: =IFERROR(VLOOKUP($B24,Volumes!$B$4:$H$33,MATCH(AF$9,Volumes!$B$4:$H$4,0),FALSE),0) -> 5 | AG24: =IFERROR(VLOOKUP($B24,Volumes!$B$4:$H$33,MATCH(AG$9,Volumes!$B$4:$H$4,0),FALSE),0) -> 5
B25: =Inputs!$C84 -> 0 | C25: NA | E25: =IF($C25="NA","",OFFSET('Combined Annuity Prices CL'!$B$10,MATCH($B25,'Combined Annuity Prices CL'!$B$10:$B$3811,0)+12,E$7)*'Master Data'!$J$37) ->  | F25: =IF($C25="NA","",OFFSET('Combined Annuity Prices CL'!$B$10,MATCH($B25,'Combined Annuity Prices CL'!$B$10:$B$3811,0)+12,F$7)*'Master Data'!$J$37) ->  | G25: =IF($C25="NA","",OFFSET('Combined Annuity Prices CL'!$B$10,MATCH($B25,'Combined Annuity Prices CL'!$B$10:$B$3811,0)+12,G$7)*'Master Data'!$J$37) ->  | H25: =IF($C25="NA","",OFFSET('Combined Annuity Prices CL'!$B$10,MATCH($B25,'Combined Annuity Prices CL'!$B$10:$B$3811,0)+12,H$7)*'Master Data'!$J$37) ->  | I25: =IF($C25="NA","",OFFSET('Combined Annuity Prices CL'!$B$10,MATCH($B25,'Combined Annuity Prices CL'!$B$10:$B$3811,0)+12,I$7)*'Master Data'!$J$37) ->  | AC25: =IFERROR(VLOOKUP($B25,Volumes!$B$4:$H$33,MATCH(AC$9,Volumes!$B$4:$H$4,0),FALSE),0) -> 0 | AD25: =IFERROR(VLOOKUP($B25,Volumes!$B$4:$H$33,MATCH(AD$9,Volumes!$B$4:$H$4,0),FALSE),0) -> 0 | AE25: =IFERROR(VLOOKUP($B25,Volumes!$B$4:$H$33,MATCH(AE$9,Volumes!$B$4:$H$4,0),FALSE),0) -> 0 | AF25: =IFERROR(VLOOKUP($B25,Volumes!$B$4:$H$33,MATCH(AF$9,Volumes!$B$4:$H$4,0),FALSE),0) -> 0 | AG25: =IFERROR(VLOOKUP($B25,Volumes!$B$4:$H$33,MATCH(AG$9,Volumes!$B$4:$H$4,0),FALSE),0) -> 0
B26: =Inputs!$C85 -> 150W Sodium Vapour | C26: Offered | D26: 22.555 | E26: =IF($C26="NA","",OFFSET('Combined Annuity Prices CL'!$B$10,MATCH($B26,'Combined Annuity Prices CL'!$B$10:$B$3811,0)+12,E$7)*'Master Data'!$J$37) -> 23.26682171 | F26: =IF($C26="NA","",OFFSET('Combined Annuity Prices CL'!$B$10,MATCH($B26,'Combined Annuity Prices CL'!$B$10:$B$3811,0)+12,F$7)*'Master Data'!$J$37) -> 23.33781762 | G26: =IF($C26="NA","",OFFSET('Combined Annuity Prices CL'!$B$10,MATCH($B26,'Combined Annuity Prices CL'!$B$10:$B$3811,0)+12,G$7)*'Master Data'!$J$37) -> 23.03190877 | H26: =IF($C26="NA","",OFFSET('Combined Annuity Prices CL'!$B$10,MATCH($B26,'Combined Annuity Prices CL'!$B$10:$B$3811,0)+12,H$7)*'Master Data'!$J$37) -> 22.93585548 | I26: =IF($C26="NA","",OFFSET('Combined Annuity Prices CL'!$B$10,MATCH($B26,'Combined Annuity Prices CL'!$B$10:$B$3811,0)+12,I$7)*'Master Data'!$J$37) -> 22.76880627 | Q26: 0.01388052049 | R26: 0.01388483459 | S26: 0.01370283412 | T26: 0.01364568722 | U26: 0.01358341445 | AC26: =IFERROR(VLOOKUP($B26,Volumes!$B$4:$H$33,MATCH(AC$9,Volumes!$B$4:$H$4,0),FALSE),0) -> 163 | AD26: =IFERROR(VLOOKUP($B26,Volumes!$B$4:$H$33,MATCH(AD$9,Volumes!$B$4:$H$4,0),FALSE),0) -> 163 | AE26: =IFERROR(VLOOKUP($B26,Volumes!$B$4:$H$33,MATCH(AE$9,Volumes!$B$4:$H$4,0),FALSE),0) -> 163 | AF26: =IFERROR(VLOOKUP($B26,Volumes!$B$4:$H$33,MATCH(AF$9,Volumes!$B$4:$H$4,0),FALSE),0) -> 163 | AG26: =IFERROR(VLOOKUP($B26,Volumes!$B$4:$H$33,MATCH(AG$9,Volumes!$B$4:$H$4,0),FALSE),0) -> 163
B27: =Inputs!$C86 -> 0 | C27: NA | E27: =IF($C27="NA","",OFFSET('Combined Annuity Prices CL'!$B$10,MATCH($B27,'Combined Annuity Prices CL'!$B$10:$B$3811,0)+12,E$7)*'Master Data'!$J$37) ->  | F27: =IF($C27="NA","",OFFSET('Combined Annuity Prices CL'!$B$10,MATCH($B27,'Combined Annuity Prices CL'!$B$10:$B$3811,0)+12,F$7)*'Master Data'!$J$37) ->  | G27: =IF($C27="NA","",OFFSET('Combined Annuity Prices CL'!$B$10,MATCH($B27,'Combined Annuity Prices CL'!$B$10:$B$3811,0)+12,G$7)*'Master Data'!$J$37) ->  | H27: =IF($C27="NA","",OFFSET('Combined Annuity Prices CL'!$B$10,MATCH($B27,'Combined Annuity Prices CL'!$B$10:$B$3811,0)+12,H$7)*'Master Data'!$J$37) ->  | I27: =IF($C27="NA","",OFFSET('Combined Annuity Prices CL'!$B$10,MATCH($B27,'Combined Annuity Prices CL'!$B$10:$B$3811,0)+12,I$7)*'Master Data'!$J$37) ->  | AC27: =IFERROR(VLOOKUP($B27,Volumes!$B$4:$H$33,MATCH(AC$9,Volumes!$B$4:$H$4,0),FALSE),0) -> 0 | AD27: =IFERROR(VLOOKUP($B27,Volumes!$B$4:$H$33,MATCH(AD$9,Volumes!$B$4:$H$4,0),FALSE),0) -> 0 | AE27: =IFERROR(VLOOKUP($B27,Volumes!$B$4:$H$33,MATCH(AE$9,Volumes!$B$4:$H$4,0),FALSE),0) -> 0 | AF27: =IFERROR(VLOOKUP($B27,Volumes!$B$4:$H$33,MATCH(AF$9,Volumes!$B$4:$H$4,0),FALSE),0) -> 0 | AG27: =IFERROR(VLOOKUP($B27,Volumes!$B$4:$H$33,MATCH(AG$9,Volumes!$B$4:$H$4,0),FALSE),0) -> 0
B28: =Inputs!$C87 -> 0 | C28: NA | E28: =IF($C28="NA","",OFFSET('Combined Annuity Prices CL'!$B$10,MATCH($B28,'Combined Annuity Prices CL'!$B$10:$B$3811,0)+12,E$7)*'Master Data'!$J$37) ->  | F28: =IF($C28="NA","",OFFSET('Combined Annuity Prices CL'!$B$10,MATCH($B28,'Combined Annuity Prices CL'!$B$10:$B$3811,0)+12,F$7)*'Master Data'!$J$37) ->  | G28: =IF($C28="NA","",OFFSET('Combined Annuity Prices CL'!$B$10,MATCH($B28,'Combined Annuity Prices CL'!$B$10:$B$3811,0)+12,G$7)*'Master Data'!$J$37) ->  | H28: =IF($C28="NA","",OFFSET('Combined Annuity Prices CL'!$B$10,MATCH($B28,'Combined Annuity Prices CL'!$B$10:$B$3811,0)+12,H$7)*'Master Data'!$J$37) ->  | I28: =IF($C28="NA","",OFFSET('Combined Annuity Prices CL'!$B$10,MATCH($B28,'Combined Annuity Prices CL'!$B$10:$B$3811,0)+12,I$7)*'Master Data'!$J$37) ->  | AC28: =IFERROR(VLOOKUP($B28,Volumes!$B$4:$H$33,MATCH(AC$9,Volumes!$B$4:$H$4,0),FALSE),0) -> 0 | AD28: =IFERROR(VLOOKUP($B28,Volumes!$B$4:$H$33,MATCH(AD$9,Volumes!$B$4:$H$4,0),FALSE),0) -> 0 | AE28: =IFERROR(VLOOKUP($B28,Volumes!$B$4:$H$33,MATCH(AE$9,Volumes!$B$4:$H$4,0),FALSE),0) -> 0 | AF28: =IFERROR(VLOOKUP($B28,Volumes!$B$4:$H$33,MATCH(AF$9,Volumes!$B$4:$H$4,0),FALSE),0) -> 0 | AG28: =IFERROR(VLOOKUP($B28,Volumes!$B$4:$H$33,MATCH(AG$9,Volumes!$B$4:$H$4,0),FALSE),0) -> 0
B29: =Inputs!$C88 -> 0 | C29: NA | E29: =IF($C29="NA","",OFFSET('Combined Annuity Prices CL'!$B$10,MATCH($B29,'Combined Annuity Prices CL'!$B$10:$B$3811,0)+12,E$7)*'Master Data'!$J$37) ->  | F29: =IF($C29="NA","",OFFSET('Combined Annuity Prices CL'!$B$10,MATCH($B29,'Combined Annuity Prices CL'!$B$10:$B$3811,0)+12,F$7)*'Master Data'!$J$37) ->  | G29: =IF($C29="NA","",OFFSET('Combined Annuity Prices CL'!$B$10,MATCH($B29,'Combined Annuity Prices CL'!$B$10:$B$3811,0)+12,G$7)*'Master Data'!$J$37) ->  | H29: =IF($C29="NA","",OFFSET('Combined Annuity Prices CL'!$B$10,MATCH($B29,'Combined Annuity Prices CL'!$B$10:$B$3811,0)+12,H$7)*'Master Data'!$J$37) ->  | I29: =IF($C29="NA","",OFFSET('Combined Annuity Prices CL'!$B$10,MATCH($B29,'Combined Annuity Prices CL'!$B$10:$B$3811,0)+12,I$7)*'Master Data'!$J$37) ->  | AC29: =IFERROR(VLOOKUP($B29,Volumes!$B$4:$H$33,MATCH(AC$9,Volumes!$B$4:$H$4,0),FALSE),0) -> 0 | AD29: =IFERROR(VLOOKUP($B29,Volumes!$B$4:$H$33,MATCH(AD$9,Volumes!$B$4:$H$4,0),FALSE),0) -> 0 | AE29: =IFERROR(VLOOKUP($B29,Volumes!$B$4:$H$33,MATCH(AE$9,Volumes!$B$4:$H$4,0),FALSE),0) -> 0 | AF29: =IFERROR(VLOOKUP($B29,Volumes!$B$4:$H$33,MATCH(AF$9,Volumes!$B$4:$H$4,0),FALSE),0) -> 0 | AG29: =IFERROR(VLOOKUP($B29,Volumes!$B$4:$H$33,MATCH(AG$9,Volumes!$B$4:$H$4,0),FALSE),0) -> 0
B30: =Inputs!$C89 -> 250W Sodium Vapour | C30: Offered | D30: 22.688 | E30: =IF($C30="NA","",OFFSET('Combined Annuity Prices CL'!$B$10,MATCH($B30,'Combined Annuity Prices CL'!$B$10:$B$3811,0)+12,E$7)*'Master Data'!$J$37) -> 23.39628484 | F30: =IF($C30="NA","",OFFSET('Combined Annuity Prices CL'!$B$10,MATCH($B30,'Combined Annuity Prices CL'!$B$10:$B$3811,0)+12,F$7)*'Master Data'!$J$37) -> 23.46728075 | G30: =IF($C30="NA","",OFFSET('Combined Annuity Prices CL'!$B$10,MATCH($B30,'Combined Annuity Prices CL'!$B$10:$B$3811,0)+12,G$7)*'Master Data'!$J$37) -> 23.1613719 | H30: =IF($C30="NA","",OFFSET('Combined Annuity Prices CL'!$B$10,MATCH($B30,'Combined Annuity Prices CL'!$B$10:$B$3811,0)+12,H$7)*'Master Data'!$J$37) -> 23.06636267 | I30: =IF($C30="NA","",OFFSET('Combined Annuity Prices CL'!$B$10,MATCH($B30,'Combined Annuity Prices CL'!$B$10:$B$3811,0)+12,I$7)*'Master Data'!$J$37) -> 22.89826941 | Q30: 0.01412901641 | R30: 0.01413316983 | S30: 0.01394893623 | T30: 0.01389171692 | U30: 0.01382826489 | AC30: =IFERROR(VLOOKUP($B30,Volumes!$B$4:$H$33,MATCH(AC$9,Volumes!$B$4:$H$4,0),FALSE),0) -> 165 | AD30: =IFERROR(VLOOKUP($B30,Volumes!$B$4:$H$33,MATCH(AD$9,Volumes!$B$4:$H$4,0),FALSE),0) -> 165 | AE30: =IFERROR(VLOOKUP($B30,Volumes!$B$4:$H$33,MATCH(AE$9,Volumes!$B$4:$H$4,0),FALSE),0) -> 165 | AF30: =IFERROR(VLOOKUP($B30,Volumes!$B$4:$H$33,MATCH(AF$9,Volumes!$B$4:$H$4,0),FALSE),0) -> 165 | AG30: =IFERROR(VLOOKUP($B30,Volumes!$B$4:$H$33,MATCH(AG$9,Volumes!$B$4:$H$4,0),FALSE),0) -> 165
B31: =Inputs!$C90 -> 0 | C31: NA | E31: =IF($C31="NA","",OFFSET('Combined Annuity Prices CL'!$B$10,MATCH($B31,'Combined Annuity Prices CL'!$B$10:$B$3811,0)+12,E$7)*'Master Data'!$J$37) ->  | F31: =IF($C31="NA","",OFFSET('Combined Annuity Prices CL'!$B$10,MATCH($B31,'Combined Annuity Prices CL'!$B$10:$B$3811,0)+12,F$7)*'Master Data'!$J$37) ->  | G31: =IF($C31="NA","",OFFSET('Combined Annuity Prices CL'!$B$10,MATCH($B31,'Combined Annuity Prices CL'!$B$10:$B$3811,0)+12,G$7)*'Master Data'!$J$37) ->  | H31: =IF($C31="NA","",OFFSET('Combined Annuity Prices CL'!$B$10,MATCH($B31,'Combined Annuity Prices CL'!$B$10:$B$3811,0)+12,H$7)*'Master Data'!$J$37) ->  | I31: =IF($C31="NA","",OFFSET('Combined Annuity Prices CL'!$B$10,MATCH($B31,'Combined Annuity Prices CL'!$B$10:$B$3811,0)+12,I$7)*'Master Data'!$J$37) ->  | AC31: =IFERROR(VLOOKUP($B31,Volumes!$B$4:$H$33,MATCH(AC$9,Volumes!$B$4:$H$4,0),FALSE),0) -> 0 | AD31: =IFERROR(VLOOKUP($B31,Volumes!$B$4:$H$33,MATCH(AD$9,Volumes!$B$4:$H$4,0),FALSE),0) -> 0 | AE31: =IFERROR(VLOOKUP($B31,Volumes!$B$4:$H$33,MATCH(AE$9,Volumes!$B$4:$H$4,0),FALSE),0) -> 0 | AF31: =IFERROR(VLOOKUP($B31,Volumes!$B$4:$H$33,MATCH(AF$9,Volumes!$B$4:$H$4,0),FALSE),0) -> 0 | AG31: =IFERROR(VLOOKUP($B31,Volumes!$B$4:$H$33,MATCH(AG$9,Volumes!$B$4:$H$4,0),FALSE),0) -> 0
B32: =Inputs!$C91 -> 0 | C32: NA | E32: =IF($C32="NA","",OFFSET('Combined Annuity Prices CL'!$B$10,MATCH($B32,'Combined Annuity Prices CL'!$B$10:$B$3811,0)+12,E$7)*'Master Data'!$J$37) ->  | F32: =IF($C32="NA","",OFFSET('Combined Annuity Prices CL'!$B$10,MATCH($B32,'Combined Annuity Prices CL'!$B$10:$B$3811,0)+12,F$7)*'Master Data'!$J$37) ->  | G32: =IF($C32="NA","",OFFSET('Combined Annuity Prices CL'!$B$10,MATCH($B32,'Combined Annuity Prices CL'!$B$10:$B$3811,0)+12,G$7)*'Master Data'!$J$37) ->  | H32: =IF($C32="NA","",OFFSET('Combined Annuity Prices CL'!$B$10,MATCH($B32,'Combined Annuity Prices CL'!$B$10:$B$3811,0)+12,H$7)*'Master Data'!$J$37) ->  | I32: =IF($C32="NA","",OFFSET('Combined Annuity Prices CL'!$B$10,MATCH($B32,'Combined Annuity Prices CL'!$B$10:$B$3811,0)+12,I$7)*'Master Data'!$J$37) ->  | AC32: =IFERROR(VLOOKUP($B32,Volumes!$B$4:$H$33,MATCH(AC$9,Volumes!$B$4:$H$4,0),FALSE),0) -> 0 | AD32: =IFERROR(VLOOKUP($B32,Volumes!$B$4:$H$33,MATCH(AD$9,Volumes!$B$4:$H$4,0),FALSE),0) -> 0 | AE32: =IFERROR(VLOOKUP($B32,Volumes!$B$4:$H$33,MATCH(AE$9,Volumes!$B$4:$H$4,0),FALSE),0) -> 0 | AF32: =IFERROR(VLOOKUP($B32,Volumes!$B$4:$H$33,MATCH(AF$9,Volumes!$B$4:$H$4,0),FALSE),0) -> 0 | AG32: =IFERROR(VLOOKUP($B32,Volumes!$B$4:$H$33,MATCH(AG$9,Volumes!$B$4:$H$4,0),FALSE),0) -> 0
B33: =Inputs!$C92 -> 0 | C33: NA | E33: =IF($C33="NA","",OFFSET('Combined Annuity Prices CL'!$B$10,MATCH($B33,'Combined Annuity Prices CL'!$B$10:$B$3811,0)+12,E$7)*'Master Data'!$J$37) ->  | F33: =IF($C33="NA","",OFFSET('Combined Annuity Prices CL'!$B$10,MATCH($B33,'Combined Annuity Prices CL'!$B$10:$B$3811,0)+12,F$7)*'Master Data'!$J$37) ->  | G33: =IF($C33="NA","",OFFSET('Combined Annuity Prices CL'!$B$10,MATCH($B33,'Combined Annuity Prices CL'!$B$10:$B$3811,0)+12,G$7)*'Master Data'!$J$37) ->  | H33: =IF($C33="NA","",OFFSET('Combined Annuity Prices CL'!$B$10,MATCH($B33,'Combined Annuity Prices CL'!$B$10:$B$3811,0)+12,H$7)*'Master Data'!$J$37) ->  | I33: =IF($C33="NA","",OFFSET('Combined Annuity Prices CL'!$B$10,MATCH($B33,'Combined Annuity Prices CL'!$B$10:$B$3811,0)+12,I$7)*'Master Data'!$J$37) ->  | AC33: =IFERROR(VLOOKUP($B33,Volumes!$B$4:$H$33,MATCH(AC$9,Volumes!$B$4:$H$4,0),FALSE),0) -> 0 | AD33: =IFERROR(VLOOKUP($B33,Volumes!$B$4:$H$33,MATCH(AD$9,Volumes!$B$4:$H$4,0),FALSE),0) -> 0 | AE33: =IFERROR(VLOOKUP($B33,Volumes!$B$4:$H$33,MATCH(AE$9,Volumes!$B$4:$H$4,0),FALSE),0) -> 0 | AF33: =IFERROR(VLOOKUP($B33,Volumes!$B$4:$H$33,MATCH(AF$9,Volumes!$B$4:$H$4,0),FALSE),0) -> 0 | AG33: =IFERROR(VLOOKUP($B33,Volumes!$B$4:$H$33,MATCH(AG$9,Volumes!$B$4:$H$4,0),FALSE),0) -> 0
B34: =Inputs!$C93 -> 250W Sodium Vapour - Flood Light | C34: Old light no volumes | D34: 22.688 | E34: =IF($C34="NA","",OFFSET('Combined Annuity Prices CL'!$B$10,MATCH($B34,'Combined Annuity Prices CL'!$B$10:$B$3811,0)+12,E$7)*'Master Data'!$J$37) -> 23.39628484 | F34: =IF($C34="NA","",OFFSET('Combined Annuity Prices CL'!$B$10,MATCH($B34,'Combined Annuity Prices CL'!$B$10:$B$3811,0)+12,F$7)*'Master Data'!$J$37) -> 23.46728075 | G34: =IF($C34="NA","",OFFSET('Combined Annuity Prices CL'!$B$10,MATCH($B34,'Combined Annuity Prices CL'!$B$10:$B$3811,0)+12,G$7)*'Master Data'!$J$37) -> 23.1613719 | H34: =IF($C34="NA","",OFFSET('Combined Annuity Prices CL'!$B$10,MATCH($B34,'Combined Annuity Prices CL'!$B$10:$B$3811,0)+12,H$7)*'Master Data'!$J$37) -> 23.06636267 | I34: =IF($C34="NA","",OFFSET('Combined Annuity Prices CL'!$B$10,MATCH($B34,'Combined Annuity Prices CL'!$B$10:$B$3811,0)+12,I$7)*'Master Data'!$J$37) -> 22.89826941 | Q34: 0 | R34: 0 | S34: 0 | T34: 0 | U34: 0 | AC34: =IFERROR(VLOOKUP($B34,Volumes!$B$4:$H$33,MATCH(AC$9,Volumes!$B$4:$H$4,0),FALSE),0) -> 0 | AD34: =IFERROR(VLOOKUP($B34,Volumes!$B$4:$H$33,MATCH(AD$9,Volumes!$B$4:$H$4,0),FALSE),0) -> 0 | AE34: =IFERROR(VLOOKUP($B34,Volumes!$B$4:$H$33,MATCH(AE$9,Volumes!$B$4:$H$4,0),FALSE),0) -> 0 | AF34: =IFERROR(VLOOKUP($B34,Volumes!$B$4:$H$33,MATCH(AF$9,Volumes!$B$4:$H$4,0),FALSE),0) -> 0 | AG34: =IFERROR(VLOOKUP($B34,Volumes!$B$4:$H$33,MATCH(AG$9,Volumes!$B$4:$H$4,0),FALSE),0) -> 0
B35: =Inputs!$C94 -> 400W Sodium Vapour | C35: Offered | D35: 22.734 | E35: =IF($C35="NA","",OFFSET('Combined Annuity Prices CL'!$B$10,MATCH($B35,'Combined Annuity Prices CL'!$B$10:$B$3811,0)+12,E$7)*'Master Data'!$J$37) -> 23.44013526 | F35: =IF($C35="NA","",OFFSET('Combined Annuity Prices CL'!$B$10,MATCH($B35,'Combined Annuity Prices CL'!$B$10:$B$3811,0)+12,F$7)*'Master Data'!$J$37) -> 23.51113117 | G35: =IF($C35="NA","",OFFSET('Combined Annuity Prices CL'!$B$10,MATCH($B35,'Combined Annuity Prices CL'!$B$10:$B$3811,0)+12,G$7)*'Master Data'!$J$37) -> 23.20522231 | H35: =IF($C35="NA","",OFFSET('Combined Annuity Prices CL'!$B$10,MATCH($B35,'Combined Annuity Prices CL'!$B$10:$B$3811,0)+12,H$7)*'Master Data'!$J$37) -> 23.11021308 | I35: =IF($C35="NA","",OFFSET('Combined Annuity Prices CL'!$B$10,MATCH($B35,'Combined Annuity Prices CL'!$B$10:$B$3811,0)+12,I$7)*'Master Data'!$J$37) -> 22.94211982 | Q35: 0.008922253084 | R35: 0.008924825391 | S35: 0.008808702391 | T35: 0.008772636885 | U35: 0.008732688489 | AC35: =IFERROR(VLOOKUP($B35,Volumes!$B$4:$H$33,MATCH(AC$9,Volumes!$B$4:$H$4,0),FALSE),0) -> 104 | AD35: =IFERROR(VLOOKUP($B35,Volumes!$B$4:$H$33,MATCH(AD$9,Volumes!$B$4:$H$4,0),FALSE),0) -> 104 | AE35: =IFERROR(VLOOKUP($B35,Volumes!$B$4:$H$33,MATCH(AE$9,Volumes!$B$4:$H$4,0),FALSE),0) -> 104 | AF35: =IFERROR(VLOOKUP($B35,Volumes!$B$4:$H$33,MATCH(AF$9,Volumes!$B$4:$H$4,0),FALSE),0) -> 104 | AG35: =IFERROR(VLOOKUP($B35,Volumes!$B$4:$H$33,MATCH(AG$9,Volumes!$B$4:$H$4,0),FALSE),0) -> 104
B36: =Inputs!$C95 -> 0 | C36: NA | E36: =IF($C36="NA","",OFFSET('Combined Annuity Prices CL'!$B$10,MATCH($B36,'Combined Annuity Prices CL'!$B$10:$B$3811,0)+12,E$7)*'Master Data'!$J$37) ->  | F36: =IF($C36="NA","",OFFSET('Combined Annuity Prices CL'!$B$10,MATCH($B36,'Combined Annuity Prices CL'!$B$10:$B$3811,0)+12,F$7)*'Master Data'!$J$37) ->  | G36: =IF($C36="NA","",OFFSET('Combined Annuity Prices CL'!$B$10,MATCH($B36,'Combined Annuity Prices CL'!$B$10:$B$3811,0)+12,G$7)*'Master Data'!$J$37) ->  | H36: =IF($C36="NA","",OFFSET('Combined Annuity Prices CL'!$B$10,MATCH($B36,'Combined Annuity Prices CL'!$B$10:$B$3811,0)+12,H$7)*'Master Data'!$J$37) ->  | I36: =IF($C36="NA","",OFFSET('Combined Annuity Prices CL'!$B$10,MATCH($B36,'Combined Annuity Prices CL'!$B$10:$B$3811,0)+12,I$7)*'Master Data'!$J$37) ->  | AC36: =IFERROR(VLOOKUP($B36,Volumes!$B$4:$H$33,MATCH(AC$9,Volumes!$B$4:$H$4,0),FALSE),0) -> 0 | AD36: =IFERROR(VLOOKUP($B36,Volumes!$B$4:$H$33,MATCH(AD$9,Volumes!$B$4:$H$4,0),FALSE),0) -> 0 | AE36: =IFERROR(VLOOKUP($B36,Volumes!$B$4:$H$33,MATCH(AE$9,Volumes!$B$4:$H$4,0),FALSE),0) -> 0 | AF36: =IFERROR(VLOOKUP($B36,Volumes!$B$4:$H$33,MATCH(AF$9,Volumes!$B$4:$H$4,0),FALSE),0) -> 0 | AG36: =IFERROR(VLOOKUP($B36,Volumes!$B$4:$H$33,MATCH(AG$9,Volumes!$B$4:$H$4,0),FALSE),0) -> 0
B37: =Inputs!$C96 -> 400W Sodium Vapour - Flood Light | C37: Old light no volumes | D37: 22.734 | E37: =IF($C37="NA","",OFFSET('Combined Annuity Prices CL'!$B$10,MATCH($B37,'Combined Annuity Prices CL'!$B$10:$B$3811,0)+12,E$7)*'Master Data'!$J$37) -> 23.44013526 | F37: =IF($C37="NA","",OFFSET('Combined Annuity Prices CL'!$B$10,MATCH($B37,'Combined Annuity Prices CL'!$B$10:$B$3811,0)+12,F$7)*'Master Data'!$J$37) -> 23.51113117 | G37: =IF($C37="NA","",OFFSET('Combined Annuity Prices CL'!$B$10,MATCH($B37,'Combined Annuity Prices CL'!$B$10:$B$3811,0)+12,G$7)*'Master Data'!$J$37) -> 23.20522231 | H37: =IF($C37="NA","",OFFSET('Combined Annuity Prices CL'!$B$10,MATCH($B37,'Combined Annuity Prices CL'!$B$10:$B$3811,0)+12,H$7)*'Master Data'!$J$37) -> 23.11021308 | I37: =IF($C37="NA","",OFFSET('Combined Annuity Prices CL'!$B$10,MATCH($B37,'Combined Annuity Prices CL'!$B$10:$B$3811,0)+12,I$7)*'Master Data'!$J$37) -> 22.94211982 | Q37: 0 | R37: 0 | S37: 0 | T37: 0 | U37: 0 | AC37: =IFERROR(VLOOKUP($B37,Volumes!$B$4:$H$33,MATCH(AC$9,Volumes!$B$4:$H$4,0),FALSE),0) -> 0 | AD37: =IFERROR(VLOOKUP($B37,Volumes!$B$4:$H$33,MATCH(AD$9,Volumes!$B$4:$H$4,0),FALSE),0) -> 0 | AE37: =IFERROR(VLOOKUP($B37,Volumes!$B$4:$H$33,MATCH(AE$9,Volumes!$B$4:$H$4,0),FALSE),0) -> 0 | AF37: =IFERROR(VLOOKUP($B37,Volumes!$B$4:$H$33,MATCH(AF$9,Volumes!$B$4:$H$4,0),FALSE),0) -> 0 | AG37: =IFERROR(VLOOKUP($B37,Volumes!$B$4:$H$33,MATCH(AG$9,Volumes!$B$4:$H$4,0),FALSE),0) -> 0
B38: =Inputs!$C97 -> 70W Sodium Vapour | C38: Offered | D38: 18.434 | E38: =IF($C38="NA","",OFFSET('Combined Annuity Prices CL'!$B$10,MATCH($B38,'Combined Annuity Prices CL'!$B$10:$B$3811,0)+12,E$7)*'Master Data'!$J$37) -> 19.35160603 | F38: =IF($C38="NA","",OFFSET('Combined Annuity Prices CL'!$B$10,MATCH($B38,'Combined Annuity Prices CL'!$B$10:$B$3811,0)+12,F$7)*'Master Data'!$J$37) -> 19.41216136 | G38: =IF($C38="NA","",OFFSET('Combined Annuity Prices CL'!$B$10,MATCH($B38,'Combined Annuity Prices CL'!$B$10:$B$3811,0)+12,G$7)*'Master Data'!$J$37) -> 19.10520846 | H38: =IF($C38="NA","",OFFSET('Combined Annuity Prices CL'!$B$10,MATCH($B38,'Combined Annuity Prices CL'!$B$10:$B$3811,0)+12,H$7)*'Master Data'!$J$37) -> 19.00811111 | I38: =IF($C38="NA","",OFFSET('Combined Annuity Prices CL'!$B$10,MATCH($B38,'Combined Annuity Prices CL'!$B$10:$B$3811,0)+12,I$7)*'Master Data'!$J$37) -> 18.85045842 | Q38: 0.005170362099 | R38: 0.005172370396 | S38: 0.005090582793 | T38: 0.005064711204 | U38: 0.005036465481 | AC38: =IFERROR(VLOOKUP($B38,Volumes!$B$4:$H$33,MATCH(AC$9,Volumes!$B$4:$H$4,0),FALSE),0) -> 73 | AD38: =IFERROR(VLOOKUP($B38,Volumes!$B$4:$H$33,MATCH(AD$9,Volumes!$B$4:$H$4,0),FALSE),0) -> 73 | AE38: =IFERROR(VLOOKUP($B38,Volumes!$B$4:$H$33,MATCH(AE$9,Volumes!$B$4:$H$4,0),FALSE),0) -> 73 | AF38: =IFERROR(VLOOKUP($B38,Volumes!$B$4:$H$33,MATCH(AF$9,Volumes!$B$4:$H$4,0),FALSE),0) -> 73 | AG38: =IFERROR(VLOOKUP($B38,Volumes!$B$4:$H$33,MATCH(AG$9,Volumes!$B$4:$H$4,0),FALSE),0) -> 73
B39: =Inputs!$C98 -> 0 | C39: NA | E39: =IF($C39="NA","",OFFSET('Combined Annuity Prices CL'!$B$10,MATCH($B39,'Combined Annuity Prices CL'!$B$10:$B$3811,0)+12,E$7)*'Master Data'!$J$37) ->  | F39: =IF($C39="NA","",OFFSET('Combined Annuity Prices CL'!$B$10,MATCH($B39,'Combined Annuity Prices CL'!$B$10:$B$3811,0)+12,F$7)*'Master Data'!$J$37) ->  | G39: =IF($C39="NA","",OFFSET('Combined Annuity Prices CL'!$B$10,MATCH($B39,'Combined Annuity Prices CL'!$B$10:$B$3811,0)+12,G$7)*'Master Data'!$J$37) ->  | H39: =IF($C39="NA","",OFFSET('Combined Annuity Prices CL'!$B$10,MATCH($B39,'Combined Annuity Prices CL'!$B$10:$B$3811,0)+12,H$7)*'Master Data'!$J$37) ->  | I39: =IF($C39="NA","",OFFSET('Combined Annuity Prices CL'!$B$10,MATCH($B39,'Combined Annuity Prices CL'!$B$10:$B$3811,0)+12,I$7)*'Master Data'!$J$37) ->  | AC39: =IFERROR(VLOOKUP($B39,Volumes!$B$4:$H$33,MATCH(AC$9,Volumes!$B$4:$H$4,0),FALSE),0) -> 0 | AD39: =IFERROR(VLOOKUP($B39,Volumes!$B$4:$H$33,MATCH(AD$9,Volumes!$B$4:$H$4,0),FALSE),0) -> 0 | AE39: =IFERROR(VLOOKUP($B39,Volumes!$B$4:$H$33,MATCH(AE$9,Volumes!$B$4:$H$4,0),FALSE),0) -> 0 | AF39: =IFERROR(VLOOKUP($B39,Volumes!$B$4:$H$33,MATCH(AF$9,Volumes!$B$4:$H$4,0),FALSE),0) -> 0 | AG39: =IFERROR(VLOOKUP($B39,Volumes!$B$4:$H$33,MATCH(AG$9,Volumes!$B$4:$H$4,0),FALSE),0) -> 0
B40: =Inputs!$C99 -> 100W Incandescent | C40: Obsolete, no new Connections | D40: 21.61 | E40: =IF($C40="NA","",OFFSET('Combined Annuity Prices CL'!$B$10,MATCH($B40,'Combined Annuity Prices CL'!$B$10:$B$3811,0)+12,E$7)*'Master Data'!$J$37) -> 22.35118327 | F40: =IF($C40="NA","",OFFSET('Combined Annuity Prices CL'!$B$10,MATCH($B40,'Combined Annuity Prices CL'!$B$10:$B$3811,0)+12,F$7)*'Master Data'!$J$37) -> 22.42009106 | G40: =IF($C40="NA","",OFFSET('Combined Annuity Prices CL'!$B$10,MATCH($B40,'Combined Annuity Prices CL'!$B$10:$B$3811,0)+12,G$7)*'Master Data'!$J$37) -> 22.11418221 | H40: =IF($C40="NA","",OFFSET('Combined Annuity Prices CL'!$B$10,MATCH($B40,'Combined Annuity Prices CL'!$B$10:$B$3811,0)+12,H$7)*'Master Data'!$J$37) -> 22.01812892 | I40: =IF($C40="NA","",OFFSET('Combined Annuity Prices CL'!$B$10,MATCH($B40,'Combined Annuity Prices CL'!$B$10:$B$3811,0)+12,I$7)*'Master Data'!$J$37) -> 21.85316783 | Q40: 0 | R40: 0 | S40: 0 | T40: 0 | U40: 0 | AC40: =IFERROR(VLOOKUP($B40,Volumes!$B$4:$H$33,MATCH(AC$9,Volumes!$B$4:$H$4,0),FALSE),0) -> 0 | AD40: =IFERROR(VLOOKUP($B40,Volumes!$B$4:$H$33,MATCH(AD$9,Volumes!$B$4:$H$4,0),FALSE),0) -> 0 | AE40: =IFERROR(VLOOKUP($B40,Volumes!$B$4:$H$33,MATCH(AE$9,Volumes!$B$4:$H$4,0),FALSE),0) -> 0 | AF40: =IFERROR(VLOOKUP($B40,Volumes!$B$4:$H$33,MATCH(AF$9,Volumes!$B$4:$H$4,0),FALSE),0) -> 0 | AG40: =IFERROR(VLOOKUP($B40,Volumes!$B$4:$H$33,MATCH(AG$9,Volumes!$B$4:$H$4,0),FALSE),0) -> 0
B41: =Inputs!$C100 -> 60W Incandescent | C41: Obsolete, no new Connections | D41: 18.023 | E41: =IF($C41="NA","",OFFSET('Combined Annuity Prices CL'!$B$10,MATCH($B41,'Combined Annuity Prices CL'!$B$10:$B$3811,0)+12,E$7)*'Master Data'!$J$37) -> 18.95486417 | F41: =IF($C41="NA","",OFFSET('Combined Annuity Prices CL'!$B$10,MATCH($B41,'Combined Annuity Prices CL'!$B$10:$B$3811,0)+12,F$7)*'Master Data'!$J$37) -> 19.01437545 | G41: =IF($C41="NA","",OFFSET('Combined Annuity Prices CL'!$B$10,MATCH($B41,'Combined Annuity Prices CL'!$B$10:$B$3811,0)+12,G$7)*'Master Data'!$J$37) -> 18.70742254 | H41: =IF($C41="NA","",OFFSET('Combined Annuity Prices CL'!$B$10,MATCH($B41,'Combined Annuity Prices CL'!$B$10:$B$3811,0)+12,H$7)*'Master Data'!$J$37) -> 18.61136925 | I41: =IF($C41="NA","",OFFSET('Combined Annuity Prices CL'!$B$10,MATCH($B41,'Combined Annuity Prices CL'!$B$10:$B$3811,0)+12,I$7)*'Master Data'!$J$37) -> 18.45371657 | Q41: 0 | R41: 0 | S41: 0 | T41: 0 | U41: 0 | AC41: =IFERROR(VLOOKUP($B41,Volumes!$B$4:$H$33,MATCH(AC$9,Volumes!$B$4:$H$4,0),FALSE),0) -> 0 | AD41: =IFERROR(VLOOKUP($B41,Volumes!$B$4:$H$33,MATCH(AD$9,Volumes!$B$4:$H$4,0),FALSE),0) -> 0 | AE41: =IFERROR(VLOOKUP($B41,Volumes!$B$4:$H$33,MATCH(AE$9,Volumes!$B$4:$H$4,0),FALSE),0) -> 0 | AF41: =IFERROR(VLOOKUP($B41,Volumes!$B$4:$H$33,MATCH(AF$9,Volumes!$B$4:$H$4,0),FALSE),0) -> 0 | AG41: =IFERROR(VLOOKUP($B41,Volumes!$B$4:$H$33,MATCH(AG$9,Volumes!$B$4:$H$4,0),FALSE),0) -> 0
B42: =Inputs!$C101 -> 18W LED | C42: Offered | D42: 12.349 | E42: =IF($C42="NA","",OFFSET('Combined Annuity Prices CL'!$B$10,MATCH($B42,'Combined Annuity Prices CL'!$B$10:$B$3811,0)+12,E$7)*'Master Data'!$J$37) -> 13.58736449 | F42: =IF($C42="NA","",OFFSET('Combined Annuity Prices CL'!$B$10,MATCH($B42,'Combined Annuity Prices CL'!$B$10:$B$3811,0)+12,F$7)*'Master Data'!$J$37) -> 13.63121491 | G42: =IF($C42="NA","",OFFSET('Combined Annuity Prices CL'!$B$10,MATCH($B42,'Combined Annuity Prices CL'!$B$10:$B$3811,0)+12,G$7)*'Master Data'!$J$37) -> 13.32321794 | H42: =IF($C42="NA","",OFFSET('Combined Annuity Prices CL'!$B$10,MATCH($B42,'Combined Annuity Prices CL'!$B$10:$B$3811,0)+12,H$7)*'Master Data'!$J$37) -> 13.22507653 | I42: =IF($C42="NA","",OFFSET('Combined Annuity Prices CL'!$B$10,MATCH($B42,'Combined Annuity Prices CL'!$B$10:$B$3811,0)+12,I$7)*'Master Data'!$J$37) -> 13.0809966 | Q42: =IF($C42="NA","",E42*AC42*Q$6/100/10^6) -> 0.2476541751 | R42: =IF($C42="NA","",F42*AD42*R$6/100/10^6) -> 0.2477745934 | S42: =IF($C42="NA","",G42*AE42*S$6/100/10^6) -> 0.2421761325 | T42: =IF($C42="NA","",H42*AF42*T$6/100/10^6) -> 0.2403922162 | U42: =IF($C42="NA","",I42*AG42*U$6/100/10^6) -> 0.2384247088 | AC42: =IFERROR(VLOOKUP($B42,Volumes!$B$4:$H$33,MATCH(AC$9,Volumes!$B$4:$H$4,0),FALSE),0) -> 4980 | AD42: =IFERROR(VLOOKUP($B42,Volumes!$B$4:$H$33,MATCH(AD$9,Volumes!$B$4:$H$4,0),FALSE),0) -> 4980 | AE42: =IFERROR(VLOOKUP($B42,Volumes!$B$4:$H$33,MATCH(AE$9,Volumes!$B$4:$H$4,0),FALSE),0) -> 4980 | AF42: =IFERROR(VLOOKUP($B42,Volumes!$B$4:$H$33,MATCH(AF$9,Volumes!$B$4:$H$4,0),FALSE),0) -> 4980 | AG42: =IFERROR(VLOOKUP($B42,Volumes!$B$4:$H$33,MATCH(AG$9,Volumes!$B$4:$H$4,0),FALSE),0) -> 4980
B43: =Inputs!$C102 -> 18W LED Decorative - Bottom Pole Entry | C43: Not Offered | D43: 12.349 | E43: =IF($C43="NA","",OFFSET('Combined Annuity Prices CL'!$B$10,MATCH($B43,'Combined Annuity Prices CL'!$B$10:$B$3811,0)+12,E$7)*'Master Data'!$J$37) -> 13.58736449 | F43: =IF($C43="NA","",OFFSET('Combined Annuity Prices CL'!$B$10,MATCH($B43,'Combined Annuity Prices CL'!$B$10:$B$3811,0)+12,F$7)*'Master Data'!$J$37) -> 13.63121491 | G43: =IF($C43="NA","",OFFSET('Combined Annuity Prices CL'!$B$10,MATCH($B43,'Combined Annuity Prices CL'!$B$10:$B$3811,0)+12,G$7)*'Master Data'!$J$37) -> 13.32321794 | H43: =IF($C43="NA","",OFFSET('Combined Annuity Prices CL'!$B$10,MATCH($B43,'Combined Annuity Prices CL'!$B$10:$B$3811,0)+12,H$7)*'Master Data'!$J$37) -> 13.22507653 | I43: =IF($C43="NA","",OFFSET('Combined Annuity Prices CL'!$B$10,MATCH($B43,'Combined Annuity Prices CL'!$B$10:$B$3811,0)+12,I$7)*'Master Data'!$J$37) -> 13.0809966 | Q43: 0 | R43: 0 | S43: 0 | T43: 0 | U43: 0 | AC43: =IFERROR(VLOOKUP($B43,Volumes!$B$4:$H$33,MATCH(AC$9,Volumes!$B$4:$H$4,0),FALSE),0) -> 0 | AD43: =IFERROR(VLOOKUP($B43,Volumes!$B$4:$H$33,MATCH(AD$9,Volumes!$B$4:$H$4,0),FALSE),0) -> 0 | AE43: =IFERROR(VLOOKUP($B43,Volumes!$B$4:$H$33,MATCH(AE$9,Volumes!$B$4:$H$4,0),FALSE),0) -> 0 | AF43: =IFERROR(VLOOKUP($B43,Volumes!$B$4:$H$33,MATCH(AF$9,Volumes!$B$4:$H$4,0),FALSE),0) -> 0 | AG43: =IFERROR(VLOOKUP($B43,Volumes!$B$4:$H$33,MATCH(AG$9,Volumes!$B$4:$H$4,0),FALSE),0) -> 0
B44: =Inputs!$C103 -> 18W LED Decorative - Side Entry | C44: Not Offered | D44: 12.349 | E44: =IF($C44="NA","",OFFSET('Combined Annuity Prices CL'!$B$10,MATCH($B44,'Combined Annuity Prices CL'!$B$10:$B$3811,0)+12,E$7)*'Master Data'!$J$37) -> 13.58736449 | F44: =IF($C44="NA","",OFFSET('Combined Annuity Prices CL'!$B$10,MATCH($B44,'Combined Annuity Prices CL'!$B$10:$B$3811,0)+12,F$7)*'Master Data'!$J$37) -> 13.63121491 | G44: =IF($C44="NA","",OFFSET('Combined Annuity Prices CL'!$B$10,MATCH($B44,'Combined Annuity Prices CL'!$B$10:$B$3811,0)+12,G$7)*'Master Data'!$J$37) -> 13.32321794 | H44: =IF($C44="NA","",OFFSET('Combined Annuity Prices CL'!$B$10,MATCH($B44,'Combined Annuity Prices CL'!$B$10:$B$3811,0)+12,H$7)*'Master Data'!$J$37) -> 13.22507653 | I44: =IF($C44="NA","",OFFSET('Combined Annuity Prices CL'!$B$10,MATCH($B44,'Combined Annuity Prices CL'!$B$10:$B$3811,0)+12,I$7)*'Master Data'!$J$37) -> 13.0809966 | Q44: 0 | R44: 0 | S44: 0 | T44: 0 | U44: 0 | AC44: =IFERROR(VLOOKUP($B44,Volumes!$B$4:$H$33,MATCH(AC$9,Volumes!$B$4:$H$4,0),FALSE),0) -> 0 | AD44: =IFERROR(VLOOKUP($B44,Volumes!$B$4:$H$33,MATCH(AD$9,Volumes!$B$4:$H$4,0),FALSE),0) -> 0 | AE44: =IFERROR(VLOOKUP($B44,Volumes!$B$4:$H$33,MATCH(AE$9,Volumes!$B$4:$H$4,0),FALSE),0) -> 0 | AF44: =IFERROR(VLOOKUP($B44,Volumes!$B$4:$H$33,MATCH(AF$9,Volumes!$B$4:$H$4,0),FALSE),0) -> 0 | AG44: =IFERROR(VLOOKUP($B44,Volumes!$B$4:$H$33,MATCH(AG$9,Volumes!$B$4:$H$4,0),FALSE),0) -> 0
B45: =Inputs!$C104 -> 18W LED Decorative - Top Entry | C45: Not Offered | D45: 12.349 | E45: =IF($C45="NA","",OFFSET('Combined Annuity Prices CL'!$B$10,MATCH($B45,'Combined Annuity Prices CL'!$B$10:$B$3811,0)+12,E$7)*'Master Data'!$J$37) -> 13.58736449 | F45: =IF($C45="NA","",OFFSET('Combined Annuity Prices CL'!$B$10,MATCH($B45,'Combined Annuity Prices CL'!$B$10:$B$3811,0)+12,F$7)*'Master Data'!$J$37) -> 13.63121491 | G45: =IF($C45="NA","",OFFSET('Combined Annuity Prices CL'!$B$10,MATCH($B45,'Combined Annuity Prices CL'!$B$10:$B$3811,0)+12,G$7)*'Master Data'!$J$37) -> 13.32321794 | H45: =IF($C45="NA","",OFFSET('Combined Annuity Prices CL'!$B$10,MATCH($B45,'Combined Annuity Prices CL'!$B$10:$B$3811,0)+12,H$7)*'Master Data'!$J$37) -> 13.22507653 | I45: =IF($C45="NA","",OFFSET('Combined Annuity Prices CL'!$B$10,MATCH($B45,'Combined Annuity Prices CL'!$B$10:$B$3811,0)+12,I$7)*'Master Data'!$J$37) -> 13.0809966 | Q45: 0 | R45: 0 | S45: 0 | T45: 0 | U45: 0 | AC45: =IFERROR(VLOOKUP($B45,Volumes!$B$4:$H$33,MATCH(AC$9,Volumes!$B$4:$H$4,0),FALSE),0) -> 0 | AD45: =IFERROR(VLOOKUP($B45,Volumes!$B$4:$H$33,MATCH(AD$9,Volumes!$B$4:$H$4,0),FALSE),0) -> 0 | AE45: =IFERROR(VLOOKUP($B45,Volumes!$B$4:$H$33,MATCH(AE$9,Volumes!$B$4:$H$4,0),FALSE),0) -> 0 | AF45: =IFERROR(VLOOKUP($B45,Volumes!$B$4:$H$33,MATCH(AF$9,Volumes!$B$4:$H$4,0),FALSE),0) -> 0 | AG45: =IFERROR(VLOOKUP($B45,Volumes!$B$4:$H$33,MATCH(AG$9,Volumes!$B$4:$H$4,0),FALSE),0) -> 0
B46: =Inputs!$C105 -> 25W LED | C46: Offered | D46: 12.349 | E46: =IF($C46="NA","",OFFSET('Combined Annuity Prices CL'!$B$10,MATCH($B46,'Combined Annuity Prices CL'!$B$10:$B$3811,0)+12,E$7)*'Master Data'!$J$37) -> 13.58736449 | F46: =IF($C46="NA","",OFFSET('Combined Annuity Prices CL'!$B$10,MATCH($B46,'Combined Annuity Prices CL'!$B$10:$B$3811,0)+12,F$7)*'Master Data'!$J$37) -> 13.63121491 | G46: =IF($C46="NA","",OFFSET('Combined Annuity Prices CL'!$B$10,MATCH($B46,'Combined Annuity Prices CL'!$B$10:$B$3811,0)+12,G$7)*'Master Data'!$J$37) -> 13.32321794 | H46: =IF($C46="NA","",OFFSET('Combined Annuity Prices CL'!$B$10,MATCH($B46,'Combined Annuity Prices CL'!$B$10:$B$3811,0)+12,H$7)*'Master Data'!$J$37) -> 13.22507653 | I46: =IF($C46="NA","",OFFSET('Combined Annuity Prices CL'!$B$10,MATCH($B46,'Combined Annuity Prices CL'!$B$10:$B$3811,0)+12,I$7)*'Master Data'!$J$37) -> 13.0809966 | Q46: 0.001442162867 | R46: 0.001442864098 | S46: 0.001410262619 | T46: 0.001399874351 | U46: 0.001388416979 | AC46: =IFERROR(VLOOKUP($B46,Volumes!$B$4:$H$33,MATCH(AC$9,Volumes!$B$4:$H$4,0),FALSE),0) -> 29 | AD46: =IFERROR(VLOOKUP($B46,Volumes!$B$4:$H$33,MATCH(AD$9,Volumes!$B$4:$H$4,0),FALSE),0) -> 29 | AE46: =IFERROR(VLOOKUP($B46,Volumes!$B$4:$H$33,MATCH(AE$9,Volumes!$B$4:$H$4,0),FALSE),0) -> 29 | AF46: =IFERROR(VLOOKUP($B46,Volumes!$B$4:$H$33,MATCH(AF$9,Volumes!$B$4:$H$4,0),FALSE),0) -> 29 | AG46: =IFERROR(VLOOKUP($B46,Volumes!$B$4:$H$33,MATCH(AG$9,Volumes!$B$4:$H$4,0),FALSE),0) -> 29
B47: =Inputs!$C106 -> 25W LED Decorative - Bottom Pole Entry | C47: Not Offered | D47: 12.349 | E47: =IF($C47="NA","",OFFSET('Combined Annuity Prices CL'!$B$10,MATCH($B47,'Combined Annuity Prices CL'!$B$10:$B$3811,0)+12,E$7)*'Master Data'!$J$37) -> 13.58736449 | F47: =IF($C47="NA","",OFFSET('Combined Annuity Prices CL'!$B$10,MATCH($B47,'Combined Annuity Prices CL'!$B$10:$B$3811,0)+12,F$7)*'Master Data'!$J$37) -> 13.63121491 | G47: =IF($C47="NA","",OFFSET('Combined Annuity Prices CL'!$B$10,MATCH($B47,'Combined Annuity Prices CL'!$B$10:$B$3811,0)+12,G$7)*'Master Data'!$J$37) -> 13.32321794 | H47: =IF($C47="NA","",OFFSET('Combined Annuity Prices CL'!$B$10,MATCH($B47,'Combined Annuity Prices CL'!$B$10:$B$3811,0)+12,H$7)*'Master Data'!$J$37) -> 13.22507653 | I47: =IF($C47="NA","",OFFSET('Combined Annuity Prices CL'!$B$10,MATCH($B47,'Combined Annuity Prices CL'!$B$10:$B$3811,0)+12,I$7)*'Master Data'!$J$37) -> 13.0809966 | Q47: 0 | R47: 0 | S47: 0 | T47: 0 | U47: 0 | AC47: =IFERROR(VLOOKUP($B47,Volumes!$B$4:$H$33,MATCH(AC$9,Volumes!$B$4:$H$4,0),FALSE),0) -> 0 | AD47: =IFERROR(VLOOKUP($B47,Volumes!$B$4:$H$33,MATCH(AD$9,Volumes!$B$4:$H$4,0),FALSE),0) -> 0 | AE47: =IFERROR(VLOOKUP($B47,Volumes!$B$4:$H$33,MATCH(AE$9,Volumes!$B$4:$H$4,0),FALSE),0) -> 0 | AF47: =IFERROR(VLOOKUP($B47,Volumes!$B$4:$H$33,MATCH(AF$9,Volumes!$B$4:$H$4,0),FALSE),0) -> 0 | AG47: =IFERROR(VLOOKUP($B47,Volumes!$B$4:$H$33,MATCH(AG$9,Volumes!$B$4:$H$4,0),FALSE),0) -> 0
B48: =Inputs!$C107 -> 25W LED Decorative - Side Entry | C48: Not Offered | D48: 12.349 | E48: =IF($C48="NA","",OFFSET('Combined Annuity Prices CL'!$B$10,MATCH($B48,'Combined Annuity Prices CL'!$B$10:$B$3811,0)+12,E$7)*'Master Data'!$J$37) -> 13.58736449 | F48: =IF($C48="NA","",OFFSET('Combined Annuity Prices CL'!$B$10,MATCH($B48,'Combined Annuity Prices CL'!$B$10:$B$3811,0)+12,F$7)*'Master Data'!$J$37) -> 13.63121491 | G48: =IF($C48="NA","",OFFSET('Combined Annuity Prices CL'!$B$10,MATCH($B48,'Combined Annuity Prices CL'!$B$10:$B$3811,0)+12,G$7)*'Master Data'!$J$37) -> 13.32321794 | H48: =IF($C48="NA","",OFFSET('Combined Annuity Prices CL'!$B$10,MATCH($B48,'Combined Annuity Prices CL'!$B$10:$B$3811,0)+12,H$7)*'Master Data'!$J$37) -> 13.22507653 | I48: =IF($C48="NA","",OFFSET('Combined Annuity Prices CL'!$B$10,MATCH($B48,'Combined Annuity Prices CL'!$B$10:$B$3811,0)+12,I$7)*'Master Data'!$J$37) -> 13.0809966 | Q48: 0 | R48: 0 | S48: 0 | T48: 0 | U48: 0 | AC48: =IFERROR(VLOOKUP($B48,Volumes!$B$4:$H$33,MATCH(AC$9,Volumes!$B$4:$H$4,0),FALSE),0) -> 0 | AD48: =IFERROR(VLOOKUP($B48,Volumes!$B$4:$H$33,MATCH(AD$9,Volumes!$B$4:$H$4,0),FALSE),0) -> 0 | AE48: =IFERROR(VLOOKUP($B48,Volumes!$B$4:$H$33,MATCH(AE$9,Volumes!$B$4:$H$4,0),FALSE),0) -> 0 | AF48: =IFERROR(VLOOKUP($B48,Volumes!$B$4:$H$33,MATCH(AF$9,Volumes!$B$4:$H$4,0),FALSE),0) -> 0 | AG48: =IFERROR(VLOOKUP($B48,Volumes!$B$4:$H$33,MATCH(AG$9,Volumes!$B$4:$H$4,0),FALSE),0) -> 0
B49: =Inputs!$C108 -> 25W LED Decorative - Top Entry | C49: Not Offered | D49: 12.349 | E49: =IF($C49="NA","",OFFSET('Combined Annuity Prices CL'!$B$10,MATCH($B49,'Combined Annuity Prices CL'!$B$10:$B$3811,0)+12,E$7)*'Master Data'!$J$37) -> 13.58736449 | F49: =IF($C49="NA","",OFFSET('Combined Annuity Prices CL'!$B$10,MATCH($B49,'Combined Annuity Prices CL'!$B$10:$B$3811,0)+12,F$7)*'Master Data'!$J$37) -> 13.63121491 | G49: =IF($C49="NA","",OFFSET('Combined Annuity Prices CL'!$B$10,MATCH($B49,'Combined Annuity Prices CL'!$B$10:$B$3811,0)+12,G$7)*'Master Data'!$J$37) -> 13.32321794 | H49: =IF($C49="NA","",OFFSET('Combined Annuity Prices CL'!$B$10,MATCH($B49,'Combined Annuity Prices CL'!$B$10:$B$3811,0)+12,H$7)*'Master Data'!$J$37) -> 13.22507653 | I49: =IF($C49="NA","",OFFSET('Combined Annuity Prices CL'!$B$10,MATCH($B49,'Combined Annuity Prices CL'!$B$10:$B$3811,0)+12,I$7)*'Master Data'!$J$37) -> 13.0809966 | Q49: 0 | R49: 0 | S49: 0 | T49: 0 | U49: 0 | AC49: =IFERROR(VLOOKUP($B49,Volumes!$B$4:$H$33,MATCH(AC$9,Volumes!$B$4:$H$4,0),FALSE),0) -> 0 | AD49: =IFERROR(VLOOKUP($B49,Volumes!$B$4:$H$33,MATCH(AD$9,Volumes!$B$4:$H$4,0),FALSE),0) -> 0 | AE49: =IFERROR(VLOOKUP($B49,Volumes!$B$4:$H$33,MATCH(AE$9,Volumes!$B$4:$H$4,0),FALSE),0) -> 0 | AF49: =IFERROR(VLOOKUP($B49,Volumes!$B$4:$H$33,MATCH(AF$9,Volumes!$B$4:$H$4,0),FALSE),0) -> 0 | AG49: =IFERROR(VLOOKUP($B49,Volumes!$B$4:$H$33,MATCH(AG$9,Volumes!$B$4:$H$4,0),FALSE),0) -> 0
B50: =Inputs!$C109 -> 30W LED | C50: Offered | D50: 12.349 | E50: =IF($C50="NA","",OFFSET('Combined Annuity Prices CL'!$B$10,MATCH($B50,'Combined Annuity Prices CL'!$B$10:$B$3811,0)+12,E$7)*'Master Data'!$J$37) -> 13.58736449 | F50: =IF($C50="NA","",OFFSET('Combined Annuity Prices CL'!$B$10,MATCH($B50,'Combined Annuity Prices CL'!$B$10:$B$3811,0)+12,F$7)*'Master Data'!$J$37) -> 13.63121491 | G50: =IF($C50="NA","",OFFSET('Combined Annuity Prices CL'!$B$10,MATCH($B50,'Combined Annuity Prices CL'!$B$10:$B$3811,0)+12,G$7)*'Master Data'!$J$37) -> 13.32321794 | H50: =IF($C50="NA","",OFFSET('Combined Annuity Prices CL'!$B$10,MATCH($B50,'Combined Annuity Prices CL'!$B$10:$B$3811,0)+12,H$7)*'Master Data'!$J$37) -> 13.22507653 | I50: =IF($C50="NA","",OFFSET('Combined Annuity Prices CL'!$B$10,MATCH($B50,'Combined Annuity Prices CL'!$B$10:$B$3811,0)+12,I$7)*'Master Data'!$J$37) -> 13.0809966 | Q50: 0.001591352129 | R50: 0.001592125901 | S50: 0.001556151856 | T50: 0.001544688939 | U50: 0.001532046322 | AC50: =IFERROR(VLOOKUP($B50,Volumes!$B$4:$H$33,MATCH(AC$9,Volumes!$B$4:$H$4,0),FALSE),0) -> 32 | AD50: =IFERROR(VLOOKUP($B50,Volumes!$B$4:$H$33,MATCH(AD$9,Volumes!$B$4:$H$4,0),FALSE),0) -> 32 | AE50: =IFERROR(VLOOKUP($B50,Volumes!$B$4:$H$33,MATCH(AE$9,Volumes!$B$4:$H$4,0),FALSE),0) -> 32 | AF50: =IFERROR(VLOOKUP($B50,Volumes!$B$4:$H$33,MATCH(AF$9,Volumes!$B$4:$H$4,0),FALSE),0) -> 32 | AG50: =IFERROR(VLOOKUP($B50,Volumes!$B$4:$H$33,MATCH(AG$9,Volumes!$B$4:$H$4,0),FALSE),0) -> 32
B51: =Inputs!$C110 -> 88 LED Light | C51: Not Offered | D51: 12.349 | E51: =IF($C51="NA","",OFFSET('Combined Annuity Prices CL'!$B$10,MATCH($B51,'Combined Annuity Prices CL'!$B$10:$B$3811,0)+12,E$7)*'Master Data'!$J$37) -> 13.58736449 | F51: =IF($C51="NA","",OFFSET('Combined Annuity Prices CL'!$B$10,MATCH($B51,'Combined Annuity Prices CL'!$B$10:$B$3811,0)+12,F$7)*'Master Data'!$J$37) -> 13.63121491 | G51: =IF($C51="NA","",OFFSET('Combined Annuity Prices CL'!$B$10,MATCH($B51,'Combined Annuity Prices CL'!$B$10:$B$3811,0)+12,G$7)*'Master Data'!$J$37) -> 13.32321794 | H51: =IF($C51="NA","",OFFSET('Combined Annuity Prices CL'!$B$10,MATCH($B51,'Combined Annuity Prices CL'!$B$10:$B$3811,0)+12,H$7)*'Master Data'!$J$37) -> 13.22507653 | I51: =IF($C51="NA","",OFFSET('Combined Annuity Prices CL'!$B$10,MATCH($B51,'Combined Annuity Prices CL'!$B$10:$B$3811,0)+12,I$7)*'Master Data'!$J$37) -> 13.0809966 | Q51: 0 | R51: 0 | S51: 0 | T51: 0 | U51: 0 | AC51: =IFERROR(VLOOKUP($B51,Volumes!$B$4:$H$33,MATCH(AC$9,Volumes!$B$4:$H$4,0),FALSE),0) -> 0 | AD51: =IFERROR(VLOOKUP($B51,Volumes!$B$4:$H$33,MATCH(AD$9,Volumes!$B$4:$H$4,0),FALSE),0) -> 0 | AE51: =IFERROR(VLOOKUP($B51,Volumes!$B$4:$H$33,MATCH(AE$9,Volumes!$B$4:$H$4,0),FALSE),0) -> 0 | AF51: =IFERROR(VLOOKUP($B51,Volumes!$B$4:$H$33,MATCH(AF$9,Volumes!$B$4:$H$4,0),FALSE),0) -> 0 | AG51: =IFERROR(VLOOKUP($B51,Volumes!$B$4:$H$33,MATCH(AG$9,Volumes!$B$4:$H$4,0),FALSE),0) -> 0
B52: =Inputs!$C111 -> 100W Metal Halide | C52: Offered | D52: 22.556 | E52: =IF($C52="NA","",OFFSET('Combined Annuity Prices CL'!$B$10,MATCH($B52,'Combined Annuity Prices CL'!$B$10:$B$3811,0)+12,E$7)*'Master Data'!$J$37) -> 23.26786577 | F52: =IF($C52="NA","",OFFSET('Combined Annuity Prices CL'!$B$10,MATCH($B52,'Combined Annuity Prices CL'!$B$10:$B$3811,0)+12,F$7)*'Master Data'!$J$37) -> 23.33886168 | G52: =IF($C52="NA","",OFFSET('Combined Annuity Prices CL'!$B$10,MATCH($B52,'Combined Annuity Prices CL'!$B$10:$B$3811,0)+12,G$7)*'Master Data'!$J$37) -> 23.03295282 | H52: =IF($C52="NA","",OFFSET('Combined Annuity Prices CL'!$B$10,MATCH($B52,'Combined Annuity Prices CL'!$B$10:$B$3811,0)+12,H$7)*'Master Data'!$J$37) -> 22.93689953 | I52: =IF($C52="NA","",OFFSET('Combined Annuity Prices CL'!$B$10,MATCH($B52,'Combined Annuity Prices CL'!$B$10:$B$3811,0)+12,I$7)*'Master Data'!$J$37) -> 22.76880627 | Q52: 0.0004258019435 | R52: 0.0004259342256 | S52: 0.0004203513891 | T52: 0.0004185984165 | U52: 0.0004166691548 | AC52: =IFERROR(VLOOKUP($B52,Volumes!$B$4:$H$33,MATCH(AC$9,Volumes!$B$4:$H$4,0),FALSE),0) -> 5 | AD52: =IFERROR(VLOOKUP($B52,Volumes!$B$4:$H$33,MATCH(AD$9,Volumes!$B$4:$H$4,0),FALSE),0) -> 5 | AE52: =IFERROR(VLOOKUP($B52,Volumes!$B$4:$H$33,MATCH(AE$9,Volumes!$B$4:$H$4,0),FALSE),0) -> 5 | AF52: =IFERROR(VLOOKUP($B52,Volumes!$B$4:$H$33,MATCH(AF$9,Volumes!$B$4:$H$4,0),FALSE),0) -> 5 | AG52: =IFERROR(VLOOKUP($B52,Volumes!$B$4:$H$33,MATCH(AG$9,Volumes!$B$4:$H$4,0),FALSE),0) -> 5
B53: =Inputs!$C112 -> 150W Metal Halide | C53: Offered | D53: 22.703 | E53: =IF($C53="NA","",OFFSET('Combined Annuity Prices CL'!$B$10,MATCH($B53,'Combined Annuity Prices CL'!$B$10:$B$3811,0)+12,E$7)*'Master Data'!$J$37) -> 23.41090164 | F53: =IF($C53="NA","",OFFSET('Combined Annuity Prices CL'!$B$10,MATCH($B53,'Combined Annuity Prices CL'!$B$10:$B$3811,0)+12,F$7)*'Master Data'!$J$37) -> 23.48189756 | G53: =IF($C53="NA","",OFFSET('Combined Annuity Prices CL'!$B$10,MATCH($B53,'Combined Annuity Prices CL'!$B$10:$B$3811,0)+12,G$7)*'Master Data'!$J$37) -> 23.1759887 | H53: =IF($C53="NA","",OFFSET('Combined Annuity Prices CL'!$B$10,MATCH($B53,'Combined Annuity Prices CL'!$B$10:$B$3811,0)+12,H$7)*'Master Data'!$J$37) -> 23.08097947 | I53: =IF($C53="NA","",OFFSET('Combined Annuity Prices CL'!$B$10,MATCH($B53,'Combined Annuity Prices CL'!$B$10:$B$3811,0)+12,I$7)*'Master Data'!$J$37) -> 22.91288621 | Q53: 0.002313465301 | R53: 0.002314141004 | S53: 0.002283993687 | T53: 0.002274630527 | U53: 0.002264251415 | AC53: =IFERROR(VLOOKUP($B53,Volumes!$B$4:$H$33,MATCH(AC$9,Volumes!$B$4:$H$4,0),FALSE),0) -> 27 | AD53: =IFERROR(VLOOKUP($B53,Volumes!$B$4:$H$33,MATCH(AD$9,Volumes!$B$4:$H$4,0),FALSE),0) -> 27 | AE53: =IFERROR(VLOOKUP($B53,Volumes!$B$4:$H$33,MATCH(AE$9,Volumes!$B$4:$H$4,0),FALSE),0) -> 27 | AF53: =IFERROR(VLOOKUP($B53,Volumes!$B$4:$H$33,MATCH(AF$9,Volumes!$B$4:$H$4,0),FALSE),0) -> 27 | AG53: =IFERROR(VLOOKUP($B53,Volumes!$B$4:$H$33,MATCH(AG$9,Volumes!$B$4:$H$4,0),FALSE),0) -> 27
B54: =Inputs!$C113 -> 250W Metal Halide | C54: Offered | D54: 22.703 | E54: =IF($C54="NA","",OFFSET('Combined Annuity Prices CL'!$B$10,MATCH($B54,'Combined Annuity Prices CL'!$B$10:$B$3811,0)+12,E$7)*'Master Data'!$J$37) -> 23.41090164 | F54: =IF($C54="NA","",OFFSET('Combined Annuity Prices CL'!$B$10,MATCH($B54,'Combined Annuity Prices CL'!$B$10:$B$3811,0)+12,F$7)*'Master Data'!$J$37) -> 23.48189756 | G54: =IF($C54="NA","",OFFSET('Combined Annuity Prices CL'!$B$10,MATCH($B54,'Combined Annuity Prices CL'!$B$10:$B$3811,0)+12,G$7)*'Master Data'!$J$37) -> 23.1759887 | H54: =IF($C54="NA","",OFFSET('Combined Annuity Prices CL'!$B$10,MATCH($B54,'Combined Annuity Prices CL'!$B$10:$B$3811,0)+12,H$7)*'Master Data'!$J$37) -> 23.08097947 | I54: =IF($C54="NA","",OFFSET('Combined Annuity Prices CL'!$B$10,MATCH($B54,'Combined Annuity Prices CL'!$B$10:$B$3811,0)+12,I$7)*'Master Data'!$J$37) -> 22.91288621 | Q54: 0.003427356001 | R54: 0.003428357043 | S54: 0.003383694351 | T54: 0.003369823003 | U54: 0.003354446541 | AC54: =IFERROR(VLOOKUP($B54,Volumes!$B$4:$H$33,MATCH(AC$9,Volumes!$B$4:$H$4,0),FALSE),0) -> 40 | AD54: =IFERROR(VLOOKUP($B54,Volumes!$B$4:$H$33,MATCH(AD$9,Volumes!$B$4:$H$4,0),FALSE),0) -> 40 | AE54: =IFERROR(VLOOKUP($B54,Volumes!$B$4:$H$33,MATCH(AE$9,Volumes!$B$4:$H$4,0),FALSE),0) -> 40 | AF54: =IFERROR(VLOOKUP($B54,Volumes!$B$4:$H$33,MATCH(AF$9,Volumes!$B$4:$H$4,0),FALSE),0) -> 40 | AG54: =IFERROR(VLOOKUP($B54,Volumes!$B$4:$H$33,MATCH(AG$9,Volumes!$B$4:$H$4,0),FALSE),0) -> 40
B55: =Inputs!$C114 -> 400W Metal Halide | C55: Offered | D55: 23.408 | E55: =IF($C55="NA","",OFFSET('Combined Annuity Prices CL'!$B$10,MATCH($B55,'Combined Annuity Prices CL'!$B$10:$B$3811,0)+12,E$7)*'Master Data'!$J$37) -> 24.09475932 | F55: =IF($C55="NA","",OFFSET('Combined Annuity Prices CL'!$B$10,MATCH($B55,'Combined Annuity Prices CL'!$B$10:$B$3811,0)+12,F$7)*'Master Data'!$J$37) -> 24.1688874 | G55: =IF($C55="NA","",OFFSET('Combined Annuity Prices CL'!$B$10,MATCH($B55,'Combined Annuity Prices CL'!$B$10:$B$3811,0)+12,G$7)*'Master Data'!$J$37) -> 23.86193449 | H55: =IF($C55="NA","",OFFSET('Combined Annuity Prices CL'!$B$10,MATCH($B55,'Combined Annuity Prices CL'!$B$10:$B$3811,0)+12,H$7)*'Master Data'!$J$37) -> 23.76692526 | I55: =IF($C55="NA","",OFFSET('Combined Annuity Prices CL'!$B$10,MATCH($B55,'Combined Annuity Prices CL'!$B$10:$B$3811,0)+12,I$7)*'Master Data'!$J$37) -> 23.59674388 | Q55: 0.0007936813719 | R55: 0.0007939479511 | S55: 0.000783864548 | T55: 0.0007807434947 | U55: 0.0007772767435 | AC55: =IFERROR(VLOOKUP($B55,Volumes!$B$4:$H$33,MATCH(AC$9,Volumes!$B$4:$H$4,0),FALSE),0) -> 9 | AD55: =IFERROR(VLOOKUP($B55,Volumes!$B$4:$H$33,MATCH(AD$9,Volumes!$B$4:$H$4,0),FALSE),0) -> 9 | AE55: =IFERROR(VLOOKUP($B55,Volumes!$B$4:$H$33,MATCH(AE$9,Volumes!$B$4:$H$4,0),FALSE),0) -> 9 | AF55: =IFERROR(VLOOKUP($B55,Volumes!$B$4:$H$33,MATCH(AF$9,Volumes!$B$4:$H$4,0),FALSE),0) -> 9 | AG55: =IFERROR(VLOOKUP($B55,Volumes!$B$4:$H$33,MATCH(AG$9,Volumes!$B$4:$H$4,0),FALSE),0) -> 9
B56: =Inputs!$C115 -> 70W Metal Halide | C56: Old light no volumes | D56: 18.95 | E56: =IF($C56="NA","",OFFSET('Combined Annuity Prices CL'!$B$10,MATCH($B56,'Combined Annuity Prices CL'!$B$10:$B$3811,0)+12,E$7)*'Master Data'!$J$37) -> 19.85275364 | F56: =IF($C56="NA","",OFFSET('Combined Annuity Prices CL'!$B$10,MATCH($B56,'Combined Annuity Prices CL'!$B$10:$B$3811,0)+12,F$7)*'Master Data'!$J$37) -> 19.91435303 | G56: =IF($C56="NA","",OFFSET('Combined Annuity Prices CL'!$B$10,MATCH($B56,'Combined Annuity Prices CL'!$B$10:$B$3811,0)+12,G$7)*'Master Data'!$J$37) -> 19.60740012 | H56: =IF($C56="NA","",OFFSET('Combined Annuity Prices CL'!$B$10,MATCH($B56,'Combined Annuity Prices CL'!$B$10:$B$3811,0)+12,H$7)*'Master Data'!$J$37) -> 19.51030277 | I56: =IF($C56="NA","",OFFSET('Combined Annuity Prices CL'!$B$10,MATCH($B56,'Combined Annuity Prices CL'!$B$10:$B$3811,0)+12,I$7)*'Master Data'!$J$37) -> 19.35160603 | Q56: 0 | R56: 0 | S56: 0 | T56: 0 | U56: 0 | AC56: =IFERROR(VLOOKUP($B56,Volumes!$B$4:$H$33,MATCH(AC$9,Volumes!$B$4:$H$4,0),FALSE),0) -> 0 | AD56: =IFERROR(VLOOKUP($B56,Volumes!$B$4:$H$33,MATCH(AD$9,Volumes!$B$4:$H$4,0),FALSE),0) -> 0 | AE56: =IFERROR(VLOOKUP($B56,Volumes!$B$4:$H$33,MATCH(AE$9,Volumes!$B$4:$H$4,0),FALSE),0) -> 0 | AF56: =IFERROR(VLOOKUP($B56,Volumes!$B$4:$H$33,MATCH(AF$9,Volumes!$B$4:$H$4,0),FALSE),0) -> 0 | AG56: =IFERROR(VLOOKUP($B56,Volumes!$B$4:$H$33,MATCH(AG$9,Volumes!$B$4:$H$4,0),FALSE),0) -> 0
B57: =Inputs!$C116 -> 250W Metal Halide - Flood Light | C57: Old light no volumes | D57: 22.703 | E57: =IF($C57="NA","",OFFSET('Combined Annuity Prices CL'!$B$10,MATCH($B57,'Combined Annuity Prices CL'!$B$10:$B$3811,0)+12,E$7)*'Master Data'!$J$37) -> 23.41090164 | F57: =IF($C57="NA","",OFFSET('Combined Annuity Prices CL'!$B$10,MATCH($B57,'Combined Annuity Prices CL'!$B$10:$B$3811,0)+12,F$7)*'Master Data'!$J$37) -> 23.48189756 | G57: =IF($C57="NA","",OFFSET('Combined Annuity Prices CL'!$B$10,MATCH($B57,'Combined Annuity Prices CL'!$B$10:$B$3811,0)+12,G$7)*'Master Data'!$J$37) -> 23.1759887 | H57: =IF($C57="NA","",OFFSET('Combined Annuity Prices CL'!$B$10,MATCH($B57,'Combined Annuity Prices CL'!$B$10:$B$3811,0)+12,H$7)*'Master Data'!$J$37) -> 23.08097947 | I57: =IF($C57="NA","",OFFSET('Combined Annuity Prices CL'!$B$10,MATCH($B57,'Combined Annuity Prices CL'!$B$10:$B$3811,0)+12,I$7)*'Master Data'!$J$37) -> 22.91288621 | Q57: 0 | R57: 0 | S57: 0 | T57: 0 | U57: 0 | AC57: =IFERROR(VLOOKUP($B57,Volumes!$B$4:$H$33,MATCH(AC$9,Volumes!$B$4:$H$4,0),FALSE),0) -> 0 | AD57: =IFERROR(VLOOKUP($B57,Volumes!$B$4:$H$33,MATCH(AD$9,Volumes!$B$4:$H$4,0),FALSE),0) -> 0 | AE57: =IFERROR(VLOOKUP($B57,Volumes!$B$4:$H$33,MATCH(AE$9,Volumes!$B$4:$H$4,0),FALSE),0) -> 0 | AF57: =IFERROR(VLOOKUP($B57,Volumes!$B$4:$H$33,MATCH(AF$9,Volumes!$B$4:$H$4,0),FALSE),0) -> 0 | AG57: =IFERROR(VLOOKUP($B57,Volumes!$B$4:$H$33,MATCH(AG$9,Volumes!$B$4:$H$4,0),FALSE),0) -> 0
B58: =Inputs!$C117 -> 400W Metal Halide - Flood Light | C58: Old light no volumes | D58: 23.408 | E58: =IF($C58="NA","",OFFSET('Combined Annuity Prices CL'!$B$10,MATCH($B58,'Combined Annuity Prices CL'!$B$10:$B$3811,0)+12,E$7)*'Master Data'!$J$37) -> 24.09475932 | F58: =IF($C58="NA","",OFFSET('Combined Annuity Prices CL'!$B$10,MATCH($B58,'Combined Annuity Prices CL'!$B$10:$B$3811,0)+12,F$7)*'Master Data'!$J$37) -> 24.1688874 | G58: =IF($C58="NA","",OFFSET('Combined Annuity Prices CL'!$B$10,MATCH($B58,'Combined Annuity Prices CL'!$B$10:$B$3811,0)+12,G$7)*'Master Data'!$J$37) -> 23.86193449 | H58: =IF($C58="NA","",OFFSET('Combined Annuity Prices CL'!$B$10,MATCH($B58,'Combined Annuity Prices CL'!$B$10:$B$3811,0)+12,H$7)*'Master Data'!$J$37) -> 23.76692526 | I58: =IF($C58="NA","",OFFSET('Combined Annuity Prices CL'!$B$10,MATCH($B58,'Combined Annuity Prices CL'!$B$10:$B$3811,0)+12,I$7)*'Master Data'!$J$37) -> 23.59674388 | Q58: 0 | R58: 0 | S58: 0 | T58: 0 | U58: 0 | AC58: =IFERROR(VLOOKUP($B58,Volumes!$B$4:$H$33,MATCH(AC$9,Volumes!$B$4:$H$4,0),FALSE),0) -> 0 | AD58: =IFERROR(VLOOKUP($B58,Volumes!$B$4:$H$33,MATCH(AD$9,Volumes!$B$4:$H$4,0),FALSE),0) -> 0 | AE58: =IFERROR(VLOOKUP($B58,Volumes!$B$4:$H$33,MATCH(AE$9,Volumes!$B$4:$H$4,0),FALSE),0) -> 0 | AF58: =IFERROR(VLOOKUP($B58,Volumes!$B$4:$H$33,MATCH(AF$9,Volumes!$B$4:$H$4,0),FALSE),0) -> 0 | AG58: =IFERROR(VLOOKUP($B58,Volumes!$B$4:$H$33,MATCH(AG$9,Volumes!$B$4:$H$4,0),FALSE),0) -> 0
B59: =Inputs!$C118 -> 125W Mercury Vapour | C59: Obsolete, no new Connections | D59: 21.646 | E59: =IF($C59="NA","",OFFSET('Combined Annuity Prices CL'!$B$10,MATCH($B59,'Combined Annuity Prices CL'!$B$10:$B$3811,0)+12,E$7)*'Master Data'!$J$37) -> 22.38459311 | F59: =IF($C59="NA","",OFFSET('Combined Annuity Prices CL'!$B$10,MATCH($B59,'Combined Annuity Prices CL'!$B$10:$B$3811,0)+12,F$7)*'Master Data'!$J$37) -> 22.45245685 | G59: =IF($C59="NA","",OFFSET('Combined Annuity Prices CL'!$B$10,MATCH($B59,'Combined Annuity Prices CL'!$B$10:$B$3811,0)+12,G$7)*'Master Data'!$J$37) -> 22.146548 | H59: =IF($C59="NA","",OFFSET('Combined Annuity Prices CL'!$B$10,MATCH($B59,'Combined Annuity Prices CL'!$B$10:$B$3811,0)+12,H$7)*'Master Data'!$J$37) -> 22.05153876 | I59: =IF($C59="NA","",OFFSET('Combined Annuity Prices CL'!$B$10,MATCH($B59,'Combined Annuity Prices CL'!$B$10:$B$3811,0)+12,I$7)*'Master Data'!$J$37) -> 21.88553362 | Q59: 0.02572526978 | R59: 0.02515910052 | S59: 0.02433130495 | T59: 0.02374399436 | U59: 0.02314920433 | AC59: =IFERROR(VLOOKUP($B59,Volumes!$B$4:$H$33,MATCH(AC$9,Volumes!$B$4:$H$4,0),FALSE),0) -> 314 | AD59: =IFERROR(VLOOKUP($B59,Volumes!$B$4:$H$33,MATCH(AD$9,Volumes!$B$4:$H$4,0),FALSE),0) -> 307 | AE59: =IFERROR(VLOOKUP($B59,Volumes!$B$4:$H$33,MATCH(AE$9,Volumes!$B$4:$H$4,0),FALSE),0) -> 301 | AF59: =IFERROR(VLOOKUP($B59,Volumes!$B$4:$H$33,MATCH(AF$9,Volumes!$B$4:$H$4,0),FALSE),0) -> 295 | AG59: =IFERROR(VLOOKUP($B59,Volumes!$B$4:$H$33,MATCH(AG$9,Volumes!$B$4:$H$4,0),FALSE),0) -> 289
B60: =Inputs!$C119 -> 250W Mercury Vapour | C60: Obsolete, no new Connections | D60: 21.646 | E60: =IF($C60="NA","",OFFSET('Combined Annuity Prices CL'!$B$10,MATCH($B60,'Combined Annuity Prices CL'!$B$10:$B$3811,0)+12,E$7)*'Master Data'!$J$37) -> 22.38459311 | F60: =IF($C60="NA","",OFFSET('Combined Annuity Prices CL'!$B$10,MATCH($B60,'Combined Annuity Prices CL'!$B$10:$B$3811,0)+12,F$7)*'Master Data'!$J$37) -> 22.45245685 | G60: =IF($C60="NA","",OFFSET('Combined Annuity Prices CL'!$B$10,MATCH($B60,'Combined Annuity Prices CL'!$B$10:$B$3811,0)+12,G$7)*'Master Data'!$J$37) -> 22.146548 | H60: =IF($C60="NA","",OFFSET('Combined Annuity Prices CL'!$B$10,MATCH($B60,'Combined Annuity Prices CL'!$B$10:$B$3811,0)+12,H$7)*'Master Data'!$J$37) -> 22.05153876 | I60: =IF($C60="NA","",OFFSET('Combined Annuity Prices CL'!$B$10,MATCH($B60,'Combined Annuity Prices CL'!$B$10:$B$3811,0)+12,I$7)*'Master Data'!$J$37) -> 21.88553362 | Q60: 0.002212045491 | R60: 0.002212689622 | S60: 0.002101707405 | T60: 0.002092691028 | U60: 0.002002526326 | AC60: =IFERROR(VLOOKUP($B60,Volumes!$B$4:$H$33,MATCH(AC$9,Volumes!$B$4:$H$4,0),FALSE),0) -> 27 | AD60: =IFERROR(VLOOKUP($B60,Volumes!$B$4:$H$33,MATCH(AD$9,Volumes!$B$4:$H$4,0),FALSE),0) -> 27 | AE60: =IFERROR(VLOOKUP($B60,Volumes!$B$4:$H$33,MATCH(AE$9,Volumes!$B$4:$H$4,0),FALSE),0) -> 26 | AF60: =IFERROR(VLOOKUP($B60,Volumes!$B$4:$H$33,MATCH(AF$9,Volumes!$B$4:$H$4,0),FALSE),0) -> 26 | AG60: =IFERROR(VLOOKUP($B60,Volumes!$B$4:$H$33,MATCH(AG$9,Volumes!$B$4:$H$4,0),FALSE),0) -> 25
B61: =Inputs!$C120 -> 0 | C61: NA | E61: =IF($C61="NA","",OFFSET('Combined Annuity Prices CL'!$B$10,MATCH($B61,'Combined Annuity Prices CL'!$B$10:$B$3811,0)+12,E$7)*'Master Data'!$J$37) ->  | F61: =IF($C61="NA","",OFFSET('Combined Annuity Prices CL'!$B$10,MATCH($B61,'Combined Annuity Prices CL'!$B$10:$B$3811,0)+12,F$7)*'Master Data'!$J$37) ->  | G61: =IF($C61="NA","",OFFSET('Combined Annuity Prices CL'!$B$10,MATCH($B61,'Combined Annuity Prices CL'!$B$10:$B$3811,0)+12,G$7)*'Master Data'!$J$37) ->  | H61: =IF($C61="NA","",OFFSET('Combined Annuity Prices CL'!$B$10,MATCH($B61,'Combined Annuity Prices CL'!$B$10:$B$3811,0)+12,H$7)*'Master Data'!$J$37) ->  | I61: =IF($C61="NA","",OFFSET('Combined Annuity Prices CL'!$B$10,MATCH($B61,'Combined Annuity Prices CL'!$B$10:$B$3811,0)+12,I$7)*'Master Data'!$J$37) ->  | AC61: =IFERROR(VLOOKUP($B61,Volumes!$B$4:$H$33,MATCH(AC$9,Volumes!$B$4:$H$4,0),FALSE),0) -> 0 | AD61: =IFERROR(VLOOKUP($B61,Volumes!$B$4:$H$33,MATCH(AD$9,Volumes!$B$4:$H$4,0),FALSE),0) -> 0 | AE61: =IFERROR(VLOOKUP($B61,Volumes!$B$4:$H$33,MATCH(AE$9,Volumes!$B$4:$H$4,0),FALSE),0) -> 0 | AF61: =IFERROR(VLOOKUP($B61,Volumes!$B$4:$H$33,MATCH(AF$9,Volumes!$B$4:$H$4,0),FALSE),0) -> 0 | AG61: =IFERROR(VLOOKUP($B61,Volumes!$B$4:$H$33,MATCH(AG$9,Volumes!$B$4:$H$4,0),FALSE),0) -> 0
B62: =Inputs!$C121 -> 400W Mercury Vapour | C62: Obsolete, no new Connections | D62: 21.799 | E62: =IF($C62="NA","",OFFSET('Combined Annuity Prices CL'!$B$10,MATCH($B62,'Combined Annuity Prices CL'!$B$10:$B$3811,0)+12,E$7)*'Master Data'!$J$37) -> 22.53389333 | F62: =IF($C62="NA","",OFFSET('Combined Annuity Prices CL'!$B$10,MATCH($B62,'Combined Annuity Prices CL'!$B$10:$B$3811,0)+12,F$7)*'Master Data'!$J$37) -> 22.60280113 | G62: =IF($C62="NA","",OFFSET('Combined Annuity Prices CL'!$B$10,MATCH($B62,'Combined Annuity Prices CL'!$B$10:$B$3811,0)+12,G$7)*'Master Data'!$J$37) -> 22.29689228 | H62: =IF($C62="NA","",OFFSET('Combined Annuity Prices CL'!$B$10,MATCH($B62,'Combined Annuity Prices CL'!$B$10:$B$3811,0)+12,H$7)*'Master Data'!$J$37) -> 22.20083899 | I62: =IF($C62="NA","",OFFSET('Combined Annuity Prices CL'!$B$10,MATCH($B62,'Combined Annuity Prices CL'!$B$10:$B$3811,0)+12,I$7)*'Master Data'!$J$37) -> 22.03483384 | Q62: 0.001731955042 | R62: 0.001650004482 | S62: 0.001627673136 | T62: 0.001620661246 | U62: 0.001532302345 | AC62: =IFERROR(VLOOKUP($B62,Volumes!$B$4:$H$33,MATCH(AC$9,Volumes!$B$4:$H$4,0),FALSE),0) -> 21 | AD62: =IFERROR(VLOOKUP($B62,Volumes!$B$4:$H$33,MATCH(AD$9,Volumes!$B$4:$H$4,0),FALSE),0) -> 20 | AE62: =IFERROR(VLOOKUP($B62,Volumes!$B$4:$H$33,MATCH(AE$9,Volumes!$B$4:$H$4,0),FALSE),0) -> 20 | AF62: =IFERROR(VLOOKUP($B62,Volumes!$B$4:$H$33,MATCH(AF$9,Volumes!$B$4:$H$4,0),FALSE),0) -> 20 | AG62: =IFERROR(VLOOKUP($B62,Volumes!$B$4:$H$33,MATCH(AG$9,Volumes!$B$4:$H$4,0),FALSE),0) -> 19
B63: =Inputs!$C122 -> 50W Mercury Vapour | C63: Obsolete, no new Connections | D63: 18.088 | E63: =IF($C63="NA","",OFFSET('Combined Annuity Prices CL'!$B$10,MATCH($B63,'Combined Annuity Prices CL'!$B$10:$B$3811,0)+12,E$7)*'Master Data'!$J$37) -> 19.01541951 | F63: =IF($C63="NA","",OFFSET('Combined Annuity Prices CL'!$B$10,MATCH($B63,'Combined Annuity Prices CL'!$B$10:$B$3811,0)+12,F$7)*'Master Data'!$J$37) -> 19.07493079 | G63: =IF($C63="NA","",OFFSET('Combined Annuity Prices CL'!$B$10,MATCH($B63,'Combined Annuity Prices CL'!$B$10:$B$3811,0)+12,G$7)*'Master Data'!$J$37) -> 18.76797788 | H63: =IF($C63="NA","",OFFSET('Combined Annuity Prices CL'!$B$10,MATCH($B63,'Combined Annuity Prices CL'!$B$10:$B$3811,0)+12,H$7)*'Master Data'!$J$37) -> 18.67088053 | I63: =IF($C63="NA","",OFFSET('Combined Annuity Prices CL'!$B$10,MATCH($B63,'Combined Annuity Prices CL'!$B$10:$B$3811,0)+12,I$7)*'Master Data'!$J$37) -> 18.5142719 | Q63: 0.009813097392 | R63: 0.009051054659 | S63: 0.008699896146 | T63: 0.007837102102 | U63: 0.007318321398 | AC63: =IFERROR(VLOOKUP($B63,Volumes!$B$4:$H$33,MATCH(AC$9,Volumes!$B$4:$H$4,0),FALSE),0) -> 141 | AD63: =IFERROR(VLOOKUP($B63,Volumes!$B$4:$H$33,MATCH(AD$9,Volumes!$B$4:$H$4,0),FALSE),0) -> 130 | AE63: =IFERROR(VLOOKUP($B63,Volumes!$B$4:$H$33,MATCH(AE$9,Volumes!$B$4:$H$4,0),FALSE),0) -> 127 | AF63: =IFERROR(VLOOKUP($B63,Volumes!$B$4:$H$33,MATCH(AF$9,Volumes!$B$4:$H$4,0),FALSE),0) -> 115 | AG63: =IFERROR(VLOOKUP($B63,Volumes!$B$4:$H$33,MATCH(AG$9,Volumes!$B$4:$H$4,0),FALSE),0) -> 108
B64: =Inputs!$C123 -> 80W Mercury Vapour Art decorative | C64: Old light no volumes | D64: 18.056 | E64: =IF($C64="NA","",OFFSET('Combined Annuity Prices CL'!$B$10,MATCH($B64,'Combined Annuity Prices CL'!$B$10:$B$3811,0)+12,E$7)*'Master Data'!$J$37) -> 18.98514184 | F64: =IF($C64="NA","",OFFSET('Combined Annuity Prices CL'!$B$10,MATCH($B64,'Combined Annuity Prices CL'!$B$10:$B$3811,0)+12,F$7)*'Master Data'!$J$37) -> 19.04360906 | G64: =IF($C64="NA","",OFFSET('Combined Annuity Prices CL'!$B$10,MATCH($B64,'Combined Annuity Prices CL'!$B$10:$B$3811,0)+12,G$7)*'Master Data'!$J$37) -> 18.73665615 | H64: =IF($C64="NA","",OFFSET('Combined Annuity Prices CL'!$B$10,MATCH($B64,'Combined Annuity Prices CL'!$B$10:$B$3811,0)+12,H$7)*'Master Data'!$J$37) -> 18.64060286 | I64: =IF($C64="NA","",OFFSET('Combined Annuity Prices CL'!$B$10,MATCH($B64,'Combined Annuity Prices CL'!$B$10:$B$3811,0)+12,I$7)*'Master Data'!$J$37) -> 18.48399423 | Q64: 0 | R64: 0 | S64: 0 | T64: 0 | U64: 0 | AC64: =IFERROR(VLOOKUP($B64,Volumes!$B$4:$H$33,MATCH(AC$9,Volumes!$B$4:$H$4,0),FALSE),0) -> 0 | AD64: =IFERROR(VLOOKUP($B64,Volumes!$B$4:$H$33,MATCH(AD$9,Volumes!$B$4:$H$4,0),FALSE),0) -> 0 | AE64: =IFERROR(VLOOKUP($B64,Volumes!$B$4:$H$33,MATCH(AE$9,Volumes!$B$4:$H$4,0),FALSE),0) -> 0 | AF64: =IFERROR(VLOOKUP($B64,Volumes!$B$4:$H$33,MATCH(AF$9,Volumes!$B$4:$H$4,0),FALSE),0) -> 0 | AG64: =IFERROR(VLOOKUP($B64,Volumes!$B$4:$H$33,MATCH(AG$9,Volumes!$B$4:$H$4,0),FALSE),0) -> 0
B65: =Inputs!$C124 -> 80W Mercury Vapour | C65: Obsolete, no new Connections | D65: 18.056 | E65: =IF($C65="NA","",OFFSET('Combined Annuity Prices CL'!$B$10,MATCH($B65,'Combined Annuity Prices CL'!$B$10:$B$3811,0)+12,E$7)*'Master Data'!$J$37) -> 18.98514184 | F65: =IF($C65="NA","",OFFSET('Combined Annuity Prices CL'!$B$10,MATCH($B65,'Combined Annuity Prices CL'!$B$10:$B$3811,0)+12,F$7)*'Master Data'!$J$37) -> 19.04360906 | G65: =IF($C65="NA","",OFFSET('Combined Annuity Prices CL'!$B$10,MATCH($B65,'Combined Annuity Prices CL'!$B$10:$B$3811,0)+12,G$7)*'Master Data'!$J$37) -> 18.73665615 | H65: =IF($C65="NA","",OFFSET('Combined Annuity Prices CL'!$B$10,MATCH($B65,'Combined Annuity Prices CL'!$B$10:$B$3811,0)+12,H$7)*'Master Data'!$J$37) -> 18.64060286 | I65: =IF($C65="NA","",OFFSET('Combined Annuity Prices CL'!$B$10,MATCH($B65,'Combined Annuity Prices CL'!$B$10:$B$3811,0)+12,I$7)*'Master Data'!$J$37) -> 18.48399423 | Q65: 0.01945597336 | R65: 0.018072385 | S65: 0.01641331079 | T65: 0.0156487861 | U65: 0.01488331216 | AC65: =IFERROR(VLOOKUP($B65,Volumes!$B$4:$H$33,MATCH(AC$9,Volumes!$B$4:$H$4,0),FALSE),0) -> 280 | AD65: =IFERROR(VLOOKUP($B65,Volumes!$B$4:$H$33,MATCH(AD$9,Volumes!$B$4:$H$4,0),FALSE),0) -> 260 | AE65: =IFERROR(VLOOKUP($B65,Volumes!$B$4:$H$33,MATCH(AE$9,Volumes!$B$4:$H$4,0),FALSE),0) -> 240 | AF65: =IFERROR(VLOOKUP($B65,Volumes!$B$4:$H$33,MATCH(AF$9,Volumes!$B$4:$H$4,0),FALSE),0) -> 230 | AG65: =IFERROR(VLOOKUP($B65,Volumes!$B$4:$H$33,MATCH(AG$9,Volumes!$B$4:$H$4,0),FALSE),0) -> 220
B66: =Inputs!$C125 -> 14W LED | C66: Obsolete, no new Connections | E66: =IF($C66="NA","",OFFSET('Combined Annuity Prices CL'!$B$10,MATCH($B66,'Combined Annuity Prices CL'!$B$10:$B$3811,0)+12,E$7)*'Master Data'!$J$37) -> 13.74606123 | F66: =IF($C66="NA","",OFFSET('Combined Annuity Prices CL'!$B$10,MATCH($B66,'Combined Annuity Prices CL'!$B$10:$B$3811,0)+12,F$7)*'Master Data'!$J$37) -> 13.78991165 | G66: =IF($C66="NA","",OFFSET('Combined Annuity Prices CL'!$B$10,MATCH($B66,'Combined Annuity Prices CL'!$B$10:$B$3811,0)+12,G$7)*'Master Data'!$J$37) -> 13.48191468 | H66: =IF($C66="NA","",OFFSET('Combined Annuity Prices CL'!$B$10,MATCH($B66,'Combined Annuity Prices CL'!$B$10:$B$3811,0)+12,H$7)*'Master Data'!$J$37) -> 13.38377328 | I66: =IF($C66="NA","",OFFSET('Combined Annuity Prices CL'!$B$10,MATCH($B66,'Combined Annuity Prices CL'!$B$10:$B$3811,0)+12,I$7)*'Master Data'!$J$37) -> 13.23969334 | Q66: 0.6605276589 | R66: 0.7061241475 | S66: 0.6918291706 | T66: 0.6882585332 | U66: 0.6846528755 | AC66: =IFERROR(VLOOKUP($B66,Volumes!$B$4:$H$33,MATCH(AC$9,Volumes!$B$4:$H$4,0),FALSE),0) -> 13129 | AD66: =IFERROR(VLOOKUP($B66,Volumes!$B$4:$H$33,MATCH(AD$9,Volumes!$B$4:$H$4,0),FALSE),0) -> 14029 | AE66: =IFERROR(VLOOKUP($B66,Volumes!$B$4:$H$33,MATCH(AE$9,Volumes!$B$4:$H$4,0),FALSE),0) -> 14059 | AF66: =IFERROR(VLOOKUP($B66,Volumes!$B$4:$H$33,MATCH(AF$9,Volumes!$B$4:$H$4,0),FALSE),0) -> 14089 | AG66: =IFERROR(VLOOKUP($B66,Volumes!$B$4:$H$33,MATCH(AG$9,Volumes!$B$4:$H$4,0),FALSE),0) -> 14129
B67: =Inputs!$C126 -> New technology - Minor | C67: Offered | E67: =IF($C67="NA","",OFFSET('Combined Annuity Prices CL'!$B$10,MATCH($B67,'Combined Annuity Prices CL'!$B$10:$B$3811,0)+12,E$7)*'Master Data'!$J$37) -> 13.74606123 | F67: =IF($C67="NA","",OFFSET('Combined Annuity Prices CL'!$B$10,MATCH($B67,'Combined Annuity Prices CL'!$B$10:$B$3811,0)+12,F$7)*'Master Data'!$J$37) -> 13.78991165 | G67: =IF($C67="NA","",OFFSET('Combined Annuity Prices CL'!$B$10,MATCH($B67,'Combined Annuity Prices CL'!$B$10:$B$3811,0)+12,G$7)*'Master Data'!$J$37) -> 13.48191468 | H67: =IF($C67="NA","",OFFSET('Combined Annuity Prices CL'!$B$10,MATCH($B67,'Combined Annuity Prices CL'!$B$10:$B$3811,0)+12,H$7)*'Master Data'!$J$37) -> 13.38377328 | I67: =IF($C67="NA","",OFFSET('Combined Annuity Prices CL'!$B$10,MATCH($B67,'Combined Annuity Prices CL'!$B$10:$B$3811,0)+12,I$7)*'Master Data'!$J$37) -> 13.23969334 | Q67: 0 | R67: 0 | S67: 0 | T67: 0 | U67: 0 | AC67: =IFERROR(VLOOKUP($B67,Volumes!$B$4:$H$33,MATCH(AC$9,Volumes!$B$4:$H$4,0),FALSE),0) -> 0 | AD67: =IFERROR(VLOOKUP($B67,Volumes!$B$4:$H$33,MATCH(AD$9,Volumes!$B$4:$H$4,0),FALSE),0) -> 0 | AE67: =IFERROR(VLOOKUP($B67,Volumes!$B$4:$H$33,MATCH(AE$9,Volumes!$B$4:$H$4,0),FALSE),0) -> 0 | AF67: =IFERROR(VLOOKUP($B67,Volumes!$B$4:$H$33,MATCH(AF$9,Volumes!$B$4:$H$4,0),FALSE),0) -> 0 | AG67: =IFERROR(VLOOKUP($B67,Volumes!$B$4:$H$33,MATCH(AG$9,Volumes!$B$4:$H$4,0),FALSE),0) -> 0
B68: =Inputs!$C127 -> New technology - Major | C68: Offered | E68: =IF($C68="NA","",OFFSET('Combined Annuity Prices CL'!$B$10,MATCH($B68,'Combined Annuity Prices CL'!$B$10:$B$3811,0)+12,E$7)*'Master Data'!$J$37) -> 14.51553162 | F68: =IF($C68="NA","",OFFSET('Combined Annuity Prices CL'!$B$10,MATCH($B68,'Combined Annuity Prices CL'!$B$10:$B$3811,0)+12,F$7)*'Master Data'!$J$37) -> 14.56147015 | G68: =IF($C68="NA","",OFFSET('Combined Annuity Prices CL'!$B$10,MATCH($B68,'Combined Annuity Prices CL'!$B$10:$B$3811,0)+12,G$7)*'Master Data'!$J$37) -> 14.25451724 | H68: =IF($C68="NA","",OFFSET('Combined Annuity Prices CL'!$B$10,MATCH($B68,'Combined Annuity Prices CL'!$B$10:$B$3811,0)+12,H$7)*'Master Data'!$J$37) -> 14.15637584 | I68: =IF($C68="NA","",OFFSET('Combined Annuity Prices CL'!$B$10,MATCH($B68,'Combined Annuity Prices CL'!$B$10:$B$3811,0)+12,I$7)*'Master Data'!$J$37) -> 14.01020779 | Q68: 0 | R68: 0 | S68: 0 | T68: 0 | U68: 0 | AC68: =IFERROR(VLOOKUP($B68,Volumes!$B$4:$H$33,MATCH(AC$9,Volumes!$B$4:$H$4,0),FALSE),0) -> 0 | AD68: =IFERROR(VLOOKUP($B68,Volumes!$B$4:$H$33,MATCH(AD$9,Volumes!$B$4:$H$4,0),FALSE),0) -> 0 | AE68: =IFERROR(VLOOKUP($B68,Volumes!$B$4:$H$33,MATCH(AE$9,Volumes!$B$4:$H$4,0),FALSE),0) -> 0 | AF68: =IFERROR(VLOOKUP($B68,Volumes!$B$4:$H$33,MATCH(AF$9,Volumes!$B$4:$H$4,0),FALSE),0) -> 0 | AG68: =IFERROR(VLOOKUP($B68,Volumes!$B$4:$H$33,MATCH(AG$9,Volumes!$B$4:$H$4,0),FALSE),0) -> 0
Q69: =SUM(Q10:Q68) -> 1.021604081 | R69: =SUM(R10:R68) -> 1.064545333 | S69: =SUM(S10:S68) -> 1.040920403 | T69: =SUM(T10:T68) -> 1.033097359 | U69: =SUM(U10:U68) -> 1.025204654 | AC69: =SUM(AC10:AC68) -> 19572 | AD69: =SUM(AD10:AD68) -> 20433 | AE69: =SUM(AE10:AE68) -> 20433 | AF69: =SUM(AF10:AF68) -> 20435 | AG69: =SUM(AG10:AG68) -> 20450
AC70: =Volumes!D34=AC69 -> TRUE | AD70: =Volumes!E34=AD69 -> TRUE | AE70: =Volumes!F34=AE69 -> TRUE | AF70: =Volumes!G34=AF69 -> TRUE | AG70: =Volumes!H34=AG69 -> TRUE
B72: Public Road Lights | C72: Offered / No Longer Offered / NA | D72: ='Master Data'!J$34 -> 2018-19 | E72: ='Master Data'!K$34 -> 2019-20 | F72: ='Master Data'!L$34 -> 2020-21 | G72: ='Master Data'!M$34 -> 2021-22 | H72: ='Master Data'!N$34 -> 2022-23 | I72: ='Master Data'!O$34 -> 2023-24 | J72: ='Master Data'!P$34 -> 2024-25 | K72: ='Master Data'!Q$34 -> 2025-26 | L72: ='Master Data'!R$34 -> 2026-27 | M72: ='Master Data'!S$34 -> 2027-28 | N72: ='Master Data'!T$34 -> 2028-29 | Q72: =Q9 -> 2019-20 | R72: 2020-21 | S72: 2021-22 | T72: 2022-23 | U72: 2023-24 | V72: 2024-25 | W72: 2025-26 | X72: 2026-27 | Y72: 2027-28 | Z72: 2028-29 | AC72: =AC9 -> 2019-20 | AD72: 2020-21 | AE72: 2021-22 | AF72: 2022-23 | AG72: 2023-24 | AH72: 2024-25 | AI72: 2025-26 | AJ72: 2026-27 | AK72: 2027-28 | AL72: 2028-29
B73: =Inputs!$C69 -> 32W Compact Fluorescent | C73: No Longer Offered | D73: 36.021 | E73: =IF($C73="NA","",IF($B73=0,"",OFFSET('Combined Annuity Prices PL'!$B$10,MATCH($B73,'Combined Annuity Prices PL'!$B$10:$B$3811,0)+12,E$7)*'Master Data'!$J$37)) -> 39.28057586 | F73: =IF($C73="NA","",IF($B73=0,"",OFFSET('Combined Annuity Prices PL'!$B$10,MATCH($B73,'Combined Annuity Prices PL'!$B$10:$B$3811,0)+12,F$7)*'Master Data'!$J$37)) -> 39.1469365 | G73: =IF($C73="NA","",IF($B73=0,"",OFFSET('Combined Annuity Prices PL'!$B$10,MATCH($B73,'Combined Annuity Prices PL'!$B$10:$B$3811,0)+12,G$7)*'Master Data'!$J$37)) -> 34.62721152 | H73: =IF($C73="NA","",IF($B73=0,"",OFFSET('Combined Annuity Prices PL'!$B$10,MATCH($B73,'Combined Annuity Prices PL'!$B$10:$B$3811,0)+12,H$7)*'Master Data'!$J$37)) -> 34.38081395 | I73: =IF($C73="NA","",IF($B73=0,"",OFFSET('Combined Annuity Prices PL'!$B$10,MATCH($B73,'Combined Annuity Prices PL'!$B$10:$B$3811,0)+12,I$7)*'Master Data'!$J$37)) -> 34.09891842 | J73: =IF($C73="NA","",IF($B73=0,"",OFFSET('Combined Annuity Prices PL'!$B$10,MATCH($B73,'Combined Annuity Prices PL'!$B$10:$B$3811,0)+12,J$7)*'Master Data'!$J$37)) -> 0 | K73: =IF($C73="NA","",IF($B73=0,"",OFFSET('Combined Annuity Prices PL'!$B$10,MATCH($B73,'Combined Annuity Prices PL'!$B$10:$B$3811,0)+12,K$7)*'Master Data'!$J$37)) -> 0 | L73: =IF($C73="NA","",IF($B73=0,"",OFFSET('Combined Annuity Prices PL'!$B$10,MATCH($B73,'Combined Annuity Prices PL'!$B$10:$B$3811,0)+12,L$7)*'Master Data'!$J$37)) -> 0 | M73: =IF($C73="NA","",IF($B73=0,"",OFFSET('Combined Annuity Prices PL'!$B$10,MATCH($B73,'Combined Annuity Prices PL'!$B$10:$B$3811,0)+12,M$7)*'Master Data'!$J$37)) -> 0 | N73: =IF($C73="NA","",IF($B73=0,"",OFFSET('Combined Annuity Prices PL'!$B$10,MATCH($B73,'Combined Annuity Prices PL'!$B$10:$B$3811,0)+12,N$7)*'Master Data'!$J$37)) -> 0 | Q73: =IF($C73="NA","",E73*AC73*Q$6/100/10^6) -> 0 | R73: =IF($C73="NA","",F73*AD73*R$6/100/10^6) -> 0 | S73: =IF($C73="NA","",G73*AE73*S$6/100/10^6) -> 0 | T73: =IF($C73="NA","",H73*AF73*T$6/100/10^6) -> 0 | U73: =IF($C73="NA","",I73*AG73*U$6/100/10^6) -> 0 | AC73: =IFERROR(VLOOKUP($B73,Volumes!$B$39:$H$81,MATCH(AC$9,Volumes!$B$4:$H$4,0),FALSE),0) -> 0 | AD73: =IFERROR(VLOOKUP($B73,Volumes!$B$39:$H$81,MATCH(AD$9,Volumes!$B$4:$H$4,0),FALSE),0) -> 0 | AE73: =IFERROR(VLOOKUP($B73,Volumes!$B$39:$H$81,MATCH(AE$9,Volumes!$B$4:$H$4,0),FALSE),0) -> 0 | AF73: =IFERROR(VLOOKUP($B73,Volumes!$B$39:$H$81,MATCH(AF$9,Volumes!$B$4:$H$4,0),FALSE),0) -> 0 | AG73: =IFERROR(VLOOKUP($B73,Volumes!$B$39:$H$81,MATCH(AG$9,Volumes!$B$4:$H$4,0),FALSE),0) -> 0
B74: =Inputs!$C70 -> 42W Compact Fluorescent | C74: Offered | D74: 36.047 | E74: =IF($C74="NA","",IF($B74=0,"",OFFSET('Combined Annuity Prices PL'!$B$10,MATCH($B74,'Combined Annuity Prices PL'!$B$10:$B$3811,0)+12,E$7)*'Master Data'!$J$37)) -> 39.30354513 | F74: =IF($C74="NA","",IF($B74=0,"",OFFSET('Combined Annuity Prices PL'!$B$10,MATCH($B74,'Combined Annuity Prices PL'!$B$10:$B$3811,0)+12,F$7)*'Master Data'!$J$37)) -> 39.16990577 | G74: =IF($C74="NA","",IF($B74=0,"",OFFSET('Combined Annuity Prices PL'!$B$10,MATCH($B74,'Combined Annuity Prices PL'!$B$10:$B$3811,0)+12,G$7)*'Master Data'!$J$37)) -> 34.64913673 | H74: =IF($C74="NA","",IF($B74=0,"",OFFSET('Combined Annuity Prices PL'!$B$10,MATCH($B74,'Combined Annuity Prices PL'!$B$10:$B$3811,0)+12,H$7)*'Master Data'!$J$37)) -> 34.40273916 | I74: =IF($C74="NA","",IF($B74=0,"",OFFSET('Combined Annuity Prices PL'!$B$10,MATCH($B74,'Combined Annuity Prices PL'!$B$10:$B$3811,0)+12,I$7)*'Master Data'!$J$37)) -> 34.12188769 | J74: =IF($C74="NA","",IF($B74=0,"",OFFSET('Combined Annuity Prices PL'!$B$10,MATCH($B74,'Combined Annuity Prices PL'!$B$10:$B$3811,0)+12,J$7)*'Master Data'!$J$37)) -> 0 | K74: =IF($C74="NA","",IF($B74=0,"",OFFSET('Combined Annuity Prices PL'!$B$10,MATCH($B74,'Combined Annuity Prices PL'!$B$10:$B$3811,0)+12,K$7)*'Master Data'!$J$37)) -> 0 | L74: =IF($C74="NA","",IF($B74=0,"",OFFSET('Combined Annuity Prices PL'!$B$10,MATCH($B74,'Combined Annuity Prices PL'!$B$10:$B$3811,0)+12,L$7)*'Master Data'!$J$37)) -> 0 | M74: =IF($C74="NA","",IF($B74=0,"",OFFSET('Combined Annuity Prices PL'!$B$10,MATCH($B74,'Combined Annuity Prices PL'!$B$10:$B$3811,0)+12,M$7)*'Master Data'!$J$37)) -> 0 | N74: =IF($C74="NA","",IF($B74=0,"",OFFSET('Combined Annuity Prices PL'!$B$10,MATCH($B74,'Combined Annuity Prices PL'!$B$10:$B$3811,0)+12,N$7)*'Master Data'!$J$37)) -> 0 | Q74: 0.5053484758 | R74: 0.4961064415 | S74: 0.4135547714 | T74: 0.3905226935 | U74: 0.3609208548 | AC74: =IFERROR(VLOOKUP($B74,Volumes!$B$39:$H$81,MATCH(AC$9,Volumes!$B$4:$H$4,0),FALSE),0) -> 3513 | AD74: =IFERROR(VLOOKUP($B74,Volumes!$B$39:$H$81,MATCH(AD$9,Volumes!$B$4:$H$4,0),FALSE),0) -> 3470 | AE74: =IFERROR(VLOOKUP($B74,Volumes!$B$39:$H$81,MATCH(AE$9,Volumes!$B$4:$H$4,0),FALSE),0) -> 3270 | AF74: =IFERROR(VLOOKUP($B74,Volumes!$B$39:$H$81,MATCH(AF$9,Volumes!$B$4:$H$4,0),FALSE),0) -> 3110 | AG74: =IFERROR(VLOOKUP($B74,Volumes!$B$39:$H$81,MATCH(AG$9,Volumes!$B$4:$H$4,0),FALSE),0) -> 2890
B75: =Inputs!$C71 -> 42W Compact Fluorescent - Bottom Pole Entry | C75: No Longer Offered | D75: 36.047 | E75: =IF($C75="NA","",IF($B75=0,"",OFFSET('Combined Annuity Prices PL'!$B$10,MATCH($B75,'Combined Annuity Prices PL'!$B$10:$B$3811,0)+12,E$7)*'Master Data'!$J$37)) -> 39.30354513 | F75: =IF($C75="NA","",IF($B75=0,"",OFFSET('Combined Annuity Prices PL'!$B$10,MATCH($B75,'Combined Annuity Prices PL'!$B$10:$B$3811,0)+12,F$7)*'Master Data'!$J$37)) -> 39.16990577 | G75: =IF($C75="NA","",IF($B75=0,"",OFFSET('Combined Annuity Prices PL'!$B$10,MATCH($B75,'Combined Annuity Prices PL'!$B$10:$B$3811,0)+12,G$7)*'Master Data'!$J$37)) -> 34.64913673 | H75: =IF($C75="NA","",IF($B75=0,"",OFFSET('Combined Annuity Prices PL'!$B$10,MATCH($B75,'Combined Annuity Prices PL'!$B$10:$B$3811,0)+12,H$7)*'Master Data'!$J$37)) -> 34.40273916 | I75: =IF($C75="NA","",IF($B75=0,"",OFFSET('Combined Annuity Prices PL'!$B$10,MATCH($B75,'Combined Annuity Prices PL'!$B$10:$B$3811,0)+12,I$7)*'Master Data'!$J$37)) -> 34.12188769 | J75: =IF($C75="NA","",IF($B75=0,"",OFFSET('Combined Annuity Prices PL'!$B$10,MATCH($B75,'Combined Annuity Prices PL'!$B$10:$B$3811,0)+12,J$7)*'Master Data'!$J$37)) -> 0 | K75: =IF($C75="NA","",IF($B75=0,"",OFFSET('Combined Annuity Prices PL'!$B$10,MATCH($B75,'Combined Annuity Prices PL'!$B$10:$B$3811,0)+12,K$7)*'Master Data'!$J$37)) -> 0 | L75: =IF($C75="NA","",IF($B75=0,"",OFFSET('Combined Annuity Prices PL'!$B$10,MATCH($B75,'Combined Annuity Prices PL'!$B$10:$B$3811,0)+12,L$7)*'Master Data'!$J$37)) -> 0 | M75: =IF($C75="NA","",IF($B75=0,"",OFFSET('Combined Annuity Prices PL'!$B$10,MATCH($B75,'Combined Annuity Prices PL'!$B$10:$B$3811,0)+12,M$7)*'Master Data'!$J$37)) -> 0 | N75: =IF($C75="NA","",IF($B75=0,"",OFFSET('Combined Annuity Prices PL'!$B$10,MATCH($B75,'Combined Annuity Prices PL'!$B$10:$B$3811,0)+12,N$7)*'Master Data'!$J$37)) -> 0 | Q75: 0.02934559894 | R75: 0.02916591183 | S75: 0.02579974721 | T75: 0.02561627958 | U75: 0.02547676622 | AC75: =IFERROR(VLOOKUP($B75,Volumes!$B$39:$H$81,MATCH(AC$9,Volumes!$B$4:$H$4,0),FALSE),0) -> 204 | AD75: =IFERROR(VLOOKUP($B75,Volumes!$B$39:$H$81,MATCH(AD$9,Volumes!$B$4:$H$4,0),FALSE),0) -> 204 | AE75: =IFERROR(VLOOKUP($B75,Volumes!$B$39:$H$81,MATCH(AE$9,Volumes!$B$4:$H$4,0),FALSE),0) -> 204 | AF75: =IFERROR(VLOOKUP($B75,Volumes!$B$39:$H$81,MATCH(AF$9,Volumes!$B$4:$H$4,0),FALSE),0) -> 204 | AG75: =IFERROR(VLOOKUP($B75,Volumes!$B$39:$H$81,MATCH(AG$9,Volumes!$B$4:$H$4,0),FALSE),0) -> 204
B76: =Inputs!$C72 -> 2x24W Compact Fluorescent | C76: Old light no volumes | D76: 36.369 | E76: =IF($C76="NA","",IF($B76=0,"",OFFSET('Combined Annuity Prices PL'!$B$10,MATCH($B76,'Combined Annuity Prices PL'!$B$10:$B$3811,0)+12,E$7)*'Master Data'!$J$37)) -> 39.9038782 | F76: =IF($C76="NA","",IF($B76=0,"",OFFSET('Combined Annuity Prices PL'!$B$10,MATCH($B76,'Combined Annuity Prices PL'!$B$10:$B$3811,0)+12,F$7)*'Master Data'!$J$37)) -> 39.77232695 | G76: =IF($C76="NA","",IF($B76=0,"",OFFSET('Combined Annuity Prices PL'!$B$10,MATCH($B76,'Combined Annuity Prices PL'!$B$10:$B$3811,0)+12,G$7)*'Master Data'!$J$37)) -> 35.25155792 | H76: =IF($C76="NA","",IF($B76=0,"",OFFSET('Combined Annuity Prices PL'!$B$10,MATCH($B76,'Combined Annuity Prices PL'!$B$10:$B$3811,0)+12,H$7)*'Master Data'!$J$37)) -> 35.00516034 | I76: =IF($C76="NA","",IF($B76=0,"",OFFSET('Combined Annuity Prices PL'!$B$10,MATCH($B76,'Combined Annuity Prices PL'!$B$10:$B$3811,0)+12,I$7)*'Master Data'!$J$37)) -> 34.72222076 | J76: =IF($C76="NA","",IF($B76=0,"",OFFSET('Combined Annuity Prices PL'!$B$10,MATCH($B76,'Combined Annuity Prices PL'!$B$10:$B$3811,0)+12,J$7)*'Master Data'!$J$37)) -> 0 | K76: =IF($C76="NA","",IF($B76=0,"",OFFSET('Combined Annuity Prices PL'!$B$10,MATCH($B76,'Combined Annuity Prices PL'!$B$10:$B$3811,0)+12,K$7)*'Master Data'!$J$37)) -> 0 | L76: =IF($C76="NA","",IF($B76=0,"",OFFSET('Combined Annuity Prices PL'!$B$10,MATCH($B76,'Combined Annuity Prices PL'!$B$10:$B$3811,0)+12,L$7)*'Master Data'!$J$37)) -> 0 | M76: =IF($C76="NA","",IF($B76=0,"",OFFSET('Combined Annuity Prices PL'!$B$10,MATCH($B76,'Combined Annuity Prices PL'!$B$10:$B$3811,0)+12,M$7)*'Master Data'!$J$37)) -> 0 | N76: =IF($C76="NA","",IF($B76=0,"",OFFSET('Combined Annuity Prices PL'!$B$10,MATCH($B76,'Combined Annuity Prices PL'!$B$10:$B$3811,0)+12,N$7)*'Master Data'!$J$37)) -> 0 | Q76: 0 | R76: 0 | S76: 0 | T76: 0 | U76: 0 | AC76: =IFERROR(VLOOKUP($B76,Volumes!$B$39:$H$81,MATCH(AC$9,Volumes!$B$4:$H$4,0),FALSE),0) -> 0 | AD76: =IFERROR(VLOOKUP($B76,Volumes!$B$39:$H$81,MATCH(AD$9,Volumes!$B$4:$H$4,0),FALSE),0) -> 0 | AE76: =IFERROR(VLOOKUP($B76,Volumes!$B$39:$H$81,MATCH(AE$9,Volumes!$B$4:$H$4,0),FALSE),0) -> 0 | AF76: =IFERROR(VLOOKUP($B76,Volumes!$B$39:$H$81,MATCH(AF$9,Volumes!$B$4:$H$4,0),FALSE),0) -> 0 | AG76: =IFERROR(VLOOKUP($B76,Volumes!$B$39:$H$81,MATCH(AG$9,Volumes!$B$4:$H$4,0),FALSE),0) -> 0
B77: =Inputs!$C73 -> 1x20W Fluorescent | C77: Old light no volumes | D77: 37.742 | E77: =IF($C77="NA","",IF($B77=0,"",OFFSET('Combined Annuity Prices PL'!$B$10,MATCH($B77,'Combined Annuity Prices PL'!$B$10:$B$3811,0)+12,E$7)*'Master Data'!$J$37)) -> 41.34050134 | F77: =IF($C77="NA","",IF($B77=0,"",OFFSET('Combined Annuity Prices PL'!$B$10,MATCH($B77,'Combined Annuity Prices PL'!$B$10:$B$3811,0)+12,F$7)*'Master Data'!$J$37)) -> 41.21208227 | G77: =IF($C77="NA","",IF($B77=0,"",OFFSET('Combined Annuity Prices PL'!$B$10,MATCH($B77,'Combined Annuity Prices PL'!$B$10:$B$3811,0)+12,G$7)*'Master Data'!$J$37)) -> 36.69131323 | H77: =IF($C77="NA","",IF($B77=0,"",OFFSET('Combined Annuity Prices PL'!$B$10,MATCH($B77,'Combined Annuity Prices PL'!$B$10:$B$3811,0)+12,H$7)*'Master Data'!$J$37)) -> 36.44491565 | I77: =IF($C77="NA","",IF($B77=0,"",OFFSET('Combined Annuity Prices PL'!$B$10,MATCH($B77,'Combined Annuity Prices PL'!$B$10:$B$3811,0)+12,I$7)*'Master Data'!$J$37)) -> 36.15779984 | J77: =IF($C77="NA","",IF($B77=0,"",OFFSET('Combined Annuity Prices PL'!$B$10,MATCH($B77,'Combined Annuity Prices PL'!$B$10:$B$3811,0)+12,J$7)*'Master Data'!$J$37)) -> 0 | K77: =IF($C77="NA","",IF($B77=0,"",OFFSET('Combined Annuity Prices PL'!$B$10,MATCH($B77,'Combined Annuity Prices PL'!$B$10:$B$3811,0)+12,K$7)*'Master Data'!$J$37)) -> 0 | L77: =IF($C77="NA","",IF($B77=0,"",OFFSET('Combined Annuity Prices PL'!$B$10,MATCH($B77,'Combined Annuity Prices PL'!$B$10:$B$3811,0)+12,L$7)*'Master Data'!$J$37)) -> 0 | M77: =IF($C77="NA","",IF($B77=0,"",OFFSET('Combined Annuity Prices PL'!$B$10,MATCH($B77,'Combined Annuity Prices PL'!$B$10:$B$3811,0)+12,M$7)*'Master Data'!$J$37)) -> 0 | N77: =IF($C77="NA","",IF($B77=0,"",OFFSET('Combined Annuity Prices PL'!$B$10,MATCH($B77,'Combined Annuity Prices PL'!$B$10:$B$3811,0)+12,N$7)*'Master Data'!$J$37)) -> 0 | Q77: 0 | R77: 0 | S77: 0 | T77: 0 | U77: 0 | AC77: =IFERROR(VLOOKUP($B77,Volumes!$B$39:$H$81,MATCH(AC$9,Volumes!$B$4:$H$4,0),FALSE),0) -> 0 | AD77: =IFERROR(VLOOKUP($B77,Volumes!$B$39:$H$81,MATCH(AD$9,Volumes!$B$4:$H$4,0),FALSE),0) -> 0 | AE77: =IFERROR(VLOOKUP($B77,Volumes!$B$39:$H$81,MATCH(AE$9,Volumes!$B$4:$H$4,0),FALSE),0) -> 0 | AF77: =IFERROR(VLOOKUP($B77,Volumes!$B$39:$H$81,MATCH(AF$9,Volumes!$B$4:$H$4,0),FALSE),0) -> 0 | AG77: =IFERROR(VLOOKUP($B77,Volumes!$B$39:$H$81,MATCH(AG$9,Volumes!$B$4:$H$4,0),FALSE),0) -> 0
B78: =Inputs!$C74 -> 1x40W Fluorescent | C78: Old light no volumes | D78: 36.579 | E78: =IF($C78="NA","",IF($B78=0,"",OFFSET('Combined Annuity Prices PL'!$B$10,MATCH($B78,'Combined Annuity Prices PL'!$B$10:$B$3811,0)+12,E$7)*'Master Data'!$J$37)) -> 40.26407804 | F78: =IF($C78="NA","",IF($B78=0,"",OFFSET('Combined Annuity Prices PL'!$B$10,MATCH($B78,'Combined Annuity Prices PL'!$B$10:$B$3811,0)+12,F$7)*'Master Data'!$J$37)) -> 40.13357085 | G78: =IF($C78="NA","",IF($B78=0,"",OFFSET('Combined Annuity Prices PL'!$B$10,MATCH($B78,'Combined Annuity Prices PL'!$B$10:$B$3811,0)+12,G$7)*'Master Data'!$J$37)) -> 35.61280182 | H78: =IF($C78="NA","",IF($B78=0,"",OFFSET('Combined Annuity Prices PL'!$B$10,MATCH($B78,'Combined Annuity Prices PL'!$B$10:$B$3811,0)+12,H$7)*'Master Data'!$J$37)) -> 35.36640424 | I78: =IF($C78="NA","",IF($B78=0,"",OFFSET('Combined Annuity Prices PL'!$B$10,MATCH($B78,'Combined Annuity Prices PL'!$B$10:$B$3811,0)+12,I$7)*'Master Data'!$J$37)) -> 35.0824206 | J78: =IF($C78="NA","",IF($B78=0,"",OFFSET('Combined Annuity Prices PL'!$B$10,MATCH($B78,'Combined Annuity Prices PL'!$B$10:$B$3811,0)+12,J$7)*'Master Data'!$J$37)) -> 0 | K78: =IF($C78="NA","",IF($B78=0,"",OFFSET('Combined Annuity Prices PL'!$B$10,MATCH($B78,'Combined Annuity Prices PL'!$B$10:$B$3811,0)+12,K$7)*'Master Data'!$J$37)) -> 0 | L78: =IF($C78="NA","",IF($B78=0,"",OFFSET('Combined Annuity Prices PL'!$B$10,MATCH($B78,'Combined Annuity Prices PL'!$B$10:$B$3811,0)+12,L$7)*'Master Data'!$J$37)) -> 0 | M78: =IF($C78="NA","",IF($B78=0,"",OFFSET('Combined Annuity Prices PL'!$B$10,MATCH($B78,'Combined Annuity Prices PL'!$B$10:$B$3811,0)+12,M$7)*'Master Data'!$J$37)) -> 0 | N78: =IF($C78="NA","",IF($B78=0,"",OFFSET('Combined Annuity Prices PL'!$B$10,MATCH($B78,'Combined Annuity Prices PL'!$B$10:$B$3811,0)+12,N$7)*'Master Data'!$J$37)) -> 0 | Q78: 0 | R78: 0 | S78: 0 | T78: 0 | U78: 0 | AC78: =IFERROR(VLOOKUP($B78,Volumes!$B$39:$H$81,MATCH(AC$9,Volumes!$B$4:$H$4,0),FALSE),0) -> 0 | AD78: =IFERROR(VLOOKUP($B78,Volumes!$B$39:$H$81,MATCH(AD$9,Volumes!$B$4:$H$4,0),FALSE),0) -> 0 | AE78: =IFERROR(VLOOKUP($B78,Volumes!$B$39:$H$81,MATCH(AE$9,Volumes!$B$4:$H$4,0),FALSE),0) -> 0 | AF78: =IFERROR(VLOOKUP($B78,Volumes!$B$39:$H$81,MATCH(AF$9,Volumes!$B$4:$H$4,0),FALSE),0) -> 0 | AG78: =IFERROR(VLOOKUP($B78,Volumes!$B$39:$H$81,MATCH(AG$9,Volumes!$B$4:$H$4,0),FALSE),0) -> 0
B79: =Inputs!$C75 -> 2x20W Fluorescent | C79: Old light no volumes | D79: 38.031 | E79: =IF($C79="NA","",IF($B79=0,"",OFFSET('Combined Annuity Prices PL'!$B$10,MATCH($B79,'Combined Annuity Prices PL'!$B$10:$B$3811,0)+12,E$7)*'Master Data'!$J$37)) -> 41.62761716 | F79: =IF($C79="NA","",IF($B79=0,"",OFFSET('Combined Annuity Prices PL'!$B$10,MATCH($B79,'Combined Annuity Prices PL'!$B$10:$B$3811,0)+12,F$7)*'Master Data'!$J$37)) -> 41.5012862 | G79: =IF($C79="NA","",IF($B79=0,"",OFFSET('Combined Annuity Prices PL'!$B$10,MATCH($B79,'Combined Annuity Prices PL'!$B$10:$B$3811,0)+12,G$7)*'Master Data'!$J$37)) -> 36.98051716 | H79: =IF($C79="NA","",IF($B79=0,"",OFFSET('Combined Annuity Prices PL'!$B$10,MATCH($B79,'Combined Annuity Prices PL'!$B$10:$B$3811,0)+12,H$7)*'Master Data'!$J$37)) -> 36.73411959 | I79: =IF($C79="NA","",IF($B79=0,"",OFFSET('Combined Annuity Prices PL'!$B$10,MATCH($B79,'Combined Annuity Prices PL'!$B$10:$B$3811,0)+12,I$7)*'Master Data'!$J$37)) -> 36.44595971 | J79: =IF($C79="NA","",IF($B79=0,"",OFFSET('Combined Annuity Prices PL'!$B$10,MATCH($B79,'Combined Annuity Prices PL'!$B$10:$B$3811,0)+12,J$7)*'Master Data'!$J$37)) -> 0 | K79: =IF($C79="NA","",IF($B79=0,"",OFFSET('Combined Annuity Prices PL'!$B$10,MATCH($B79,'Combined Annuity Prices PL'!$B$10:$B$3811,0)+12,K$7)*'Master Data'!$J$37)) -> 0 | L79: =IF($C79="NA","",IF($B79=0,"",OFFSET('Combined Annuity Prices PL'!$B$10,MATCH($B79,'Combined Annuity Prices PL'!$B$10:$B$3811,0)+12,L$7)*'Master Data'!$J$37)) -> 0 | M79: =IF($C79="NA","",IF($B79=0,"",OFFSET('Combined Annuity Prices PL'!$B$10,MATCH($B79,'Combined Annuity Prices PL'!$B$10:$B$3811,0)+12,M$7)*'Master Data'!$J$37)) -> 0 | N79: =IF($C79="NA","",IF($B79=0,"",OFFSET('Combined Annuity Prices PL'!$B$10,MATCH($B79,'Combined Annuity Prices PL'!$B$10:$B$3811,0)+12,N$7)*'Master Data'!$J$37)) -> 0 | Q79: 0 | R79: 0 | S79: 0 | T79: 0 | U79: 0 | AC79: =IFERROR(VLOOKUP($B79,Volumes!$B$39:$H$81,MATCH(AC$9,Volumes!$B$4:$H$4,0),FALSE),0) -> 0 | AD79: =IFERROR(VLOOKUP($B79,Volumes!$B$39:$H$81,MATCH(AD$9,Volumes!$B$4:$H$4,0),FALSE),0) -> 0 | AE79: =IFERROR(VLOOKUP($B79,Volumes!$B$39:$H$81,MATCH(AE$9,Volumes!$B$4:$H$4,0),FALSE),0) -> 0 | AF79: =IFERROR(VLOOKUP($B79,Volumes!$B$39:$H$81,MATCH(AF$9,Volumes!$B$4:$H$4,0),FALSE),0) -> 0 | AG79: =IFERROR(VLOOKUP($B79,Volumes!$B$39:$H$81,MATCH(AG$9,Volumes!$B$4:$H$4,0),FALSE),0) -> 0
B80: =Inputs!$C76 -> 2x24W Fluorescent | C80: Old light no volumes | D80: 37.982 | E80: =IF($C80="NA","",IF($B80=0,"",OFFSET('Combined Annuity Prices PL'!$B$10,MATCH($B80,'Combined Annuity Prices PL'!$B$10:$B$3811,0)+12,E$7)*'Master Data'!$J$37)) -> 41.56288559 | F80: =IF($C80="NA","",IF($B80=0,"",OFFSET('Combined Annuity Prices PL'!$B$10,MATCH($B80,'Combined Annuity Prices PL'!$B$10:$B$3811,0)+12,F$7)*'Master Data'!$J$37)) -> 41.43551057 | G80: =IF($C80="NA","",IF($B80=0,"",OFFSET('Combined Annuity Prices PL'!$B$10,MATCH($B80,'Combined Annuity Prices PL'!$B$10:$B$3811,0)+12,G$7)*'Master Data'!$J$37)) -> 36.91474154 | H80: =IF($C80="NA","",IF($B80=0,"",OFFSET('Combined Annuity Prices PL'!$B$10,MATCH($B80,'Combined Annuity Prices PL'!$B$10:$B$3811,0)+12,H$7)*'Master Data'!$J$37)) -> 36.66834396 | I80: =IF($C80="NA","",IF($B80=0,"",OFFSET('Combined Annuity Prices PL'!$B$10,MATCH($B80,'Combined Annuity Prices PL'!$B$10:$B$3811,0)+12,I$7)*'Master Data'!$J$37)) -> 36.38122815 | J80: =IF($C80="NA","",IF($B80=0,"",OFFSET('Combined Annuity Prices PL'!$B$10,MATCH($B80,'Combined Annuity Prices PL'!$B$10:$B$3811,0)+12,J$7)*'Master Data'!$J$37)) -> 0 | K80: =IF($C80="NA","",IF($B80=0,"",OFFSET('Combined Annuity Prices PL'!$B$10,MATCH($B80,'Combined Annuity Prices PL'!$B$10:$B$3811,0)+12,K$7)*'Master Data'!$J$37)) -> 0 | L80: =IF($C80="NA","",IF($B80=0,"",OFFSET('Combined Annuity Prices PL'!$B$10,MATCH($B80,'Combined Annuity Prices PL'!$B$10:$B$3811,0)+12,L$7)*'Master Data'!$J$37)) -> 0 | M80: =IF($C80="NA","",IF($B80=0,"",OFFSET('Combined Annuity Prices PL'!$B$10,MATCH($B80,'Combined Annuity Prices PL'!$B$10:$B$3811,0)+12,M$7)*'Master Data'!$J$37)) -> 0 | N80: =IF($C80="NA","",IF($B80=0,"",OFFSET('Combined Annuity Prices PL'!$B$10,MATCH($B80,'Combined Annuity Prices PL'!$B$10:$B$3811,0)+12,N$7)*'Master Data'!$J$37)) -> 0 | Q80: 0 | R80: 0 | S80: 0 | T80: 0 | U80: 0 | AC80: =IFERROR(VLOOKUP($B80,Volumes!$B$39:$H$81,MATCH(AC$9,Volumes!$B$4:$H$4,0),FALSE),0) -> 0 | AD80: =IFERROR(VLOOKUP($B80,Volumes!$B$39:$H$81,MATCH(AD$9,Volumes!$B$4:$H$4,0),FALSE),0) -> 0 | AE80: =IFERROR(VLOOKUP($B80,Volumes!$B$39:$H$81,MATCH(AE$9,Volumes!$B$4:$H$4,0),FALSE),0) -> 0 | AF80: =IFERROR(VLOOKUP($B80,Volumes!$B$39:$H$81,MATCH(AF$9,Volumes!$B$4:$H$4,0),FALSE),0) -> 0 | AG80: =IFERROR(VLOOKUP($B80,Volumes!$B$39:$H$81,MATCH(AG$9,Volumes!$B$4:$H$4,0),FALSE),0) -> 0
B81: =Inputs!$C77 -> T5 Fluorescent 2 x 24W | C81: Obsolete, no new Connections | D81: 38.032 | E81: =IF($C81="NA","",IF($B81=0,"",OFFSET('Combined Annuity Prices PL'!$B$10,MATCH($B81,'Combined Annuity Prices PL'!$B$10:$B$3811,0)+12,E$7)*'Master Data'!$J$37)) -> 41.62761716 | F81: =IF($C81="NA","",IF($B81=0,"",OFFSET('Combined Annuity Prices PL'!$B$10,MATCH($B81,'Combined Annuity Prices PL'!$B$10:$B$3811,0)+12,F$7)*'Master Data'!$J$37)) -> 41.5012862 | G81: =IF($C81="NA","",IF($B81=0,"",OFFSET('Combined Annuity Prices PL'!$B$10,MATCH($B81,'Combined Annuity Prices PL'!$B$10:$B$3811,0)+12,G$7)*'Master Data'!$J$37)) -> 36.98051716 | H81: =IF($C81="NA","",IF($B81=0,"",OFFSET('Combined Annuity Prices PL'!$B$10,MATCH($B81,'Combined Annuity Prices PL'!$B$10:$B$3811,0)+12,H$7)*'Master Data'!$J$37)) -> 36.73411959 | I81: =IF($C81="NA","",IF($B81=0,"",OFFSET('Combined Annuity Prices PL'!$B$10,MATCH($B81,'Combined Annuity Prices PL'!$B$10:$B$3811,0)+12,I$7)*'Master Data'!$J$37)) -> 36.44595971 | J81: =IF($C81="NA","",IF($B81=0,"",OFFSET('Combined Annuity Prices PL'!$B$10,MATCH($B81,'Combined Annuity Prices PL'!$B$10:$B$3811,0)+12,J$7)*'Master Data'!$J$37)) -> 0 | K81: =IF($C81="NA","",IF($B81=0,"",OFFSET('Combined Annuity Prices PL'!$B$10,MATCH($B81,'Combined Annuity Prices PL'!$B$10:$B$3811,0)+12,K$7)*'Master Data'!$J$37)) -> 0 | L81: =IF($C81="NA","",IF($B81=0,"",OFFSET('Combined Annuity Prices PL'!$B$10,MATCH($B81,'Combined Annuity Prices PL'!$B$10:$B$3811,0)+12,L$7)*'Master Data'!$J$37)) -> 0 | M81: =IF($C81="NA","",IF($B81=0,"",OFFSET('Combined Annuity Prices PL'!$B$10,MATCH($B81,'Combined Annuity Prices PL'!$B$10:$B$3811,0)+12,M$7)*'Master Data'!$J$37)) -> 0 | N81: =IF($C81="NA","",IF($B81=0,"",OFFSET('Combined Annuity Prices PL'!$B$10,MATCH($B81,'Combined Annuity Prices PL'!$B$10:$B$3811,0)+12,N$7)*'Master Data'!$J$37)) -> 0 | Q81: 0.01264563754 | R81: 0.01257281465 | S81: 0.01120324767 | T81: 0.01112860153 | U81: 0.01107155364 | AC81: =IFERROR(VLOOKUP($B81,Volumes!$B$39:$H$81,MATCH(AC$9,Volumes!$B$4:$H$4,0),FALSE),0) -> 83 | AD81: =IFERROR(VLOOKUP($B81,Volumes!$B$39:$H$81,MATCH(AD$9,Volumes!$B$4:$H$4,0),FALSE),0) -> 83 | AE81: =IFERROR(VLOOKUP($B81,Volumes!$B$39:$H$81,MATCH(AE$9,Volumes!$B$4:$H$4,0),FALSE),0) -> 83 | AF81: =IFERROR(VLOOKUP($B81,Volumes!$B$39:$H$81,MATCH(AF$9,Volumes!$B$4:$H$4,0),FALSE),0) -> 83 | AG81: =IFERROR(VLOOKUP($B81,Volumes!$B$39:$H$81,MATCH(AG$9,Volumes!$B$4:$H$4,0),FALSE),0) -> 83
B82: =Inputs!$C78 -> 20 Fluorescent 1X20FL | C82: Old light no volumes | D82: 37.742 | E82: =IF($C82="NA","",IF($B82=0,"",OFFSET('Combined Annuity Prices PL'!$B$10,MATCH($B82,'Combined Annuity Prices PL'!$B$10:$B$3811,0)+12,E$7)*'Master Data'!$J$37)) -> 41.34050134 | F82: =IF($C82="NA","",IF($B82=0,"",OFFSET('Combined Annuity Prices PL'!$B$10,MATCH($B82,'Combined Annuity Prices PL'!$B$10:$B$3811,0)+12,F$7)*'Master Data'!$J$37)) -> 41.21208227 | G82: =IF($C82="NA","",IF($B82=0,"",OFFSET('Combined Annuity Prices PL'!$B$10,MATCH($B82,'Combined Annuity Prices PL'!$B$10:$B$3811,0)+12,G$7)*'Master Data'!$J$37)) -> 36.69131323 | H82: =IF($C82="NA","",IF($B82=0,"",OFFSET('Combined Annuity Prices PL'!$B$10,MATCH($B82,'Combined Annuity Prices PL'!$B$10:$B$3811,0)+12,H$7)*'Master Data'!$J$37)) -> 36.44491565 | I82: =IF($C82="NA","",IF($B82=0,"",OFFSET('Combined Annuity Prices PL'!$B$10,MATCH($B82,'Combined Annuity Prices PL'!$B$10:$B$3811,0)+12,I$7)*'Master Data'!$J$37)) -> 36.15779984 | J82: =IF($C82="NA","",IF($B82=0,"",OFFSET('Combined Annuity Prices PL'!$B$10,MATCH($B82,'Combined Annuity Prices PL'!$B$10:$B$3811,0)+12,J$7)*'Master Data'!$J$37)) -> 0 | K82: =IF($C82="NA","",IF($B82=0,"",OFFSET('Combined Annuity Prices PL'!$B$10,MATCH($B82,'Combined Annuity Prices PL'!$B$10:$B$3811,0)+12,K$7)*'Master Data'!$J$37)) -> 0 | L82: =IF($C82="NA","",IF($B82=0,"",OFFSET('Combined Annuity Prices PL'!$B$10,MATCH($B82,'Combined Annuity Prices PL'!$B$10:$B$3811,0)+12,L$7)*'Master Data'!$J$37)) -> 0 | M82: =IF($C82="NA","",IF($B82=0,"",OFFSET('Combined Annuity Prices PL'!$B$10,MATCH($B82,'Combined Annuity Prices PL'!$B$10:$B$3811,0)+12,M$7)*'Master Data'!$J$37)) -> 0 | N82: =IF($C82="NA","",IF($B82=0,"",OFFSET('Combined Annuity Prices PL'!$B$10,MATCH($B82,'Combined Annuity Prices PL'!$B$10:$B$3811,0)+12,N$7)*'Master Data'!$J$37)) -> 0 | Q82: 0 | R82: 0 | S82: 0 | T82: 0 | U82: 0 | AC82: =IFERROR(VLOOKUP($B82,Volumes!$B$39:$H$81,MATCH(AC$9,Volumes!$B$4:$H$4,0),FALSE),0) -> 0 | AD82: =IFERROR(VLOOKUP($B82,Volumes!$B$39:$H$81,MATCH(AD$9,Volumes!$B$4:$H$4,0),FALSE),0) -> 0 | AE82: =IFERROR(VLOOKUP($B82,Volumes!$B$39:$H$81,MATCH(AE$9,Volumes!$B$4:$H$4,0),FALSE),0) -> 0 | AF82: =IFERROR(VLOOKUP($B82,Volumes!$B$39:$H$81,MATCH(AF$9,Volumes!$B$4:$H$4,0),FALSE),0) -> 0 | AG82: =IFERROR(VLOOKUP($B82,Volumes!$B$39:$H$81,MATCH(AG$9,Volumes!$B$4:$H$4,0),FALSE),0) -> 0
B83: =Inputs!$C79 -> 2x40W Fluorescent | C83: Old light no volumes | D83: 36.888 | E83: =IF($C83="NA","",IF($B83=0,"",OFFSET('Combined Annuity Prices PL'!$B$10,MATCH($B83,'Combined Annuity Prices PL'!$B$10:$B$3811,0)+12,E$7)*'Master Data'!$J$37)) -> 40.57103095 | F83: =IF($C83="NA","",IF($B83=0,"",OFFSET('Combined Annuity Prices PL'!$B$10,MATCH($B83,'Combined Annuity Prices PL'!$B$10:$B$3811,0)+12,F$7)*'Master Data'!$J$37)) -> 40.44052376 | G83: =IF($C83="NA","",IF($B83=0,"",OFFSET('Combined Annuity Prices PL'!$B$10,MATCH($B83,'Combined Annuity Prices PL'!$B$10:$B$3811,0)+12,G$7)*'Master Data'!$J$37)) -> 35.91975472 | H83: =IF($C83="NA","",IF($B83=0,"",OFFSET('Combined Annuity Prices PL'!$B$10,MATCH($B83,'Combined Annuity Prices PL'!$B$10:$B$3811,0)+12,H$7)*'Master Data'!$J$37)) -> 35.67335715 | I83: =IF($C83="NA","",IF($B83=0,"",OFFSET('Combined Annuity Prices PL'!$B$10,MATCH($B83,'Combined Annuity Prices PL'!$B$10:$B$3811,0)+12,I$7)*'Master Data'!$J$37)) -> 35.38832945 | J83: =IF($C83="NA","",IF($B83=0,"",OFFSET('Combined Annuity Prices PL'!$B$10,MATCH($B83,'Combined Annuity Prices PL'!$B$10:$B$3811,0)+12,J$7)*'Master Data'!$J$37)) -> 0 | K83: =IF($C83="NA","",IF($B83=0,"",OFFSET('Combined Annuity Prices PL'!$B$10,MATCH($B83,'Combined Annuity Prices PL'!$B$10:$B$3811,0)+12,K$7)*'Master Data'!$J$37)) -> 0 | L83: =IF($C83="NA","",IF($B83=0,"",OFFSET('Combined Annuity Prices PL'!$B$10,MATCH($B83,'Combined Annuity Prices PL'!$B$10:$B$3811,0)+12,L$7)*'Master Data'!$J$37)) -> 0 | M83: =IF($C83="NA","",IF($B83=0,"",OFFSET('Combined Annuity Prices PL'!$B$10,MATCH($B83,'Combined Annuity Prices PL'!$B$10:$B$3811,0)+12,M$7)*'Master Data'!$J$37)) -> 0 | N83: =IF($C83="NA","",IF($B83=0,"",OFFSET('Combined Annuity Prices PL'!$B$10,MATCH($B83,'Combined Annuity Prices PL'!$B$10:$B$3811,0)+12,N$7)*'Master Data'!$J$37)) -> 0 | Q83: 0 | R83: 0 | S83: 0 | T83: 0 | U83: 0 | AC83: =IFERROR(VLOOKUP($B83,Volumes!$B$39:$H$81,MATCH(AC$9,Volumes!$B$4:$H$4,0),FALSE),0) -> 0 | AD83: =IFERROR(VLOOKUP($B83,Volumes!$B$39:$H$81,MATCH(AD$9,Volumes!$B$4:$H$4,0),FALSE),0) -> 0 | AE83: =IFERROR(VLOOKUP($B83,Volumes!$B$39:$H$81,MATCH(AE$9,Volumes!$B$4:$H$4,0),FALSE),0) -> 0 | AF83: =IFERROR(VLOOKUP($B83,Volumes!$B$39:$H$81,MATCH(AF$9,Volumes!$B$4:$H$4,0),FALSE),0) -> 0 | AG83: =IFERROR(VLOOKUP($B83,Volumes!$B$39:$H$81,MATCH(AG$9,Volumes!$B$4:$H$4,0),FALSE),0) -> 0
B84: =Inputs!$C80 -> 3x40W Fluorescent | C84: Old light no volumes | D84: 46.387 | E84: =IF($C84="NA","",IF($B84=0,"",OFFSET('Combined Annuity Prices PL'!$B$10,MATCH($B84,'Combined Annuity Prices PL'!$B$10:$B$3811,0)+12,E$7)*'Master Data'!$J$37)) -> 47.34069987 | F84: =IF($C84="NA","",IF($B84=0,"",OFFSET('Combined Annuity Prices PL'!$B$10,MATCH($B84,'Combined Annuity Prices PL'!$B$10:$B$3811,0)+12,F$7)*'Master Data'!$J$37)) -> 47.23211789 | G84: =IF($C84="NA","",IF($B84=0,"",OFFSET('Combined Annuity Prices PL'!$B$10,MATCH($B84,'Combined Annuity Prices PL'!$B$10:$B$3811,0)+12,G$7)*'Master Data'!$J$37)) -> 42.71448103 | H84: =IF($C84="NA","",IF($B84=0,"",OFFSET('Combined Annuity Prices PL'!$B$10,MATCH($B84,'Combined Annuity Prices PL'!$B$10:$B$3811,0)+12,H$7)*'Master Data'!$J$37)) -> 42.47225969 | I84: =IF($C84="NA","",IF($B84=0,"",OFFSET('Combined Annuity Prices PL'!$B$10,MATCH($B84,'Combined Annuity Prices PL'!$B$10:$B$3811,0)+12,I$7)*'Master Data'!$J$37)) -> 42.17365924 | J84: =IF($C84="NA","",IF($B84=0,"",OFFSET('Combined Annuity Prices PL'!$B$10,MATCH($B84,'Combined Annuity Prices PL'!$B$10:$B$3811,0)+12,J$7)*'Master Data'!$J$37)) -> 0 | K84: =IF($C84="NA","",IF($B84=0,"",OFFSET('Combined Annuity Prices PL'!$B$10,MATCH($B84,'Combined Annuity Prices PL'!$B$10:$B$3811,0)+12,K$7)*'Master Data'!$J$37)) -> 0 | L84: =IF($C84="NA","",IF($B84=0,"",OFFSET('Combined Annuity Prices PL'!$B$10,MATCH($B84,'Combined Annuity Prices PL'!$B$10:$B$3811,0)+12,L$7)*'Master Data'!$J$37)) -> 0 | M84: =IF($C84="NA","",IF($B84=0,"",OFFSET('Combined Annuity Prices PL'!$B$10,MATCH($B84,'Combined Annuity Prices PL'!$B$10:$B$3811,0)+12,M$7)*'Master Data'!$J$37)) -> 0 | N84: =IF($C84="NA","",IF($B84=0,"",OFFSET('Combined Annuity Prices PL'!$B$10,MATCH($B84,'Combined Annuity Prices PL'!$B$10:$B$3811,0)+12,N$7)*'Master Data'!$J$37)) -> 0 | Q84: 0 | R84: 0 | S84: 0 | T84: 0 | U84: 0 | AC84: =IFERROR(VLOOKUP($B84,Volumes!$B$39:$H$81,MATCH(AC$9,Volumes!$B$4:$H$4,0),FALSE),0) -> 0 | AD84: =IFERROR(VLOOKUP($B84,Volumes!$B$39:$H$81,MATCH(AD$9,Volumes!$B$4:$H$4,0),FALSE),0) -> 0 | AE84: =IFERROR(VLOOKUP($B84,Volumes!$B$39:$H$81,MATCH(AE$9,Volumes!$B$4:$H$4,0),FALSE),0) -> 0 | AF84: =IFERROR(VLOOKUP($B84,Volumes!$B$39:$H$81,MATCH(AF$9,Volumes!$B$4:$H$4,0),FALSE),0) -> 0 | AG84: =IFERROR(VLOOKUP($B84,Volumes!$B$39:$H$81,MATCH(AG$9,Volumes!$B$4:$H$4,0),FALSE),0) -> 0
B85: =Inputs!$C81 -> 4x20 Fluorescent | C85: Old light no volumes | D85: 38.612 | E85: =IF($C85="NA","",IF($B85=0,"",OFFSET('Combined Annuity Prices PL'!$B$10,MATCH($B85,'Combined Annuity Prices PL'!$B$10:$B$3811,0)+12,E$7)*'Master Data'!$J$37)) -> 42.2039369 | F85: =IF($C85="NA","",IF($B85=0,"",OFFSET('Combined Annuity Prices PL'!$B$10,MATCH($B85,'Combined Annuity Prices PL'!$B$10:$B$3811,0)+12,F$7)*'Master Data'!$J$37)) -> 42.07865 | G85: =IF($C85="NA","",IF($B85=0,"",OFFSET('Combined Annuity Prices PL'!$B$10,MATCH($B85,'Combined Annuity Prices PL'!$B$10:$B$3811,0)+12,G$7)*'Master Data'!$J$37)) -> 37.55788096 | H85: =IF($C85="NA","",IF($B85=0,"",OFFSET('Combined Annuity Prices PL'!$B$10,MATCH($B85,'Combined Annuity Prices PL'!$B$10:$B$3811,0)+12,H$7)*'Master Data'!$J$37)) -> 37.31148339 | I85: =IF($C85="NA","",IF($B85=0,"",OFFSET('Combined Annuity Prices PL'!$B$10,MATCH($B85,'Combined Annuity Prices PL'!$B$10:$B$3811,0)+12,I$7)*'Master Data'!$J$37)) -> 37.02227946 | J85: =IF($C85="NA","",IF($B85=0,"",OFFSET('Combined Annuity Prices PL'!$B$10,MATCH($B85,'Combined Annuity Prices PL'!$B$10:$B$3811,0)+12,J$7)*'Master Data'!$J$37)) -> 0 | K85: =IF($C85="NA","",IF($B85=0,"",OFFSET('Combined Annuity Prices PL'!$B$10,MATCH($B85,'Combined Annuity Prices PL'!$B$10:$B$3811,0)+12,K$7)*'Master Data'!$J$37)) -> 0 | L85: =IF($C85="NA","",IF($B85=0,"",OFFSET('Combined Annuity Prices PL'!$B$10,MATCH($B85,'Combined Annuity Prices PL'!$B$10:$B$3811,0)+12,L$7)*'Master Data'!$J$37)) -> 0 | M85: =IF($C85="NA","",IF($B85=0,"",OFFSET('Combined Annuity Prices PL'!$B$10,MATCH($B85,'Combined Annuity Prices PL'!$B$10:$B$3811,0)+12,M$7)*'Master Data'!$J$37)) -> 0 | N85: =IF($C85="NA","",IF($B85=0,"",OFFSET('Combined Annuity Prices PL'!$B$10,MATCH($B85,'Combined Annuity Prices PL'!$B$10:$B$3811,0)+12,N$7)*'Master Data'!$J$37)) -> 0 | Q85: 0 | R85: 0 | S85: 0 | T85: 0 | U85: 0 | AC85: =IFERROR(VLOOKUP($B85,Volumes!$B$39:$H$81,MATCH(AC$9,Volumes!$B$4:$H$4,0),FALSE),0) -> 0 | AD85: =IFERROR(VLOOKUP($B85,Volumes!$B$39:$H$81,MATCH(AD$9,Volumes!$B$4:$H$4,0),FALSE),0) -> 0 | AE85: =IFERROR(VLOOKUP($B85,Volumes!$B$39:$H$81,MATCH(AE$9,Volumes!$B$4:$H$4,0),FALSE),0) -> 0 | AF85: =IFERROR(VLOOKUP($B85,Volumes!$B$39:$H$81,MATCH(AF$9,Volumes!$B$4:$H$4,0),FALSE),0) -> 0 | AG85: =IFERROR(VLOOKUP($B85,Volumes!$B$39:$H$81,MATCH(AG$9,Volumes!$B$4:$H$4,0),FALSE),0) -> 0
B86: =Inputs!$C82 -> 4x40W Fluorescent | C86: Old light no volumes | D86: 47.878 | E86: =IF($C86="NA","",IF($B86=0,"",OFFSET('Combined Annuity Prices PL'!$B$10,MATCH($B86,'Combined Annuity Prices PL'!$B$10:$B$3811,0)+12,E$7)*'Master Data'!$J$37)) -> 48.74182506 | F86: =IF($C86="NA","",IF($B86=0,"",OFFSET('Combined Annuity Prices PL'!$B$10,MATCH($B86,'Combined Annuity Prices PL'!$B$10:$B$3811,0)+12,F$7)*'Master Data'!$J$37)) -> 48.63741931 | G86: =IF($C86="NA","",IF($B86=0,"",OFFSET('Combined Annuity Prices PL'!$B$10,MATCH($B86,'Combined Annuity Prices PL'!$B$10:$B$3811,0)+12,G$7)*'Master Data'!$J$37)) -> 44.11978244 | H86: =IF($C86="NA","",IF($B86=0,"",OFFSET('Combined Annuity Prices PL'!$B$10,MATCH($B86,'Combined Annuity Prices PL'!$B$10:$B$3811,0)+12,H$7)*'Master Data'!$J$37)) -> 43.8775611 | I86: =IF($C86="NA","",IF($B86=0,"",OFFSET('Combined Annuity Prices PL'!$B$10,MATCH($B86,'Combined Annuity Prices PL'!$B$10:$B$3811,0)+12,I$7)*'Master Data'!$J$37)) -> 43.57478442 | J86: =IF($C86="NA","",IF($B86=0,"",OFFSET('Combined Annuity Prices PL'!$B$10,MATCH($B86,'Combined Annuity Prices PL'!$B$10:$B$3811,0)+12,J$7)*'Master Data'!$J$37)) -> 0 | K86: =IF($C86="NA","",IF($B86=0,"",OFFSET('Combined Annuity Prices PL'!$B$10,MATCH($B86,'Combined Annuity Prices PL'!$B$10:$B$3811,0)+12,K$7)*'Master Data'!$J$37)) -> 0 | L86: =IF($C86="NA","",IF($B86=0,"",OFFSET('Combined Annuity Prices PL'!$B$10,MATCH($B86,'Combined Annuity Prices PL'!$B$10:$B$3811,0)+12,L$7)*'Master Data'!$J$37)) -> 0 | M86: =IF($C86="NA","",IF($B86=0,"",OFFSET('Combined Annuity Prices PL'!$B$10,MATCH($B86,'Combined Annuity Prices PL'!$B$10:$B$3811,0)+12,M$7)*'Master Data'!$J$37)) -> 0 | N86: =IF($C86="NA","",IF($B86=0,"",OFFSET('Combined Annuity Prices PL'!$B$10,MATCH($B86,'Combined Annuity Prices PL'!$B$10:$B$3811,0)+12,N$7)*'Master Data'!$J$37)) -> 0 | Q86: 0 | R86: 0 | S86: 0 | T86: 0 | U86: 0 | AC86: =IFERROR(VLOOKUP($B86,Volumes!$B$39:$H$81,MATCH(AC$9,Volumes!$B$4:$H$4,0),FALSE),0) -> 0 | AD86: =IFERROR(VLOOKUP($B86,Volumes!$B$39:$H$81,MATCH(AD$9,Volumes!$B$4:$H$4,0),FALSE),0) -> 0 | AE86: =IFERROR(VLOOKUP($B86,Volumes!$B$39:$H$81,MATCH(AE$9,Volumes!$B$4:$H$4,0),FALSE),0) -> 0 | AF86: =IFERROR(VLOOKUP($B86,Volumes!$B$39:$H$81,MATCH(AF$9,Volumes!$B$4:$H$4,0),FALSE),0) -> 0 | AG86: =IFERROR(VLOOKUP($B86,Volumes!$B$39:$H$81,MATCH(AG$9,Volumes!$B$4:$H$4,0),FALSE),0) -> 0
B87: =Inputs!$C83 -> 100W Sodium Vapour | C87: Offered | D87: 45.521 | E87: =IF($C87="NA","",IF($B87=0,"",OFFSET('Combined Annuity Prices PL'!$B$10,MATCH($B87,'Combined Annuity Prices PL'!$B$10:$B$3811,0)+12,E$7)*'Master Data'!$J$37)) -> 46.42819361 | F87: =IF($C87="NA","",IF($B87=0,"",OFFSET('Combined Annuity Prices PL'!$B$10,MATCH($B87,'Combined Annuity Prices PL'!$B$10:$B$3811,0)+12,F$7)*'Master Data'!$J$37)) -> 46.31647945 | G87: =IF($C87="NA","",IF($B87=0,"",OFFSET('Combined Annuity Prices PL'!$B$10,MATCH($B87,'Combined Annuity Prices PL'!$B$10:$B$3811,0)+12,G$7)*'Master Data'!$J$37)) -> 41.79884259 | H87: =IF($C87="NA","",IF($B87=0,"",OFFSET('Combined Annuity Prices PL'!$B$10,MATCH($B87,'Combined Annuity Prices PL'!$B$10:$B$3811,0)+12,H$7)*'Master Data'!$J$37)) -> 41.55662124 | I87: =IF($C87="NA","",IF($B87=0,"",OFFSET('Combined Annuity Prices PL'!$B$10,MATCH($B87,'Combined Annuity Prices PL'!$B$10:$B$3811,0)+12,I$7)*'Master Data'!$J$37)) -> 41.26115297 | J87: =IF($C87="NA","",IF($B87=0,"",OFFSET('Combined Annuity Prices PL'!$B$10,MATCH($B87,'Combined Annuity Prices PL'!$B$10:$B$3811,0)+12,J$7)*'Master Data'!$J$37)) -> 0 | K87: =IF($C87="NA","",IF($B87=0,"",OFFSET('Combined Annuity Prices PL'!$B$10,MATCH($B87,'Combined Annuity Prices PL'!$B$10:$B$3811,0)+12,K$7)*'Master Data'!$J$37)) -> 0 | L87: =IF($C87="NA","",IF($B87=0,"",OFFSET('Combined Annuity Prices PL'!$B$10,MATCH($B87,'Combined Annuity Prices PL'!$B$10:$B$3811,0)+12,L$7)*'Master Data'!$J$37)) -> 0 | M87: =IF($C87="NA","",IF($B87=0,"",OFFSET('Combined Annuity Prices PL'!$B$10,MATCH($B87,'Combined Annuity Prices PL'!$B$10:$B$3811,0)+12,M$7)*'Master Data'!$J$37)) -> 0 | N87: =IF($C87="NA","",IF($B87=0,"",OFFSET('Combined Annuity Prices PL'!$B$10,MATCH($B87,'Combined Annuity Prices PL'!$B$10:$B$3811,0)+12,N$7)*'Master Data'!$J$37)) -> 0 | Q87: 0.07544767174 | R87: 0.0787796999 | S87: 0.07475722997 | T87: 0.07796437712 | U87: 0.08154854273 | AC87: =IFERROR(VLOOKUP($B87,Volumes!$B$39:$H$81,MATCH(AC$9,Volumes!$B$4:$H$4,0),FALSE),0) -> 444 | AD87: =IFERROR(VLOOKUP($B87,Volumes!$B$39:$H$81,MATCH(AD$9,Volumes!$B$4:$H$4,0),FALSE),0) -> 466 | AE87: =IFERROR(VLOOKUP($B87,Volumes!$B$39:$H$81,MATCH(AE$9,Volumes!$B$4:$H$4,0),FALSE),0) -> 490 | AF87: =IFERROR(VLOOKUP($B87,Volumes!$B$39:$H$81,MATCH(AF$9,Volumes!$B$4:$H$4,0),FALSE),0) -> 514 | AG87: =IFERROR(VLOOKUP($B87,Volumes!$B$39:$H$81,MATCH(AG$9,Volumes!$B$4:$H$4,0),FALSE),0) -> 540
B88: =Inputs!$C84 -> 0 | C88: NA | E88: =IF($C88="NA","",IF($B88=0,"",OFFSET('Combined Annuity Prices PL'!$B$10,MATCH($B88,'Combined Annuity Prices PL'!$B$10:$B$3811,0)+12,E$7)*'Master Data'!$J$37)) ->  | F88: =IF($C88="NA","",IF($B88=0,"",OFFSET('Combined Annuity Prices PL'!$B$10,MATCH($B88,'Combined Annuity Prices PL'!$B$10:$B$3811,0)+12,F$7)*'Master Data'!$J$37)) ->  | G88: =IF($C88="NA","",IF($B88=0,"",OFFSET('Combined Annuity Prices PL'!$B$10,MATCH($B88,'Combined Annuity Prices PL'!$B$10:$B$3811,0)+12,G$7)*'Master Data'!$J$37)) ->  | H88: =IF($C88="NA","",IF($B88=0,"",OFFSET('Combined Annuity Prices PL'!$B$10,MATCH($B88,'Combined Annuity Prices PL'!$B$10:$B$3811,0)+12,H$7)*'Master Data'!$J$37)) ->  | I88: =IF($C88="NA","",IF($B88=0,"",OFFSET('Combined Annuity Prices PL'!$B$10,MATCH($B88,'Combined Annuity Prices PL'!$B$10:$B$3811,0)+12,I$7)*'Master Data'!$J$37)) ->  | J88: =IF($C88="NA","",IF($B88=0,"",OFFSET('Combined Annuity Prices PL'!$B$10,MATCH($B88,'Combined Annuity Prices PL'!$B$10:$B$3811,0)+12,J$7)*'Master Data'!$J$37)) ->  | K88: =IF($C88="NA","",IF($B88=0,"",OFFSET('Combined Annuity Prices PL'!$B$10,MATCH($B88,'Combined Annuity Prices PL'!$B$10:$B$3811,0)+12,K$7)*'Master Data'!$J$37)) ->  | L88: =IF($C88="NA","",IF($B88=0,"",OFFSET('Combined Annuity Prices PL'!$B$10,MATCH($B88,'Combined Annuity Prices PL'!$B$10:$B$3811,0)+12,L$7)*'Master Data'!$J$37)) ->  | M88: =IF($C88="NA","",IF($B88=0,"",OFFSET('Combined Annuity Prices PL'!$B$10,MATCH($B88,'Combined Annuity Prices PL'!$B$10:$B$3811,0)+12,M$7)*'Master Data'!$J$37)) ->  | N88: =IF($C88="NA","",IF($B88=0,"",OFFSET('Combined Annuity Prices PL'!$B$10,MATCH($B88,'Combined Annuity Prices PL'!$B$10:$B$3811,0)+12,N$7)*'Master Data'!$J$37)) ->  | AC88: =IFERROR(VLOOKUP($B88,Volumes!$B$39:$H$81,MATCH(AC$9,Volumes!$B$4:$H$4,0),FALSE),0) -> 0 | AD88: =IFERROR(VLOOKUP($B88,Volumes!$B$39:$H$81,MATCH(AD$9,Volumes!$B$4:$H$4,0),FALSE),0) -> 0 | AE88: =IFERROR(VLOOKUP($B88,Volumes!$B$39:$H$81,MATCH(AE$9,Volumes!$B$4:$H$4,0),FALSE),0) -> 0 | AF88: =IFERROR(VLOOKUP($B88,Volumes!$B$39:$H$81,MATCH(AF$9,Volumes!$B$4:$H$4,0),FALSE),0) -> 0 | AG88: =IFERROR(VLOOKUP($B88,Volumes!$B$39:$H$81,MATCH(AG$9,Volumes!$B$4:$H$4,0),FALSE),0) -> 0
B89: =Inputs!$C85 -> 150W Sodium Vapour | C89: Offered | D89: 47.881 | E89: =IF($C89="NA","",IF($B89=0,"",OFFSET('Combined Annuity Prices PL'!$B$10,MATCH($B89,'Combined Annuity Prices PL'!$B$10:$B$3811,0)+12,E$7)*'Master Data'!$J$37)) -> 48.81073285 | F89: =IF($C89="NA","",IF($B89=0,"",OFFSET('Combined Annuity Prices PL'!$B$10,MATCH($B89,'Combined Annuity Prices PL'!$B$10:$B$3811,0)+12,F$7)*'Master Data'!$J$37)) -> 48.70528305 | G89: =IF($C89="NA","",IF($B89=0,"",OFFSET('Combined Annuity Prices PL'!$B$10,MATCH($B89,'Combined Annuity Prices PL'!$B$10:$B$3811,0)+12,G$7)*'Master Data'!$J$37)) -> 44.18764618 | H89: =IF($C89="NA","",IF($B89=0,"",OFFSET('Combined Annuity Prices PL'!$B$10,MATCH($B89,'Combined Annuity Prices PL'!$B$10:$B$3811,0)+12,H$7)*'Master Data'!$J$37)) -> 43.94542484 | I89: =IF($C89="NA","",IF($B89=0,"",OFFSET('Combined Annuity Prices PL'!$B$10,MATCH($B89,'Combined Annuity Prices PL'!$B$10:$B$3811,0)+12,I$7)*'Master Data'!$J$37)) -> 43.64369222 | J89: =IF($C89="NA","",IF($B89=0,"",OFFSET('Combined Annuity Prices PL'!$B$10,MATCH($B89,'Combined Annuity Prices PL'!$B$10:$B$3811,0)+12,J$7)*'Master Data'!$J$37)) -> 0 | K89: =IF($C89="NA","",IF($B89=0,"",OFFSET('Combined Annuity Prices PL'!$B$10,MATCH($B89,'Combined Annuity Prices PL'!$B$10:$B$3811,0)+12,K$7)*'Master Data'!$J$37)) -> 0 | L89: =IF($C89="NA","",IF($B89=0,"",OFFSET('Combined Annuity Prices PL'!$B$10,MATCH($B89,'Combined Annuity Prices PL'!$B$10:$B$3811,0)+12,L$7)*'Master Data'!$J$37)) -> 0 | M89: =IF($C89="NA","",IF($B89=0,"",OFFSET('Combined Annuity Prices PL'!$B$10,MATCH($B89,'Combined Annuity Prices PL'!$B$10:$B$3811,0)+12,M$7)*'Master Data'!$J$37)) -> 0 | N89: =IF($C89="NA","",IF($B89=0,"",OFFSET('Combined Annuity Prices PL'!$B$10,MATCH($B89,'Combined Annuity Prices PL'!$B$10:$B$3811,0)+12,N$7)*'Master Data'!$J$37)) -> 0 | Q89: 0.9507608361 | R89: 0.9934026941 | S89: 0.9293236431 | T89: 0.9636880104 | U89: 1.010808861 | AC89: =IFERROR(VLOOKUP($B89,Volumes!$B$39:$H$81,MATCH(AC$9,Volumes!$B$4:$H$4,0),FALSE),0) -> 5322 | AD89: =IFERROR(VLOOKUP($B89,Volumes!$B$39:$H$81,MATCH(AD$9,Volumes!$B$4:$H$4,0),FALSE),0) -> 5588 | AE89: =IFERROR(VLOOKUP($B89,Volumes!$B$39:$H$81,MATCH(AE$9,Volumes!$B$4:$H$4,0),FALSE),0) -> 5762 | AF89: =IFERROR(VLOOKUP($B89,Volumes!$B$39:$H$81,MATCH(AF$9,Volumes!$B$4:$H$4,0),FALSE),0) -> 6008 | AG89: =IFERROR(VLOOKUP($B89,Volumes!$B$39:$H$81,MATCH(AG$9,Volumes!$B$4:$H$4,0),FALSE),0) -> 6328
B90: =Inputs!$C86 -> 0 | C90: NA | E90: =IF($C90="NA","",IF($B90=0,"",OFFSET('Combined Annuity Prices PL'!$B$10,MATCH($B90,'Combined Annuity Prices PL'!$B$10:$B$3811,0)+12,E$7)*'Master Data'!$J$37)) ->  | F90: =IF($C90="NA","",IF($B90=0,"",OFFSET('Combined Annuity Prices PL'!$B$10,MATCH($B90,'Combined Annuity Prices PL'!$B$10:$B$3811,0)+12,F$7)*'Master Data'!$J$37)) ->  | G90: =IF($C90="NA","",IF($B90=0,"",OFFSET('Combined Annuity Prices PL'!$B$10,MATCH($B90,'Combined Annuity Prices PL'!$B$10:$B$3811,0)+12,G$7)*'Master Data'!$J$37)) ->  | H90: =IF($C90="NA","",IF($B90=0,"",OFFSET('Combined Annuity Prices PL'!$B$10,MATCH($B90,'Combined Annuity Prices PL'!$B$10:$B$3811,0)+12,H$7)*'Master Data'!$J$37)) ->  | I90: =IF($C90="NA","",IF($B90=0,"",OFFSET('Combined Annuity Prices PL'!$B$10,MATCH($B90,'Combined Annuity Prices PL'!$B$10:$B$3811,0)+12,I$7)*'Master Data'!$J$37)) ->  | J90: =IF($C90="NA","",IF($B90=0,"",OFFSET('Combined Annuity Prices PL'!$B$10,MATCH($B90,'Combined Annuity Prices PL'!$B$10:$B$3811,0)+12,J$7)*'Master Data'!$J$37)) ->  | K90: =IF($C90="NA","",IF($B90=0,"",OFFSET('Combined Annuity Prices PL'!$B$10,MATCH($B90,'Combined Annuity Prices PL'!$B$10:$B$3811,0)+12,K$7)*'Master Data'!$J$37)) ->  | L90: =IF($C90="NA","",IF($B90=0,"",OFFSET('Combined Annuity Prices PL'!$B$10,MATCH($B90,'Combined Annuity Prices PL'!$B$10:$B$3811,0)+12,L$7)*'Master Data'!$J$37)) ->  | M90: =IF($C90="NA","",IF($B90=0,"",OFFSET('Combined Annuity Prices PL'!$B$10,MATCH($B90,'Combined Annuity Prices PL'!$B$10:$B$3811,0)+12,M$7)*'Master Data'!$J$37)) ->  | N90: =IF($C90="NA","",IF($B90=0,"",OFFSET('Combined Annuity Prices PL'!$B$10,MATCH($B90,'Combined Annuity Prices PL'!$B$10:$B$3811,0)+12,N$7)*'Master Data'!$J$37)) ->  | AC90: =IFERROR(VLOOKUP($B90,Volumes!$B$39:$H$81,MATCH(AC$9,Volumes!$B$4:$H$4,0),FALSE),0) -> 0 | AD90: =IFERROR(VLOOKUP($B90,Volumes!$B$39:$H$81,MATCH(AD$9,Volumes!$B$4:$H$4,0),FALSE),0) -> 0 | AE90: =IFERROR(VLOOKUP($B90,Volumes!$B$39:$H$81,MATCH(AE$9,Volumes!$B$4:$H$4,0),FALSE),0) -> 0 | AF90: =IFERROR(VLOOKUP($B90,Volumes!$B$39:$H$81,MATCH(AF$9,Volumes!$B$4:$H$4,0),FALSE),0) -> 0 | AG90: =IFERROR(VLOOKUP($B90,Volumes!$B$39:$H$81,MATCH(AG$9,Volumes!$B$4:$H$4,0),FALSE),0) -> 0
B91: =Inputs!$C87 -> 0 | C91: NA | E91: =IF($C91="NA","",IF($B91=0,"",OFFSET('Combined Annuity Prices PL'!$B$10,MATCH($B91,'Combined Annuity Prices PL'!$B$10:$B$3811,0)+12,E$7)*'Master Data'!$J$37)) ->  | F91: =IF($C91="NA","",IF($B91=0,"",OFFSET('Combined Annuity Prices PL'!$B$10,MATCH($B91,'Combined Annuity Prices PL'!$B$10:$B$3811,0)+12,F$7)*'Master Data'!$J$37)) ->  | G91: =IF($C91="NA","",IF($B91=0,"",OFFSET('Combined Annuity Prices PL'!$B$10,MATCH($B91,'Combined Annuity Prices PL'!$B$10:$B$3811,0)+12,G$7)*'Master Data'!$J$37)) ->  | H91: =IF($C91="NA","",IF($B91=0,"",OFFSET('Combined Annuity Prices PL'!$B$10,MATCH($B91,'Combined Annuity Prices PL'!$B$10:$B$3811,0)+12,H$7)*'Master Data'!$J$37)) ->  | I91: =IF($C91="NA","",IF($B91=0,"",OFFSET('Combined Annuity Prices PL'!$B$10,MATCH($B91,'Combined Annuity Prices PL'!$B$10:$B$3811,0)+12,I$7)*'Master Data'!$J$37)) ->  | J91: =IF($C91="NA","",IF($B91=0,"",OFFSET('Combined Annuity Prices PL'!$B$10,MATCH($B91,'Combined Annuity Prices PL'!$B$10:$B$3811,0)+12,J$7)*'Master Data'!$J$37)) ->  | K91: =IF($C91="NA","",IF($B91=0,"",OFFSET('Combined Annuity Prices PL'!$B$10,MATCH($B91,'Combined Annuity Prices PL'!$B$10:$B$3811,0)+12,K$7)*'Master Data'!$J$37)) ->  | L91: =IF($C91="NA","",IF($B91=0,"",OFFSET('Combined Annuity Prices PL'!$B$10,MATCH($B91,'Combined Annuity Prices PL'!$B$10:$B$3811,0)+12,L$7)*'Master Data'!$J$37)) ->  | M91: =IF($C91="NA","",IF($B91=0,"",OFFSET('Combined Annuity Prices PL'!$B$10,MATCH($B91,'Combined Annuity Prices PL'!$B$10:$B$3811,0)+12,M$7)*'Master Data'!$J$37)) ->  | N91: =IF($C91="NA","",IF($B91=0,"",OFFSET('Combined Annuity Prices PL'!$B$10,MATCH($B91,'Combined Annuity Prices PL'!$B$10:$B$3811,0)+12,N$7)*'Master Data'!$J$37)) ->  | AC91: =IFERROR(VLOOKUP($B91,Volumes!$B$39:$H$81,MATCH(AC$9,Volumes!$B$4:$H$4,0),FALSE),0) -> 0 | AD91: =IFERROR(VLOOKUP($B91,Volumes!$B$39:$H$81,MATCH(AD$9,Volumes!$B$4:$H$4,0),FALSE),0) -> 0 | AE91: =IFERROR(VLOOKUP($B91,Volumes!$B$39:$H$81,MATCH(AE$9,Volumes!$B$4:$H$4,0),FALSE),0) -> 0 | AF91: =IFERROR(VLOOKUP($B91,Volumes!$B$39:$H$81,MATCH(AF$9,Volumes!$B$4:$H$4,0),FALSE),0) -> 0 | AG91: =IFERROR(VLOOKUP($B91,Volumes!$B$39:$H$81,MATCH(AG$9,Volumes!$B$4:$H$4,0),FALSE),0) -> 0
B92: =Inputs!$C88 -> 0 | C92: NA | E92: =IF($C92="NA","",IF($B92=0,"",OFFSET('Combined Annuity Prices PL'!$B$10,MATCH($B92,'Combined Annuity Prices PL'!$B$10:$B$3811,0)+12,E$7)*'Master Data'!$J$37)) ->  | F92: =IF($C92="NA","",IF($B92=0,"",OFFSET('Combined Annuity Prices PL'!$B$10,MATCH($B92,'Combined Annuity Prices PL'!$B$10:$B$3811,0)+12,F$7)*'Master Data'!$J$37)) ->  | G92: =IF($C92="NA","",IF($B92=0,"",OFFSET('Combined Annuity Prices PL'!$B$10,MATCH($B92,'Combined Annuity Prices PL'!$B$10:$B$3811,0)+12,G$7)*'Master Data'!$J$37)) ->  | H92: =IF($C92="NA","",IF($B92=0,"",OFFSET('Combined Annuity Prices PL'!$B$10,MATCH($B92,'Combined Annuity Prices PL'!$B$10:$B$3811,0)+12,H$7)*'Master Data'!$J$37)) ->  | I92: =IF($C92="NA","",IF($B92=0,"",OFFSET('Combined Annuity Prices PL'!$B$10,MATCH($B92,'Combined Annuity Prices PL'!$B$10:$B$3811,0)+12,I$7)*'Master Data'!$J$37)) ->  | J92: =IF($C92="NA","",IF($B92=0,"",OFFSET('Combined Annuity Prices PL'!$B$10,MATCH($B92,'Combined Annuity Prices PL'!$B$10:$B$3811,0)+12,J$7)*'Master Data'!$J$37)) ->  | K92: =IF($C92="NA","",IF($B92=0,"",OFFSET('Combined Annuity Prices PL'!$B$10,MATCH($B92,'Combined Annuity Prices PL'!$B$10:$B$3811,0)+12,K$7)*'Master Data'!$J$37)) ->  | L92: =IF($C92="NA","",IF($B92=0,"",OFFSET('Combined Annuity Prices PL'!$B$10,MATCH($B92,'Combined Annuity Prices PL'!$B$10:$B$3811,0)+12,L$7)*'Master Data'!$J$37)) ->  | M92: =IF($C92="NA","",IF($B92=0,"",OFFSET('Combined Annuity Prices PL'!$B$10,MATCH($B92,'Combined Annuity Prices PL'!$B$10:$B$3811,0)+12,M$7)*'Master Data'!$J$37)) ->  | N92: =IF($C92="NA","",IF($B92=0,"",OFFSET('Combined Annuity Prices PL'!$B$10,MATCH($B92,'Combined Annuity Prices PL'!$B$10:$B$3811,0)+12,N$7)*'Master Data'!$J$37)) ->  | AC92: =IFERROR(VLOOKUP($B92,Volumes!$B$39:$H$81,MATCH(AC$9,Volumes!$B$4:$H$4,0),FALSE),0) -> 0 | AD92: =IFERROR(VLOOKUP($B92,Volumes!$B$39:$H$81,MATCH(AD$9,Volumes!$B$4:$H$4,0),FALSE),0) -> 0 | AE92: =IFERROR(VLOOKUP($B92,Volumes!$B$39:$H$81,MATCH(AE$9,Volumes!$B$4:$H$4,0),FALSE),0) -> 0 | AF92: =IFERROR(VLOOKUP($B92,Volumes!$B$39:$H$81,MATCH(AF$9,Volumes!$B$4:$H$4,0),FALSE),0) -> 0 | AG92: =IFERROR(VLOOKUP($B92,Volumes!$B$39:$H$81,MATCH(AG$9,Volumes!$B$4:$H$4,0),FALSE),0) -> 0
B93: =Inputs!$C89 -> 250W Sodium Vapour | C93: Offered | D93: 49.024 | E93: =IF($C93="NA","",IF($B93=0,"",OFFSET('Combined Annuity Prices PL'!$B$10,MATCH($B93,'Combined Annuity Prices PL'!$B$10:$B$3811,0)+12,E$7)*'Master Data'!$J$37)) -> 50.01975146 | F93: =IF($C93="NA","",IF($B93=0,"",OFFSET('Combined Annuity Prices PL'!$B$10,MATCH($B93,'Combined Annuity Prices PL'!$B$10:$B$3811,0)+12,F$7)*'Master Data'!$J$37)) -> 49.91743382 | G93: =IF($C93="NA","",IF($B93=0,"",OFFSET('Combined Annuity Prices PL'!$B$10,MATCH($B93,'Combined Annuity Prices PL'!$B$10:$B$3811,0)+12,G$7)*'Master Data'!$J$37)) -> 45.40084101 | H93: =IF($C93="NA","",IF($B93=0,"",OFFSET('Combined Annuity Prices PL'!$B$10,MATCH($B93,'Combined Annuity Prices PL'!$B$10:$B$3811,0)+12,H$7)*'Master Data'!$J$37)) -> 45.15861967 | I93: =IF($C93="NA","",IF($B93=0,"",OFFSET('Combined Annuity Prices PL'!$B$10,MATCH($B93,'Combined Annuity Prices PL'!$B$10:$B$3811,0)+12,I$7)*'Master Data'!$J$37)) -> 44.85271082 | J93: =IF($C93="NA","",IF($B93=0,"",OFFSET('Combined Annuity Prices PL'!$B$10,MATCH($B93,'Combined Annuity Prices PL'!$B$10:$B$3811,0)+12,J$7)*'Master Data'!$J$37)) -> 0 | K93: =IF($C93="NA","",IF($B93=0,"",OFFSET('Combined Annuity Prices PL'!$B$10,MATCH($B93,'Combined Annuity Prices PL'!$B$10:$B$3811,0)+12,K$7)*'Master Data'!$J$37)) -> 0 | L93: =IF($C93="NA","",IF($B93=0,"",OFFSET('Combined Annuity Prices PL'!$B$10,MATCH($B93,'Combined Annuity Prices PL'!$B$10:$B$3811,0)+12,L$7)*'Master Data'!$J$37)) -> 0 | M93: =IF($C93="NA","",IF($B93=0,"",OFFSET('Combined Annuity Prices PL'!$B$10,MATCH($B93,'Combined Annuity Prices PL'!$B$10:$B$3811,0)+12,M$7)*'Master Data'!$J$37)) -> 0 | N93: =IF($C93="NA","",IF($B93=0,"",OFFSET('Combined Annuity Prices PL'!$B$10,MATCH($B93,'Combined Annuity Prices PL'!$B$10:$B$3811,0)+12,N$7)*'Master Data'!$J$37)) -> 0 | Q93: 1.211023201 | R93: 1.265551708 | S93: 1.208545417 | T93: 1.261600874 | U93: 1.31985381 | AC93: =IFERROR(VLOOKUP($B93,Volumes!$B$39:$H$81,MATCH(AC$9,Volumes!$B$4:$H$4,0),FALSE),0) -> 6615 | AD93: =IFERROR(VLOOKUP($B93,Volumes!$B$39:$H$81,MATCH(AD$9,Volumes!$B$4:$H$4,0),FALSE),0) -> 6946 | AE93: =IFERROR(VLOOKUP($B93,Volumes!$B$39:$H$81,MATCH(AE$9,Volumes!$B$4:$H$4,0),FALSE),0) -> 7293 | AF93: =IFERROR(VLOOKUP($B93,Volumes!$B$39:$H$81,MATCH(AF$9,Volumes!$B$4:$H$4,0),FALSE),0) -> 7654 | AG93: =IFERROR(VLOOKUP($B93,Volumes!$B$39:$H$81,MATCH(AG$9,Volumes!$B$4:$H$4,0),FALSE),0) -> 8040
B94: =Inputs!$C90 -> 0 | C94: NA | E94: =IF($C94="NA","",IF($B94=0,"",OFFSET('Combined Annuity Prices PL'!$B$10,MATCH($B94,'Combined Annuity Prices PL'!$B$10:$B$3811,0)+12,E$7)*'Master Data'!$J$37)) ->  | F94: =IF($C94="NA","",IF($B94=0,"",OFFSET('Combined Annuity Prices PL'!$B$10,MATCH($B94,'Combined Annuity Prices PL'!$B$10:$B$3811,0)+12,F$7)*'Master Data'!$J$37)) ->  | G94: =IF($C94="NA","",IF($B94=0,"",OFFSET('Combined Annuity Prices PL'!$B$10,MATCH($B94,'Combined Annuity Prices PL'!$B$10:$B$3811,0)+12,G$7)*'Master Data'!$J$37)) ->  | H94: =IF($C94="NA","",IF($B94=0,"",OFFSET('Combined Annuity Prices PL'!$B$10,MATCH($B94,'Combined Annuity Prices PL'!$B$10:$B$3811,0)+12,H$7)*'Master Data'!$J$37)) ->  | I94: =IF($C94="NA","",IF($B94=0,"",OFFSET('Combined Annuity Prices PL'!$B$10,MATCH($B94,'Combined Annuity Prices PL'!$B$10:$B$3811,0)+12,I$7)*'Master Data'!$J$37)) ->  | J94: =IF($C94="NA","",IF($B94=0,"",OFFSET('Combined Annuity Prices PL'!$B$10,MATCH($B94,'Combined Annuity Prices PL'!$B$10:$B$3811,0)+12,J$7)*'Master Data'!$J$37)) ->  | K94: =IF($C94="NA","",IF($B94=0,"",OFFSET('Combined Annuity Prices PL'!$B$10,MATCH($B94,'Combined Annuity Prices PL'!$B$10:$B$3811,0)+12,K$7)*'Master Data'!$J$37)) ->  | L94: =IF($C94="NA","",IF($B94=0,"",OFFSET('Combined Annuity Prices PL'!$B$10,MATCH($B94,'Combined Annuity Prices PL'!$B$10:$B$3811,0)+12,L$7)*'Master Data'!$J$37)) ->  | M94: =IF($C94="NA","",IF($B94=0,"",OFFSET('Combined Annuity Prices PL'!$B$10,MATCH($B94,'Combined Annuity Prices PL'!$B$10:$B$3811,0)+12,M$7)*'Master Data'!$J$37)) ->  | N94: =IF($C94="NA","",IF($B94=0,"",OFFSET('Combined Annuity Prices PL'!$B$10,MATCH($B94,'Combined Annuity Prices PL'!$B$10:$B$3811,0)+12,N$7)*'Master Data'!$J$37)) ->  | AC94: =IFERROR(VLOOKUP($B94,Volumes!$B$39:$H$81,MATCH(AC$9,Volumes!$B$4:$H$4,0),FALSE),0) -> 0 | AD94: =IFERROR(VLOOKUP($B94,Volumes!$B$39:$H$81,MATCH(AD$9,Volumes!$B$4:$H$4,0),FALSE),0) -> 0 | AE94: =IFERROR(VLOOKUP($B94,Volumes!$B$39:$H$81,MATCH(AE$9,Volumes!$B$4:$H$4,0),FALSE),0) -> 0 | AF94: =IFERROR(VLOOKUP($B94,Volumes!$B$39:$H$81,MATCH(AF$9,Volumes!$B$4:$H$4,0),FALSE),0) -> 0 | AG94: =IFERROR(VLOOKUP($B94,Volumes!$B$39:$H$81,MATCH(AG$9,Volumes!$B$4:$H$4,0),FALSE),0) -> 0
B95: =Inputs!$C91 -> 0 | C95: NA | E95: =IF($C95="NA","",IF($B95=0,"",OFFSET('Combined Annuity Prices PL'!$B$10,MATCH($B95,'Combined Annuity Prices PL'!$B$10:$B$3811,0)+12,E$7)*'Master Data'!$J$37)) ->  | F95: =IF($C95="NA","",IF($B95=0,"",OFFSET('Combined Annuity Prices PL'!$B$10,MATCH($B95,'Combined Annuity Prices PL'!$B$10:$B$3811,0)+12,F$7)*'Master Data'!$J$37)) ->  | G95: =IF($C95="NA","",IF($B95=0,"",OFFSET('Combined Annuity Prices PL'!$B$10,MATCH($B95,'Combined Annuity Prices PL'!$B$10:$B$3811,0)+12,G$7)*'Master Data'!$J$37)) ->  | H95: =IF($C95="NA","",IF($B95=0,"",OFFSET('Combined Annuity Prices PL'!$B$10,MATCH($B95,'Combined Annuity Prices PL'!$B$10:$B$3811,0)+12,H$7)*'Master Data'!$J$37)) ->  | I95: =IF($C95="NA","",IF($B95=0,"",OFFSET('Combined Annuity Prices PL'!$B$10,MATCH($B95,'Combined Annuity Prices PL'!$B$10:$B$3811,0)+12,I$7)*'Master Data'!$J$37)) ->  | AC95: =IFERROR(VLOOKUP($B95,Volumes!$B$39:$H$81,MATCH(AC$9,Volumes!$B$4:$H$4,0),FALSE),0) -> 0 | AD95: =IFERROR(VLOOKUP($B95,Volumes!$B$39:$H$81,MATCH(AD$9,Volumes!$B$4:$H$4,0),FALSE),0) -> 0 | AE95: =IFERROR(VLOOKUP($B95,Volumes!$B$39:$H$81,MATCH(AE$9,Volumes!$B$4:$H$4,0),FALSE),0) -> 0 | AF95: =IFERROR(VLOOKUP($B95,Volumes!$B$39:$H$81,MATCH(AF$9,Volumes!$B$4:$H$4,0),FALSE),0) -> 0 | AG95: =IFERROR(VLOOKUP($B95,Volumes!$B$39:$H$81,MATCH(AG$9,Volumes!$B$4:$H$4,0),FALSE),0) -> 0
